Workbook

Sheet Utilities (hidden)
A1: Ambala | B1: =CONCATENATE("workbooks(""1516.xlsm"").sheets(""",A1,""").Range(""aa4:ab1000"").copy") -> workbooks("1516.xlsm").sheets("Ambala").Range("aa4:ab1000").copy | C1: =CONCATENATE("workbooks(""1617.xlsm"").sheets(""",A1,""").Range(""c4:d1000"").PasteSpecial xlPasteValues") -> workbooks("1617.xlsm").sheets("Ambala").Range("c4:d1000").PasteSpecial xlPasteValues
A2: Bhiwani | B2: =CONCATENATE("workbooks(""1516.xlsm"").sheets(""",A2,""").Range(""aa4:ab1000"").copy") -> workbooks("1516.xlsm").sheets("Bhiwani").Range("aa4:ab1000").copy | C2: =CONCATENATE("workbooks(""1617.xlsm"").sheets(""",A2,""").Range(""c4:d1000"").PasteSpecial xlPasteValues") -> workbooks("1617.xlsm").sheets("Bhiwani").Range("c4:d1000").PasteSpecial xlPasteValues | G2: x.Sheets("name of copying sheet").Range("A1").Copy
A3: Faridabad | B3: workbooks("1516.xlsm").sheets("Faridabad").Range("aa4:ab1000").copy | C3: workbooks("1617.xlsm").sheets("Faridabad").Range("c4:d1000").PasteSpecial xlPasteValues
A4: Fatehabad | B4: workbooks("1516.xlsm").sheets("Fatehabad").Range("aa4:ab1000").copy | C4: workbooks("1617.xlsm").sheets("Fatehabad").Range("c4:d1000").PasteSpecial xlPasteValues | G4: 'Now, paste to y worksheet:
A5: Gurgaon | B5: workbooks("1516.xlsm").sheets("Gurgaon").Range("aa4:ab1000").copy | C5: workbooks("1617.xlsm").sheets("Gurgaon").Range("c4:d1000").PasteSpecial xlPasteValues | G5: y.Sheets("sheetname").Range("A1").PasteSpecial
A6: Hisar | B6: workbooks("1516.xlsm").sheets("Hisar").Range("aa4:ab1000").copy | C6: workbooks("1617.xlsm").sheets("Hisar").Range("c4:d1000").PasteSpecial xlPasteValues
A7: Jhajjar | B7: workbooks("1516.xlsm").sheets("Jhajjar").Range("aa4:ab1000").copy | C7: workbooks("1617.xlsm").sheets("Jhajjar").Range("c4:d1000").PasteSpecial xlPasteValues
A8: Jind | B8: workbooks("1516.xlsm").sheets("Jind").Range("aa4:ab1000").copy | C8: workbooks("1617.xlsm").sheets("Jind").Range("c4:d1000").PasteSpecial xlPasteValues
A9: Kaithal | B9: workbooks("1516.xlsm").sheets("Kaithal").Range("aa4:ab1000").copy | C9: workbooks("1617.xlsm").sheets("Kaithal").Range("c4:d1000").PasteSpecial xlPasteValues
A10: Karnal | B10: workbooks("1516.xlsm").sheets("Karnal").Range("aa4:ab1000").copy | C10: workbooks("1617.xlsm").sheets("Karnal").Range("c4:d1000").PasteSpecial xlPasteValues
A11: Kurukshetra | B11: workbooks("1516.xlsm").sheets("Kurukshetra").Range("aa4:ab1000").copy | C11: workbooks("1617.xlsm").sheets("Kurukshetra").Range("c4:d1000").PasteSpecial xlPasteValues
A12: Mgarh | B12: workbooks("1516.xlsm").sheets("Mgarh").Range("aa4:ab1000").copy | C12: workbooks("1617.xlsm").sheets("Mgarh").Range("c4:d1000").PasteSpecial xlPasteValues
A13: Mewat | B13: workbooks("1516.xlsm").sheets("Mewat").Range("aa4:ab1000").copy | C13: workbooks("1617.xlsm").sheets("Mewat").Range("c4:d1000").PasteSpecial xlPasteValues
A14: Palwal | B14: workbooks("1516.xlsm").sheets("Palwal").Range("aa4:ab1000").copy | C14: workbooks("1617.xlsm").sheets("Palwal").Range("c4:d1000").PasteSpecial xlPasteValues
A15: Panchkula | B15: workbooks("1516.xlsm").sheets("Panchkula").Range("aa4:ab1000").copy | C15: workbooks("1617.xlsm").sheets("Panchkula").Range("c4:d1000").PasteSpecial xlPasteValues
A16: Panipat | B16: workbooks("1516.xlsm").sheets("Panipat").Range("aa4:ab1000").copy | C16: workbooks("1617.xlsm").sheets("Panipat").Range("c4:d1000").PasteSpecial xlPasteValues
A17: Rewari | B17: workbooks("1516.xlsm").sheets("Rewari").Range("aa4:ab1000").copy | C17: workbooks("1617.xlsm").sheets("Rewari").Range("c4:d1000").PasteSpecial xlPasteValues
A18: Rohtak | B18: workbooks("1516.xlsm").sheets("Rohtak").Range("aa4:ab1000").copy | C18: workbooks("1617.xlsm").sheets("Rohtak").Range("c4:d1000").PasteSpecial xlPasteValues
A19: Sirsa | B19: workbooks("1516.xlsm").sheets("Sirsa").Range("aa4:ab1000").copy | C19: workbooks("1617.xlsm").sheets("Sirsa").Range("c4:d1000").PasteSpecial xlPasteValues
A20: Sonepat | B20: workbooks("1516.xlsm").sheets("Sonepat").Range("aa4:ab1000").copy | C20: workbooks("1617.xlsm").sheets("Sonepat").Range("c4:d1000").PasteSpecial xlPasteValues
A21: Ynagar | B21: workbooks("1516.xlsm").sheets("Ynagar").Range("aa4:ab1000").copy | C21: workbooks("1617.xlsm").sheets("Ynagar").Range("c4:d1000").PasteSpecial xlPasteValues
A22: State | B22: workbooks("1516.xlsm").sheets("State").Range("aa4:ab1000").copy | C22: workbooks("1617.xlsm").sheets("State").Range("c4:d1000").PasteSpecial xlPasteValues
D288: Academic Support through Block Resource Centre/ BRC

Sheet sfd
A1: State/UT Name: BIHAR | AB1: (Rs. in lakh)
A2: Sl.No | B2: Name of the districts | C2: SOCIAL CATEGORY GROUP | I2: Physical items Approved | AB2: Total financial outlay of SSA | AC2: KGBV Outlay | AD2: Total Outlay
C3: 109 SCHEDULED TRIBES (25% and above) | D3: 61 SCHEDULED CASTES (25% and above) | E3: 121 PMO's Minority Districts | F3: 88 Muslim Concentration (20% and above) | G3: LWE Districts | H3: 88 LWE Affected Districts | I3: Civil Works (Fresh) | P3: PS | Q3: Upgradation of PS to UPS | R3: Residential schools | S3: Residential hostel | T3: Integration of Class VIII with UPS | U3: Teachers | X3: Teachers Training | Y3: Uniforms | Z3: Text books | AA3: No. of KGBV
I4: New PS Buildings | J4: New UPS Buildings | K4: ACR | L4: ACR in lieu of upgraded Primary School | M4: ACR in lieu of upgraded Upper Primary School | N4: All Toilets (including girls toilets) | O4: Girls Toilets | U4: New teachers for new schools | V4: Additional teach. Against excess enrolment | W4: Part Time Instructors
A5: 1 | B5: Araria | E5: 1 | F5: 1 | I5: =Araria!$AA$376+Araria!$AA$377+Araria!AA$378 -> 0 | J5: =Araria!$AA$379+Araria!$AA$380 -> 0 | K5: =Araria!$AA$381+Araria!$AA$382+Araria!$AA$383+Araria!$AA$384+Araria!$AA$388+Araria!$AA$389 -> 0 | L5: 0 | M5: 0 | N5: =Araria!$AA$390+Araria!$AA$391+Araria!$AA$392+Araria!$AA$393+Araria!$AA$396+Araria!$AA$416 -> 0 | O5: =Araria!$AA$391 -> 0 | P5: =Araria!$AA$7 -> 0 | Q5: =Araria!$AA$8 -> 0 | R5: =Araria!$AA$10 -> 0 | S5: =Araria!$AA$11 -> 0 | T5: =Araria!$AA$13 -> 0 | U5: =Araria!$AA$239 -> 0 | V5: =Araria!$AA$263 -> 4716 | W5: =Araria!$AA$259+Araria!$AA$260+Araria!$AA$261 -> 0 | X5: =Araria!$AA$304 -> 17740 | Y5: =Araria!$AA$213 -> 235215 | Z5: =Araria!$AA$207 -> 635422 | AA5: =Araria!$AA$487 -> 10 | AB5: =Araria!$AB$452 -> 25960.39791 | AC5: =Araria!$AB$487 -> 384.82218 | AD5: =SUM(AB5:AC5) -> 26345.22009
A6: 2 | B6: Arwal | G6: 1 | I6: =Arwal!$AA$376+Arwal!$AA$377+Arwal!AA$378 -> 0 | J6: =Arwal!$AA$379+Arwal!$AA$380 -> 0 | K6: =Arwal!$AA$381+Arwal!$AA$382+Arwal!$AA$383+Arwal!$AA$384+Arwal!$AA$388+Arwal!$AA$389 -> 0 | L6: 0 | M6: 0 | N6: =Arwal!$AA$390+Arwal!$AA$391+Arwal!$AA$392+Arwal!$AA$393+Arwal!$AA$396+Arwal!$AA$416 -> 0 | O6: =Arwal!$AA$391 -> 0 | P6: =Arwal!$AA$7 -> 0 | Q6: =Arwal!$AA$8 -> 0 | R6: =Arwal!$AA$10 -> 0 | S6: =Arwal!$AA$11 -> 0 | T6: =Arwal!$AA$13 -> 0 | U6: =Arwal!$AA$239 -> 0 | V6: =Arwal!$AA$263 -> 1388 | W6: =Arwal!$AA$259+Arwal!$AA$260+Arwal!$AA$261 -> 0 | X6: =Arwal!$AA$304 -> 5945 | Y6: =Arwal!$AA$213 -> 51888 | Z6: =Arwal!$AA$207 -> 159386 | AA6: =Arwal!$AA$487 -> 5 | AB6: =Arwal!$AB$452 -> 6584.016205 | AC6: =Arwal!$AB$487 -> 209.23362 | AD6: 6793.249825
A7: 3 | B7: Aurangabad | G7: 1 | H7: 1 | I7: =Aurangabad!$AA$376+Aurangabad!$AA$377+Aurangabad!AA$378 -> 0 | J7: =Aurangabad!$AA$379+Aurangabad!$AA$380 -> 0 | K7: =Aurangabad!$AA$381+Aurangabad!$AA$382+Aurangabad!$AA$383+Aurangabad!$AA$384+Aurangabad!$AA$388+Aurangabad!$AA$389 -> 0 | L7: 0 | M7: 0 | N7: =Aurangabad!$AA$390+Aurangabad!$AA$391+Aurangabad!$AA$392+Aurangabad!$AA$393+Aurangabad!$AA$396+Aurangabad!$AA$416 -> 0 | O7: =Aurangabad!$AA$391 -> 0 | P7: =Aurangabad!$AA$7 -> 0 | Q7: =Aurangabad!$AA$8 -> 0 | R7: =Aurangabad!$AA$10 -> 0 | S7: =Aurangabad!$AA$11 -> 0 | T7: =Aurangabad!$AA$13 -> 0 | U7: =Aurangabad!$AA$239 -> 0 | V7: =Aurangabad!$AA$263 -> 4059 | W7: =Aurangabad!$AA$259+Aurangabad!$AA$260+Aurangabad!$AA$261 -> 0 | X7: =Aurangabad!$AA$304 -> 15812 | Y7: =Aurangabad!$AA$213 -> 227042 | Z7: =Aurangabad!$AA$207 -> 587350 | AA7: =Aurangabad!$AA$487 -> 11 | AB7: =Aurangabad!$AB$452 -> 23311.04882 | AC7: =Aurangabad!$AB$487 -> 481.22286 | AD7: 23792.27168
A8: 4 | B8: Banka | G8: 1 | H8: 1 | I8: =Banka!$AA$376+Banka!$AA$377+Banka!AA$378 -> 0 | J8: =Banka!$AA$379+Banka!$AA$380 -> 0 | K8: =Banka!$AA$381+Banka!$AA$382+Banka!$AA$383+Banka!$AA$384+Banka!$AA$388+Banka!$AA$389 -> 0 | L8: 0 | M8: 0 | N8: =Banka!$AA$390+Banka!$AA$391+Banka!$AA$392+Banka!$AA$393+Banka!$AA$396+Banka!$AA$416 -> 0 | O8: =Banka!$AA$391 -> 0 | P8: =Banka!$AA$7 -> 0 | Q8: =Banka!$AA$8 -> 0 | R8: =Banka!$AA$10 -> 0 | S8: =Banka!$AA$11 -> 0 | T8: =Banka!$AA$13 -> 0 | U8: =Banka!$AA$239 -> 0 | V8: =Banka!$AA$263 -> 3072 | W8: =Banka!$AA$259+Banka!$AA$260+Banka!$AA$261 -> 0 | X8: =Banka!$AA$304 -> 11059 | Y8: =Banka!$AA$213 -> 117953 | Z8: =Banka!$AA$207 -> 421521 | AA8: =Banka!$AA$487 -> 11 | AB8: =Banka!$AB$452 -> 17514.71361 | AC8: =Banka!$AB$487 -> 408.06161 | AD8: 17922.77522
A9: 5 | B9: Darbhanga | E9: 1 | F9: 1 | I9: =Darbhanga!$AA$376+Darbhanga!$AA$377+Darbhanga!AA$378 -> 0 | J9: =Darbhanga!$AA$379+Darbhanga!$AA$380 -> 0 | K9: =Darbhanga!$AA$381+Darbhanga!$AA$382+Darbhanga!$AA$383+Darbhanga!$AA$384+Darbhanga!$AA$388+Darbhanga!$AA$389 -> 0 | L9: 0 | M9: 0 | N9: =Darbhanga!$AA$390+Darbhanga!$AA$391+Darbhanga!$AA$392+Darbhanga!$AA$393+Darbhanga!$AA$396+Darbhanga!$AA$416 -> 0 | O9: =Darbhanga!$AA$391 -> 0 | P9: =Darbhanga!$AA$7 -> 0 | Q9: =Darbhanga!$AA$8 -> 0 | R9: =Darbhanga!$AA$10 -> 0 | S9: =Darbhanga!$AA$11 -> 0 | T9: =Darbhanga!$AA$13 -> 0 | U9: =Darbhanga!$AA$239 -> 0 | V9: =Darbhanga!$AA$263 -> 5071 | W9: =Darbhanga!$AA$259+Darbhanga!$AA$260+Darbhanga!$AA$261 -> 0 | X9: =Darbhanga!$AA$304 -> 24717 | Y9: =Darbhanga!$AA$213 -> 296875 | Z9: =Darbhanga!$AA$207 -> 801741 | AA9: =Darbhanga!$AA$487 -> 18 | AB9: =Darbhanga!$AB$452 -> 30695.76963 | AC9: =Darbhanga!$AB$487 -> 690.09033 | AD9: 31385.85996
A10: 6 | B10: Echamparan | D10: 1 | I10: =EChamparan!$AA$376+EChamparan!$AA$377+EChamparan!AA$378 -> 0 | J10: =EChamparan!$AA$379+EChamparan!$AA$380 -> 0 | K10: =EChamparan!$AA$381+EChamparan!$AA$382+EChamparan!$AA$383+EChamparan!$AA$384+EChamparan!$AA$388+EChamparan!$AA$389 -> 0 | L10: 0 | M10: 0 | N10: =EChamparan!$AA$390+EChamparan!$AA$391+EChamparan!$AA$392+EChamparan!$AA$393+EChamparan!$AA$396+EChamparan!$AA$416 -> 0 | O10: =EChamparan!$AA$391 -> 0 | P10: =EChamparan!$AA$7 -> 0 | Q10: =EChamparan!$AA$8 -> 0 | R10: =EChamparan!$AA$10 -> 0 | S10: =EChamparan!$AA$11 -> 0 | T10: =EChamparan!$AA$13 -> 0 | U10: =EChamparan!$AA$239 -> 0 | V10: =EChamparan!$AA$263 -> 9436 | W10: =EChamparan!$AA$259+EChamparan!$AA$260+EChamparan!$AA$261 -> 0 | X10: =EChamparan!$AA$304 -> 34042 | Y10: =EChamparan!$AA$213 -> 384842 | Z10: =EChamparan!$AA$207 -> 1132340 | AA10: =EChamparan!$AA$487 -> 27 | AB10: =EChamparan!$AB$452 -> 43559.85633 | AC10: =EChamparan!$AB$487 -> 1063.48309 | AD10: 44623.33942
A11: 7 | B11: Gaya | G11: 1 | H11: 1 | I11: =Gaya!$AA$376+Gaya!$AA$377+Gaya!AA$378 -> 0 | J11: =Gaya!$AA$379+Gaya!$AA$380 -> 0 | K11: =Gaya!$AA$381+Gaya!$AA$382+Gaya!$AA$383+Gaya!$AA$384+Gaya!$AA$388+Gaya!$AA$389 -> 0 | L11: 0 | M11: 0 | N11: =Gaya!$AA$390+Gaya!$AA$391+Gaya!$AA$392+Gaya!$AA$393+Gaya!$AA$396+Gaya!$AA$416 -> 0 | O11: =Gaya!$AA$391 -> 0 | P11: =Gaya!$AA$7 -> 0 | Q11: =Gaya!$AA$8 -> 0 | R11: =Gaya!$AA$10 -> 0 | S11: =Gaya!$AA$11 -> 0 | T11: =Gaya!$AA$13 -> 0 | U11: =Gaya!$AA$239 -> 0 | V11: =Gaya!$AA$263 -> 8066 | W11: =Gaya!$AA$259+Gaya!$AA$260+Gaya!$AA$261 -> 0 | X11: =Gaya!$AA$304 -> 24694 | Y11: =Gaya!$AA$213 -> 268046 | Z11: =Gaya!$AA$207 -> 883656 | AA11: =Gaya!$AA$487 -> 24 | AB11: =Gaya!$AB$452 -> 39832.47553 | AC11: =Gaya!$AB$487 -> 1393.57436 | AD11: 41226.04989
A12: 8 | B12: Jamui | G12: 1 | H12: 1 | I12: =Jamui!$AA$376+Jamui!$AA$377+Jamui!AA$378 -> 0 | J12: =Jamui!$AA$379+Jamui!$AA$380 -> 0 | K12: =Jamui!$AA$381+Jamui!$AA$382+Jamui!$AA$383+Jamui!$AA$384+Jamui!$AA$388+Jamui!$AA$389 -> 0 | L12: 0 | M12: 0 | N12: =Jamui!$AA$390+Jamui!$AA$391+Jamui!$AA$392+Jamui!$AA$393+Jamui!$AA$396+Jamui!$AA$416 -> 0 | O12: =Jamui!$AA$391 -> 0 | P12: =Jamui!$AA$7 -> 0 | Q12: =Jamui!$AA$8 -> 0 | R12: =Jamui!$AA$10 -> 0 | S12: =Jamui!$AA$11 -> 0 | T12: =Jamui!$AA$13 -> 0 | U12: =Jamui!$AA$239 -> 0 | V12: =Jamui!$AA$263 -> 3636 | W12: =Jamui!$AA$259+Jamui!$AA$260+Jamui!$AA$261 -> 0 | X12: =Jamui!$AA$304 -> 13622 | Y12: =Jamui!$AA$213 -> 143736 | Z12: =Jamui!$AA$207 -> 431168 | AA12: =Jamui!$AA$487 -> 10 | AB12: =Jamui!$AB$452 -> 18657.72477 | AC12: =Jamui!$AB$487 -> 415.68945 | AD12: 19073.41422
A13: 9 | B13: Jehanabad | G13: 1 | I13: =Jehanabad!$AA$376+Jehanabad!$AA$377+Jehanabad!AA$378 -> 0 | J13: =Jehanabad!$AA$379+Jehanabad!$AA$380 -> 0 | K13: =Jehanabad!$AA$381+Jehanabad!$AA$382+Jehanabad!$AA$383+Jehanabad!$AA$384+Jehanabad!$AA$388+Jehanabad!$AA$389 -> 0 | L13: 0 | M13: 0 | N13: =Jehanabad!$AA$390+Jehanabad!$AA$391+Jehanabad!$AA$392+Jehanabad!$AA$393+Jehanabad!$AA$396+Jehanabad!$AA$416 -> 0 | O13: =Jehanabad!$AA$391 -> 0 | P13: =Jehanabad!$AA$7 -> 0 | Q13: =Jehanabad!$AA$8 -> 0 | R13: =Jehanabad!$AA$10 -> 0 | S13: =Jehanabad!$AA$11 -> 0 | T13: =Jehanabad!$AA$13 -> 0 | U13: =Jehanabad!$AA$239 -> 0 | V13: =Jehanabad!$AA$263 -> 1884 | W13: =Jehanabad!$AA$259+Jehanabad!$AA$260+Jehanabad!$AA$261 -> 0 | X13: =Jehanabad!$AA$304 -> 9352 | Y13: =Jehanabad!$AA$213 -> 79755 | Z13: =Jehanabad!$AA$207 -> 232744 | AA13: =Jehanabad!$AA$487 -> 7 | AB13: =Jehanabad!$AB$452 -> 12772.5758 | AC13: =Jehanabad!$AB$487 -> 288.74324 | AD13: 13061.31904
A14: 10 | B14: Kaimur | G14: 1 | I14: =Kaimur!$AA$376+Kaimur!$AA$377+Kaimur!AA$378 -> 0 | J14: =Kaimur!$AA$379+Kaimur!$AA$380 -> 0 | K14: =Kaimur!$AA$381+Kaimur!$AA$382+Kaimur!$AA$383+Kaimur!$AA$384+Kaimur!$AA$388+Kaimur!$AA$389 -> 0 | L14: 0 | M14: 0 | N14: =Kaimur!$AA$390+Kaimur!$AA$391+Kaimur!$AA$392+Kaimur!$AA$393+Kaimur!$AA$396+Kaimur!$AA$416 -> 0 | O14: =Kaimur!$AA$391 -> 0 | P14: =Kaimur!$AA$7 -> 0 | Q14: =Kaimur!$AA$8 -> 0 | R14: =Kaimur!$AA$10 -> 0 | S14: =Kaimur!$AA$11 -> 0 | T14: =Kaimur!$AA$13 -> 0 | U14: =Kaimur!$AA$239 -> 0 | V14: =Kaimur!$AA$263 -> 4059 | W14: =Kaimur!$AA$259+Kaimur!$AA$260+Kaimur!$AA$261 -> 0 | X14: =Kaimur!$AA$304 -> 11748 | Y14: =Kaimur!$AA$213 -> 144285 | Z14: =Kaimur!$AA$207 -> 351300 | AA14: =Kaimur!$AA$487 -> 11 | AB14: =Kaimur!$AB$452 -> 16194.55547 | AC14: =Kaimur!$AB$487 -> 414.79742 | AD14: 16609.35289
A15: 11 | B15: Katihar | E15: 1 | F15: 1 | I15: =Katihar!$AA$376+Katihar!$AA$377+Katihar!AA$378 -> 0 | J15: =Katihar!$AA$379+Katihar!$AA$380 -> 0 | K15: =Katihar!$AA$381+Katihar!$AA$382+Katihar!$AA$383+Katihar!$AA$384+Katihar!$AA$388+Katihar!$AA$389 -> 0 | L15: 0 | M15: 0 | N15: =Katihar!$AA$390+Katihar!$AA$391+Katihar!$AA$392+Katihar!$AA$393+Katihar!$AA$396+Katihar!$AA$416 -> 0 | O15: =Katihar!$AA$391 -> 0 | P15: =Katihar!$AA$7 -> 0 | Q15: =Katihar!$AA$8 -> 0 | R15: =Katihar!$AA$10 -> 0 | S15: =Katihar!$AA$11 -> 0 | T15: =Katihar!$AA$13 -> 0 | U15: =Katihar!$AA$239 -> 0 | V15: =Katihar!$AA$263 -> 4989 | W15: =Katihar!$AA$259+Katihar!$AA$260+Katihar!$AA$261 -> 0 | X15: =Katihar!$AA$304 -> 21134 | Y15: =Katihar!$AA$213 -> 259270 | Z15: =Katihar!$AA$207 -> 704035 | AA15: =Katihar!$AA$487 -> 16 | AB15: =Katihar!$AB$452 -> 24261.91916 | AC15: =Katihar!$AB$487 -> 675.85711 | AD15: 24937.77627
A16: 12 | B16: Kishanganj | E16: 1 | F16: 1 | I16: =Kishanganj!$AA$376+Kishanganj!$AA$377+Kishanganj!AA$378 -> 0 | J16: =Kishanganj!$AA$379+Kishanganj!$AA$380 -> 0 | K16: =Kishanganj!$AA$381+Kishanganj!$AA$382+Kishanganj!$AA$383+Kishanganj!$AA$384+Kishanganj!$AA$388+Kishanganj!$AA$389 -> 0 | L16: 0 | M16: 0 | N16: =Kishanganj!$AA$390+Kishanganj!$AA$391+Kishanganj!$AA$392+Kishanganj!$AA$393+Kishanganj!$AA$396+Kishanganj!$AA$416 -> 0 | O16: =Kishanganj!$AA$391 -> 0 | P16: =Kishanganj!$AA$7 -> 0 | Q16: =Kishanganj!$AA$8 -> 0 | R16: =Kishanganj!$AA$10 -> 0 | S16: =Kishanganj!$AA$11 -> 0 | T16: =Kishanganj!$AA$13 -> 0 | U16: =Kishanganj!$AA$239 -> 0 | V16: =Kishanganj!$AA$263 -> 1857 | W16: =Kishanganj!$AA$259+Kishanganj!$AA$260+Kishanganj!$AA$261 -> 0 | X16: =Kishanganj!$AA$304 -> 12457 | Y16: =Kishanganj!$AA$213 -> 129186 | Z16: =Kishanganj!$AA$207 -> 422375 | AA16: =Kishanganj!$AA$487 -> 8 | AB16: =Kishanganj!$AB$452 -> 14730.9945 | AC16: =Kishanganj!$AB$487 -> 295.71993 | AD16: 15026.71443
A17: 13 | B17: Munger | G17: 1 | I17: =Munger!$AA$376+Munger!$AA$377+Munger!AA$378 -> 0 | J17: =Munger!$AA$379+Munger!$AA$380 -> 0 | K17: =Munger!$AA$381+Munger!$AA$382+Munger!$AA$383+Munger!$AA$384+Munger!$AA$388+Munger!$AA$389 -> 0 | L17: 0 | M17: 0 | N17: =Munger!$AA$390+Munger!$AA$391+Munger!$AA$392+Munger!$AA$393+Munger!$AA$396+Munger!$AA$416 -> 0 | O17: =Munger!$AA$391 -> 0 | P17: =Munger!$AA$7 -> 0 | Q17: =Munger!$AA$8 -> 0 | R17: =Munger!$AA$10 -> 0 | S17: =Munger!$AA$11 -> 0 | T17: =Munger!$AA$13 -> 0 | U17: =Munger!$AA$239 -> 0 | V17: =Munger!$AA$263 -> 2231 | W17: =Munger!$AA$259+Munger!$AA$260+Munger!$AA$261 -> 0 | X17: =Munger!$AA$304 -> 9556 | Y17: =Munger!$AA$213 -> 77247 | Z17: =Munger!$AA$207 -> 272307 | AA17: =Munger!$AA$487 -> 8 | AB17: =Munger!$AB$452 -> 12414.39168 | AC17: =Munger!$AB$487 -> 282.8 | AD17: 12697.19168
A18: 14 | B18: Muzaffarpur | G18: 1 | H18: 1 | I18: =Muzaffarpur!$AA$376+Muzaffarpur!$AA$377+Muzaffarpur!AA$378 -> 0 | J18: =Muzaffarpur!$AA$379+Muzaffarpur!$AA$380 -> 0 | K18: =Muzaffarpur!$AA$381+Muzaffarpur!$AA$382+Muzaffarpur!$AA$383+Muzaffarpur!$AA$384+Muzaffarpur!$AA$388+Muzaffarpur!$AA$389 -> 0 | L18: 0 | M18: 0 | N18: =Muzaffarpur!$AA$390+Muzaffarpur!$AA$391+Muzaffarpur!$AA$392+Muzaffarpur!$AA$393+Muzaffarpur!$AA$396+Muzaffarpur!$AA$416 -> 0 | O18: =Muzaffarpur!$AA$391 -> 0 | P18: =Muzaffarpur!$AA$7 -> 0 | Q18: =Muzaffarpur!$AA$8 -> 0 | R18: =Muzaffarpur!$AA$10 -> 0 | S18: =Muzaffarpur!$AA$11 -> 0 | T18: =Muzaffarpur!$AA$13 -> 0 | U18: =Muzaffarpur!$AA$239 -> 0 | V18: =Muzaffarpur!$AA$263 -> 10354 | W18: =Muzaffarpur!$AA$259+Muzaffarpur!$AA$260+Muzaffarpur!$AA$261 -> 0 | X18: =Muzaffarpur!$AA$304 -> 29467 | Y18: =Muzaffarpur!$AA$213 -> 515530 | Z18: =Muzaffarpur!$AA$207 -> 942901 | AA18: =Muzaffarpur!$AA$487 -> 16 | AB18: =Muzaffarpur!$AB$452 -> 39207.92436 | AC18: =Muzaffarpur!$AB$487 -> 611.9924 | AD18: 39819.91676
A19: 15 | B19: Nawada | G19: 1 | H19: 1 | I19: =Nawada!$AA$376+Nawada!$AA$377+Nawada!AA$378 -> 0 | J19: =Nawada!$AA$379+Nawada!$AA$380 -> 0 | K19: =Nawada!$AA$381+Nawada!$AA$382+Nawada!$AA$383+Nawada!$AA$384+Nawada!$AA$388+Nawada!$AA$389 -> 0 | L19: 0 | M19: 0 | N19: =Nawada!$AA$390+Nawada!$AA$391+Nawada!$AA$392+Nawada!$AA$393+Nawada!$AA$396+Nawada!$AA$416 -> 0 | O19: =Nawada!$AA$391 -> 0 | P19: =Nawada!$AA$7 -> 0 | Q19: =Nawada!$AA$8 -> 0 | R19: =Nawada!$AA$10 -> 0 | S19: =Nawada!$AA$11 -> 0 | T19: =Nawada!$AA$13 -> 0 | U19: =Nawada!$AA$239 -> 0 | V19: =Nawada!$AA$263 -> 5943 | W19: =Nawada!$AA$259+Nawada!$AA$260+Nawada!$AA$261 -> 0 | X19: =Nawada!$AA$304 -> 16511 | Y19: =Nawada!$AA$213 -> 147364 | Z19: =Nawada!$AA$207 -> 502631 | AA19: =Nawada!$AA$487 -> 14 | AB19: =Nawada!$AB$452 -> 26268.61165 | AC19: =Nawada!$AB$487 -> 541.16461 | AD19: 26809.77626
A20: 16 | B20: Purnea | E20: 1 | F20: 1 | I20: =Purnea!$AA$376+Purnea!$AA$377+Purnea!AA$378 -> 0 | J20: =Purnea!$AA$379+Purnea!$AA$380 -> 0 | K20: =Purnea!$AA$381+Purnea!$AA$382+Purnea!$AA$383+Purnea!$AA$384+Purnea!$AA$388+Purnea!$AA$389 -> 0 | L20: 0 | M20: 0 | N20: =Purnea!$AA$390+Purnea!$AA$391+Purnea!$AA$392+Purnea!$AA$393+Purnea!$AA$396+Purnea!$AA$416 -> 0 | O20: =Purnea!$AA$391 -> 0 | P20: =Purnea!$AA$7 -> 0 | Q20: =Purnea!$AA$8 -> 0 | R20: =Purnea!$AA$10 -> 0 | S20: =Purnea!$AA$11 -> 0 | T20: =Purnea!$AA$13 -> 0 | U20: =Purnea!$AA$239 -> 0 | V20: =Purnea!$AA$263 -> 5850 | W20: =Purnea!$AA$259+Purnea!$AA$260+Purnea!$AA$261 -> 0 | X20: =Purnea!$AA$304 -> 19313 | Y20: =Purnea!$AA$213 -> 263120 | Z20: =Purnea!$AA$207 -> 755486 | AA20: =Purnea!$AA$487 -> 15 | AB20: =Purnea!$AB$452 -> 25823.05144 | AC20: =Purnea!$AB$487 -> 532.26811 | AD20: 26355.31955
A21: 17 | B21: Rohtas | G21: 1 | I21: =Rohtas!$AA$376+Rohtas!$AA$377+Rohtas!AA$378 -> 0 | J21: =Rohtas!$AA$379+Rohtas!$AA$380 -> 0 | K21: =Rohtas!$AA$381+Rohtas!$AA$382+Rohtas!$AA$383+Rohtas!$AA$384+Rohtas!$AA$388+Rohtas!$AA$389 -> 0 | L21: 0 | M21: 0 | N21: =Rohtas!$AA$390+Rohtas!$AA$391+Rohtas!$AA$392+Rohtas!$AA$393+Rohtas!$AA$396+Rohtas!$AA$416 -> 0 | O21: =Rohtas!$AA$391 -> 0 | P21: =Rohtas!$AA$7 -> 0 | Q21: =Rohtas!$AA$8 -> 0 | R21: =Rohtas!$AA$10 -> 0 | S21: =Rohtas!$AA$11 -> 0 | T21: =Rohtas!$AA$13 -> 0 | U21: =Rohtas!$AA$239 -> 0 | V21: =Rohtas!$AA$263 -> 6237 | W21: =Rohtas!$AA$259+Rohtas!$AA$260+Rohtas!$AA$261 -> 0 | X21: =Rohtas!$AA$304 -> 19501 | Y21: =Rohtas!$AA$213 -> 187122 | Z21: =Rohtas!$AA$207 -> 572183 | AA21: =Rohtas!$AA$487 -> 18 | AB21: =Rohtas!$AB$452 -> 26980.60605 | AC21: =Rohtas!$AB$487 -> 683.9166 | AD21: 27664.52265
A22: 18 | B22: Sitamarhi | E22: 1 | F22: 1 | G22: 1 | I22: =Sitamarhi!$AA$376+Sitamarhi!$AA$377+Sitamarhi!AA$378 -> 0 | J22: =Sitamarhi!$AA$379+Sitamarhi!$AA$380 -> 0 | K22: =Sitamarhi!$AA$381+Sitamarhi!$AA$382+Sitamarhi!$AA$383+Sitamarhi!$AA$384+Sitamarhi!$AA$388+Sitamarhi!$AA$389 -> 0 | L22: 0 | M22: 0 | N22: =Sitamarhi!$AA$390+Sitamarhi!$AA$391+Sitamarhi!$AA$392+Sitamarhi!$AA$393+Sitamarhi!$AA$396+Sitamarhi!$AA$416 -> 0 | O22: =Sitamarhi!$AA$391 -> 0 | P22: =Sitamarhi!$AA$7 -> 0 | Q22: =Sitamarhi!$AA$8 -> 0 | R22: =Sitamarhi!$AA$10 -> 0 | S22: =Sitamarhi!$AA$11 -> 0 | T22: =Sitamarhi!$AA$13 -> 0 | U22: =Sitamarhi!$AA$239 -> 0 | V22: =Sitamarhi!$AA$263 -> 5246 | W22: =Sitamarhi!$AA$259+Sitamarhi!$AA$260+Sitamarhi!$AA$261 -> 0 | X22: =Sitamarhi!$AA$304 -> 19286 | Y22: =Sitamarhi!$AA$213 -> 285978 | Z22: =Sitamarhi!$AA$207 -> 806466 | AA22: =Sitamarhi!$AA$487 -> 17 | AB22: =Sitamarhi!$AB$452 -> 26690.2497 | AC22: =Sitamarhi!$AB$487 -> 648.11878 | AD22: 27338.36848
A23: 19 | B23: Wchamparan | E23: 1 | F23: 1 | G23: 1 | I23: =WChamparan!$AA$376+WChamparan!$AA$377+WChamparan!AA$378 -> 0 | J23: =WChamparan!$AA$379+WChamparan!$AA$380 -> 0 | K23: =WChamparan!$AA$381+WChamparan!$AA$382+WChamparan!$AA$383+WChamparan!$AA$384+WChamparan!$AA$388+WChamparan!$AA$389 -> 0 | L23: 0 | M23: 0 | N23: =WChamparan!$AA$390+WChamparan!$AA$391+WChamparan!$AA$392+WChamparan!$AA$393+WChamparan!$AA$396+WChamparan!$AA$416 -> 0 | O23: =WChamparan!$AA$391 -> 0 | P23: =WChamparan!$AA$7 -> 0 | Q23: =WChamparan!$AA$8 -> 0 | R23: =WChamparan!$AA$10 -> 0 | S23: =WChamparan!$AA$11 -> 0 | T23: =WChamparan!$AA$13 -> 0 | U23: =WChamparan!$AA$239 -> 0 | V23: =WChamparan!$AA$263 -> 5618 | W23: =WChamparan!$AA$259+WChamparan!$AA$260+WChamparan!$AA$261 -> 0 | X23: =WChamparan!$AA$304 -> 24303 | Y23: =WChamparan!$AA$213 -> 329384 | Z23: =WChamparan!$AA$207 -> 840106 | AA23: =WChamparan!$AA$487 -> 18 | AB23: =WChamparan!$AB$452 -> 27433.03936 | AC23: =WChamparan!$AB$487 -> 719.49591 | AD23: 28152.53527
B24: Total No.of Categorywise SFDs | C24: =SUM(C5:C23) -> 0 | D24: 1 | E24: 7 | F24: 7 | G24: 13 | H24: 6 | I24: 0 | J24: 0 | K24: 0 | L24: 0 | M24: 0 | N24: 0 | O24: 0 | P24: 0 | Q24: 0 | R24: 0 | S24: 0 | T24: 0 | U24: 0 | V24: 93712 | W24: 0 | X24: 340259 | Y24: 4143838 | Z24: 11455118 | AA24: 264 | AB24: 458893.9221 | AC24: 10741.05161 | AD24: 469634.9737
A25: State total | I25: =StateTotal!$AA$376+StateTotal!$AA$377+StateTotal!AA$378 -> 1 | J25: =StateTotal!$AA$379+StateTotal!$AA$380 -> 0 | K25: =StateTotal!$AA$381+StateTotal!$AA$382+StateTotal!$AA$383+StateTotal!$AA$384+StateTotal!$AA$388+StateTotal!$AA$389 -> 0 | L25: 0 | M25: 0 | N25: =StateTotal!$AA$390+StateTotal!$AA$391+StateTotal!$AA$392+StateTotal!$AA$393+StateTotal!$AA$396+StateTotal!$AA$416 -> 0 | O25: =StateTotal!$AA$391 -> 0 | P25: =StateTotal!$AA$7 -> 1 | Q25: =StateTotal!$AA$8 -> 0 | R25: =StateTotal!$AA$10 -> 0 | S25: =StateTotal!$AA$11 -> 0 | T25: =StateTotal!$AA$13 -> 0 | U25: =StateTotal!$AA$239 -> 0 | V25: =StateTotal!$AA$263 -> 194498 | W25: =StateTotal!$AA$259+StateTotal!$AA$260+StateTotal!$AA$261 -> 0 | X25: =StateTotal!$AA$304 -> 693413 | Y25: =StateTotal!$AA$213 -> 7886158 | Z25: =StateTotal!$AA$207 -> 21863649 | AA25: =StateTotal!$AA$487 -> 535 | AB25: =StateTotal!$AB$452 -> 944511.3344 | AC25: =StateTotal!$AB$487 -> 22015.74143 | AD25: 966527.0758
A26: % w.r.t Approvals for the whole state | I26: =IF(I25>0, I24/I$25," ") -> 0 | P26: 0 | V26: 0.481814723 | X26: 0.4907017896 | Y26: 0.5254571364 | Z26: 0.5239344082 | AA26: 0.4934579439 | AB26: 0.4858532718 | AC26: 0.4878805306 | AD26: 0.4858994491
F27: Categorywise Total and % against State Allocation | H27: ST (25% and above) | I27: =SUMIF($C$5:$C$23, "1", I5:I23) -> 0 | J27: 0 | K27: 0 | L27: 0 | M27: 0 | N27: 0 | O27: 0 | P27: 0 | Q27: 0 | R27: 0 | S27: 0 | T27: 0 | U27: 0 | V27: 0 | W27: 0 | X27: 0 | Y27: 0 | Z27: 0 | AA27: 0 | AB27: 0 | AC27: 0 | AD27: 0
H28: % ST Allocation | I28: =IF(I27>0, I27/I$24," ") -> 
H29: SC (25% and above) | I29: =SUMIF($D$5:$D$23, "1", I5:I23) -> 0 | J29: 0 | K29: 0 | L29: 0 | M29: 0 | N29: 0 | O29: 0 | P29: 0 | Q29: 0 | R29: 0 | S29: 0 | T29: 0 | U29: 0 | V29: 9436 | W29: 0 | X29: 34042 | Y29: 384842 | Z29: 1132340 | AA29: 27 | AB29: 43559.85633 | AC29: 1063.48309 | AD29: 44623.33942
H30: % SC Allocation | I30: =IF(I29>0, I29/I$24," ") ->  | V30: 0.1006914803 | X30: 0.1000473169 | Y30: 0.09287090856 | Z30: 0.09885013843 | AA30: 0.1022727273 | AB30: 0.09492358526 | AC30: 0.09901107718 | AD30: 0.09501707055
H31: PMO's 121 Minority Districts | I31: =SUMIF($E$5:$E$23, "1", I5:I23) -> 0 | J31: 0 | K31: 0 | L31: 0 | M31: 0 | N31: 0 | O31: 0 | P31: 0 | Q31: 0 | R31: 0 | S31: 0 | T31: 0 | U31: 0 | V31: 33347 | W31: 0 | X31: 138950 | Y31: 1799028 | Z31: 4965631 | AA31: 102 | AB31: 175595.4217 | AC31: 3946.37235 | AD31: 179541.7941
H32: % PMO's 121 Minority Allocation | I32: =IF(I31>0, I31/I$24," ") ->  | V32: 0.3558455694 | X32: 0.4083653922 | Y32: 0.4341453503 | Z32: 0.4334858008 | AA32: 0.3863636364 | AB32: 0.3826492644 | AC32: 0.36741024 | AD32: 0.3823007317
H33: Muslim Concentration (20% and above) | I33: =SUMIF($F$5:$F$23, "1", I5:I23) -> 0 | J33: 0 | K33: 0 | L33: 0 | M33: 0 | N33: 0 | O33: 0 | P33: 0 | Q33: 0 | R33: 0 | S33: 0 | T33: 0 | U33: 0 | V33: 33347 | W33: 0 | X33: 138950 | Y33: 1799028 | Z33: 4965631 | AA33: 102 | AB33: 175595.4217 | AC33: 3946.37235 | AD33: 179541.7941
H34: % Muslim Allocation | I34: =IF(I33>0, I33/I$24," ") ->  | V34: 0.3558455694 | X34: 0.4083653922 | Y34: 0.4341453503 | Z34: 0.4334858008 | AA34: 0.3863636364 | AB34: 0.3826492644 | AC34: 0.36741024 | AD34: 0.3823007317
H35: LWE Affected Districts (20% and above) | I35: =SUMIF($H$5:$H$23, "1", I5:I23) -> 0 | J35: 0 | K35: 0 | L35: 0 | M35: 0 | N35: 0 | O35: 0 | P35: 0 | Q35: 0 | R35: 0 | S35: 0 | T35: 0 | U35: 0 | V35: 35130 | W35: 0 | X35: 111165 | Y35: 1419671 | Z35: 3769227 | AA35: 86 | AB35: 164792.4988 | AC35: 3851.70529 | AD35: 168644.2041
H36: % LWE Affected Districts Allocation | I36: =IF(I35>0, I35/I$24," ") ->  | V36: 0.3748719481 | X36: 0.3267070085 | Y36: 0.3425980938 | Z36: 0.3290430531 | AA36: 0.3257575758 | AB36: 0.359108044 | AC36: 0.3585966654 | AD36: 0.3590963483

Sheet Provision
A2: Outlay approved | B2: Capital Head (all civil works under SSA & KGBV) | C2: General Head | D2: GOI Share (60% )
D3: Capital Head | E3: General Head | F3: Total
A4: =StateTotal!AB488 -> 966527.0758 | B4: =StateTotal!AB422+StateTotal!U455+StateTotal!U456+StateTotal!U457+StateTotal!U458 -> 66285.11748 | C4: =A4-B4 -> 900241.9583 | D4: =B4*60/100 -> 39771.07049 | E4: =C4*60/100 -> 540145.175 | F4: =+E4+D4 -> 579916.2455
A6: =StateTotal!AB488 -> 966527.0758 | B6: =StateTotal!AB422+StateTotal!U455+StateTotal!U456+StateTotal!U457+StateTotal!U458 -> 66285.11748

Sheet pro-rec
A2: S. No. | B2: Head | C2: Outlay Proposed | G2: Approved Outlay | L2: Outlay approved in 2015-16 | M2: Outlay Recommended for 2016-17 | N2: Increase in Outlay for 2016-17 | O2: %
C3: Spill Over | D3: Deffered liability | E3: Fresh | F3: Total | G3: Spill Over | H3: Deffered liability | I3: Fresh | J3: Total | L3: =StateTotal!D488 -> 738714.8318 | M3: =StateTotal!AB488 -> 966527.0758 | N3: =M3-L3 -> 227812.244 | O3: =N3/L3*100 -> 30.83899689
A4: 1 | B4: SSA | C4: =StateTotal!L452 -> 64634.30776 | D4: =StateTotal!N452 -> 103656.3919 | E4: =StateTotal!Q452 -> 1637411.291 | F4: =C4+D4+E4 -> 1805701.991 | G4: =StateTotal!U452 -> 63419.30776 | H4: =StateTotal!W452 -> 0 | I4: =StateTotal!Z452 -> 881092.0266 | J4: =SUM(G4:I4) -> 944511.3344
A5: 2 | B5: KGBV | C5: =StateTotal!L487 -> 3156.99143 | D5: =StateTotal!N487 -> 0 | E5: =StateTotal!Q487 -> 18858.75 | F5: =C5+D5+E5 -> 22015.74143 | G5: =StateTotal!U487 -> 3156.99143 | H5: =StateTotal!W487 -> 0 | I5: =StateTotal!Z487 -> 18858.75 | J5: =SUM(G5:I5) -> 22015.74143
B6: Total | C6: =C4+C5 -> 67791.29919 | D6: =D4+D5 -> 103656.3919 | E6: 1656270.041 | F6: =F4+F5 -> 1827717.732 | G6: =G4+G5 -> 66576.29919 | H6: =H4+H5 -> 0 | I6: =I4+I5 -> 899950.7766 | J6: =J4+J5 -> 966527.0758
F8: =StateTotal!S488 -> 1827721.946 | J8: =StateTotal!AB488 -> 966527.0758
F9: =F6-F8 -> -4.213974359 | J9: =J6-J8 -> 0

Sheet Tentative
A1: AWP&B 2016-17 Intervention wise Tentetive Recommendation
A2: (Rs. in lakhs)
A3: State : Bihar | C3: Proposed by State for FY 2016-2017 | H3: Recommendation for FY 2016-2017
A4: S.No. | B4: Intervention | C4: Spill over | D4: Fresh Proposal | F4: Total | H4: Spill over | I4: Fresh Proposal | K4: Total | M4: Remarks
C5: Fin. | D5: Phy. | E5: Fin | F5: Phy. | G5: Fin | H5: Fin. | I5: Phy. | J5: Fin | K5: Phy. | L5: Fin
A6: Category-1
A7: 1 | B7: Reimbursement under Section 12(1)(c) | D7: =StateTotal!P147 -> 97717 | E7: =StateTotal!Q147 -> 4250.6895 | F7: =D7 -> 97717 | G7: =C7+E7 -> 4250.6895 | I7: =StateTotal!Y147 -> 0 | J7: =StateTotal!Z147 -> 0 | K7: =I7 -> 0 | L7: =H7+J7 -> 0
A8: 2 | B8: Free Text Books | F8: =D8 -> 0 | G8: =C8+E8 -> 0 | K8: =I8 -> 0 | L8: =H8+J8 -> 0
B9: a. Primary | D9: =StateTotal!P198+StateTotal!P201 -> 15026151 | E9: =StateTotal!Q198+StateTotal!Q201 -> 22539.2265 | F9: 15026151 | G9: 22539.2265 | I9: =StateTotal!Y198+StateTotal!Y201 -> 15026151 | J9: =StateTotal!Z198+StateTotal!Z201 -> 22539.2265 | K9: 15026151 | L9: 22539.2265
B10: b. Upper Primary | D10: =StateTotal!P204 -> 6808114 | E10: =StateTotal!Q204 -> 17020.285 | F10: 6808114 | G10: 17020.285 | I10: =StateTotal!Y204 -> 6808114 | J10: =StateTotal!Z204 -> 17020.285 | K10: 6808114 | L10: 17020.285
B11: c. Large Print Book | D11: =StateTotal!P200+StateTotal!P203+StateTotal!P206 -> 22319 | E11: =StateTotal!Q200+StateTotal!Q203+StateTotal!Q206 -> 40.8495 | F11: 22319 | G11: 40.8495 | I11: =StateTotal!Y200+StateTotal!Y203+StateTotal!Y206 -> 22319 | J11: =StateTotal!Z200+StateTotal!Z203+StateTotal!Z206 -> 40.8495 | K11: 22319 | L11: 40.8495
B12: d. Braille Book | D12: =StateTotal!P199+StateTotal!P202+StateTotal!P205 -> 7065 | E12: =StateTotal!Q199+StateTotal!Q202+StateTotal!Q205 -> 12.8265 | F12: 7065 | G12: 12.8265 | I12: =StateTotal!Y199+StateTotal!Y202+StateTotal!Y205 -> 7065 | J12: =StateTotal!Z199+StateTotal!Z202+StateTotal!Z205 -> 12.8265 | K12: 7065 | L12: 12.8265
A13: 3 | B13: Free Uniform | D13: =StateTotal!P213 -> 7886158 | E13: =StateTotal!Q213 -> 31544.632 | F13: 7886158 | G13: 31544.632 | I13: =StateTotal!Y213 -> 7886158 | J13: =StateTotal!Z213 -> 31544.632 | K13: 7886158 | L13: 31544.632
A14: 4 | B14: Residential School/ Hostel | D14: =StateTotal!P141 -> 67 | E14: =StateTotal!Q141 -> 147.45 | F14: 67 | G14: 147.45 | I14: =StateTotal!Y141 -> 36 | J14: =StateTotal!Z141 -> 97.35 | K14: 36 | L14: 97.35
A15: 5 | B15: KGBV | C15: =StateTotal!L487 -> 3156.99143 | D15: =StateTotal!P487 -> 535 | E15: =StateTotal!Q487 -> 18858.75 | F15: 535 | G15: 22015.74143 | H15: =StateTotal!U487 -> 3156.99143 | I15: =StateTotal!Y487 -> 535 | J15: =StateTotal!Z487 -> 18858.75 | K15: 535 | L15: 22015.74143
A16: 6 | B16: IE | D16: =StateTotal!P359 -> 204744 | E16: =StateTotal!Q359 -> 6142.32 | F16: 204744 | G16: 6142.32 | I16: =StateTotal!Y359 -> 198753 | J16: =StateTotal!Z359 -> 5366.331 | K16: 198753 | L16: 5366.331
A17: 7 | B17: School Grant | D17: =StateTotal!P348 -> 104066 | E17: =StateTotal!Q348 -> 5823 | F17: 104066 | G17: 5823 | I17: =StateTotal!Y348 -> 104066 | J17: =StateTotal!Z348 -> 5823 | K17: 104066 | L17: 5823
A18: 8 | B18: a. Project Management | D18: =StateTotal!P433 -> 39 | E18: =StateTotal!Q431+StateTotal!Q448 -> 14088.84088 | F18: 39 | G18: 14088.84088 | I18: =StateTotal!Y433 -> 0 | J18: =StateTotal!Z433+StateTotal!Z448 -> 13352.39013 | K18: 0 | L18: 13352.39013
B19: b. Finance | C19: Covered Under Project Management and Overall allocation
A20: Sub Total | C20: =SUM(C7:C18) -> 3156.99143 | D20: 30156975 | E20: =SUM(E7:E18) -> 120468.8699 | F20: 30156975 | G20: =SUM(G7:G18) -> 123625.8613 | H20: 3156.99143 | I20: 30053197 | J20: =SUM(J7:J18) -> 114655.6406 | K20: 30053197 | L20: =SUM(L7:L18) -> 117812.6321
A21: Category-2
A22: 9 | B22: Transport / Escort facility | F22: =D22 -> 0 | G22: =C22+E22 -> 0 | K22: =I22 -> 0 | L22: =H22+J22 -> 0
A23: 10 | B23: Special Training for Age appropriate addmission of OoSC | F23: =D23 -> 0 | G23: =C23+E23 -> 0 | K23: 0 | L23: 0
B24: Residential (Fresh) | F24: =D24 -> 0 | G24: =C24+E24 -> 0 | K24: 0 | L24: 0
B25: (a) 12 months | D25: =StateTotal!P150 -> 200 | E25: =StateTotal!Q150 -> 48 | F25: 200 | G25: 48 | I25: =StateTotal!Y150 -> 200 | J25: =StateTotal!Z150 -> 40 | K25: 200 | L25: 40
B26: (b) 9 months | D26: =StateTotal!P151 -> 24026 | E26: =StateTotal!Q151 -> 4324.68 | F26: 24026 | G26: 4324.68 | I26: =StateTotal!Y151 -> 24026 | J26: =StateTotal!Z151 -> 3603.9 | K26: 24026 | L26: 3603.9
B27: (c) 6 months | D27: =StateTotal!P152 -> 5005 | E27: =StateTotal!Q152 -> 600.6 | F27: 5005 | G27: 600.6 | I27: =StateTotal!Y152 -> 5005 | J27: =StateTotal!Z152 -> 500.5 | K27: 5005 | L27: 500.5
B28: (d) 3 months | F28: 0 | G28: 0 | K28: 0 | L28: 0
B29: Residential continuing from previous year | F29: 0 | G29: 0 | K29: 0 | L29: 0
B30: (a) 9 months | D30: =StateTotal!P157 -> 300 | E30: =StateTotal!Q157 -> 54 | F30: 300 | G30: 54 | I30: =StateTotal!Y157 -> 300 | J30: =StateTotal!Z157 -> 45 | K30: 300 | L30: 45
B31: (b) 6 months | D31: =StateTotal!P158 -> 4782 | E31: =StateTotal!Q158 -> 573.84 | F31: 4782 | G31: 573.84 | I31: =StateTotal!Y158 -> 4782 | J31: =StateTotal!Z158 -> 478.2 | K31: =I31 -> 4782 | L31: =H31+J31 -> 478.2
B32: Non Residential (Fresh) | F32: 0 | G32: 0 | K32: 0 | L32: 0
B33: (a) 12 months | F33: 0 | G33: 0 | K33: 0 | L33: 0
B34: (b) 9 months | D34: =StateTotal!P165 -> 7887 | E34: =StateTotal!Q165 -> 354.915 | F34: 7887 | G34: 354.915 | I34: =StateTotal!Y165 -> 7887 | J34: =StateTotal!Z165 -> 354.915 | K34: 7887 | L34: 354.915
B35: (c) 6 months | D35: =StateTotal!P166 -> 76298 | E35: =StateTotal!Q166 -> 2288.94 | F35: 76298 | G35: 2288.94 | I35: =StateTotal!Y166 -> 76298 | J35: =StateTotal!Z166 -> 2288.94 | K35: 76298 | L35: 2288.94
B36: (d) 3 months | F36: 0 | G36: 0 | K36: 0 | L36: 0
B37: NonResidential continuing from previous year | F37: 0 | G37: 0 | K37: 0 | L37: 0
B38: (a) 12 months | F38: 0 | G38: 0 | K38: 0 | L38: 0
B39: (b) 9 months | F39: 0 | G39: 0 | K39: 0 | L39: 0
B40: (c) 6 months | F40: 0 | G40: 0 | K40: 0 | L40: 0
B41: (d) 3 months | F41: 0 | G41: 0 | K41: 0 | L41: 0
B42: Madarasa/Maktab | F42: 0 | G42: 0 | K42: 0 | L42: 0
B43: 12 months | F43: 0 | G43: 0 | K43: 0 | L43: 0
B44: 3 months | F44: 0 | G44: 0 | K44: 0 | L44: 0
B45: Seasonal Hostel (Residential) | F45: 0 | G45: 0 | K45: 0 | L45: 0
B46: (c) 6 months(seasonal hostel) | F46: 0 | G46: 0 | K46: 0 | L46: 0
B47: (d) 3 months | F47: 0 | G47: 0 | K47: 0 | L47: 0
B48: Seasonal Hostel (Non Residential) | F48: 0 | G48: 0 | K48: 0 | L48: 0
B49: (e) 6 months | D49: =StateTotal!P190 -> 1521 | E49: =StateTotal!Q190 -> 45.63 | F49: 1521 | G49: 45.63 | I49: =StateTotal!Y190 -> 1521 | J49: =StateTotal!Z190 -> 45.63 | K49: 1521 | L49: 45.63
B50: (f) 3 months | F50: 0 | G50: 0 | K50: 0 | L50: 0
A51: 11 | B51: Teacher Training | D51: =StateTotal!P304 -> 737986 | E51: =StateTotal!Q304 -> 5443.973795 | F51: 737986 | G51: 5443.973795 | I51: =StateTotal!Y304 -> 693413 | J51: =StateTotal!Z304 -> 2143.787 | K51: 693413 | L51: 2143.787
A52: 12 | B52: Academic Support through BRC/CRC | F52: 0 | G52: 0 | K52: 0 | L52: 0
B53: a) BRC | D53: =StateTotal!P319 -> 7321 | E53: =StateTotal!Q319 -> 10124.14 | F53: 7321 | G53: 10124.14 | I53: =StateTotal!Y319 -> 3270 | J53: =StateTotal!Z319 -> 6420.9 | K53: 3270 | L53: 6420.9
B54: b) CRC | D54: =StateTotal!P328 -> 5755 | E54: =StateTotal!Q328 -> 8745.55 | F54: 5755 | G54: 8745.55 | I54: =StateTotal!Y328 -> 5755 | J54: =StateTotal!Z328 -> 8172.1 | K54: 5755 | L54: 8172.1
A55: 13 | B55: Learning Enhancement Programme (LEP) | D55: =StateTotal!P436+StateTotal!P437+StateTotal!P438+StateTotal!P440+StateTotal!P441+StateTotal!P442 -> 0 | E55: =StateTotal!Q436+StateTotal!Q437+StateTotal!Q438+StateTotal!Q440+StateTotal!Q441+StateTotal!Q442 -> 8583.42091 | F55: 0 | G55: 8583.42091 | I55: =StateTotal!Y436+StateTotal!Y437+StateTotal!Y438+StateTotal!Y440+StateTotal!Y441+StateTotal!Y442 -> 0 | J55: =StateTotal!Z436+StateTotal!Z437+StateTotal!Z438+StateTotal!Z440+StateTotal!Z441+StateTotal!Z442 -> 1224.396 | L55: 1224.396
A56: 14 | B56: a. Innovation fund for CAL | C56: =StateTotal!L330 -> 1215 | D56: =StateTotal!P333 -> 39 | E56: =StateTotal!Q333 -> 1950 | F56: =D56 -> 39 | G56: =C56+E56 -> 3165 | H56: =StateTotal!U330 -> 0 | I56: =StateTotal!Y333 -> 39 | J56: =StateTotal!Z333 -> 1950 | K56: 39 | L56: 1950
B57: b. Rashtriya Avishkar Abhiyan (RAA) | C57: This acitvity is support under CAL
A58: 15 | B58: Library | D58: =StateTotal!P337 -> 18465 | E58: =StateTotal!Q337 -> 1020.64 | F58: =D58 -> 18465 | G58: =C58+E58 -> 1020.64 | I58: =StateTotal!Y337 -> 0 | J58: =StateTotal!Z337 -> 0 | K58: =I58 -> 0 | L58: =H58+J58 -> 0
A59: 16 | B59: Teacher Grant | D59: =StateTotal!P344 -> 408098 | E59: =StateTotal!Q344 -> 2040.49 | F59: 408098 | G59: 2040.49 | I59: =StateTotal!Y344 -> 408098 | J59: =StateTotal!Z344 -> 2040.49 | K59: 408098 | L59: 2040.49
A60: =A59+1 -> 17 | B60: TLE for New Schools | D60: =StateTotal!P217 -> 2 | E60: =StateTotal!Q217 -> 0.4 | F60: 2 | G60: 0.4 | I60: =StateTotal!Y217 -> 0 | J60: =StateTotal!Z217 -> 0 | K60: 0 | L60: 0
A61: 18 | B61: REMS | D61: =StateTotal!P352 -> 0 | E61: =StateTotal!Q352+StateTotal!Q450 -> 260.165 | F61: 0 | G61: 260.165 | I61: =StateTotal!Y352 -> 0 | J61: =StateTotal!Z352+StateTotal!Z450 -> 942.53 | K61: 0 | L61: 942.53
A62: =A61+1 -> 19 | B62: a. Innovation | D62: =StateTotal!P369 -> 156 | E62: =StateTotal!Q369 -> 2979.5 | F62: 156 | G62: 2979.5 | I62: =StateTotal!Y369 -> 0 | J62: =StateTotal!Z369 -> 1950 | K62: 0 | L62: 1950
B63: b. Pade Bharat Bade Bharat (PBBB) | F63: 0 | G63: 0 | K63: 0 | L63: 0
A64: =A62+1 -> 20 | B64: Community Mobilization (0.5%) | D64: =StateTotal!P444 -> 39 | E64: =StateTotal!Q444 -> 3104.094 | F64: 39 | G64: 3104.094 | I64: =StateTotal!Y444 -> 0 | J64: =StateTotal!Z444 -> 2160.685 | K64: 0 | L64: 2160.685
A65: 21 | B65: SMC Training | D65: =StateTotal!P373 -> 502334 | E65: =StateTotal!Q373 -> 1507.002 | F65: 502334 | G65: 1507.002 | I65: =StateTotal!Y373 -> 502334 | J65: =StateTotal!Z373 -> 1507.002 | K65: 502334 | L65: 1507.002
A66: Total | C66: =SUM(C22:C65) -> 1215 | D66: =SUM(D22:D65) -> 1800214 | E66: =SUM(E22:E65) -> 54049.98071 | F66: =SUM(F22:F65) -> 1800214 | G66: =SUM(G22:G65) -> 55264.98071 | I66: =SUM(I22:I65) -> 1732928 | J66: =SUM(J22:J65) -> 35868.975 | K66: =SUM(K22:K65) -> 1732928 | L66: =SUM(L22:L65) -> 35868.975
A67: Category-3
A68: 22 | B68: Teacher Salary | C68: =StateTotal!N242+StateTotal!N250+StateTotal!N251+StateTotal!N252+StateTotal!N263 -> 101076.9606 | D68: =StateTotal!P280 -> 437826 | E68: =StateTotal!Q280 -> 1266991.8 | F68: =D68 -> 437826 | G68: =C68+E68 -> 1368068.761 | H68: =StateTotal!U242+StateTotal!U250+StateTotal!U251+StateTotal!U252+StateTotal!U263 -> 0 | I68: =StateTotal!Y280 -> 278395 | J68: =StateTotal!Z280 -> 743422.8 | K68: =I68 -> 278395 | L68: =H68+J68 -> 743422.8
A69: =A68+1 -> 23 | B69: New Schools (Building) | C69: =StateTotal!L376+StateTotal!L378+StateTotal!L386+StateTotal!L387+StateTotal!L400 -> 8408.776338 | D69: =StateTotal!P376+StateTotal!P400+StateTotal!M378 -> 583 | E69: =StateTotal!Q376+StateTotal!Q400+StateTotal!N378 -> 9172.09133 | F69: =D69 -> 583 | G69: =C69+E69 -> 17580.86767 | H69: =StateTotal!U376+StateTotal!U378+StateTotal!U386+StateTotal!U387+StateTotal!U400 -> 8408.776338 | I69: =StateTotal!Y376 -> 1 | J69: =StateTotal!Z376 -> 22.201 | K69: 1 | L69: 8430.977338 | M69: Recommended spill over. Recommended one NPS building. Not recommended 582 NPS building due to pendency of 3214 PS building
A70: =A69+1 -> 24 | B70: Additional Classrooms (ACR) | C70: =StateTotal!L381+StateTotal!L388+StateTotal!L389 -> 54913.21143 | D70: =StateTotal!P388+StateTotal!P389 -> 18509 | E70: =StateTotal!Q388+StateTotal!Q389 -> 142367.086 | F70: =D70 -> 18509 | G70: =C70+E70 -> 197280.2974 | H70: =StateTotal!U381+StateTotal!U388+StateTotal!U389 -> 54913.21143 | I70: =StateTotal!Y388+StateTotal!Y389 -> 0 | J70: =StateTotal!Z388+StateTotal!Z389 -> 0 | K70: 0 | L70: 54913.21143 | M70: Recommended spill over. Fresh not recommended due to pendency of 41785 ACR works.
A71: 25 | B71: Block Resource Centers | F71: =D71 -> 0 | G71: =C71+E71 -> 0 | K71: 0 | L71: 0
A72: 26 | B72: Cluster Resource Centers | F72: 0 | G72: 0 | K72: 0 | L72: 0
A73: 27 | B73: Residential Schools (Building) | C73: =StateTotal!L412 -> 97.32 | F73: 0 | G73: 97.32 | H73: =StateTotal!U412 -> 97.32 | K73: 0 | L73: 97.32 | M73: Recommended spill over
A74: 28 | B74: Toilets & Drinking Water | D74: =StateTotal!P420 -> 39940 | E74: =StateTotal!Q420 -> 25841.18 | F74: 39940 | G74: 25841.18 | I74: =StateTotal!Y390+StateTotal!Y391+StateTotal!Y392+StateTotal!Y393+StateTotal!Y394+StateTotal!Y420+StateTotal!Y425+StateTotal!Y426 -> 0 | J74: =StateTotal!Z390+StateTotal!Z391+StateTotal!Z392+StateTotal!Z393+StateTotal!Z394+StateTotal!Z420+StateTotal!Z425+StateTotal!Z426 -> 0 | K74: 0 | L74: 0 | M74: Not recommended running water facility with hand washing for 39940 schools
A75: 29 | B75: Furniture | F75: 0 | G75: 0 | K75: 0 | L75: 0
A76: 30 | B76: Civil Works | D76: =StateTotal!P427 -> 71762 | E76: =StateTotal!Q427 -> 14325.5147 | F76: 71762 | G76: 14325.5147 | I76: =StateTotal!Y421 -> 0 | J76: =StateTotal!Z421 -> 0 | K76: 0 | L76: 0 | M76: Not recommended since operation and maintenance for water and sanitation is to be done from maintenance grant
B77: a. Boundary Walls | F77: 0 | G77: 0 | K77: 0 | L77: 0
B78: b. Ramps | F78: 0 | G78: 0 | K78: 0 | L78: 0
A79: =A76+1 -> 31 | B79: Repairs to School Buildings | D79: =StateTotal!P421 -> 391 | E79: =StateTotal!Q421 -> 19550 | F79: 391 | G79: 19550 | I79: =StateTotal!Y400 -> 0 | J79: =StateTotal!Z400 -> 0 | K79: 0 | L79: 0 | M79: Not recommended renovation of 391 basic schood building
A80: 32 | B80: (a) Maintenance Grant | D80: =StateTotal!P355 -> 81106 | E80: =StateTotal!Q355 -> 6082.95 | F80: 81106 | G80: 6082.95 | I80: =StateTotal!Y355 -> 0 | J80: =StateTotal!Z355 -> 5981.16 | K80: 0 | L80: 5981.16
B81: (b) Swacchh Vidyalaya | C81: Covered under School Maintenance grant | H81: Covered under School Maintenance grant
A82: =A80+1 -> 33 | B82: School and Social Mapping: | F82: =D82 -> 0 | G82: =C82+E82 -> 0 | K82: =I82 -> 0 | L82: =H82+J82 -> 0
A83: 34 | B83: Opening new Primary Schools: | F83: 0 | G83: 0 | K83: 0 | L83: 0
A84: 35 | B84: Opening Upper Primary Schools/Sections: | F84: 0 | G84: 0 | K84: 0 | L84: 0
A85: 36 | B85: Conversion of EGS Centres into schools: | C85: All EGS already converted in Schools
A86: 37 | B86: SIEMAT | C86: One time grant
A87: 38 | B87: NPGEL | C87: Activity Closed
B88: Total | C88: =SUM(C68:C87) -> 164496.2683 | D88: =SUM(D68:D87) -> 650117 | E88: =SUM(E68:E87) -> 1484330.622 | F88: 650117 | G88: =SUM(G68:G87) -> 1648826.89 | H88: 63419.30776 | I88: 278396 | J88: =SUM(J68:J87) -> 749426.161 | K88: =SUM(K68:K87) -> 278396 | L88: =SUM(L68:L87) -> 812845.4688
B89: Grand Total | C89: =C20+C66+C88 -> 168868.2598 | D89: 32607306 | E89: 1658849.473 | F89: 32607306 | G89: =G20+G66+G88 -> 1827717.732 | H89: 66576.29919 | I89: =Y20+Y66+Y88 -> 0 | J89: 899950.7766 | K89: 32064521 | L89: 966527.0758
C91: =StateTotal!L488+StateTotal!N280 -> 168868.2598 | E91: =StateTotal!Q488 -> 1656270.041 | G91: =StateTotal!S488 -> 1827721.946 | H91: =StateTotal!U488 -> 66576.29919 | J91: =StateTotal!Z488 -> 899950.7766 | L91: =StateTotal!AB488 -> 966527.0758
G92: =G89-G91 -> -4.213974359
C93: =C89-C91 -> 0 | G93: =C89+E89 -> 1827717.732 | L93: =L89-L91 -> 0
C94: =C89-C91 -> 0
G95: =G89-G91 -> -4.213974359

Sheet %age (2)
A2: S. No. | B2: Category | C2: Outlay recommended for 2015-16 | D2: Financial Recommendation for 2016-17 | E2: %
B3: Access & Retention
A4: 1 | B4: Transport/Escort Facility
A5: 2 | B5: Uniforms | C5: =StateTotal!D213 -> 30681.76 | D5: =StateTotal!AB213 -> 31544.632 | E5: =D5/$D$45 -> 0.03263709087
A6: 3 | B6: Residential Schools
A7: 4 | B7: Residential Hostels | C7: =StateTotal!D141 -> 97.35 | D7: =StateTotal!AB141 -> 97.35
B8: Sub Total | C8: =SUM(C4:C7) -> 30779.11 | D8: =SUM(D4:D7) -> 31641.982 | E8: 0.03273781231
B9: Quality
A10: 5 | B10: Teacher's Salary | C10: =StateTotal!D280 -> 489285.96 | D10: =StateTotal!AB280 -> 743422.8 | E10: 0.7691691403
A11: 6 | B11: Salary of Resource Teachers under CWSN
A12: 7 | B12: Free Text books | C12: =StateTotal!D207 -> 37367.901 | D12: =StateTotal!AB207 -> 39613.1875 | E12: 0.04098507791
A13: 8 | B13: Special training | C13: =StateTotal!D193 -> 10977.71617 | D13: =StateTotal!AB193 -> 7357.085 | E13: 0.007611876774
A14: 9 | B14: LEP | C14: =StateTotal!D436+StateTotal!D437+StateTotal!D438+StateTotal!D440+StateTotal!D441+StateTotal!D442 -> 0 | D14: =StateTotal!AB436+StateTotal!AB437+StateTotal!AB438+StateTotal!AB440+StateTotal!AB441+StateTotal!AB442 -> 1224.396 | E14: 0.001266799483
A15: 10 | B15: Teachers’ Training | C15: =StateTotal!D304 -> 3433.686 | D15: =StateTotal!AB304 -> 2143.787 | E15: 0.002218030983
A16: 11 | B16: Teachers' Training under CWSN
A17: 12 | B17: BRC/URC | C17: =StateTotal!D319 -> 6429 | D17: =StateTotal!AB319 -> 6420.9 | E17: 0.006643269662
A18: 13 | B18: CRC | C18: =StateTotal!D328 -> 5409.7 | D18: =StateTotal!AB328 -> 8172.1 | E18: 0.008455117507
A19: 14 | B19: TLE for new schools
A20: 15 | B20: Teachers Grant | C20: =StateTotal!D344 -> 0 | D20: =StateTotal!AB344 -> 2040.49 | E20: 0.002111156584
A21: 16 | B21: School Grant | C21: =StateTotal!D348 -> 5817.03 | D21: =StateTotal!AB348 -> 5823 | E21: 0.006024663091
A22: 17 | B22: REMS | C22: =StateTotal!D352+StateTotal!D450 -> 268.4698166 | D22: =StateTotal!AB352+StateTotal!AB450 -> 942.53 | E22: 0.0009751718535
A23: 18 | B23: Innovative Activities | C23: =StateTotal!D369 -> 783.6 | D23: =StateTotal!AB369 -> 1950 | E23: 0.00201753272
A24: 19 | B24: Libraries in schools
A25: 20 | B25: CAL | C25: =StateTotal!D333 -> 1215 | D25: =StateTotal!AB333 -> 1950 | E25: 0.00201753272
A26: 21 | B26: SIEMAT
B27: Sub Total | C27: =SUM(C10:C26) -> 560988.063 | D27: =SUM(D10:D25) -> 821060.2755 | E27: 0.8494953696
B28: Equity
A29: 21 | B29: IE | C29: =StateTotal!D359 -> 4142.299639 | D29: =StateTotal!AB359 -> 5366.331 | E29: 0.005552178655
A30: 22 | B30: Community Mobilization | C30: =StateTotal!D444 -> 2165.792 | D30: =StateTotal!AB444 -> 2160.685 | E30: 0.002235514197
A31: 23 | B31: SMC/PRI Training | C31: =StateTotal!D373 -> 1507.002 | D31: =StateTotal!AB373 -> 1507.002 | E31: 0.00155919274
B32: Sub Total | C32: =SUM(C29:C31) -> 7815.093639 | D32: =SUM(D29:D31) -> 9034.018 | E32: 0.009346885593
B33: Infrastructure Development
A34: 24 | B34: Civil Works | C34: =StateTotal!D422 -> 98195.51696 | D34: =StateTotal!AB422 -> 63441.50876 | E34: 0.0656386255
A35: 25 | B35: Maintenance Grant | C35: =StateTotal!D355 -> 5831.7 | D35: =StateTotal!AB355 -> 5981.16 | E35: 0.006188300514
B36: Sub Total | C36: =SUM(C34:C35) -> 104027.217 | D36: =SUM(D34:D35) -> 69422.66876 | E36: 0.07182692601
A37: 26 | B37: Programme Management | C37: =StateTotal!D433+StateTotal!D448 -> 11947.356 | D37: =StateTotal!AB433+StateTotal!AB448 -> 13352.39013 | E37: 0.01381481229
B38: Training of Educational Administrators | C38: =StateTotal!D449 -> 2.59 | D38: =StateTotal!AB449 -> 0
B39: Total | C39: =SUM(C37:C38) -> 11949.946 | D39: =SUM(D37) -> 13352.39013 | E39: 0.01381481229
A40: 27 | B40: Reimbursement of Fee against 25% admission under Section 12(1)(c) of RTE Act 2009 (Entry Level) subject to upper limit of 20% of AWP&B guidelines issued by MHRD
B41: Total | C41: =C8+C27+C32+C36+C39+C40 -> 715559.4296 | D41: =D8+D27+D32+D36+D39+D40 -> 944511.3344 | E41: 0.9772218058
B42: Gender
A43: 28 | B43: KGBV | C43: =StateTotal!D487 -> 23155.40223 | D43: =StateTotal!AB487 -> 22015.74143
B44: Sub Total | C44: =SUM(C43:C43) -> 23155.40223 | D44: =SUM(D43:D43) -> 22015.74143 | E44: 0.0227781942
B45: Grand Total | C45: =C41+C44 -> 738714.8318 | D45: =D41+D44 -> 966527.0758 | E45: 1
C47: =StateTotal!D488 -> 738714.8318 | D47: =StateTotal!AB488 -> 966527.0758
C48: =C45-C47 -> 0 | D48: =D45-D47 -> 0

Sheet StateTotal
A1: S.No. | B1: Activity | C1: Approved Outlay & Achievements 2015-16 | K1: Outlay Proposed for 2016-17 | T1: Outlay Recommended for 2016-17 | AC1: Remarks
C2: Outlay approved by PAB (including spillover) after re-appropriation | E2: Achievement during the year (Anticipated upto March, 2016) | I2: Savings | K2: Spill Over | M2: Deferred laibility of 2015-16 | O2: Fresh | R2: Total | T2: Spill Over | V2: Deferred laibility of 2015-16 | X2: Fresh | AA2: Total
C3: Phy. | D3: Fin | E3: Phy. | F3: Fin. | G3: Phy. (%) | H3: Fin. (%) | I3: Phy. | J3: Fin. | K3: Phy. | L3: Fin. | M3: Phy. | N3: Fin. | O3: Unit Cost | P3: Phy. | Q3: Fin. | R3: Phy. | S3: Fin. | T3: Phy. | U3: Fin. | V3: Phy. | W3: Fin. | X3: Unit Cost | Y3: Phy. | Z3: Fin. | AA3: Phy. | AB3: Fin.
A4: I | B4: ACCESS
B5: SSA
A6: 1 | B6: Opening of New Schools
A7: 1.01 | B7: New Primary School | C7: =SUM(Araria:WChamparan!C7) -> 0 | D7: =SUM(Araria:WChamparan!D7) -> 0 | E7: =SUM(Araria:WChamparan!E7) -> 0 | F7: =SUM(Araria:WChamparan!F7) -> 0 | G7: =IFERROR(E7/C7, ) -> 0 | H7: =SUM(Araria:SLO!L7) -> 0 | I7: =SUM(Araria:WChamparan!I7) -> 0 | J7: =SUM(Araria:WChamparan!J7) -> 0 | K7: =SUM(Araria:WChamparan!K7) -> 0 | L7: =SUM(Araria:WChamparan!L7) -> 0 | M7: =SUM(Araria:WChamparan!M7) -> 0 | N7: =SUM(Araria:WChamparan!N7) -> 0 | P7: =SUM(Araria:WChamparan!P7) -> 2 | Q7: =SUM(Araria:WChamparan!Q7) -> 0 | R7: =SUM(Araria:WChamparan!R7) -> 2 | S7: =SUM(Araria:WChamparan!S7) -> 0 | T7: =SUM(Araria:WChamparan!T7) -> 0 | U7: =SUM(Araria:WChamparan!U7) -> 0 | V7: =SUM(Araria:WChamparan!V7) -> 0 | W7: =SUM(Araria:WChamparan!W7) -> 0 | Y7: =SUM(Araria:WChamparan!Y7) -> 1 | Z7: =SUM(Araria:WChamparan!Z7) -> 0 | AA7: =SUM(Araria:WChamparan!AA7) -> 1 | AB7: =SUM(Araria:WChamparan!AB7) -> 0
A8: 1.02 | B8: Upgradation of PS to UPS | C8: =SUM(Araria:WChamparan!C8) -> 0 | D8: =SUM(Araria:WChamparan!D8) -> 0 | E8: =SUM(Araria:WChamparan!E8) -> 0 | F8: =SUM(Araria:WChamparan!F8) -> 0 | G8: 0 | H8: =SUM(Araria:SLO!L8) -> 0 | I8: =SUM(Araria:WChamparan!I8) -> 0 | J8: =SUM(Araria:WChamparan!J8) -> 0 | K8: =SUM(Araria:WChamparan!K8) -> 0 | L8: =SUM(Araria:WChamparan!L8) -> 0 | M8: =SUM(Araria:WChamparan!M8) -> 0 | N8: =SUM(Araria:WChamparan!N8) -> 0 | P8: =SUM(Araria:WChamparan!P8) -> 0 | Q8: =SUM(Araria:WChamparan!Q8) -> 0 | R8: =SUM(Araria:WChamparan!R8) -> 0 | S8: =SUM(Araria:WChamparan!S8) -> 0 | T8: =SUM(Araria:WChamparan!T8) -> 0 | U8: =SUM(Araria:WChamparan!U8) -> 0 | V8: =SUM(Araria:WChamparan!V8) -> 0 | W8: =SUM(Araria:WChamparan!W8) -> 0 | Y8: =SUM(Araria:WChamparan!Y8) -> 0 | Z8: =SUM(Araria:WChamparan!Z8) -> 0 | AA8: =SUM(Araria:WChamparan!AA8) -> 0 | AB8: =SUM(Araria:WChamparan!AB8) -> 0
A9: 1.03 | B9: Composite Schools | C9: =SUM(Araria:WChamparan!C9) -> 0 | D9: =SUM(Araria:WChamparan!D9) -> 0 | E9: =SUM(Araria:WChamparan!E9) -> 0 | F9: =SUM(Araria:WChamparan!F9) -> 0 | G9: 0 | H9: =SUM(Araria:SLO!L9) -> 0 | I9: =SUM(Araria:WChamparan!I9) -> 0 | J9: =SUM(Araria:WChamparan!J9) -> 0 | K9: =SUM(Araria:WChamparan!K9) -> 0 | L9: =SUM(Araria:WChamparan!L9) -> 0 | M9: =SUM(Araria:WChamparan!M9) -> 0 | N9: =SUM(Araria:WChamparan!N9) -> 0 | P9: =SUM(Araria:WChamparan!P9) -> 0 | Q9: =SUM(Araria:WChamparan!Q9) -> 0 | R9: =SUM(Araria:WChamparan!R9) -> 0 | S9: =SUM(Araria:WChamparan!S9) -> 0 | T9: =SUM(Araria:WChamparan!T9) -> 0 | U9: =SUM(Araria:WChamparan!U9) -> 0 | V9: =SUM(Araria:WChamparan!V9) -> 0 | W9: =SUM(Araria:WChamparan!W9) -> 0 | Y9: =SUM(Araria:WChamparan!Y9) -> 0 | Z9: =SUM(Araria:WChamparan!Z9) -> 0 | AA9: =SUM(Araria:WChamparan!AA9) -> 0 | AB9: =SUM(Araria:WChamparan!AB9) -> 0
A10: 1.04 | B10: Residential schools for specific category of children | C10: =SUM(Araria:WChamparan!C10) -> 0 | D10: =SUM(Araria:WChamparan!D10) -> 0 | E10: =SUM(Araria:WChamparan!E10) -> 0 | F10: =SUM(Araria:WChamparan!F10) -> 0 | G10: 0 | H10: =SUM(Araria:SLO!L10) -> 0 | I10: =SUM(Araria:WChamparan!I10) -> 0 | J10: =SUM(Araria:WChamparan!J10) -> 0 | K10: =SUM(Araria:WChamparan!K10) -> 0 | L10: =SUM(Araria:WChamparan!L10) -> 0 | M10: =SUM(Araria:WChamparan!M10) -> 0 | N10: =SUM(Araria:WChamparan!N10) -> 0 | P10: =SUM(Araria:WChamparan!P10) -> 0 | Q10: =SUM(Araria:WChamparan!Q10) -> 0 | R10: =SUM(Araria:WChamparan!R10) -> 0 | S10: =SUM(Araria:WChamparan!S10) -> 0 | T10: =SUM(Araria:WChamparan!T10) -> 0 | U10: =SUM(Araria:WChamparan!U10) -> 0 | V10: =SUM(Araria:WChamparan!V10) -> 0 | W10: =SUM(Araria:WChamparan!W10) -> 0 | Y10: =SUM(Araria:WChamparan!Y10) -> 0 | Z10: =SUM(Araria:WChamparan!Z10) -> 0 | AA10: =SUM(Araria:WChamparan!AA10) -> 0 | AB10: =SUM(Araria:WChamparan!AB10) -> 0
A11: 1.05 | B11: Residential Hostel | C11: =SUM(Araria:WChamparan!C11) -> 0 | D11: =SUM(Araria:WChamparan!D11) -> 0 | E11: =SUM(Araria:WChamparan!E11) -> 0 | F11: =SUM(Araria:WChamparan!F11) -> 0 | G11: 0 | H11: =SUM(Araria:SLO!L11) -> 0 | I11: =SUM(Araria:WChamparan!I11) -> 0 | J11: =SUM(Araria:WChamparan!J11) -> 0 | K11: =SUM(Araria:WChamparan!K11) -> 0 | L11: =SUM(Araria:WChamparan!L11) -> 0 | M11: =SUM(Araria:WChamparan!M11) -> 0 | N11: =SUM(Araria:WChamparan!N11) -> 0 | P11: =SUM(Araria:WChamparan!P11) -> 0 | Q11: =SUM(Araria:WChamparan!Q11) -> 0 | R11: =SUM(Araria:WChamparan!R11) -> 0 | S11: =SUM(Araria:WChamparan!S11) -> 0 | T11: =SUM(Araria:WChamparan!T11) -> 0 | U11: =SUM(Araria:WChamparan!U11) -> 0 | V11: =SUM(Araria:WChamparan!V11) -> 0 | W11: =SUM(Araria:WChamparan!W11) -> 0 | Y11: =SUM(Araria:WChamparan!Y11) -> 0 | Z11: =SUM(Araria:WChamparan!Z11) -> 0 | AA11: =SUM(Araria:WChamparan!AA11) -> 0 | AB11: =SUM(Araria:WChamparan!AB11) -> 0
A12: 1.06 | B12: Integration of Class V with primary schools | C12: =SUM(Araria:WChamparan!C12) -> 0 | D12: =SUM(Araria:WChamparan!D12) -> 0 | E12: =SUM(Araria:WChamparan!E12) -> 0 | F12: =SUM(Araria:WChamparan!F12) -> 0 | G12: 0 | H12: =SUM(Araria:SLO!L12) -> 0 | I12: =SUM(Araria:WChamparan!I12) -> 0 | J12: =SUM(Araria:WChamparan!J12) -> 0 | K12: =SUM(Araria:WChamparan!K12) -> 0 | L12: =SUM(Araria:WChamparan!L12) -> 0 | M12: =SUM(Araria:WChamparan!M12) -> 0 | N12: =SUM(Araria:WChamparan!N12) -> 0 | P12: =SUM(Araria:WChamparan!P12) -> 0 | Q12: =SUM(Araria:WChamparan!Q12) -> 0 | R12: =SUM(Araria:WChamparan!R12) -> 0 | S12: =SUM(Araria:WChamparan!S12) -> 0 | T12: =SUM(Araria:WChamparan!T12) -> 0 | U12: =SUM(Araria:WChamparan!U12) -> 0 | V12: =SUM(Araria:WChamparan!V12) -> 0 | W12: =SUM(Araria:WChamparan!W12) -> 0 | Y12: =SUM(Araria:WChamparan!Y12) -> 0 | Z12: =SUM(Araria:WChamparan!Z12) -> 0 | AA12: =SUM(Araria:WChamparan!AA12) -> 0 | AB12: =SUM(Araria:WChamparan!AB12) -> 0
A13: 1.07 | B13: Integration of Class VIII with upper primary schools | C13: =SUM(Araria:WChamparan!C13) -> 0 | D13: =SUM(Araria:WChamparan!D13) -> 0 | E13: =SUM(Araria:WChamparan!E13) -> 0 | F13: =SUM(Araria:WChamparan!F13) -> 0 | G13: 0 | H13: =SUM(Araria:SLO!L13) -> 0 | I13: =SUM(Araria:WChamparan!I13) -> 0 | J13: =SUM(Araria:WChamparan!J13) -> 0 | K13: =SUM(Araria:WChamparan!K13) -> 0 | L13: =SUM(Araria:WChamparan!L13) -> 0 | M13: =SUM(Araria:WChamparan!M13) -> 0 | N13: =SUM(Araria:WChamparan!N13) -> 0 | P13: =SUM(Araria:WChamparan!P13) -> 0 | Q13: =SUM(Araria:WChamparan!Q13) -> 0 | R13: =SUM(Araria:WChamparan!R13) -> 0 | S13: =SUM(Araria:WChamparan!S13) -> 0 | T13: =SUM(Araria:WChamparan!T13) -> 0 | U13: =SUM(Araria:WChamparan!U13) -> 0 | V13: =SUM(Araria:WChamparan!V13) -> 0 | W13: =SUM(Araria:WChamparan!W13) -> 0 | Y13: =SUM(Araria:WChamparan!Y13) -> 0 | Z13: =SUM(Araria:WChamparan!Z13) -> 0 | AA13: =SUM(Araria:WChamparan!AA13) -> 0 | AB13: =SUM(Araria:WChamparan!AB13) -> 0
A14: 2 | B14: Residential Schools for specific category of children | C14: =SUM(Araria:WChamparan!C14) -> 0 | D14: =SUM(Araria:WChamparan!D14) -> 0 | E14: =SUM(Araria:WChamparan!E14) -> 0 | F14: =SUM(Araria:WChamparan!F14) -> 0 | G14: 0 | H14: =IFERROR(F14/D14, ) -> 0 | I14: =SUM(Araria:WChamparan!I14) -> 0 | J14: =SUM(Araria:WChamparan!J14) -> 0 | K14: =SUM(Araria:WChamparan!K14) -> 0 | L14: =SUM(Araria:WChamparan!L14) -> 0 | M14: =SUM(Araria:WChamparan!M14) -> 0 | N14: =SUM(Araria:WChamparan!N14) -> 0 | P14: =SUM(Araria:WChamparan!P14) -> 0 | Q14: =SUM(Araria:WChamparan!Q14) -> 0 | R14: =SUM(Araria:WChamparan!R14) -> 0 | S14: =SUM(Araria:WChamparan!S14) -> 0 | T14: =SUM(Araria:WChamparan!T14) -> 0 | U14: =SUM(Araria:WChamparan!U14) -> 0 | V14: =SUM(Araria:WChamparan!V14) -> 0 | W14: =SUM(Araria:WChamparan!W14) -> 0 | Y14: =SUM(Araria:WChamparan!Y14) -> 0 | Z14: =SUM(Araria:WChamparan!Z14) -> 0 | AA14: =SUM(Araria:WChamparan!AA14) -> 0 | AB14: =SUM(Araria:WChamparan!AB14) -> 0
B15: 50 Children | C15: =SUM(Araria:WChamparan!C15) -> 0 | D15: =SUM(Araria:WChamparan!D15) -> 0 | E15: =SUM(Araria:WChamparan!E15) -> 0 | F15: =SUM(Araria:WChamparan!F15) -> 0 | I15: =SUM(Araria:WChamparan!I15) -> 0 | J15: =SUM(Araria:WChamparan!J15) -> 0 | K15: =SUM(Araria:WChamparan!K15) -> 0 | L15: =SUM(Araria:WChamparan!L15) -> 0 | M15: =SUM(Araria:WChamparan!M15) -> 0 | N15: =SUM(Araria:WChamparan!N15) -> 0 | P15: =SUM(Araria:WChamparan!P15) -> 0 | Q15: =SUM(Araria:WChamparan!Q15) -> 0 | R15: =SUM(Araria:WChamparan!R15) -> 0 | S15: =SUM(Araria:WChamparan!S15) -> 0 | T15: =SUM(Araria:WChamparan!T15) -> 0 | U15: =SUM(Araria:WChamparan!U15) -> 0 | V15: =SUM(Araria:WChamparan!V15) -> 0 | W15: =SUM(Araria:WChamparan!W15) -> 0 | Y15: =SUM(Araria:WChamparan!Y15) -> 0 | Z15: =SUM(Araria:WChamparan!Z15) -> 0 | AA15: =SUM(Araria:WChamparan!AA15) -> 0 | AB15: =SUM(Araria:WChamparan!AB15) -> 0
B16: Non-recurring (one time grant) | C16: =SUM(Araria:WChamparan!C16) -> 0 | D16: =SUM(Araria:WChamparan!D16) -> 0 | E16: =SUM(Araria:WChamparan!E16) -> 0 | F16: =SUM(Araria:WChamparan!F16) -> 0 | G16: =IFERROR(E16/C16, ) -> 0 | H16: 0 | I16: =SUM(Araria:WChamparan!I16) -> 0 | J16: =SUM(Araria:WChamparan!J16) -> 0 | K16: =SUM(Araria:WChamparan!K16) -> 0 | L16: =SUM(Araria:WChamparan!L16) -> 0 | M16: =SUM(Araria:WChamparan!M16) -> 0 | N16: =SUM(Araria:WChamparan!N16) -> 0 | P16: =SUM(Araria:WChamparan!P16) -> 0 | Q16: =SUM(Araria:WChamparan!Q16) -> 0 | R16: =SUM(Araria:WChamparan!R16) -> 0 | S16: =SUM(Araria:WChamparan!S16) -> 0 | T16: =SUM(Araria:WChamparan!T16) -> 0 | U16: =SUM(Araria:WChamparan!U16) -> 0 | V16: =SUM(Araria:WChamparan!V16) -> 0 | W16: =SUM(Araria:WChamparan!W16) -> 0 | Y16: =SUM(Araria:WChamparan!Y16) -> 0 | Z16: =SUM(Araria:WChamparan!Z16) -> 0 | AA16: =SUM(Araria:WChamparan!AA16) -> 0 | AB16: =SUM(Araria:WChamparan!AB16) -> 0
A17: 2.01 | B17: Furniture / Equipment (including kitchen) | C17: =SUM(Araria:WChamparan!C17) -> 0 | D17: =SUM(Araria:WChamparan!D17) -> 0 | E17: =SUM(Araria:WChamparan!E17) -> 0 | F17: =SUM(Araria:WChamparan!F17) -> 0 | G17: 0 | H17: 0 | I17: =SUM(Araria:WChamparan!I17) -> 0 | J17: =SUM(Araria:WChamparan!J17) -> 0 | K17: =SUM(Araria:WChamparan!K17) -> 0 | L17: =SUM(Araria:WChamparan!L17) -> 0 | M17: =SUM(Araria:WChamparan!M17) -> 0 | N17: =SUM(Araria:WChamparan!N17) -> 0 | P17: =SUM(Araria:WChamparan!P17) -> 0 | Q17: =SUM(Araria:WChamparan!Q17) -> 0 | R17: =SUM(Araria:WChamparan!R17) -> 0 | S17: =SUM(Araria:WChamparan!S17) -> 0 | T17: =SUM(Araria:WChamparan!T17) -> 0 | U17: =SUM(Araria:WChamparan!U17) -> 0 | V17: =SUM(Araria:WChamparan!V17) -> 0 | W17: =SUM(Araria:WChamparan!W17) -> 0 | Y17: =SUM(Araria:WChamparan!Y17) -> 0 | Z17: =SUM(Araria:WChamparan!Z17) -> 0 | AA17: =SUM(Araria:WChamparan!AA17) -> 0 | AB17: =SUM(Araria:WChamparan!AB17) -> 0
A18: 2.02 | B18: TLM and equipment including library books | C18: =SUM(Araria:WChamparan!C18) -> 0 | D18: =SUM(Araria:WChamparan!D18) -> 0 | E18: =SUM(Araria:WChamparan!E18) -> 0 | F18: =SUM(Araria:WChamparan!F18) -> 0 | G18: 0 | H18: 0 | I18: =SUM(Araria:WChamparan!I18) -> 0 | J18: =SUM(Araria:WChamparan!J18) -> 0 | K18: =SUM(Araria:WChamparan!K18) -> 0 | L18: =SUM(Araria:WChamparan!L18) -> 0 | M18: =SUM(Araria:WChamparan!M18) -> 0 | N18: =SUM(Araria:WChamparan!N18) -> 0 | P18: =SUM(Araria:WChamparan!P18) -> 0 | Q18: =SUM(Araria:WChamparan!Q18) -> 0 | R18: =SUM(Araria:WChamparan!R18) -> 0 | S18: =SUM(Araria:WChamparan!S18) -> 0 | T18: =SUM(Araria:WChamparan!T18) -> 0 | U18: =SUM(Araria:WChamparan!U18) -> 0 | V18: =SUM(Araria:WChamparan!V18) -> 0 | W18: =SUM(Araria:WChamparan!W18) -> 0 | Y18: =SUM(Araria:WChamparan!Y18) -> 0 | Z18: =SUM(Araria:WChamparan!Z18) -> 0 | AA18: =SUM(Araria:WChamparan!AA18) -> 0 | AB18: =SUM(Araria:WChamparan!AB18) -> 0
A19: 2.03 | B19: Bedding (new) | C19: =SUM(Araria:WChamparan!C19) -> 0 | D19: =SUM(Araria:WChamparan!D19) -> 0 | E19: =SUM(Araria:WChamparan!E19) -> 0 | F19: =SUM(Araria:WChamparan!F19) -> 0 | G19: 0 | H19: 0 | I19: =SUM(Araria:WChamparan!I19) -> 0 | J19: =SUM(Araria:WChamparan!J19) -> 0 | K19: =SUM(Araria:WChamparan!K19) -> 0 | L19: =SUM(Araria:WChamparan!L19) -> 0 | M19: =SUM(Araria:WChamparan!M19) -> 0 | N19: =SUM(Araria:WChamparan!N19) -> 0 | P19: =SUM(Araria:WChamparan!P19) -> 0 | Q19: =SUM(Araria:WChamparan!Q19) -> 0 | R19: =SUM(Araria:WChamparan!R19) -> 0 | S19: =SUM(Araria:WChamparan!S19) -> 0 | T19: =SUM(Araria:WChamparan!T19) -> 0 | U19: =SUM(Araria:WChamparan!U19) -> 0 | V19: =SUM(Araria:WChamparan!V19) -> 0 | W19: =SUM(Araria:WChamparan!W19) -> 0 | Y19: =SUM(Araria:WChamparan!Y19) -> 0 | Z19: =SUM(Araria:WChamparan!Z19) -> 0 | AA19: =SUM(Araria:WChamparan!AA19) -> 0 | AB19: =SUM(Araria:WChamparan!AB19) -> 0
A20: 2.04 | B20: Replacement of bedding (once in 3 years) | C20: =SUM(Araria:WChamparan!C20) -> 0 | D20: =SUM(Araria:WChamparan!D20) -> 0 | E20: =SUM(Araria:WChamparan!E20) -> 0 | F20: =SUM(Araria:WChamparan!F20) -> 0 | I20: =SUM(Araria:WChamparan!I20) -> 0 | J20: =SUM(Araria:WChamparan!J20) -> 0 | K20: =SUM(Araria:WChamparan!K20) -> 0 | L20: =SUM(Araria:WChamparan!L20) -> 0 | M20: =SUM(Araria:WChamparan!M20) -> 0 | N20: =SUM(Araria:WChamparan!N20) -> 0 | P20: =SUM(Araria:WChamparan!P20) -> 0 | Q20: =SUM(Araria:WChamparan!Q20) -> 0 | R20: =SUM(Araria:WChamparan!R20) -> 0 | S20: =SUM(Araria:WChamparan!S20) -> 0 | T20: =SUM(Araria:WChamparan!T20) -> 0 | U20: =SUM(Araria:WChamparan!U20) -> 0 | V20: =SUM(Araria:WChamparan!V20) -> 0 | W20: =SUM(Araria:WChamparan!W20) -> 0 | Y20: =SUM(Araria:WChamparan!Y20) -> 0 | Z20: =SUM(Araria:WChamparan!Z20) -> 0 | AA20: =SUM(Araria:WChamparan!AA20) -> 0 | AB20: =SUM(Araria:WChamparan!AB20) -> 0
B21: Sub Total Non-recurring | C21: =SUM(Araria:WChamparan!C21) -> 0 | D21: =SUM(Araria:WChamparan!D21) -> 0 | E21: =SUM(Araria:WChamparan!E21) -> 0 | F21: =SUM(Araria:WChamparan!F21) -> 0 | G21: =IFERROR(E21/C21, ) -> 0 | H21: 0 | I21: =SUM(Araria:WChamparan!I21) -> 0 | J21: =SUM(Araria:WChamparan!J21) -> 0 | K21: =SUM(Araria:WChamparan!K21) -> 0 | L21: =SUM(Araria:WChamparan!L21) -> 0 | M21: =SUM(Araria:WChamparan!M21) -> 0 | N21: =SUM(Araria:WChamparan!N21) -> 0 | P21: =SUM(Araria:WChamparan!P21) -> 0 | Q21: =SUM(Araria:WChamparan!Q21) -> 0 | R21: =SUM(Araria:WChamparan!R21) -> 0 | S21: =SUM(Araria:WChamparan!S21) -> 0 | T21: =SUM(Araria:WChamparan!T21) -> 0 | U21: =SUM(Araria:WChamparan!U21) -> 0 | V21: =SUM(Araria:WChamparan!V21) -> 0 | W21: =SUM(Araria:WChamparan!W21) -> 0 | Y21: =SUM(Araria:WChamparan!Y21) -> 0 | Z21: =SUM(Araria:WChamparan!Z21) -> 0 | AA21: =SUM(Araria:WChamparan!AA21) -> 0 | AB21: =SUM(Araria:WChamparan!AB21) -> 0
B22: Recurring (50 children) | C22: =SUM(Araria:WChamparan!C22) -> 0 | D22: =SUM(Araria:WChamparan!D22) -> 0 | E22: =SUM(Araria:WChamparan!E22) -> 0 | F22: =SUM(Araria:WChamparan!F22) -> 0 | G22: 0 | H22: 0 | I22: =SUM(Araria:WChamparan!I22) -> 0 | J22: =SUM(Araria:WChamparan!J22) -> 0 | K22: =SUM(Araria:WChamparan!K22) -> 0 | L22: =SUM(Araria:WChamparan!L22) -> 0 | M22: =SUM(Araria:WChamparan!M22) -> 0 | N22: =SUM(Araria:WChamparan!N22) -> 0 | P22: =SUM(Araria:WChamparan!P22) -> 0 | Q22: =SUM(Araria:WChamparan!Q22) -> 0 | R22: =SUM(Araria:WChamparan!R22) -> 0 | S22: =SUM(Araria:WChamparan!S22) -> 0 | T22: =SUM(Araria:WChamparan!T22) -> 0 | U22: =SUM(Araria:WChamparan!U22) -> 0 | V22: =SUM(Araria:WChamparan!V22) -> 0 | W22: =SUM(Araria:WChamparan!W22) -> 0 | Y22: =SUM(Araria:WChamparan!Y22) -> 0 | Z22: =SUM(Araria:WChamparan!Z22) -> 0 | AA22: =SUM(Araria:WChamparan!AA22) -> 0 | AB22: =SUM(Araria:WChamparan!AB22) -> 0
A23: 2.05 | B23: Maintenance @ Rs.1,500/- per child Per month | C23: =SUM(Araria:WChamparan!C23) -> 0 | D23: =SUM(Araria:WChamparan!D23) -> 0 | E23: =SUM(Araria:WChamparan!E23) -> 0 | F23: =SUM(Araria:WChamparan!F23) -> 0 | G23: 0 | H23: 0 | I23: =SUM(Araria:WChamparan!I23) -> 0 | J23: =SUM(Araria:WChamparan!J23) -> 0 | K23: =SUM(Araria:WChamparan!K23) -> 0 | L23: =SUM(Araria:WChamparan!L23) -> 0 | M23: =SUM(Araria:WChamparan!M23) -> 0 | N23: =SUM(Araria:WChamparan!N23) -> 0 | O23: 10.8 | P23: =SUM(Araria:WChamparan!P23) -> 0 | Q23: =SUM(Araria:WChamparan!Q23) -> 0 | R23: =SUM(Araria:WChamparan!R23) -> 0 | S23: =SUM(Araria:WChamparan!S23) -> 0 | T23: =SUM(Araria:WChamparan!T23) -> 0 | U23: =SUM(Araria:WChamparan!U23) -> 0 | V23: =SUM(Araria:WChamparan!V23) -> 0 | W23: =SUM(Araria:WChamparan!W23) -> 0 | Y23: =SUM(Araria:WChamparan!Y23) -> 0 | Z23: =SUM(Araria:WChamparan!Z23) -> 0 | AA23: =SUM(Araria:WChamparan!AA23) -> 0 | AB23: =SUM(Araria:WChamparan!AB23) -> 0
A24: 2.06 | B24: Stipend @ Rs.100/- per child per month | C24: =SUM(Araria:WChamparan!C24) -> 0 | D24: =SUM(Araria:WChamparan!D24) -> 0 | E24: =SUM(Araria:WChamparan!E24) -> 0 | F24: =SUM(Araria:WChamparan!F24) -> 0 | G24: 0 | H24: 0 | I24: =SUM(Araria:WChamparan!I24) -> 0 | J24: =SUM(Araria:WChamparan!J24) -> 0 | K24: =SUM(Araria:WChamparan!K24) -> 0 | L24: =SUM(Araria:WChamparan!L24) -> 0 | M24: =SUM(Araria:WChamparan!M24) -> 0 | N24: =SUM(Araria:WChamparan!N24) -> 0 | O24: 0.6 | P24: =SUM(Araria:WChamparan!P24) -> 0 | Q24: =SUM(Araria:WChamparan!Q24) -> 0 | R24: =SUM(Araria:WChamparan!R24) -> 0 | S24: =SUM(Araria:WChamparan!S24) -> 0 | T24: =SUM(Araria:WChamparan!T24) -> 0 | U24: =SUM(Araria:WChamparan!U24) -> 0 | V24: =SUM(Araria:WChamparan!V24) -> 0 | W24: =SUM(Araria:WChamparan!W24) -> 0 | Y24: =SUM(Araria:WChamparan!Y24) -> 0 | Z24: =SUM(Araria:WChamparan!Z24) -> 0 | AA24: =SUM(Araria:WChamparan!AA24) -> 0 | AB24: =SUM(Araria:WChamparan!AB24) -> 0
A25: 2.07 | B25: Supplementary TLM, Stationery and other educational material @Rs.1,000/- per child per annum | C25: =SUM(Araria:WChamparan!C25) -> 0 | D25: =SUM(Araria:WChamparan!D25) -> 0 | E25: =SUM(Araria:WChamparan!E25) -> 0 | F25: =SUM(Araria:WChamparan!F25) -> 0 | G25: 0 | H25: 0 | I25: =SUM(Araria:WChamparan!I25) -> 0 | J25: =SUM(Araria:WChamparan!J25) -> 0 | K25: =SUM(Araria:WChamparan!K25) -> 0 | L25: =SUM(Araria:WChamparan!L25) -> 0 | M25: =SUM(Araria:WChamparan!M25) -> 0 | N25: =SUM(Araria:WChamparan!N25) -> 0 | O25: 0.6 | P25: =SUM(Araria:WChamparan!P25) -> 0 | Q25: =SUM(Araria:WChamparan!Q25) -> 0 | R25: =SUM(Araria:WChamparan!R25) -> 0 | S25: =SUM(Araria:WChamparan!S25) -> 0 | T25: =SUM(Araria:WChamparan!T25) -> 0 | U25: =SUM(Araria:WChamparan!U25) -> 0 | V25: =SUM(Araria:WChamparan!V25) -> 0 | W25: =SUM(Araria:WChamparan!W25) -> 0 | Y25: =SUM(Araria:WChamparan!Y25) -> 0 | Z25: =SUM(Araria:WChamparan!Z25) -> 0 | AA25: =SUM(Araria:WChamparan!AA25) -> 0 | AB25: =SUM(Araria:WChamparan!AB25) -> 0
A26: 2.08 | B26: Salaries | C26: =SUM(Araria:WChamparan!C26) -> 0 | D26: =SUM(Araria:WChamparan!D26) -> 0 | E26: =SUM(Araria:WChamparan!E26) -> 0 | F26: =SUM(Araria:WChamparan!F26) -> 0 | G26: 0 | H26: 0 | I26: =SUM(Araria:WChamparan!I26) -> 0 | J26: =SUM(Araria:WChamparan!J26) -> 0 | K26: =SUM(Araria:WChamparan!K26) -> 0 | L26: =SUM(Araria:WChamparan!L26) -> 0 | M26: =SUM(Araria:WChamparan!M26) -> 0 | N26: =SUM(Araria:WChamparan!N26) -> 0 | P26: =SUM(Araria:WChamparan!P26) -> 0 | Q26: =SUM(Araria:WChamparan!Q26) -> 0 | R26: =SUM(Araria:WChamparan!R26) -> 0 | S26: =SUM(Araria:WChamparan!S26) -> 0 | T26: =SUM(Araria:WChamparan!T26) -> 0 | U26: =SUM(Araria:WChamparan!U26) -> 0 | V26: =SUM(Araria:WChamparan!V26) -> 0 | W26: =SUM(Araria:WChamparan!W26) -> 0 | Y26: =SUM(Araria:WChamparan!Y26) -> 0 | Z26: =SUM(Araria:WChamparan!Z26) -> 0 | AA26: =SUM(Araria:WChamparan!AA26) -> 0 | AB26: =SUM(Araria:WChamparan!AB26) -> 0
A27: (a) | B27: 1 Warden @ Rs.25,000/- per month | C27: =SUM(Araria:WChamparan!C27) -> 0 | D27: =SUM(Araria:WChamparan!D27) -> 0 | E27: =SUM(Araria:WChamparan!E27) -> 0 | F27: =SUM(Araria:WChamparan!F27) -> 0 | G27: 0 | H27: 0 | I27: =SUM(Araria:WChamparan!I27) -> 0 | J27: =SUM(Araria:WChamparan!J27) -> 0 | K27: =SUM(Araria:WChamparan!K27) -> 0 | L27: =SUM(Araria:WChamparan!L27) -> 0 | M27: =SUM(Araria:WChamparan!M27) -> 0 | N27: =SUM(Araria:WChamparan!N27) -> 0 | O27: 12 | P27: =SUM(Araria:WChamparan!P27) -> 0 | Q27: =SUM(Araria:WChamparan!Q27) -> 0 | R27: =SUM(Araria:WChamparan!R27) -> 0 | S27: =SUM(Araria:WChamparan!S27) -> 0 | T27: =SUM(Araria:WChamparan!T27) -> 0 | U27: =SUM(Araria:WChamparan!U27) -> 0 | V27: =SUM(Araria:WChamparan!V27) -> 0 | W27: =SUM(Araria:WChamparan!W27) -> 0 | Y27: =SUM(Araria:WChamparan!Y27) -> 0 | Z27: =SUM(Araria:WChamparan!Z27) -> 0 | AA27: =SUM(Araria:WChamparan!AA27) -> 0 | AB27: =SUM(Araria:WChamparan!AB27) -> 0
A28: (b) | B28: 4 Fulltime teachers as per RTE Norms @ Rs. 20,000/- per month per teacher | C28: =SUM(Araria:WChamparan!C28) -> 0 | D28: =SUM(Araria:WChamparan!D28) -> 0 | E28: =SUM(Araria:WChamparan!E28) -> 0 | F28: =SUM(Araria:WChamparan!F28) -> 0 | I28: =SUM(Araria:WChamparan!I28) -> 0 | J28: =SUM(Araria:WChamparan!J28) -> 0 | K28: =SUM(Araria:WChamparan!K28) -> 0 | L28: =SUM(Araria:WChamparan!L28) -> 0 | M28: =SUM(Araria:WChamparan!M28) -> 0 | N28: =SUM(Araria:WChamparan!N28) -> 0 | O28: 9.6 | P28: =SUM(Araria:WChamparan!P28) -> 0 | Q28: =SUM(Araria:WChamparan!Q28) -> 0 | R28: =SUM(Araria:WChamparan!R28) -> 0 | S28: =SUM(Araria:WChamparan!S28) -> 0 | T28: =SUM(Araria:WChamparan!T28) -> 0 | U28: =SUM(Araria:WChamparan!U28) -> 0 | V28: =SUM(Araria:WChamparan!V28) -> 0 | W28: =SUM(Araria:WChamparan!W28) -> 0 | Y28: =SUM(Araria:WChamparan!Y28) -> 0 | Z28: =SUM(Araria:WChamparan!Z28) -> 0 | AA28: =SUM(Araria:WChamparan!AA28) -> 0 | AB28: =SUM(Araria:WChamparan!AB28) -> 0
A29: (c) | B29: 2 Urdu Teachers (only for Blocks with muslim population above 20% and select urban areas) if required @ Rs.12,000/- per month per teacher. | C29: =SUM(Araria:WChamparan!C29) -> 0 | D29: =SUM(Araria:WChamparan!D29) -> 0 | E29: =SUM(Araria:WChamparan!E29) -> 0 | F29: =SUM(Araria:WChamparan!F29) -> 0 | I29: =SUM(Araria:WChamparan!I29) -> 0 | J29: =SUM(Araria:WChamparan!J29) -> 0 | K29: =SUM(Araria:WChamparan!K29) -> 0 | L29: =SUM(Araria:WChamparan!L29) -> 0 | M29: =SUM(Araria:WChamparan!M29) -> 0 | N29: =SUM(Araria:WChamparan!N29) -> 0 | O29: 2.88 | P29: =SUM(Araria:WChamparan!P29) -> 0 | Q29: =SUM(Araria:WChamparan!Q29) -> 0 | R29: =SUM(Araria:WChamparan!R29) -> 0 | S29: =SUM(Araria:WChamparan!S29) -> 0 | T29: =SUM(Araria:WChamparan!T29) -> 0 | U29: =SUM(Araria:WChamparan!U29) -> 0 | V29: =SUM(Araria:WChamparan!V29) -> 0 | W29: =SUM(Araria:WChamparan!W29) -> 0 | Y29: =SUM(Araria:WChamparan!Y29) -> 0 | Z29: =SUM(Araria:WChamparan!Z29) -> 0 | AA29: =SUM(Araria:WChamparan!AA29) -> 0 | AB29: =SUM(Araria:WChamparan!AB29) -> 0
A30: (d) | B30: 3 Part time teachers @ Rs.5,000/- per month per teacher | C30: =SUM(Araria:WChamparan!C30) -> 0 | D30: =SUM(Araria:WChamparan!D30) -> 0 | E30: =SUM(Araria:WChamparan!E30) -> 0 | F30: =SUM(Araria:WChamparan!F30) -> 0 | I30: =SUM(Araria:WChamparan!I30) -> 0 | J30: =SUM(Araria:WChamparan!J30) -> 0 | K30: =SUM(Araria:WChamparan!K30) -> 0 | L30: =SUM(Araria:WChamparan!L30) -> 0 | M30: =SUM(Araria:WChamparan!M30) -> 0 | N30: =SUM(Araria:WChamparan!N30) -> 0 | O30: 1.5 | P30: =SUM(Araria:WChamparan!P30) -> 0 | Q30: =SUM(Araria:WChamparan!Q30) -> 0 | R30: =SUM(Araria:WChamparan!R30) -> 0 | S30: =SUM(Araria:WChamparan!S30) -> 0 | T30: =SUM(Araria:WChamparan!T30) -> 0 | U30: =SUM(Araria:WChamparan!U30) -> 0 | V30: =SUM(Araria:WChamparan!V30) -> 0 | W30: =SUM(Araria:WChamparan!W30) -> 0 | Y30: =SUM(Araria:WChamparan!Y30) -> 0 | Z30: =SUM(Araria:WChamparan!Z30) -> 0 | AA30: =SUM(Araria:WChamparan!AA30) -> 0 | AB30: =SUM(Araria:WChamparan!AB30) -> 0
A31: (e) | B31: 1 Full time Accountant @ Rs. 10,000/- per month | C31: =SUM(Araria:WChamparan!C31) -> 0 | D31: =SUM(Araria:WChamparan!D31) -> 0 | E31: =SUM(Araria:WChamparan!E31) -> 0 | F31: =SUM(Araria:WChamparan!F31) -> 0 | I31: =SUM(Araria:WChamparan!I31) -> 0 | J31: =SUM(Araria:WChamparan!J31) -> 0 | K31: =SUM(Araria:WChamparan!K31) -> 0 | L31: =SUM(Araria:WChamparan!L31) -> 0 | M31: =SUM(Araria:WChamparan!M31) -> 0 | N31: =SUM(Araria:WChamparan!N31) -> 0 | O31: 1.2 | P31: =SUM(Araria:WChamparan!P31) -> 0 | Q31: =SUM(Araria:WChamparan!Q31) -> 0 | R31: =SUM(Araria:WChamparan!R31) -> 0 | S31: =SUM(Araria:WChamparan!S31) -> 0 | T31: =SUM(Araria:WChamparan!T31) -> 0 | U31: =SUM(Araria:WChamparan!U31) -> 0 | V31: =SUM(Araria:WChamparan!V31) -> 0 | W31: =SUM(Araria:WChamparan!W31) -> 0 | Y31: =SUM(Araria:WChamparan!Y31) -> 0 | Z31: =SUM(Araria:WChamparan!Z31) -> 0 | AA31: =SUM(Araria:WChamparan!AA31) -> 0 | AB31: =SUM(Araria:WChamparan!AB31) -> 0
A32: (f) | B32: 2 Support staff - (Accountant/Assistant, Peon, Chowkidar) @ Rs. 5,000/- per month per staff | C32: =SUM(Araria:WChamparan!C32) -> 0 | D32: =SUM(Araria:WChamparan!D32) -> 0 | E32: =SUM(Araria:WChamparan!E32) -> 0 | F32: =SUM(Araria:WChamparan!F32) -> 0 | G32: =IFERROR(E32/C32, ) -> 0 | H32: 0 | I32: =SUM(Araria:WChamparan!I32) -> 0 | J32: =SUM(Araria:WChamparan!J32) -> 0 | K32: =SUM(Araria:WChamparan!K32) -> 0 | L32: =SUM(Araria:WChamparan!L32) -> 0 | M32: =SUM(Araria:WChamparan!M32) -> 0 | N32: =SUM(Araria:WChamparan!N32) -> 0 | O32: 1.2 | P32: =SUM(Araria:WChamparan!P32) -> 0 | Q32: =SUM(Araria:WChamparan!Q32) -> 0 | R32: =SUM(Araria:WChamparan!R32) -> 0 | S32: =SUM(Araria:WChamparan!S32) -> 0 | T32: =SUM(Araria:WChamparan!T32) -> 0 | U32: =SUM(Araria:WChamparan!U32) -> 0 | V32: =SUM(Araria:WChamparan!V32) -> 0 | W32: =SUM(Araria:WChamparan!W32) -> 0 | Y32: =SUM(Araria:WChamparan!Y32) -> 0 | Z32: =SUM(Araria:WChamparan!Z32) -> 0 | AA32: =SUM(Araria:WChamparan!AA32) -> 0 | AB32: =SUM(Araria:WChamparan!AB32) -> 0
A33: (g) | B33: 1 Head Cook @ Rs. 6,000/- per month and upto 2 Asstt. Cooks @ Rs. 4,500/- per month per cook | C33: =SUM(Araria:WChamparan!C33) -> 0 | D33: =SUM(Araria:WChamparan!D33) -> 0 | E33: =SUM(Araria:WChamparan!E33) -> 0 | F33: =SUM(Araria:WChamparan!F33) -> 0 | G33: 0 | H33: 0 | I33: =SUM(Araria:WChamparan!I33) -> 0 | J33: =SUM(Araria:WChamparan!J33) -> 0 | K33: =SUM(Araria:WChamparan!K33) -> 0 | L33: =SUM(Araria:WChamparan!L33) -> 0 | M33: =SUM(Araria:WChamparan!M33) -> 0 | N33: =SUM(Araria:WChamparan!N33) -> 0 | O33: 1.8 | P33: =SUM(Araria:WChamparan!P33) -> 0 | Q33: =SUM(Araria:WChamparan!Q33) -> 0 | R33: =SUM(Araria:WChamparan!R33) -> 0 | S33: =SUM(Araria:WChamparan!S33) -> 0 | T33: =SUM(Araria:WChamparan!T33) -> 0 | U33: =SUM(Araria:WChamparan!U33) -> 0 | V33: =SUM(Araria:WChamparan!V33) -> 0 | W33: =SUM(Araria:WChamparan!W33) -> 0 | Y33: =SUM(Araria:WChamparan!Y33) -> 0 | Z33: =SUM(Araria:WChamparan!Z33) -> 0 | AA33: =SUM(Araria:WChamparan!AA33) -> 0 | AB33: =SUM(Araria:WChamparan!AB33) -> 0
A34: 2.09 | B34: Specific Skill training @ Rs.1,000/- per child per annum | C34: =SUM(Araria:WChamparan!C34) -> 0 | D34: =SUM(Araria:WChamparan!D34) -> 0 | E34: =SUM(Araria:WChamparan!E34) -> 0 | F34: =SUM(Araria:WChamparan!F34) -> 0 | G34: 0 | H34: 0 | I34: =SUM(Araria:WChamparan!I34) -> 0 | J34: =SUM(Araria:WChamparan!J34) -> 0 | K34: =SUM(Araria:WChamparan!K34) -> 0 | L34: =SUM(Araria:WChamparan!L34) -> 0 | M34: =SUM(Araria:WChamparan!M34) -> 0 | N34: =SUM(Araria:WChamparan!N34) -> 0 | O34: 0.5 | P34: =SUM(Araria:WChamparan!P34) -> 0 | Q34: =SUM(Araria:WChamparan!Q34) -> 0 | R34: =SUM(Araria:WChamparan!R34) -> 0 | S34: =SUM(Araria:WChamparan!S34) -> 0 | T34: =SUM(Araria:WChamparan!T34) -> 0 | U34: =SUM(Araria:WChamparan!U34) -> 0 | V34: =SUM(Araria:WChamparan!V34) -> 0 | W34: =SUM(Araria:WChamparan!W34) -> 0 | Y34: =SUM(Araria:WChamparan!Y34) -> 0 | Z34: =SUM(Araria:WChamparan!Z34) -> 0 | AA34: =SUM(Araria:WChamparan!AA34) -> 0 | AB34: =SUM(Araria:WChamparan!AB34) -> 0
A35: 2.1 | B35: Electricity / water charges @ Rs. 1,000/- per child per annum | C35: =SUM(Araria:WChamparan!C35) -> 0 | D35: =SUM(Araria:WChamparan!D35) -> 0 | E35: =SUM(Araria:WChamparan!E35) -> 0 | F35: =SUM(Araria:WChamparan!F35) -> 0 | G35: 0 | H35: 0 | I35: =SUM(Araria:WChamparan!I35) -> 0 | J35: =SUM(Araria:WChamparan!J35) -> 0 | K35: =SUM(Araria:WChamparan!K35) -> 0 | L35: =SUM(Araria:WChamparan!L35) -> 0 | M35: =SUM(Araria:WChamparan!M35) -> 0 | N35: =SUM(Araria:WChamparan!N35) -> 0 | O35: 0.5 | P35: =SUM(Araria:WChamparan!P35) -> 0 | Q35: =SUM(Araria:WChamparan!Q35) -> 0 | R35: =SUM(Araria:WChamparan!R35) -> 0 | S35: =SUM(Araria:WChamparan!S35) -> 0 | T35: =SUM(Araria:WChamparan!T35) -> 0 | U35: =SUM(Araria:WChamparan!U35) -> 0 | V35: =SUM(Araria:WChamparan!V35) -> 0 | W35: =SUM(Araria:WChamparan!W35) -> 0 | Y35: =SUM(Araria:WChamparan!Y35) -> 0 | Z35: =SUM(Araria:WChamparan!Z35) -> 0 | AA35: =SUM(Araria:WChamparan!AA35) -> 0 | AB35: =SUM(Araria:WChamparan!AB35) -> 0
A36: =+A35+0.01 -> 2.11 | B36: Medical care/contingencies @ Rs.1,250/- per child per annum | C36: =SUM(Araria:WChamparan!C36) -> 0 | D36: =SUM(Araria:WChamparan!D36) -> 0 | E36: =SUM(Araria:WChamparan!E36) -> 0 | F36: =SUM(Araria:WChamparan!F36) -> 0 | G36: 0 | H36: 0 | I36: =SUM(Araria:WChamparan!I36) -> 0 | J36: =SUM(Araria:WChamparan!J36) -> 0 | K36: =SUM(Araria:WChamparan!K36) -> 0 | L36: =SUM(Araria:WChamparan!L36) -> 0 | M36: =SUM(Araria:WChamparan!M36) -> 0 | N36: =SUM(Araria:WChamparan!N36) -> 0 | O36: 0.625 | P36: =SUM(Araria:WChamparan!P36) -> 0 | Q36: =SUM(Araria:WChamparan!Q36) -> 0 | R36: =SUM(Araria:WChamparan!R36) -> 0 | S36: =SUM(Araria:WChamparan!S36) -> 0 | T36: =SUM(Araria:WChamparan!T36) -> 0 | U36: =SUM(Araria:WChamparan!U36) -> 0 | V36: =SUM(Araria:WChamparan!V36) -> 0 | W36: =SUM(Araria:WChamparan!W36) -> 0 | Y36: =SUM(Araria:WChamparan!Y36) -> 0 | Z36: =SUM(Araria:WChamparan!Z36) -> 0 | AA36: =SUM(Araria:WChamparan!AA36) -> 0 | AB36: =SUM(Araria:WChamparan!AB36) -> 0
A37: =+A36+0.01 -> 2.12 | B37: Maintenance @ Rs. 750/- per child per annum | C37: =SUM(Araria:WChamparan!C37) -> 0 | D37: =SUM(Araria:WChamparan!D37) -> 0 | E37: =SUM(Araria:WChamparan!E37) -> 0 | F37: =SUM(Araria:WChamparan!F37) -> 0 | G37: 0 | H37: 0 | I37: =SUM(Araria:WChamparan!I37) -> 0 | J37: =SUM(Araria:WChamparan!J37) -> 0 | K37: =SUM(Araria:WChamparan!K37) -> 0 | L37: =SUM(Araria:WChamparan!L37) -> 0 | M37: =SUM(Araria:WChamparan!M37) -> 0 | N37: =SUM(Araria:WChamparan!N37) -> 0 | O37: 0.375 | P37: =SUM(Araria:WChamparan!P37) -> 0 | Q37: =SUM(Araria:WChamparan!Q37) -> 0 | R37: =SUM(Araria:WChamparan!R37) -> 0 | S37: =SUM(Araria:WChamparan!S37) -> 0 | T37: =SUM(Araria:WChamparan!T37) -> 0 | U37: =SUM(Araria:WChamparan!U37) -> 0 | V37: =SUM(Araria:WChamparan!V37) -> 0 | W37: =SUM(Araria:WChamparan!W37) -> 0 | Y37: =SUM(Araria:WChamparan!Y37) -> 0 | Z37: =SUM(Araria:WChamparan!Z37) -> 0 | AA37: =SUM(Araria:WChamparan!AA37) -> 0 | AB37: =SUM(Araria:WChamparan!AB37) -> 0
A38: 2.13 | B38: Miscellaneous @ Rs. 750/- per child per annum | C38: =SUM(Araria:WChamparan!C38) -> 0 | D38: =SUM(Araria:WChamparan!D38) -> 0 | E38: =SUM(Araria:WChamparan!E38) -> 0 | F38: =SUM(Araria:WChamparan!F38) -> 0 | G38: 0 | H38: 0 | I38: =SUM(Araria:WChamparan!I38) -> 0 | J38: =SUM(Araria:WChamparan!J38) -> 0 | K38: =SUM(Araria:WChamparan!K38) -> 0 | L38: =SUM(Araria:WChamparan!L38) -> 0 | M38: =SUM(Araria:WChamparan!M38) -> 0 | N38: =SUM(Araria:WChamparan!N38) -> 0 | O38: 0.375 | P38: =SUM(Araria:WChamparan!P38) -> 0 | Q38: =SUM(Araria:WChamparan!Q38) -> 0 | R38: =SUM(Araria:WChamparan!R38) -> 0 | S38: =SUM(Araria:WChamparan!S38) -> 0 | T38: =SUM(Araria:WChamparan!T38) -> 0 | U38: =SUM(Araria:WChamparan!U38) -> 0 | V38: =SUM(Araria:WChamparan!V38) -> 0 | W38: =SUM(Araria:WChamparan!W38) -> 0 | Y38: =SUM(Araria:WChamparan!Y38) -> 0 | Z38: =SUM(Araria:WChamparan!Z38) -> 0 | AA38: =SUM(Araria:WChamparan!AA38) -> 0 | AB38: =SUM(Araria:WChamparan!AB38) -> 0
A39: 2.14 | B39: Preparatory camps @ Rs. 300/- per child per annum | C39: =SUM(Araria:WChamparan!C39) -> 0 | D39: =SUM(Araria:WChamparan!D39) -> 0 | E39: =SUM(Araria:WChamparan!E39) -> 0 | F39: =SUM(Araria:WChamparan!F39) -> 0 | G39: 0 | H39: 0 | I39: =SUM(Araria:WChamparan!I39) -> 0 | J39: =SUM(Araria:WChamparan!J39) -> 0 | K39: =SUM(Araria:WChamparan!K39) -> 0 | L39: =SUM(Araria:WChamparan!L39) -> 0 | M39: =SUM(Araria:WChamparan!M39) -> 0 | N39: =SUM(Araria:WChamparan!N39) -> 0 | O39: 0.15 | P39: =SUM(Araria:WChamparan!P39) -> 0 | Q39: =SUM(Araria:WChamparan!Q39) -> 0 | R39: =SUM(Araria:WChamparan!R39) -> 0 | S39: =SUM(Araria:WChamparan!S39) -> 0 | T39: =SUM(Araria:WChamparan!T39) -> 0 | U39: =SUM(Araria:WChamparan!U39) -> 0 | V39: =SUM(Araria:WChamparan!V39) -> 0 | W39: =SUM(Araria:WChamparan!W39) -> 0 | Y39: =SUM(Araria:WChamparan!Y39) -> 0 | Z39: =SUM(Araria:WChamparan!Z39) -> 0 | AA39: =SUM(Araria:WChamparan!AA39) -> 0 | AB39: =SUM(Araria:WChamparan!AB39) -> 0
A40: 2.15 | B40: P.T.A / school functions @ Rs. 300/- per child per annum | C40: =SUM(Araria:WChamparan!C40) -> 0 | D40: =SUM(Araria:WChamparan!D40) -> 0 | E40: =SUM(Araria:WChamparan!E40) -> 0 | F40: =SUM(Araria:WChamparan!F40) -> 0 | G40: 0 | H40: 0 | I40: =SUM(Araria:WChamparan!I40) -> 0 | J40: =SUM(Araria:WChamparan!J40) -> 0 | K40: =SUM(Araria:WChamparan!K40) -> 0 | L40: =SUM(Araria:WChamparan!L40) -> 0 | M40: =SUM(Araria:WChamparan!M40) -> 0 | N40: =SUM(Araria:WChamparan!N40) -> 0 | O40: 0.15 | P40: =SUM(Araria:WChamparan!P40) -> 0 | Q40: =SUM(Araria:WChamparan!Q40) -> 0 | R40: =SUM(Araria:WChamparan!R40) -> 0 | S40: =SUM(Araria:WChamparan!S40) -> 0 | T40: =SUM(Araria:WChamparan!T40) -> 0 | U40: =SUM(Araria:WChamparan!U40) -> 0 | V40: =SUM(Araria:WChamparan!V40) -> 0 | W40: =SUM(Araria:WChamparan!W40) -> 0 | Y40: =SUM(Araria:WChamparan!Y40) -> 0 | Z40: =SUM(Araria:WChamparan!Z40) -> 0 | AA40: =SUM(Araria:WChamparan!AA40) -> 0 | AB40: =SUM(Araria:WChamparan!AB40) -> 0
A41: 2.16 | B41: Provision of Rent @ Rs. 10,000/- per child per annum | C41: =SUM(Araria:WChamparan!C41) -> 0 | D41: =SUM(Araria:WChamparan!D41) -> 0 | E41: =SUM(Araria:WChamparan!E41) -> 0 | F41: =SUM(Araria:WChamparan!F41) -> 0 | I41: =SUM(Araria:WChamparan!I41) -> 0 | J41: =SUM(Araria:WChamparan!J41) -> 0 | K41: =SUM(Araria:WChamparan!K41) -> 0 | L41: =SUM(Araria:WChamparan!L41) -> 0 | M41: =SUM(Araria:WChamparan!M41) -> 0 | N41: =SUM(Araria:WChamparan!N41) -> 0 | P41: =SUM(Araria:WChamparan!P41) -> 0 | Q41: =SUM(Araria:WChamparan!Q41) -> 0 | R41: =SUM(Araria:WChamparan!R41) -> 0 | S41: =SUM(Araria:WChamparan!S41) -> 0 | T41: =SUM(Araria:WChamparan!T41) -> 0 | U41: =SUM(Araria:WChamparan!U41) -> 0 | V41: =SUM(Araria:WChamparan!V41) -> 0 | W41: =SUM(Araria:WChamparan!W41) -> 0 | Y41: =SUM(Araria:WChamparan!Y41) -> 0 | Z41: =SUM(Araria:WChamparan!Z41) -> 0 | AA41: =SUM(Araria:WChamparan!AA41) -> 0 | AB41: =SUM(Araria:WChamparan!AB41) -> 0
A42: 2.17 | B42: Capacity Building @ Rs. 500/- per child per annum | C42: =SUM(Araria:WChamparan!C42) -> 0 | D42: =SUM(Araria:WChamparan!D42) -> 0 | E42: =SUM(Araria:WChamparan!E42) -> 0 | F42: =SUM(Araria:WChamparan!F42) -> 0 | I42: =SUM(Araria:WChamparan!I42) -> 0 | J42: =SUM(Araria:WChamparan!J42) -> 0 | K42: =SUM(Araria:WChamparan!K42) -> 0 | L42: =SUM(Araria:WChamparan!L42) -> 0 | M42: =SUM(Araria:WChamparan!M42) -> 0 | N42: =SUM(Araria:WChamparan!N42) -> 0 | O42: 0.25 | P42: =SUM(Araria:WChamparan!P42) -> 0 | Q42: =SUM(Araria:WChamparan!Q42) -> 0 | R42: =SUM(Araria:WChamparan!R42) -> 0 | S42: =SUM(Araria:WChamparan!S42) -> 0 | T42: =SUM(Araria:WChamparan!T42) -> 0 | U42: =SUM(Araria:WChamparan!U42) -> 0 | V42: =SUM(Araria:WChamparan!V42) -> 0 | W42: =SUM(Araria:WChamparan!W42) -> 0 | Y42: =SUM(Araria:WChamparan!Y42) -> 0 | Z42: =SUM(Araria:WChamparan!Z42) -> 0 | AA42: =SUM(Araria:WChamparan!AA42) -> 0 | AB42: =SUM(Araria:WChamparan!AB42) -> 0
A43: 2.18 | B43: Physical / Self Defence Training @ Rs.200/- per child per annum | C43: =SUM(Araria:WChamparan!C43) -> 0 | D43: =SUM(Araria:WChamparan!D43) -> 0 | E43: =SUM(Araria:WChamparan!E43) -> 0 | F43: =SUM(Araria:WChamparan!F43) -> 0 | I43: =SUM(Araria:WChamparan!I43) -> 0 | J43: =SUM(Araria:WChamparan!J43) -> 0 | K43: =SUM(Araria:WChamparan!K43) -> 0 | L43: =SUM(Araria:WChamparan!L43) -> 0 | M43: =SUM(Araria:WChamparan!M43) -> 0 | N43: =SUM(Araria:WChamparan!N43) -> 0 | O43: 0.1 | P43: =SUM(Araria:WChamparan!P43) -> 0 | Q43: =SUM(Araria:WChamparan!Q43) -> 0 | R43: =SUM(Araria:WChamparan!R43) -> 0 | S43: =SUM(Araria:WChamparan!S43) -> 0 | T43: =SUM(Araria:WChamparan!T43) -> 0 | U43: =SUM(Araria:WChamparan!U43) -> 0 | V43: =SUM(Araria:WChamparan!V43) -> 0 | W43: =SUM(Araria:WChamparan!W43) -> 0 | Y43: =SUM(Araria:WChamparan!Y43) -> 0 | Z43: =SUM(Araria:WChamparan!Z43) -> 0 | AA43: =SUM(Araria:WChamparan!AA43) -> 0 | AB43: =SUM(Araria:WChamparan!AB43) -> 0
B44: Sub Total (Recurring) | C44: =SUM(Araria:WChamparan!C44) -> 0 | D44: =SUM(Araria:WChamparan!D44) -> 0 | E44: =SUM(Araria:WChamparan!E44) -> 0 | F44: =SUM(Araria:WChamparan!F44) -> 0 | G44: =IFERROR(E44/C44, ) -> 0 | H44: =IFERROR(F44/D44, ) -> 0 | I44: =SUM(Araria:WChamparan!I44) -> 0 | J44: =SUM(Araria:WChamparan!J44) -> 0 | K44: =SUM(Araria:WChamparan!K44) -> 0 | L44: =SUM(Araria:WChamparan!L44) -> 0 | M44: =SUM(Araria:WChamparan!M44) -> 0 | N44: =SUM(Araria:WChamparan!N44) -> 0 | P44: =SUM(Araria:WChamparan!P44) -> 0 | Q44: =SUM(Araria:WChamparan!Q44) -> 0 | R44: =SUM(Araria:WChamparan!R44) -> 0 | S44: =SUM(Araria:WChamparan!S44) -> 0 | T44: =SUM(Araria:WChamparan!T44) -> 0 | U44: =SUM(Araria:WChamparan!U44) -> 0 | V44: =SUM(Araria:WChamparan!V44) -> 0 | W44: =SUM(Araria:WChamparan!W44) -> 0 | Y44: =SUM(Araria:WChamparan!Y44) -> 0 | Z44: =SUM(Araria:WChamparan!Z44) -> 0 | AA44: =SUM(Araria:WChamparan!AA44) -> 0 | AB44: =SUM(Araria:WChamparan!AB44) -> 0
B45: Total (Non Recurring + Recurring) | C45: =SUM(Araria:WChamparan!C45) -> 0 | D45: =SUM(Araria:WChamparan!D45) -> 0 | E45: =SUM(Araria:WChamparan!E45) -> 0 | F45: =SUM(Araria:WChamparan!F45) -> 0 | I45: =SUM(Araria:WChamparan!I45) -> 0 | J45: =SUM(Araria:WChamparan!J45) -> 0 | K45: =SUM(Araria:WChamparan!K45) -> 0 | L45: =SUM(Araria:WChamparan!L45) -> 0 | M45: =SUM(Araria:WChamparan!M45) -> 0 | N45: =SUM(Araria:WChamparan!N45) -> 0 | P45: =SUM(Araria:WChamparan!P45) -> 0 | Q45: =SUM(Araria:WChamparan!Q45) -> 0 | R45: =SUM(Araria:WChamparan!R45) -> 0 | S45: =SUM(Araria:WChamparan!S45) -> 0 | T45: =SUM(Araria:WChamparan!T45) -> 0 | U45: =SUM(Araria:WChamparan!U45) -> 0 | V45: =SUM(Araria:WChamparan!V45) -> 0 | W45: =SUM(Araria:WChamparan!W45) -> 0 | Y45: =SUM(Araria:WChamparan!Y45) -> 0 | Z45: =SUM(Araria:WChamparan!Z45) -> 0 | AA45: =SUM(Araria:WChamparan!AA45) -> 0 | AB45: =SUM(Araria:WChamparan!AB45) -> 0
B46: 100 children | C46: =SUM(Araria:WChamparan!C46) -> 0 | D46: =SUM(Araria:WChamparan!D46) -> 0 | E46: =SUM(Araria:WChamparan!E46) -> 0 | F46: =SUM(Araria:WChamparan!F46) -> 0 | I46: =SUM(Araria:WChamparan!I46) -> 0 | J46: =SUM(Araria:WChamparan!J46) -> 0 | K46: =SUM(Araria:WChamparan!K46) -> 0 | L46: =SUM(Araria:WChamparan!L46) -> 0 | M46: =SUM(Araria:WChamparan!M46) -> 0 | N46: =SUM(Araria:WChamparan!N46) -> 0 | P46: =SUM(Araria:WChamparan!P46) -> 0 | Q46: =SUM(Araria:WChamparan!Q46) -> 0 | R46: =SUM(Araria:WChamparan!R46) -> 0 | S46: =SUM(Araria:WChamparan!S46) -> 0 | T46: =SUM(Araria:WChamparan!T46) -> 0 | U46: =SUM(Araria:WChamparan!U46) -> 0 | V46: =SUM(Araria:WChamparan!V46) -> 0 | W46: =SUM(Araria:WChamparan!W46) -> 0 | Y46: =SUM(Araria:WChamparan!Y46) -> 0 | Z46: =SUM(Araria:WChamparan!Z46) -> 0 | AA46: =SUM(Araria:WChamparan!AA46) -> 0 | AB46: =SUM(Araria:WChamparan!AB46) -> 0
B47: Non-recurring (one time grant) | C47: =SUM(Araria:WChamparan!C47) -> 0 | D47: =SUM(Araria:WChamparan!D47) -> 0 | E47: =SUM(Araria:WChamparan!E47) -> 0 | F47: =SUM(Araria:WChamparan!F47) -> 0 | I47: =SUM(Araria:WChamparan!I47) -> 0 | J47: =SUM(Araria:WChamparan!J47) -> 0 | K47: =SUM(Araria:WChamparan!K47) -> 0 | L47: =SUM(Araria:WChamparan!L47) -> 0 | M47: =SUM(Araria:WChamparan!M47) -> 0 | N47: =SUM(Araria:WChamparan!N47) -> 0 | P47: =SUM(Araria:WChamparan!P47) -> 0 | Q47: =SUM(Araria:WChamparan!Q47) -> 0 | R47: =SUM(Araria:WChamparan!R47) -> 0 | S47: =SUM(Araria:WChamparan!S47) -> 0 | T47: =SUM(Araria:WChamparan!T47) -> 0 | U47: =SUM(Araria:WChamparan!U47) -> 0 | V47: =SUM(Araria:WChamparan!V47) -> 0 | W47: =SUM(Araria:WChamparan!W47) -> 0 | Y47: =SUM(Araria:WChamparan!Y47) -> 0 | Z47: =SUM(Araria:WChamparan!Z47) -> 0 | AA47: =SUM(Araria:WChamparan!AA47) -> 0 | AB47: =SUM(Araria:WChamparan!AB47) -> 0
A48: 2.19 | B48: Furniture / Equipment (including kitchen equipment) | C48: =SUM(Araria:WChamparan!C48) -> 0 | D48: =SUM(Araria:WChamparan!D48) -> 0 | E48: =SUM(Araria:WChamparan!E48) -> 0 | F48: =SUM(Araria:WChamparan!F48) -> 0 | I48: =SUM(Araria:WChamparan!I48) -> 0 | J48: =SUM(Araria:WChamparan!J48) -> 0 | K48: =SUM(Araria:WChamparan!K48) -> 0 | L48: =SUM(Araria:WChamparan!L48) -> 0 | M48: =SUM(Araria:WChamparan!M48) -> 0 | N48: =SUM(Araria:WChamparan!N48) -> 0 | O48: 3 | P48: =SUM(Araria:WChamparan!P48) -> 0 | Q48: =SUM(Araria:WChamparan!Q48) -> 0 | R48: =SUM(Araria:WChamparan!R48) -> 0 | S48: =SUM(Araria:WChamparan!S48) -> 0 | T48: =SUM(Araria:WChamparan!T48) -> 0 | U48: =SUM(Araria:WChamparan!U48) -> 0 | V48: =SUM(Araria:WChamparan!V48) -> 0 | W48: =SUM(Araria:WChamparan!W48) -> 0 | Y48: =SUM(Araria:WChamparan!Y48) -> 0 | Z48: =SUM(Araria:WChamparan!Z48) -> 0 | AA48: =SUM(Araria:WChamparan!AA48) -> 0 | AB48: =SUM(Araria:WChamparan!AB48) -> 0
A49: =+A48+0.01 -> 2.2 | B49: TLM and equipment including library books (New) | C49: =SUM(Araria:WChamparan!C49) -> 0 | D49: =SUM(Araria:WChamparan!D49) -> 0 | E49: =SUM(Araria:WChamparan!E49) -> 0 | F49: =SUM(Araria:WChamparan!F49) -> 0 | I49: =SUM(Araria:WChamparan!I49) -> 0 | J49: =SUM(Araria:WChamparan!J49) -> 0 | K49: =SUM(Araria:WChamparan!K49) -> 0 | L49: =SUM(Araria:WChamparan!L49) -> 0 | M49: =SUM(Araria:WChamparan!M49) -> 0 | N49: =SUM(Araria:WChamparan!N49) -> 0 | O49: 3.5 | P49: =SUM(Araria:WChamparan!P49) -> 0 | Q49: =SUM(Araria:WChamparan!Q49) -> 0 | R49: =SUM(Araria:WChamparan!R49) -> 0 | S49: =SUM(Araria:WChamparan!S49) -> 0 | T49: =SUM(Araria:WChamparan!T49) -> 0 | U49: =SUM(Araria:WChamparan!U49) -> 0 | V49: =SUM(Araria:WChamparan!V49) -> 0 | W49: =SUM(Araria:WChamparan!W49) -> 0 | Y49: =SUM(Araria:WChamparan!Y49) -> 0 | Z49: =SUM(Araria:WChamparan!Z49) -> 0 | AA49: =SUM(Araria:WChamparan!AA49) -> 0 | AB49: =SUM(Araria:WChamparan!AB49) -> 0
A50: =+A49+0.01 -> 2.21 | B50: Bedding (New) | C50: =SUM(Araria:WChamparan!C50) -> 0 | D50: =SUM(Araria:WChamparan!D50) -> 0 | E50: =SUM(Araria:WChamparan!E50) -> 0 | F50: =SUM(Araria:WChamparan!F50) -> 0 | I50: =SUM(Araria:WChamparan!I50) -> 0 | J50: =SUM(Araria:WChamparan!J50) -> 0 | K50: =SUM(Araria:WChamparan!K50) -> 0 | L50: =SUM(Araria:WChamparan!L50) -> 0 | M50: =SUM(Araria:WChamparan!M50) -> 0 | N50: =SUM(Araria:WChamparan!N50) -> 0 | O50: 0.75 | P50: =SUM(Araria:WChamparan!P50) -> 0 | Q50: =SUM(Araria:WChamparan!Q50) -> 0 | R50: =SUM(Araria:WChamparan!R50) -> 0 | S50: =SUM(Araria:WChamparan!S50) -> 0 | T50: =SUM(Araria:WChamparan!T50) -> 0 | U50: =SUM(Araria:WChamparan!U50) -> 0 | V50: =SUM(Araria:WChamparan!V50) -> 0 | W50: =SUM(Araria:WChamparan!W50) -> 0 | Y50: =SUM(Araria:WChamparan!Y50) -> 0 | Z50: =SUM(Araria:WChamparan!Z50) -> 0 | AA50: =SUM(Araria:WChamparan!AA50) -> 0 | AB50: =SUM(Araria:WChamparan!AB50) -> 0
A51: =+A50+0.01 -> 2.22 | B51: Replacement of bedding (once in 3 years) | C51: =SUM(Araria:WChamparan!C51) -> 0 | D51: =SUM(Araria:WChamparan!D51) -> 0 | E51: =SUM(Araria:WChamparan!E51) -> 0 | F51: =SUM(Araria:WChamparan!F51) -> 0 | I51: =SUM(Araria:WChamparan!I51) -> 0 | J51: =SUM(Araria:WChamparan!J51) -> 0 | K51: =SUM(Araria:WChamparan!K51) -> 0 | L51: =SUM(Araria:WChamparan!L51) -> 0 | M51: =SUM(Araria:WChamparan!M51) -> 0 | N51: =SUM(Araria:WChamparan!N51) -> 0 | P51: =SUM(Araria:WChamparan!P51) -> 0 | Q51: =SUM(Araria:WChamparan!Q51) -> 0 | R51: =SUM(Araria:WChamparan!R51) -> 0 | S51: =SUM(Araria:WChamparan!S51) -> 0 | T51: =SUM(Araria:WChamparan!T51) -> 0 | U51: =SUM(Araria:WChamparan!U51) -> 0 | V51: =SUM(Araria:WChamparan!V51) -> 0 | W51: =SUM(Araria:WChamparan!W51) -> 0 | Y51: =SUM(Araria:WChamparan!Y51) -> 0 | Z51: =SUM(Araria:WChamparan!Z51) -> 0 | AA51: =SUM(Araria:WChamparan!AA51) -> 0 | AB51: =SUM(Araria:WChamparan!AB51) -> 0
B52: Sub Total Non-recurring | C52: =SUM(Araria:WChamparan!C52) -> 0 | D52: =SUM(Araria:WChamparan!D52) -> 0 | E52: =SUM(Araria:WChamparan!E52) -> 0 | F52: =SUM(Araria:WChamparan!F52) -> 0 | I52: =SUM(Araria:WChamparan!I52) -> 0 | J52: =SUM(Araria:WChamparan!J52) -> 0 | K52: =SUM(Araria:WChamparan!K52) -> 0 | L52: =SUM(Araria:WChamparan!L52) -> 0 | M52: =SUM(Araria:WChamparan!M52) -> 0 | N52: =SUM(Araria:WChamparan!N52) -> 0 | P52: =SUM(Araria:WChamparan!P52) -> 0 | Q52: =SUM(Araria:WChamparan!Q52) -> 0 | R52: =SUM(Araria:WChamparan!R52) -> 0 | S52: =SUM(Araria:WChamparan!S52) -> 0 | T52: =SUM(Araria:WChamparan!T52) -> 0 | U52: =SUM(Araria:WChamparan!U52) -> 0 | V52: =SUM(Araria:WChamparan!V52) -> 0 | W52: =SUM(Araria:WChamparan!W52) -> 0 | Y52: =SUM(Araria:WChamparan!Y52) -> 0 | Z52: =SUM(Araria:WChamparan!Z52) -> 0 | AA52: =SUM(Araria:WChamparan!AA52) -> 0 | AB52: =SUM(Araria:WChamparan!AB52) -> 0
B53: Recurring | C53: =SUM(Araria:WChamparan!C53) -> 0 | D53: =SUM(Araria:WChamparan!D53) -> 0 | E53: =SUM(Araria:WChamparan!E53) -> 0 | F53: =SUM(Araria:WChamparan!F53) -> 0 | I53: =SUM(Araria:WChamparan!I53) -> 0 | J53: =SUM(Araria:WChamparan!J53) -> 0 | K53: =SUM(Araria:WChamparan!K53) -> 0 | L53: =SUM(Araria:WChamparan!L53) -> 0 | M53: =SUM(Araria:WChamparan!M53) -> 0 | N53: =SUM(Araria:WChamparan!N53) -> 0 | P53: =SUM(Araria:WChamparan!P53) -> 0 | Q53: =SUM(Araria:WChamparan!Q53) -> 0 | R53: =SUM(Araria:WChamparan!R53) -> 0 | S53: =SUM(Araria:WChamparan!S53) -> 0 | T53: =SUM(Araria:WChamparan!T53) -> 0 | U53: =SUM(Araria:WChamparan!U53) -> 0 | V53: =SUM(Araria:WChamparan!V53) -> 0 | W53: =SUM(Araria:WChamparan!W53) -> 0 | Y53: =SUM(Araria:WChamparan!Y53) -> 0 | Z53: =SUM(Araria:WChamparan!Z53) -> 0 | AA53: =SUM(Araria:WChamparan!AA53) -> 0 | AB53: =SUM(Araria:WChamparan!AB53) -> 0
A54: 2.23 | B54: Maintenance @ Rs. 1,500/- per child per month | C54: =SUM(Araria:WChamparan!C54) -> 0 | D54: =SUM(Araria:WChamparan!D54) -> 0 | E54: =SUM(Araria:WChamparan!E54) -> 0 | F54: =SUM(Araria:WChamparan!F54) -> 0 | I54: =SUM(Araria:WChamparan!I54) -> 0 | J54: =SUM(Araria:WChamparan!J54) -> 0 | K54: =SUM(Araria:WChamparan!K54) -> 0 | L54: =SUM(Araria:WChamparan!L54) -> 0 | M54: =SUM(Araria:WChamparan!M54) -> 0 | N54: =SUM(Araria:WChamparan!N54) -> 0 | P54: =SUM(Araria:WChamparan!P54) -> 0 | Q54: =SUM(Araria:WChamparan!Q54) -> 0 | R54: =SUM(Araria:WChamparan!R54) -> 0 | S54: =SUM(Araria:WChamparan!S54) -> 0 | T54: =SUM(Araria:WChamparan!T54) -> 0 | U54: =SUM(Araria:WChamparan!U54) -> 0 | V54: =SUM(Araria:WChamparan!V54) -> 0 | W54: =SUM(Araria:WChamparan!W54) -> 0 | Y54: =SUM(Araria:WChamparan!Y54) -> 0 | Z54: =SUM(Araria:WChamparan!Z54) -> 0 | AA54: =SUM(Araria:WChamparan!AA54) -> 0 | AB54: =SUM(Araria:WChamparan!AB54) -> 0
A55: =+A54+0.01 -> 2.24 | B55: Stipend @ Rs.100/- per child per month | C55: =SUM(Araria:WChamparan!C55) -> 0 | D55: =SUM(Araria:WChamparan!D55) -> 0 | E55: =SUM(Araria:WChamparan!E55) -> 0 | F55: =SUM(Araria:WChamparan!F55) -> 0 | I55: =SUM(Araria:WChamparan!I55) -> 0 | J55: =SUM(Araria:WChamparan!J55) -> 0 | K55: =SUM(Araria:WChamparan!K55) -> 0 | L55: =SUM(Araria:WChamparan!L55) -> 0 | M55: =SUM(Araria:WChamparan!M55) -> 0 | N55: =SUM(Araria:WChamparan!N55) -> 0 | P55: =SUM(Araria:WChamparan!P55) -> 0 | Q55: =SUM(Araria:WChamparan!Q55) -> 0 | R55: =SUM(Araria:WChamparan!R55) -> 0 | S55: =SUM(Araria:WChamparan!S55) -> 0 | T55: =SUM(Araria:WChamparan!T55) -> 0 | U55: =SUM(Araria:WChamparan!U55) -> 0 | V55: =SUM(Araria:WChamparan!V55) -> 0 | W55: =SUM(Araria:WChamparan!W55) -> 0 | Y55: =SUM(Araria:WChamparan!Y55) -> 0 | Z55: =SUM(Araria:WChamparan!Z55) -> 0 | AA55: =SUM(Araria:WChamparan!AA55) -> 0 | AB55: =SUM(Araria:WChamparan!AB55) -> 0
A56: 2.25 | B56: Supplementary TLM, Stationery and other educational material @1,000/- per child per annum | C56: =SUM(Araria:WChamparan!C56) -> 0 | D56: =SUM(Araria:WChamparan!D56) -> 0 | E56: =SUM(Araria:WChamparan!E56) -> 0 | F56: =SUM(Araria:WChamparan!F56) -> 0 | I56: =SUM(Araria:WChamparan!I56) -> 0 | J56: =SUM(Araria:WChamparan!J56) -> 0 | K56: =SUM(Araria:WChamparan!K56) -> 0 | L56: =SUM(Araria:WChamparan!L56) -> 0 | M56: =SUM(Araria:WChamparan!M56) -> 0 | N56: =SUM(Araria:WChamparan!N56) -> 0 | P56: =SUM(Araria:WChamparan!P56) -> 0 | Q56: =SUM(Araria:WChamparan!Q56) -> 0 | R56: =SUM(Araria:WChamparan!R56) -> 0 | S56: =SUM(Araria:WChamparan!S56) -> 0 | T56: =SUM(Araria:WChamparan!T56) -> 0 | U56: =SUM(Araria:WChamparan!U56) -> 0 | V56: =SUM(Araria:WChamparan!V56) -> 0 | W56: =SUM(Araria:WChamparan!W56) -> 0 | Y56: =SUM(Araria:WChamparan!Y56) -> 0 | Z56: =SUM(Araria:WChamparan!Z56) -> 0 | AA56: =SUM(Araria:WChamparan!AA56) -> 0 | AB56: =SUM(Araria:WChamparan!AB56) -> 0
A57: 2.26 | B57: Salaries | C57: =SUM(Araria:WChamparan!C57) -> 0 | D57: =SUM(Araria:WChamparan!D57) -> 0 | E57: =SUM(Araria:WChamparan!E57) -> 0 | F57: =SUM(Araria:WChamparan!F57) -> 0 | I57: =SUM(Araria:WChamparan!I57) -> 0 | J57: =SUM(Araria:WChamparan!J57) -> 0 | K57: =SUM(Araria:WChamparan!K57) -> 0 | L57: =SUM(Araria:WChamparan!L57) -> 0 | M57: =SUM(Araria:WChamparan!M57) -> 0 | N57: =SUM(Araria:WChamparan!N57) -> 0 | P57: =SUM(Araria:WChamparan!P57) -> 0 | Q57: =SUM(Araria:WChamparan!Q57) -> 0 | R57: =SUM(Araria:WChamparan!R57) -> 0 | S57: =SUM(Araria:WChamparan!S57) -> 0 | T57: =SUM(Araria:WChamparan!T57) -> 0 | U57: =SUM(Araria:WChamparan!U57) -> 0 | V57: =SUM(Araria:WChamparan!V57) -> 0 | W57: =SUM(Araria:WChamparan!W57) -> 0 | Y57: =SUM(Araria:WChamparan!Y57) -> 0 | Z57: =SUM(Araria:WChamparan!Z57) -> 0 | AA57: =SUM(Araria:WChamparan!AA57) -> 0 | AB57: =SUM(Araria:WChamparan!AB57) -> 0
A58: (a) | B58: 1 Warden @ Rs. 25,000/- per month | C58: =SUM(Araria:WChamparan!C58) -> 0 | D58: =SUM(Araria:WChamparan!D58) -> 0 | E58: =SUM(Araria:WChamparan!E58) -> 0 | F58: =SUM(Araria:WChamparan!F58) -> 0 | I58: =SUM(Araria:WChamparan!I58) -> 0 | J58: =SUM(Araria:WChamparan!J58) -> 0 | K58: =SUM(Araria:WChamparan!K58) -> 0 | L58: =SUM(Araria:WChamparan!L58) -> 0 | M58: =SUM(Araria:WChamparan!M58) -> 0 | N58: =SUM(Araria:WChamparan!N58) -> 0 | O58: 3 | P58: =SUM(Araria:WChamparan!P58) -> 0 | Q58: =SUM(Araria:WChamparan!Q58) -> 0 | R58: =SUM(Araria:WChamparan!R58) -> 0 | S58: =SUM(Araria:WChamparan!S58) -> 0 | T58: =SUM(Araria:WChamparan!T58) -> 0 | U58: =SUM(Araria:WChamparan!U58) -> 0 | V58: =SUM(Araria:WChamparan!V58) -> 0 | W58: =SUM(Araria:WChamparan!W58) -> 0 | Y58: =SUM(Araria:WChamparan!Y58) -> 0 | Z58: =SUM(Araria:WChamparan!Z58) -> 0 | AA58: =SUM(Araria:WChamparan!AA58) -> 0 | AB58: =SUM(Araria:WChamparan!AB58) -> 0
A59: (b) | B59: 1 head teacher @ Rs. 25,000/- per month in case the enrollment exceeds 100 | C59: =SUM(Araria:WChamparan!C59) -> 0 | D59: =SUM(Araria:WChamparan!D59) -> 0 | E59: =SUM(Araria:WChamparan!E59) -> 0 | F59: =SUM(Araria:WChamparan!F59) -> 0 | I59: =SUM(Araria:WChamparan!I59) -> 0 | J59: =SUM(Araria:WChamparan!J59) -> 0 | K59: =SUM(Araria:WChamparan!K59) -> 0 | L59: =SUM(Araria:WChamparan!L59) -> 0 | M59: =SUM(Araria:WChamparan!M59) -> 0 | N59: =SUM(Araria:WChamparan!N59) -> 0 | O59: 3 | P59: =SUM(Araria:WChamparan!P59) -> 0 | Q59: =SUM(Araria:WChamparan!Q59) -> 0 | R59: =SUM(Araria:WChamparan!R59) -> 0 | S59: =SUM(Araria:WChamparan!S59) -> 0 | T59: =SUM(Araria:WChamparan!T59) -> 0 | U59: =SUM(Araria:WChamparan!U59) -> 0 | V59: =SUM(Araria:WChamparan!V59) -> 0 | W59: =SUM(Araria:WChamparan!W59) -> 0 | Y59: =SUM(Araria:WChamparan!Y59) -> 0 | Z59: =SUM(Araria:WChamparan!Z59) -> 0 | AA59: =SUM(Araria:WChamparan!AA59) -> 0 | AB59: =SUM(Araria:WChamparan!AB59) -> 0
A60: (c) | B60: 4 - 5 Full time teachers as per RTE norms @ Rs. 20,000/- per month per teacher | C60: =SUM(Araria:WChamparan!C60) -> 0 | D60: =SUM(Araria:WChamparan!D60) -> 0 | E60: =SUM(Araria:WChamparan!E60) -> 0 | F60: =SUM(Araria:WChamparan!F60) -> 0 | I60: =SUM(Araria:WChamparan!I60) -> 0 | J60: =SUM(Araria:WChamparan!J60) -> 0 | K60: =SUM(Araria:WChamparan!K60) -> 0 | L60: =SUM(Araria:WChamparan!L60) -> 0 | M60: =SUM(Araria:WChamparan!M60) -> 0 | N60: =SUM(Araria:WChamparan!N60) -> 0 | O60: 9.6 | P60: =SUM(Araria:WChamparan!P60) -> 0 | Q60: =SUM(Araria:WChamparan!Q60) -> 0 | R60: =SUM(Araria:WChamparan!R60) -> 0 | S60: =SUM(Araria:WChamparan!S60) -> 0 | T60: =SUM(Araria:WChamparan!T60) -> 0 | U60: =SUM(Araria:WChamparan!U60) -> 0 | V60: =SUM(Araria:WChamparan!V60) -> 0 | W60: =SUM(Araria:WChamparan!W60) -> 0 | Y60: =SUM(Araria:WChamparan!Y60) -> 0 | Z60: =SUM(Araria:WChamparan!Z60) -> 0 | AA60: =SUM(Araria:WChamparan!AA60) -> 0 | AB60: =SUM(Araria:WChamparan!AB60) -> 0
A61: (d) | B61: 2 Urdu Teachers (only for blocks with muslim population above 20% and select urban areas), if required @ Rs. 12,000/- per month per teacher | C61: =SUM(Araria:WChamparan!C61) -> 0 | D61: =SUM(Araria:WChamparan!D61) -> 0 | E61: =SUM(Araria:WChamparan!E61) -> 0 | F61: =SUM(Araria:WChamparan!F61) -> 0 | I61: =SUM(Araria:WChamparan!I61) -> 0 | J61: =SUM(Araria:WChamparan!J61) -> 0 | K61: =SUM(Araria:WChamparan!K61) -> 0 | L61: =SUM(Araria:WChamparan!L61) -> 0 | M61: =SUM(Araria:WChamparan!M61) -> 0 | N61: =SUM(Araria:WChamparan!N61) -> 0 | O61: 2.88 | P61: =SUM(Araria:WChamparan!P61) -> 0 | Q61: =SUM(Araria:WChamparan!Q61) -> 0 | R61: =SUM(Araria:WChamparan!R61) -> 0 | S61: =SUM(Araria:WChamparan!S61) -> 0 | T61: =SUM(Araria:WChamparan!T61) -> 0 | U61: =SUM(Araria:WChamparan!U61) -> 0 | V61: =SUM(Araria:WChamparan!V61) -> 0 | W61: =SUM(Araria:WChamparan!W61) -> 0 | Y61: =SUM(Araria:WChamparan!Y61) -> 0 | Z61: =SUM(Araria:WChamparan!Z61) -> 0 | AA61: =SUM(Araria:WChamparan!AA61) -> 0 | AB61: =SUM(Araria:WChamparan!AB61) -> 0
A62: (e) | B62: 3 part time teachers @ Rs. 5,000/- per month per teacher | C62: =SUM(Araria:WChamparan!C62) -> 0 | D62: =SUM(Araria:WChamparan!D62) -> 0 | E62: =SUM(Araria:WChamparan!E62) -> 0 | F62: =SUM(Araria:WChamparan!F62) -> 0 | I62: =SUM(Araria:WChamparan!I62) -> 0 | J62: =SUM(Araria:WChamparan!J62) -> 0 | K62: =SUM(Araria:WChamparan!K62) -> 0 | L62: =SUM(Araria:WChamparan!L62) -> 0 | M62: =SUM(Araria:WChamparan!M62) -> 0 | N62: =SUM(Araria:WChamparan!N62) -> 0 | O62: 1.5 | P62: =SUM(Araria:WChamparan!P62) -> 0 | Q62: =SUM(Araria:WChamparan!Q62) -> 0 | R62: =SUM(Araria:WChamparan!R62) -> 0 | S62: =SUM(Araria:WChamparan!S62) -> 0 | T62: =SUM(Araria:WChamparan!T62) -> 0 | U62: =SUM(Araria:WChamparan!U62) -> 0 | V62: =SUM(Araria:WChamparan!V62) -> 0 | W62: =SUM(Araria:WChamparan!W62) -> 0 | Y62: =SUM(Araria:WChamparan!Y62) -> 0 | Z62: =SUM(Araria:WChamparan!Z62) -> 0 | AA62: =SUM(Araria:WChamparan!AA62) -> 0 | AB62: =SUM(Araria:WChamparan!AB62) -> 0
A63: (f) | B63: 1 Full time Accountant @ Rs. 10,000/- per month | C63: =SUM(Araria:WChamparan!C63) -> 0 | D63: =SUM(Araria:WChamparan!D63) -> 0 | E63: =SUM(Araria:WChamparan!E63) -> 0 | F63: =SUM(Araria:WChamparan!F63) -> 0 | I63: =SUM(Araria:WChamparan!I63) -> 0 | J63: =SUM(Araria:WChamparan!J63) -> 0 | K63: =SUM(Araria:WChamparan!K63) -> 0 | L63: =SUM(Araria:WChamparan!L63) -> 0 | M63: =SUM(Araria:WChamparan!M63) -> 0 | N63: =SUM(Araria:WChamparan!N63) -> 0 | O63: 1.2 | P63: =SUM(Araria:WChamparan!P63) -> 0 | Q63: =SUM(Araria:WChamparan!Q63) -> 0 | R63: =SUM(Araria:WChamparan!R63) -> 0 | S63: =SUM(Araria:WChamparan!S63) -> 0 | T63: =SUM(Araria:WChamparan!T63) -> 0 | U63: =SUM(Araria:WChamparan!U63) -> 0 | V63: =SUM(Araria:WChamparan!V63) -> 0 | W63: =SUM(Araria:WChamparan!W63) -> 0 | Y63: =SUM(Araria:WChamparan!Y63) -> 0 | Z63: =SUM(Araria:WChamparan!Z63) -> 0 | AA63: =SUM(Araria:WChamparan!AA63) -> 0 | AB63: =SUM(Araria:WChamparan!AB63) -> 0
A64: (g) | B64: 2 Support Staff – (Accountant/ Assistant, Peon, Chowkidar) @ Rs. 5,000/- per month per staff | C64: =SUM(Araria:WChamparan!C64) -> 0 | D64: =SUM(Araria:WChamparan!D64) -> 0 | E64: =SUM(Araria:WChamparan!E64) -> 0 | F64: =SUM(Araria:WChamparan!F64) -> 0 | I64: =SUM(Araria:WChamparan!I64) -> 0 | J64: =SUM(Araria:WChamparan!J64) -> 0 | K64: =SUM(Araria:WChamparan!K64) -> 0 | L64: =SUM(Araria:WChamparan!L64) -> 0 | M64: =SUM(Araria:WChamparan!M64) -> 0 | N64: =SUM(Araria:WChamparan!N64) -> 0 | O64: 1.2 | P64: =SUM(Araria:WChamparan!P64) -> 0 | Q64: =SUM(Araria:WChamparan!Q64) -> 0 | R64: =SUM(Araria:WChamparan!R64) -> 0 | S64: =SUM(Araria:WChamparan!S64) -> 0 | T64: =SUM(Araria:WChamparan!T64) -> 0 | U64: =SUM(Araria:WChamparan!U64) -> 0 | V64: =SUM(Araria:WChamparan!V64) -> 0 | W64: =SUM(Araria:WChamparan!W64) -> 0 | Y64: =SUM(Araria:WChamparan!Y64) -> 0 | Z64: =SUM(Araria:WChamparan!Z64) -> 0 | AA64: =SUM(Araria:WChamparan!AA64) -> 0 | AB64: =SUM(Araria:WChamparan!AB64) -> 0
A65: (h) | B65: 1 Head cook @ Rs. 6,000/- per month and upto 2 Asstt. Cooks @ Rs. 4,500/- per month per cook | C65: =SUM(Araria:WChamparan!C65) -> 0 | D65: =SUM(Araria:WChamparan!D65) -> 0 | E65: =SUM(Araria:WChamparan!E65) -> 0 | F65: =SUM(Araria:WChamparan!F65) -> 0 | I65: =SUM(Araria:WChamparan!I65) -> 0 | J65: =SUM(Araria:WChamparan!J65) -> 0 | K65: =SUM(Araria:WChamparan!K65) -> 0 | L65: =SUM(Araria:WChamparan!L65) -> 0 | M65: =SUM(Araria:WChamparan!M65) -> 0 | N65: =SUM(Araria:WChamparan!N65) -> 0 | O65: 1.8 | P65: =SUM(Araria:WChamparan!P65) -> 0 | Q65: =SUM(Araria:WChamparan!Q65) -> 0 | R65: =SUM(Araria:WChamparan!R65) -> 0 | S65: =SUM(Araria:WChamparan!S65) -> 0 | T65: =SUM(Araria:WChamparan!T65) -> 0 | U65: =SUM(Araria:WChamparan!U65) -> 0 | V65: =SUM(Araria:WChamparan!V65) -> 0 | W65: =SUM(Araria:WChamparan!W65) -> 0 | Y65: =SUM(Araria:WChamparan!Y65) -> 0 | Z65: =SUM(Araria:WChamparan!Z65) -> 0 | AA65: =SUM(Araria:WChamparan!AA65) -> 0 | AB65: =SUM(Araria:WChamparan!AB65) -> 0
A66: 2.27 | B66: Specific skill training @ Rs. 1,000/- per child per annum | C66: =SUM(Araria:WChamparan!C66) -> 0 | D66: =SUM(Araria:WChamparan!D66) -> 0 | E66: =SUM(Araria:WChamparan!E66) -> 0 | F66: =SUM(Araria:WChamparan!F66) -> 0 | I66: =SUM(Araria:WChamparan!I66) -> 0 | J66: =SUM(Araria:WChamparan!J66) -> 0 | K66: =SUM(Araria:WChamparan!K66) -> 0 | L66: =SUM(Araria:WChamparan!L66) -> 0 | M66: =SUM(Araria:WChamparan!M66) -> 0 | N66: =SUM(Araria:WChamparan!N66) -> 0 | O66: 1 | P66: =SUM(Araria:WChamparan!P66) -> 0 | Q66: =SUM(Araria:WChamparan!Q66) -> 0 | R66: =SUM(Araria:WChamparan!R66) -> 0 | S66: =SUM(Araria:WChamparan!S66) -> 0 | T66: =SUM(Araria:WChamparan!T66) -> 0 | U66: =SUM(Araria:WChamparan!U66) -> 0 | V66: =SUM(Araria:WChamparan!V66) -> 0 | W66: =SUM(Araria:WChamparan!W66) -> 0 | Y66: =SUM(Araria:WChamparan!Y66) -> 0 | Z66: =SUM(Araria:WChamparan!Z66) -> 0 | AA66: =SUM(Araria:WChamparan!AA66) -> 0 | AB66: =SUM(Araria:WChamparan!AB66) -> 0
A67: 2.28 | B67: Electricity / water charges @Rs. 1,000/- per child per annum | C67: =SUM(Araria:WChamparan!C67) -> 0 | D67: =SUM(Araria:WChamparan!D67) -> 0 | E67: =SUM(Araria:WChamparan!E67) -> 0 | F67: =SUM(Araria:WChamparan!F67) -> 0 | I67: =SUM(Araria:WChamparan!I67) -> 0 | J67: =SUM(Araria:WChamparan!J67) -> 0 | K67: =SUM(Araria:WChamparan!K67) -> 0 | L67: =SUM(Araria:WChamparan!L67) -> 0 | M67: =SUM(Araria:WChamparan!M67) -> 0 | N67: =SUM(Araria:WChamparan!N67) -> 0 | O67: 1 | P67: =SUM(Araria:WChamparan!P67) -> 0 | Q67: =SUM(Araria:WChamparan!Q67) -> 0 | R67: =SUM(Araria:WChamparan!R67) -> 0 | S67: =SUM(Araria:WChamparan!S67) -> 0 | T67: =SUM(Araria:WChamparan!T67) -> 0 | U67: =SUM(Araria:WChamparan!U67) -> 0 | V67: =SUM(Araria:WChamparan!V67) -> 0 | W67: =SUM(Araria:WChamparan!W67) -> 0 | Y67: =SUM(Araria:WChamparan!Y67) -> 0 | Z67: =SUM(Araria:WChamparan!Z67) -> 0 | AA67: =SUM(Araria:WChamparan!AA67) -> 0 | AB67: =SUM(Araria:WChamparan!AB67) -> 0
A68: 2.29 | B68: Medical care/contingencies @ Rs. 1,250/- per child per annum | C68: =SUM(Araria:WChamparan!C68) -> 0 | D68: =SUM(Araria:WChamparan!D68) -> 0 | E68: =SUM(Araria:WChamparan!E68) -> 0 | F68: =SUM(Araria:WChamparan!F68) -> 0 | I68: =SUM(Araria:WChamparan!I68) -> 0 | J68: =SUM(Araria:WChamparan!J68) -> 0 | K68: =SUM(Araria:WChamparan!K68) -> 0 | L68: =SUM(Araria:WChamparan!L68) -> 0 | M68: =SUM(Araria:WChamparan!M68) -> 0 | N68: =SUM(Araria:WChamparan!N68) -> 0 | O68: 1.25 | P68: =SUM(Araria:WChamparan!P68) -> 0 | Q68: =SUM(Araria:WChamparan!Q68) -> 0 | R68: =SUM(Araria:WChamparan!R68) -> 0 | S68: =SUM(Araria:WChamparan!S68) -> 0 | T68: =SUM(Araria:WChamparan!T68) -> 0 | U68: =SUM(Araria:WChamparan!U68) -> 0 | V68: =SUM(Araria:WChamparan!V68) -> 0 | W68: =SUM(Araria:WChamparan!W68) -> 0 | Y68: =SUM(Araria:WChamparan!Y68) -> 0 | Z68: =SUM(Araria:WChamparan!Z68) -> 0 | AA68: =SUM(Araria:WChamparan!AA68) -> 0 | AB68: =SUM(Araria:WChamparan!AB68) -> 0
A69: 2.3 | B69: Maintenance @ Rs. 750/- per child per annum | C69: =SUM(Araria:WChamparan!C69) -> 0 | D69: =SUM(Araria:WChamparan!D69) -> 0 | E69: =SUM(Araria:WChamparan!E69) -> 0 | F69: =SUM(Araria:WChamparan!F69) -> 0 | I69: =SUM(Araria:WChamparan!I69) -> 0 | J69: =SUM(Araria:WChamparan!J69) -> 0 | K69: =SUM(Araria:WChamparan!K69) -> 0 | L69: =SUM(Araria:WChamparan!L69) -> 0 | M69: =SUM(Araria:WChamparan!M69) -> 0 | N69: =SUM(Araria:WChamparan!N69) -> 0 | O69: 0.75 | P69: =SUM(Araria:WChamparan!P69) -> 0 | Q69: =SUM(Araria:WChamparan!Q69) -> 0 | R69: =SUM(Araria:WChamparan!R69) -> 0 | S69: =SUM(Araria:WChamparan!S69) -> 0 | T69: =SUM(Araria:WChamparan!T69) -> 0 | U69: =SUM(Araria:WChamparan!U69) -> 0 | V69: =SUM(Araria:WChamparan!V69) -> 0 | W69: =SUM(Araria:WChamparan!W69) -> 0 | Y69: =SUM(Araria:WChamparan!Y69) -> 0 | Z69: =SUM(Araria:WChamparan!Z69) -> 0 | AA69: =SUM(Araria:WChamparan!AA69) -> 0 | AB69: =SUM(Araria:WChamparan!AB69) -> 0
A70: 2.31 | B70: Miscellaneous @ Rs. 750/- per child per annum | C70: =SUM(Araria:WChamparan!C70) -> 0 | D70: =SUM(Araria:WChamparan!D70) -> 0 | E70: =SUM(Araria:WChamparan!E70) -> 0 | F70: =SUM(Araria:WChamparan!F70) -> 0 | I70: =SUM(Araria:WChamparan!I70) -> 0 | J70: =SUM(Araria:WChamparan!J70) -> 0 | K70: =SUM(Araria:WChamparan!K70) -> 0 | L70: =SUM(Araria:WChamparan!L70) -> 0 | M70: =SUM(Araria:WChamparan!M70) -> 0 | N70: =SUM(Araria:WChamparan!N70) -> 0 | O70: 0.75 | P70: =SUM(Araria:WChamparan!P70) -> 0 | Q70: =SUM(Araria:WChamparan!Q70) -> 0 | R70: =SUM(Araria:WChamparan!R70) -> 0 | S70: =SUM(Araria:WChamparan!S70) -> 0 | T70: =SUM(Araria:WChamparan!T70) -> 0 | U70: =SUM(Araria:WChamparan!U70) -> 0 | V70: =SUM(Araria:WChamparan!V70) -> 0 | W70: =SUM(Araria:WChamparan!W70) -> 0 | Y70: =SUM(Araria:WChamparan!Y70) -> 0 | Z70: =SUM(Araria:WChamparan!Z70) -> 0 | AA70: =SUM(Araria:WChamparan!AA70) -> 0 | AB70: =SUM(Araria:WChamparan!AB70) -> 0
A71: 2.32 | B71: Preparatory camps @ Rs.200/- per child per annum | C71: =SUM(Araria:WChamparan!C71) -> 0 | D71: =SUM(Araria:WChamparan!D71) -> 0 | E71: =SUM(Araria:WChamparan!E71) -> 0 | F71: =SUM(Araria:WChamparan!F71) -> 0 | I71: =SUM(Araria:WChamparan!I71) -> 0 | J71: =SUM(Araria:WChamparan!J71) -> 0 | K71: =SUM(Araria:WChamparan!K71) -> 0 | L71: =SUM(Araria:WChamparan!L71) -> 0 | M71: =SUM(Araria:WChamparan!M71) -> 0 | N71: =SUM(Araria:WChamparan!N71) -> 0 | O71: 0.2 | P71: =SUM(Araria:WChamparan!P71) -> 0 | Q71: =SUM(Araria:WChamparan!Q71) -> 0 | R71: =SUM(Araria:WChamparan!R71) -> 0 | S71: =SUM(Araria:WChamparan!S71) -> 0 | T71: =SUM(Araria:WChamparan!T71) -> 0 | U71: =SUM(Araria:WChamparan!U71) -> 0 | V71: =SUM(Araria:WChamparan!V71) -> 0 | W71: =SUM(Araria:WChamparan!W71) -> 0 | Y71: =SUM(Araria:WChamparan!Y71) -> 0 | Z71: =SUM(Araria:WChamparan!Z71) -> 0 | AA71: =SUM(Araria:WChamparan!AA71) -> 0 | AB71: =SUM(Araria:WChamparan!AB71) -> 0
A72: 2.33 | B72: P.T.A / school functions @ Rs.200/- per child per annum | C72: =SUM(Araria:WChamparan!C72) -> 0 | D72: =SUM(Araria:WChamparan!D72) -> 0 | E72: =SUM(Araria:WChamparan!E72) -> 0 | F72: =SUM(Araria:WChamparan!F72) -> 0 | I72: =SUM(Araria:WChamparan!I72) -> 0 | J72: =SUM(Araria:WChamparan!J72) -> 0 | K72: =SUM(Araria:WChamparan!K72) -> 0 | L72: =SUM(Araria:WChamparan!L72) -> 0 | M72: =SUM(Araria:WChamparan!M72) -> 0 | N72: =SUM(Araria:WChamparan!N72) -> 0 | O72: 0.2 | P72: =SUM(Araria:WChamparan!P72) -> 0 | Q72: =SUM(Araria:WChamparan!Q72) -> 0 | R72: =SUM(Araria:WChamparan!R72) -> 0 | S72: =SUM(Araria:WChamparan!S72) -> 0 | T72: =SUM(Araria:WChamparan!T72) -> 0 | U72: =SUM(Araria:WChamparan!U72) -> 0 | V72: =SUM(Araria:WChamparan!V72) -> 0 | W72: =SUM(Araria:WChamparan!W72) -> 0 | Y72: =SUM(Araria:WChamparan!Y72) -> 0 | Z72: =SUM(Araria:WChamparan!Z72) -> 0 | AA72: =SUM(Araria:WChamparan!AA72) -> 0 | AB72: =SUM(Araria:WChamparan!AB72) -> 0
A73: 2.34 | B73: Provision of Rent @ Rs. 6,000/- per child per annum | C73: =SUM(Araria:WChamparan!C73) -> 0 | D73: =SUM(Araria:WChamparan!D73) -> 0 | E73: =SUM(Araria:WChamparan!E73) -> 0 | F73: =SUM(Araria:WChamparan!F73) -> 0 | I73: =SUM(Araria:WChamparan!I73) -> 0 | J73: =SUM(Araria:WChamparan!J73) -> 0 | K73: =SUM(Araria:WChamparan!K73) -> 0 | L73: =SUM(Araria:WChamparan!L73) -> 0 | M73: =SUM(Araria:WChamparan!M73) -> 0 | N73: =SUM(Araria:WChamparan!N73) -> 0 | P73: =SUM(Araria:WChamparan!P73) -> 0 | Q73: =SUM(Araria:WChamparan!Q73) -> 0 | R73: =SUM(Araria:WChamparan!R73) -> 0 | S73: =SUM(Araria:WChamparan!S73) -> 0 | T73: =SUM(Araria:WChamparan!T73) -> 0 | U73: =SUM(Araria:WChamparan!U73) -> 0 | V73: =SUM(Araria:WChamparan!V73) -> 0 | W73: =SUM(Araria:WChamparan!W73) -> 0 | Y73: =SUM(Araria:WChamparan!Y73) -> 0 | Z73: =SUM(Araria:WChamparan!Z73) -> 0 | AA73: =SUM(Araria:WChamparan!AA73) -> 0 | AB73: =SUM(Araria:WChamparan!AB73) -> 0
A74: 2.35 | B74: Capacity Building @ Rs. 500/- per child per annum | C74: =SUM(Araria:WChamparan!C74) -> 0 | D74: =SUM(Araria:WChamparan!D74) -> 0 | E74: =SUM(Araria:WChamparan!E74) -> 0 | F74: =SUM(Araria:WChamparan!F74) -> 0 | I74: =SUM(Araria:WChamparan!I74) -> 0 | J74: =SUM(Araria:WChamparan!J74) -> 0 | K74: =SUM(Araria:WChamparan!K74) -> 0 | L74: =SUM(Araria:WChamparan!L74) -> 0 | M74: =SUM(Araria:WChamparan!M74) -> 0 | N74: =SUM(Araria:WChamparan!N74) -> 0 | O74: 0.5 | P74: =SUM(Araria:WChamparan!P74) -> 0 | Q74: =SUM(Araria:WChamparan!Q74) -> 0 | R74: =SUM(Araria:WChamparan!R74) -> 0 | S74: =SUM(Araria:WChamparan!S74) -> 0 | T74: =SUM(Araria:WChamparan!T74) -> 0 | U74: =SUM(Araria:WChamparan!U74) -> 0 | V74: =SUM(Araria:WChamparan!V74) -> 0 | W74: =SUM(Araria:WChamparan!W74) -> 0 | Y74: =SUM(Araria:WChamparan!Y74) -> 0 | Z74: =SUM(Araria:WChamparan!Z74) -> 0 | AA74: =SUM(Araria:WChamparan!AA74) -> 0 | AB74: =SUM(Araria:WChamparan!AB74) -> 0
A75: 2.36 | B75: Physical / Self Defence training @ Rs. 200/- per child per annum. | C75: =SUM(Araria:WChamparan!C75) -> 0 | D75: =SUM(Araria:WChamparan!D75) -> 0 | E75: =SUM(Araria:WChamparan!E75) -> 0 | F75: =SUM(Araria:WChamparan!F75) -> 0 | I75: =SUM(Araria:WChamparan!I75) -> 0 | J75: =SUM(Araria:WChamparan!J75) -> 0 | K75: =SUM(Araria:WChamparan!K75) -> 0 | L75: =SUM(Araria:WChamparan!L75) -> 0 | M75: =SUM(Araria:WChamparan!M75) -> 0 | N75: =SUM(Araria:WChamparan!N75) -> 0 | O75: 0.2 | P75: =SUM(Araria:WChamparan!P75) -> 0 | Q75: =SUM(Araria:WChamparan!Q75) -> 0 | R75: =SUM(Araria:WChamparan!R75) -> 0 | S75: =SUM(Araria:WChamparan!S75) -> 0 | T75: =SUM(Araria:WChamparan!T75) -> 0 | U75: =SUM(Araria:WChamparan!U75) -> 0 | V75: =SUM(Araria:WChamparan!V75) -> 0 | W75: =SUM(Araria:WChamparan!W75) -> 0 | Y75: =SUM(Araria:WChamparan!Y75) -> 0 | Z75: =SUM(Araria:WChamparan!Z75) -> 0 | AA75: =SUM(Araria:WChamparan!AA75) -> 0 | AB75: =SUM(Araria:WChamparan!AB75) -> 0
B76: Sub Total (Recurring) | C76: =SUM(Araria:WChamparan!C76) -> 0 | D76: =SUM(Araria:WChamparan!D76) -> 0 | E76: =SUM(Araria:WChamparan!E76) -> 0 | F76: =SUM(Araria:WChamparan!F76) -> 0 | I76: =SUM(Araria:WChamparan!I76) -> 0 | J76: =SUM(Araria:WChamparan!J76) -> 0 | K76: =SUM(Araria:WChamparan!K76) -> 0 | L76: =SUM(Araria:WChamparan!L76) -> 0 | M76: =SUM(Araria:WChamparan!M76) -> 0 | N76: =SUM(Araria:WChamparan!N76) -> 0 | P76: =SUM(Araria:WChamparan!P76) -> 0 | Q76: =SUM(Araria:WChamparan!Q76) -> 0 | R76: =SUM(Araria:WChamparan!R76) -> 0 | S76: =SUM(Araria:WChamparan!S76) -> 0 | T76: =SUM(Araria:WChamparan!T76) -> 0 | U76: =SUM(Araria:WChamparan!U76) -> 0 | V76: =SUM(Araria:WChamparan!V76) -> 0 | W76: =SUM(Araria:WChamparan!W76) -> 0 | Y76: =SUM(Araria:WChamparan!Y76) -> 0 | Z76: =SUM(Araria:WChamparan!Z76) -> 0 | AA76: =SUM(Araria:WChamparan!AA76) -> 0 | AB76: =SUM(Araria:WChamparan!AB76) -> 0
B77: Total (Recurring + Non Recurring) | C77: =SUM(Araria:WChamparan!C77) -> 0 | D77: =SUM(Araria:WChamparan!D77) -> 0 | E77: =SUM(Araria:WChamparan!E77) -> 0 | F77: =SUM(Araria:WChamparan!F77) -> 0 | I77: =SUM(Araria:WChamparan!I77) -> 0 | J77: =SUM(Araria:WChamparan!J77) -> 0 | K77: =SUM(Araria:WChamparan!K77) -> 0 | L77: =SUM(Araria:WChamparan!L77) -> 0 | M77: =SUM(Araria:WChamparan!M77) -> 0 | N77: =SUM(Araria:WChamparan!N77) -> 0 | P77: =SUM(Araria:WChamparan!P77) -> 0 | Q77: =SUM(Araria:WChamparan!Q77) -> 0 | R77: =SUM(Araria:WChamparan!R77) -> 0 | S77: =SUM(Araria:WChamparan!S77) -> 0 | T77: =SUM(Araria:WChamparan!T77) -> 0 | U77: =SUM(Araria:WChamparan!U77) -> 0 | V77: =SUM(Araria:WChamparan!V77) -> 0 | W77: =SUM(Araria:WChamparan!W77) -> 0 | Y77: =SUM(Araria:WChamparan!Y77) -> 0 | Z77: =SUM(Araria:WChamparan!Z77) -> 0 | AA77: =SUM(Araria:WChamparan!AA77) -> 0 | AB77: =SUM(Araria:WChamparan!AB77) -> 0
B78: Total - (50 + 100 children) | C78: =SUM(Araria:WChamparan!C78) -> 0 | D78: =SUM(Araria:WChamparan!D78) -> 0 | E78: =SUM(Araria:WChamparan!E78) -> 0 | F78: =SUM(Araria:WChamparan!F78) -> 0 | G78: =IFERROR(E78/C78, ) -> 0 | H78: =IFERROR(F78/D78, ) -> 0 | I78: =SUM(Araria:WChamparan!I78) -> 0 | J78: =SUM(Araria:WChamparan!J78) -> 0 | K78: =SUM(Araria:WChamparan!K78) -> 0 | L78: =SUM(Araria:WChamparan!L78) -> 0 | M78: =SUM(Araria:WChamparan!M78) -> 0 | N78: =SUM(Araria:WChamparan!N78) -> 0 | O78: =O44+O21 -> 0 | P78: =SUM(Araria:WChamparan!P78) -> 0 | Q78: =SUM(Araria:WChamparan!Q78) -> 0 | R78: =SUM(Araria:WChamparan!R78) -> 0 | S78: =SUM(Araria:WChamparan!S78) -> 0 | T78: =SUM(Araria:WChamparan!T78) -> 0 | U78: =SUM(Araria:WChamparan!U78) -> 0 | V78: =SUM(Araria:WChamparan!V78) -> 0 | W78: =SUM(Araria:WChamparan!W78) -> 0 | X78: =X44+X21 -> 0 | Y78: =SUM(Araria:WChamparan!Y78) -> 0 | Z78: =SUM(Araria:WChamparan!Z78) -> 0 | AA78: =SUM(Araria:WChamparan!AA78) -> 0 | AB78: =SUM(Araria:WChamparan!AB78) -> 0
A79: 3 | B79: Residential Hostel for specific category of children | C79: =SUM(Araria:WChamparan!C79) -> 0 | D79: =SUM(Araria:WChamparan!D79) -> 0 | E79: =SUM(Araria:WChamparan!E79) -> 0 | F79: =SUM(Araria:WChamparan!F79) -> 0 | G79: =IFERROR(E79/C79, ) -> 0 | H79: =IFERROR(F79/D79, ) -> 0 | I79: =SUM(Araria:WChamparan!I79) -> 0 | J79: =SUM(Araria:WChamparan!J79) -> 0 | K79: =SUM(Araria:WChamparan!K79) -> 0 | L79: =SUM(Araria:WChamparan!L79) -> 0 | M79: =SUM(Araria:WChamparan!M79) -> 0 | N79: =SUM(Araria:WChamparan!N79) -> 0 | P79: =SUM(Araria:WChamparan!P79) -> 0 | Q79: =SUM(Araria:WChamparan!Q79) -> 0 | R79: =SUM(Araria:WChamparan!R79) -> 0 | S79: =SUM(Araria:WChamparan!S79) -> 0 | T79: =SUM(Araria:WChamparan!T79) -> 0 | U79: =SUM(Araria:WChamparan!U79) -> 0 | V79: =SUM(Araria:WChamparan!V79) -> 0 | W79: =SUM(Araria:WChamparan!W79) -> 0 | Y79: =SUM(Araria:WChamparan!Y79) -> 0 | Z79: =SUM(Araria:WChamparan!Z79) -> 0 | AA79: =SUM(Araria:WChamparan!AA79) -> 0 | AB79: =SUM(Araria:WChamparan!AB79) -> 0
A80: (A) | B80: 50 children | C80: =SUM(Araria:WChamparan!C80) -> 0 | D80: =SUM(Araria:WChamparan!D80) -> 0 | E80: =SUM(Araria:WChamparan!E80) -> 0 | F80: =SUM(Araria:WChamparan!F80) -> 0 | I80: =SUM(Araria:WChamparan!I80) -> 0 | J80: =SUM(Araria:WChamparan!J80) -> 0 | K80: =SUM(Araria:WChamparan!K80) -> 0 | L80: =SUM(Araria:WChamparan!L80) -> 0 | M80: =SUM(Araria:WChamparan!M80) -> 0 | N80: =SUM(Araria:WChamparan!N80) -> 0 | P80: =SUM(Araria:WChamparan!P80) -> 0 | Q80: =SUM(Araria:WChamparan!Q80) -> 0 | R80: =SUM(Araria:WChamparan!R80) -> 0 | S80: =SUM(Araria:WChamparan!S80) -> 0 | T80: =SUM(Araria:WChamparan!T80) -> 0 | U80: =SUM(Araria:WChamparan!U80) -> 0 | V80: =SUM(Araria:WChamparan!V80) -> 0 | W80: =SUM(Araria:WChamparan!W80) -> 0 | Y80: =SUM(Araria:WChamparan!Y80) -> 0 | Z80: =SUM(Araria:WChamparan!Z80) -> 0 | AA80: =SUM(Araria:WChamparan!AA80) -> 0 | AB80: =SUM(Araria:WChamparan!AB80) -> 0
B81: Non-recurring (one time grant) | C81: =SUM(Araria:WChamparan!C81) -> 0 | D81: =SUM(Araria:WChamparan!D81) -> 0 | E81: =SUM(Araria:WChamparan!E81) -> 0 | F81: =SUM(Araria:WChamparan!F81) -> 0 | G81: =IFERROR(E81/C81, ) -> 0 | H81: =IFERROR(F81/D81, ) -> 0 | I81: =SUM(Araria:WChamparan!I81) -> 0 | J81: =SUM(Araria:WChamparan!J81) -> 0 | K81: =SUM(Araria:WChamparan!K81) -> 0 | L81: =SUM(Araria:WChamparan!L81) -> 0 | M81: =SUM(Araria:WChamparan!M81) -> 0 | N81: =SUM(Araria:WChamparan!N81) -> 0 | P81: =SUM(Araria:WChamparan!P81) -> 0 | Q81: =SUM(Araria:WChamparan!Q81) -> 0 | R81: =SUM(Araria:WChamparan!R81) -> 0 | S81: =SUM(Araria:WChamparan!S81) -> 0 | T81: =SUM(Araria:WChamparan!T81) -> 0 | U81: =SUM(Araria:WChamparan!U81) -> 0 | V81: =SUM(Araria:WChamparan!V81) -> 0 | W81: =SUM(Araria:WChamparan!W81) -> 0 | Y81: =SUM(Araria:WChamparan!Y81) -> 0 | Z81: =SUM(Araria:WChamparan!Z81) -> 0 | AA81: =SUM(Araria:WChamparan!AA81) -> 0 | AB81: =SUM(Araria:WChamparan!AB81) -> 0
A82: 3.01 | B82: Furniture/ Equipment (including kitchen) | C82: =SUM(Araria:WChamparan!C82) -> 0 | D82: =SUM(Araria:WChamparan!D82) -> 0 | E82: =SUM(Araria:WChamparan!E82) -> 0 | F82: =SUM(Araria:WChamparan!F82) -> 0 | I82: =SUM(Araria:WChamparan!I82) -> 0 | J82: =SUM(Araria:WChamparan!J82) -> 0 | K82: =SUM(Araria:WChamparan!K82) -> 0 | L82: =SUM(Araria:WChamparan!L82) -> 0 | M82: =SUM(Araria:WChamparan!M82) -> 0 | N82: =SUM(Araria:WChamparan!N82) -> 0 | O82: 2 | P82: =SUM(Araria:WChamparan!P82) -> 0 | Q82: =SUM(Araria:WChamparan!Q82) -> 0 | R82: =SUM(Araria:WChamparan!R82) -> 0 | S82: =SUM(Araria:WChamparan!S82) -> 0 | T82: =SUM(Araria:WChamparan!T82) -> 0 | U82: =SUM(Araria:WChamparan!U82) -> 0 | V82: =SUM(Araria:WChamparan!V82) -> 0 | W82: =SUM(Araria:WChamparan!W82) -> 0 | Y82: =SUM(Araria:WChamparan!Y82) -> 0 | Z82: =SUM(Araria:WChamparan!Z82) -> 0 | AA82: =SUM(Araria:WChamparan!AA82) -> 0 | AB82: =SUM(Araria:WChamparan!AB82) -> 0
A83: =+A82+0.01 -> 3.02 | B83: TLM and equipment including library books | C83: =SUM(Araria:WChamparan!C83) -> 0 | D83: =SUM(Araria:WChamparan!D83) -> 0 | E83: =SUM(Araria:WChamparan!E83) -> 0 | F83: =SUM(Araria:WChamparan!F83) -> 0 | I83: =SUM(Araria:WChamparan!I83) -> 0 | J83: =SUM(Araria:WChamparan!J83) -> 0 | K83: =SUM(Araria:WChamparan!K83) -> 0 | L83: =SUM(Araria:WChamparan!L83) -> 0 | M83: =SUM(Araria:WChamparan!M83) -> 0 | N83: =SUM(Araria:WChamparan!N83) -> 0 | O83: 3 | P83: =SUM(Araria:WChamparan!P83) -> 0 | Q83: =SUM(Araria:WChamparan!Q83) -> 0 | R83: =SUM(Araria:WChamparan!R83) -> 0 | S83: =SUM(Araria:WChamparan!S83) -> 0 | T83: =SUM(Araria:WChamparan!T83) -> 0 | U83: =SUM(Araria:WChamparan!U83) -> 0 | V83: =SUM(Araria:WChamparan!V83) -> 0 | W83: =SUM(Araria:WChamparan!W83) -> 0 | Y83: =SUM(Araria:WChamparan!Y83) -> 0 | Z83: =SUM(Araria:WChamparan!Z83) -> 0 | AA83: =SUM(Araria:WChamparan!AA83) -> 0 | AB83: =SUM(Araria:WChamparan!AB83) -> 0
A84: =+A83+0.01 -> 3.03 | B84: Bedding (new) | C84: =SUM(Araria:WChamparan!C84) -> 0 | D84: =SUM(Araria:WChamparan!D84) -> 0 | E84: =SUM(Araria:WChamparan!E84) -> 0 | F84: =SUM(Araria:WChamparan!F84) -> 0 | I84: =SUM(Araria:WChamparan!I84) -> 0 | J84: =SUM(Araria:WChamparan!J84) -> 0 | K84: =SUM(Araria:WChamparan!K84) -> 0 | L84: =SUM(Araria:WChamparan!L84) -> 0 | M84: =SUM(Araria:WChamparan!M84) -> 0 | N84: =SUM(Araria:WChamparan!N84) -> 0 | O84: 0.375 | P84: =SUM(Araria:WChamparan!P84) -> 0 | Q84: =SUM(Araria:WChamparan!Q84) -> 0 | R84: =SUM(Araria:WChamparan!R84) -> 0 | S84: =SUM(Araria:WChamparan!S84) -> 0 | T84: =SUM(Araria:WChamparan!T84) -> 0 | U84: =SUM(Araria:WChamparan!U84) -> 0 | V84: =SUM(Araria:WChamparan!V84) -> 0 | W84: =SUM(Araria:WChamparan!W84) -> 0 | Y84: =SUM(Araria:WChamparan!Y84) -> 0 | Z84: =SUM(Araria:WChamparan!Z84) -> 0 | AA84: =SUM(Araria:WChamparan!AA84) -> 0 | AB84: =SUM(Araria:WChamparan!AB84) -> 0
A85: =+A84+0.01 -> 3.04 | B85: Replacement of bedding (once in 3 years) | C85: =SUM(Araria:WChamparan!C85) -> 0 | D85: =SUM(Araria:WChamparan!D85) -> 0 | E85: =SUM(Araria:WChamparan!E85) -> 0 | F85: =SUM(Araria:WChamparan!F85) -> 0 | I85: =SUM(Araria:WChamparan!I85) -> 0 | J85: =SUM(Araria:WChamparan!J85) -> 0 | K85: =SUM(Araria:WChamparan!K85) -> 0 | L85: =SUM(Araria:WChamparan!L85) -> 0 | M85: =SUM(Araria:WChamparan!M85) -> 0 | N85: =SUM(Araria:WChamparan!N85) -> 0 | P85: =SUM(Araria:WChamparan!P85) -> 0 | Q85: =SUM(Araria:WChamparan!Q85) -> 0 | R85: =SUM(Araria:WChamparan!R85) -> 0 | S85: =SUM(Araria:WChamparan!S85) -> 0 | T85: =SUM(Araria:WChamparan!T85) -> 0 | U85: =SUM(Araria:WChamparan!U85) -> 0 | V85: =SUM(Araria:WChamparan!V85) -> 0 | W85: =SUM(Araria:WChamparan!W85) -> 0 | Y85: =SUM(Araria:WChamparan!Y85) -> 0 | Z85: =SUM(Araria:WChamparan!Z85) -> 0 | AA85: =SUM(Araria:WChamparan!AA85) -> 0 | AB85: =SUM(Araria:WChamparan!AB85) -> 0
B86: Sub Total (Non Recurring) | C86: =SUM(Araria:WChamparan!C86) -> 0 | D86: =SUM(Araria:WChamparan!D86) -> 0 | E86: =SUM(Araria:WChamparan!E86) -> 0 | F86: =SUM(Araria:WChamparan!F86) -> 0 | I86: =SUM(Araria:WChamparan!I86) -> 0 | J86: =SUM(Araria:WChamparan!J86) -> 0 | K86: =SUM(Araria:WChamparan!K86) -> 0 | L86: =SUM(Araria:WChamparan!L86) -> 0 | M86: =SUM(Araria:WChamparan!M86) -> 0 | N86: =SUM(Araria:WChamparan!N86) -> 0 | P86: =SUM(Araria:WChamparan!P86) -> 0 | Q86: =SUM(Araria:WChamparan!Q86) -> 0 | R86: =SUM(Araria:WChamparan!R86) -> 0 | S86: =SUM(Araria:WChamparan!S86) -> 0 | T86: =SUM(Araria:WChamparan!T86) -> 0 | U86: =SUM(Araria:WChamparan!U86) -> 0 | V86: =SUM(Araria:WChamparan!V86) -> 0 | W86: =SUM(Araria:WChamparan!W86) -> 0 | Y86: =SUM(Araria:WChamparan!Y86) -> 0 | Z86: =SUM(Araria:WChamparan!Z86) -> 0 | AA86: =SUM(Araria:WChamparan!AA86) -> 0 | AB86: =SUM(Araria:WChamparan!AB86) -> 0
B87: Recurring (50 children) | C87: =SUM(Araria:WChamparan!C87) -> 0 | D87: =SUM(Araria:WChamparan!D87) -> 0 | E87: =SUM(Araria:WChamparan!E87) -> 0 | F87: =SUM(Araria:WChamparan!F87) -> 0 | I87: =SUM(Araria:WChamparan!I87) -> 0 | J87: =SUM(Araria:WChamparan!J87) -> 0 | K87: =SUM(Araria:WChamparan!K87) -> 0 | L87: =SUM(Araria:WChamparan!L87) -> 0 | M87: =SUM(Araria:WChamparan!M87) -> 0 | N87: =SUM(Araria:WChamparan!N87) -> 0 | P87: =SUM(Araria:WChamparan!P87) -> 0 | Q87: =SUM(Araria:WChamparan!Q87) -> 0 | R87: =SUM(Araria:WChamparan!R87) -> 0 | S87: =SUM(Araria:WChamparan!S87) -> 0 | T87: =SUM(Araria:WChamparan!T87) -> 0 | U87: =SUM(Araria:WChamparan!U87) -> 0 | V87: =SUM(Araria:WChamparan!V87) -> 0 | W87: =SUM(Araria:WChamparan!W87) -> 0 | Y87: =SUM(Araria:WChamparan!Y87) -> 0 | Z87: =SUM(Araria:WChamparan!Z87) -> 0 | AA87: =SUM(Araria:WChamparan!AA87) -> 0 | AB87: =SUM(Araria:WChamparan!AB87) -> 0
A88: 3.05 | B88: Maintenance @ Rs.1,500/- per child per month | C88: =SUM(Araria:WChamparan!C88) -> 0 | D88: =SUM(Araria:WChamparan!D88) -> 0 | E88: =SUM(Araria:WChamparan!E88) -> 0 | F88: =SUM(Araria:WChamparan!F88) -> 0 | I88: =SUM(Araria:WChamparan!I88) -> 0 | J88: =SUM(Araria:WChamparan!J88) -> 0 | K88: =SUM(Araria:WChamparan!K88) -> 0 | L88: =SUM(Araria:WChamparan!L88) -> 0 | M88: =SUM(Araria:WChamparan!M88) -> 0 | N88: =SUM(Araria:WChamparan!N88) -> 0 | O88: 9 | P88: =SUM(Araria:WChamparan!P88) -> 0 | Q88: =SUM(Araria:WChamparan!Q88) -> 0 | R88: =SUM(Araria:WChamparan!R88) -> 0 | S88: =SUM(Araria:WChamparan!S88) -> 0 | T88: =SUM(Araria:WChamparan!T88) -> 0 | U88: =SUM(Araria:WChamparan!U88) -> 0 | V88: =SUM(Araria:WChamparan!V88) -> 0 | W88: =SUM(Araria:WChamparan!W88) -> 0 | Y88: =SUM(Araria:WChamparan!Y88) -> 0 | Z88: =SUM(Araria:WChamparan!Z88) -> 0 | AA88: =SUM(Araria:WChamparan!AA88) -> 0 | AB88: =SUM(Araria:WChamparan!AB88) -> 0
A89: =+A88+0.01 -> 3.06 | B89: Stipend @ Rs.100/- per child per month | C89: =SUM(Araria:WChamparan!C89) -> 0 | D89: =SUM(Araria:WChamparan!D89) -> 0 | E89: =SUM(Araria:WChamparan!E89) -> 0 | F89: =SUM(Araria:WChamparan!F89) -> 0 | I89: =SUM(Araria:WChamparan!I89) -> 0 | J89: =SUM(Araria:WChamparan!J89) -> 0 | K89: =SUM(Araria:WChamparan!K89) -> 0 | L89: =SUM(Araria:WChamparan!L89) -> 0 | M89: =SUM(Araria:WChamparan!M89) -> 0 | N89: =SUM(Araria:WChamparan!N89) -> 0 | O89: 0.6 | P89: =SUM(Araria:WChamparan!P89) -> 0 | Q89: =SUM(Araria:WChamparan!Q89) -> 0 | R89: =SUM(Araria:WChamparan!R89) -> 0 | S89: =SUM(Araria:WChamparan!S89) -> 0 | T89: =SUM(Araria:WChamparan!T89) -> 0 | U89: =SUM(Araria:WChamparan!U89) -> 0 | V89: =SUM(Araria:WChamparan!V89) -> 0 | W89: =SUM(Araria:WChamparan!W89) -> 0 | Y89: =SUM(Araria:WChamparan!Y89) -> 0 | Z89: =SUM(Araria:WChamparan!Z89) -> 0 | AA89: =SUM(Araria:WChamparan!AA89) -> 0 | AB89: =SUM(Araria:WChamparan!AB89) -> 0
A90: =+A89+0.01 -> 3.07 | B90: Supplementary TLM, Stationery and other educational material @Rs.1,000/- per child per annum | C90: =SUM(Araria:WChamparan!C90) -> 0 | D90: =SUM(Araria:WChamparan!D90) -> 0 | E90: =SUM(Araria:WChamparan!E90) -> 0 | F90: =SUM(Araria:WChamparan!F90) -> 0 | I90: =SUM(Araria:WChamparan!I90) -> 0 | J90: =SUM(Araria:WChamparan!J90) -> 0 | K90: =SUM(Araria:WChamparan!K90) -> 0 | L90: =SUM(Araria:WChamparan!L90) -> 0 | M90: =SUM(Araria:WChamparan!M90) -> 0 | N90: =SUM(Araria:WChamparan!N90) -> 0 | O90: 0.5 | P90: =SUM(Araria:WChamparan!P90) -> 0 | Q90: =SUM(Araria:WChamparan!Q90) -> 0 | R90: =SUM(Araria:WChamparan!R90) -> 0 | S90: =SUM(Araria:WChamparan!S90) -> 0 | T90: =SUM(Araria:WChamparan!T90) -> 0 | U90: =SUM(Araria:WChamparan!U90) -> 0 | V90: =SUM(Araria:WChamparan!V90) -> 0 | W90: =SUM(Araria:WChamparan!W90) -> 0 | Y90: =SUM(Araria:WChamparan!Y90) -> 0 | Z90: =SUM(Araria:WChamparan!Z90) -> 0 | AA90: =SUM(Araria:WChamparan!AA90) -> 0 | AB90: =SUM(Araria:WChamparan!AB90) -> 0
A91: 3.08 | B91: Salaries | C91: =SUM(Araria:WChamparan!C91) -> 0 | D91: =SUM(Araria:WChamparan!D91) -> 0 | E91: =SUM(Araria:WChamparan!E91) -> 0 | F91: =SUM(Araria:WChamparan!F91) -> 0 | I91: =SUM(Araria:WChamparan!I91) -> 0 | J91: =SUM(Araria:WChamparan!J91) -> 0 | K91: =SUM(Araria:WChamparan!K91) -> 0 | L91: =SUM(Araria:WChamparan!L91) -> 0 | M91: =SUM(Araria:WChamparan!M91) -> 0 | N91: =SUM(Araria:WChamparan!N91) -> 0 | P91: =SUM(Araria:WChamparan!P91) -> 0 | Q91: =SUM(Araria:WChamparan!Q91) -> 0 | R91: =SUM(Araria:WChamparan!R91) -> 0 | S91: =SUM(Araria:WChamparan!S91) -> 0 | T91: =SUM(Araria:WChamparan!T91) -> 0 | U91: =SUM(Araria:WChamparan!U91) -> 0 | V91: =SUM(Araria:WChamparan!V91) -> 0 | W91: =SUM(Araria:WChamparan!W91) -> 0 | Y91: =SUM(Araria:WChamparan!Y91) -> 0 | Z91: =SUM(Araria:WChamparan!Z91) -> 0 | AA91: =SUM(Araria:WChamparan!AA91) -> 0 | AB91: =SUM(Araria:WChamparan!AB91) -> 0
A92: (a) | B92: 1 Warden @ Rs. 25,000/- per month | C92: =SUM(Araria:WChamparan!C92) -> 0 | D92: =SUM(Araria:WChamparan!D92) -> 0 | E92: =SUM(Araria:WChamparan!E92) -> 0 | F92: =SUM(Araria:WChamparan!F92) -> 0 | I92: =SUM(Araria:WChamparan!I92) -> 0 | J92: =SUM(Araria:WChamparan!J92) -> 0 | K92: =SUM(Araria:WChamparan!K92) -> 0 | L92: =SUM(Araria:WChamparan!L92) -> 0 | M92: =SUM(Araria:WChamparan!M92) -> 0 | N92: =SUM(Araria:WChamparan!N92) -> 0 | O92: 3 | P92: =SUM(Araria:WChamparan!P92) -> 0 | Q92: =SUM(Araria:WChamparan!Q92) -> 0 | R92: =SUM(Araria:WChamparan!R92) -> 0 | S92: =SUM(Araria:WChamparan!S92) -> 0 | T92: =SUM(Araria:WChamparan!T92) -> 0 | U92: =SUM(Araria:WChamparan!U92) -> 0 | V92: =SUM(Araria:WChamparan!V92) -> 0 | W92: =SUM(Araria:WChamparan!W92) -> 0 | Y92: =SUM(Araria:WChamparan!Y92) -> 0 | Z92: =SUM(Araria:WChamparan!Z92) -> 0 | AA92: =SUM(Araria:WChamparan!AA92) -> 0 | AB92: =SUM(Araria:WChamparan!AB92) -> 0
A93: (b) | B93: 4 Fulltime teachers as per RTE Norms @ Rs. 20,000/- per month per teacher | C93: =SUM(Araria:WChamparan!C93) -> 0 | D93: =SUM(Araria:WChamparan!D93) -> 0 | E93: =SUM(Araria:WChamparan!E93) -> 0 | F93: =SUM(Araria:WChamparan!F93) -> 0 | I93: =SUM(Araria:WChamparan!I93) -> 0 | J93: =SUM(Araria:WChamparan!J93) -> 0 | K93: =SUM(Araria:WChamparan!K93) -> 0 | L93: =SUM(Araria:WChamparan!L93) -> 0 | M93: =SUM(Araria:WChamparan!M93) -> 0 | N93: =SUM(Araria:WChamparan!N93) -> 0 | O93: 9.6 | P93: =SUM(Araria:WChamparan!P93) -> 0 | Q93: =SUM(Araria:WChamparan!Q93) -> 0 | R93: =SUM(Araria:WChamparan!R93) -> 0 | S93: =SUM(Araria:WChamparan!S93) -> 0 | T93: =SUM(Araria:WChamparan!T93) -> 0 | U93: =SUM(Araria:WChamparan!U93) -> 0 | V93: =SUM(Araria:WChamparan!V93) -> 0 | W93: =SUM(Araria:WChamparan!W93) -> 0 | Y93: =SUM(Araria:WChamparan!Y93) -> 0 | Z93: =SUM(Araria:WChamparan!Z93) -> 0 | AA93: =SUM(Araria:WChamparan!AA93) -> 0 | AB93: =SUM(Araria:WChamparan!AB93) -> 0
A94: (c) | B94: 2 Urdu Teachers (only for Blocks with muslim population above 20% and select urban areas) if required @ Rs.12,000/- per month per teacher. | C94: =SUM(Araria:WChamparan!C94) -> 0 | D94: =SUM(Araria:WChamparan!D94) -> 0 | E94: =SUM(Araria:WChamparan!E94) -> 0 | F94: =SUM(Araria:WChamparan!F94) -> 0 | I94: =SUM(Araria:WChamparan!I94) -> 0 | J94: =SUM(Araria:WChamparan!J94) -> 0 | K94: =SUM(Araria:WChamparan!K94) -> 0 | L94: =SUM(Araria:WChamparan!L94) -> 0 | M94: =SUM(Araria:WChamparan!M94) -> 0 | N94: =SUM(Araria:WChamparan!N94) -> 0 | O94: 2.88 | P94: =SUM(Araria:WChamparan!P94) -> 0 | Q94: =SUM(Araria:WChamparan!Q94) -> 0 | R94: =SUM(Araria:WChamparan!R94) -> 0 | S94: =SUM(Araria:WChamparan!S94) -> 0 | T94: =SUM(Araria:WChamparan!T94) -> 0 | U94: =SUM(Araria:WChamparan!U94) -> 0 | V94: =SUM(Araria:WChamparan!V94) -> 0 | W94: =SUM(Araria:WChamparan!W94) -> 0 | Y94: =SUM(Araria:WChamparan!Y94) -> 0 | Z94: =SUM(Araria:WChamparan!Z94) -> 0 | AA94: =SUM(Araria:WChamparan!AA94) -> 0 | AB94: =SUM(Araria:WChamparan!AB94) -> 0
A95: (d) | B95: 3 Part time teachers @ Rs.5,000/- per month per teacher | C95: =SUM(Araria:WChamparan!C95) -> 0 | D95: =SUM(Araria:WChamparan!D95) -> 0 | E95: =SUM(Araria:WChamparan!E95) -> 0 | F95: =SUM(Araria:WChamparan!F95) -> 0 | I95: =SUM(Araria:WChamparan!I95) -> 0 | J95: =SUM(Araria:WChamparan!J95) -> 0 | K95: =SUM(Araria:WChamparan!K95) -> 0 | L95: =SUM(Araria:WChamparan!L95) -> 0 | M95: =SUM(Araria:WChamparan!M95) -> 0 | N95: =SUM(Araria:WChamparan!N95) -> 0 | O95: 1.5 | P95: =SUM(Araria:WChamparan!P95) -> 0 | Q95: =SUM(Araria:WChamparan!Q95) -> 0 | R95: =SUM(Araria:WChamparan!R95) -> 0 | S95: =SUM(Araria:WChamparan!S95) -> 0 | T95: =SUM(Araria:WChamparan!T95) -> 0 | U95: =SUM(Araria:WChamparan!U95) -> 0 | V95: =SUM(Araria:WChamparan!V95) -> 0 | W95: =SUM(Araria:WChamparan!W95) -> 0 | Y95: =SUM(Araria:WChamparan!Y95) -> 0 | Z95: =SUM(Araria:WChamparan!Z95) -> 0 | AA95: =SUM(Araria:WChamparan!AA95) -> 0 | AB95: =SUM(Araria:WChamparan!AB95) -> 0
A96: (e) | B96: 1 Full time Accountant @ Rs. 10,000/- per month | C96: =SUM(Araria:WChamparan!C96) -> 0 | D96: =SUM(Araria:WChamparan!D96) -> 0 | E96: =SUM(Araria:WChamparan!E96) -> 0 | F96: =SUM(Araria:WChamparan!F96) -> 0 | I96: =SUM(Araria:WChamparan!I96) -> 0 | J96: =SUM(Araria:WChamparan!J96) -> 0 | K96: =SUM(Araria:WChamparan!K96) -> 0 | L96: =SUM(Araria:WChamparan!L96) -> 0 | M96: =SUM(Araria:WChamparan!M96) -> 0 | N96: =SUM(Araria:WChamparan!N96) -> 0 | O96: 1.2 | P96: =SUM(Araria:WChamparan!P96) -> 0 | Q96: =SUM(Araria:WChamparan!Q96) -> 0 | R96: =SUM(Araria:WChamparan!R96) -> 0 | S96: =SUM(Araria:WChamparan!S96) -> 0 | T96: =SUM(Araria:WChamparan!T96) -> 0 | U96: =SUM(Araria:WChamparan!U96) -> 0 | V96: =SUM(Araria:WChamparan!V96) -> 0 | W96: =SUM(Araria:WChamparan!W96) -> 0 | Y96: =SUM(Araria:WChamparan!Y96) -> 0 | Z96: =SUM(Araria:WChamparan!Z96) -> 0 | AA96: =SUM(Araria:WChamparan!AA96) -> 0 | AB96: =SUM(Araria:WChamparan!AB96) -> 0
A97: (f) | B97: 2 Support staff - (Accountant/Assistant, Peon, Chowkidar) @ Rs. 5,000/- per month per staff | C97: =SUM(Araria:WChamparan!C97) -> 0 | D97: =SUM(Araria:WChamparan!D97) -> 0 | E97: =SUM(Araria:WChamparan!E97) -> 0 | F97: =SUM(Araria:WChamparan!F97) -> 0 | I97: =SUM(Araria:WChamparan!I97) -> 0 | J97: =SUM(Araria:WChamparan!J97) -> 0 | K97: =SUM(Araria:WChamparan!K97) -> 0 | L97: =SUM(Araria:WChamparan!L97) -> 0 | M97: =SUM(Araria:WChamparan!M97) -> 0 | N97: =SUM(Araria:WChamparan!N97) -> 0 | O97: 1.2 | P97: =SUM(Araria:WChamparan!P97) -> 0 | Q97: =SUM(Araria:WChamparan!Q97) -> 0 | R97: =SUM(Araria:WChamparan!R97) -> 0 | S97: =SUM(Araria:WChamparan!S97) -> 0 | T97: =SUM(Araria:WChamparan!T97) -> 0 | U97: =SUM(Araria:WChamparan!U97) -> 0 | V97: =SUM(Araria:WChamparan!V97) -> 0 | W97: =SUM(Araria:WChamparan!W97) -> 0 | Y97: =SUM(Araria:WChamparan!Y97) -> 0 | Z97: =SUM(Araria:WChamparan!Z97) -> 0 | AA97: =SUM(Araria:WChamparan!AA97) -> 0 | AB97: =SUM(Araria:WChamparan!AB97) -> 0
A98: (g) | B98: 1 Head Cook @ Rs. 6,000/- per month and upto 2 Asstt. Cooks @ Rs. 4,500/- per month per cook | C98: =SUM(Araria:WChamparan!C98) -> 0 | D98: =SUM(Araria:WChamparan!D98) -> 0 | E98: =SUM(Araria:WChamparan!E98) -> 0 | F98: =SUM(Araria:WChamparan!F98) -> 0 | I98: =SUM(Araria:WChamparan!I98) -> 0 | J98: =SUM(Araria:WChamparan!J98) -> 0 | K98: =SUM(Araria:WChamparan!K98) -> 0 | L98: =SUM(Araria:WChamparan!L98) -> 0 | M98: =SUM(Araria:WChamparan!M98) -> 0 | N98: =SUM(Araria:WChamparan!N98) -> 0 | O98: 1.8 | P98: =SUM(Araria:WChamparan!P98) -> 0 | Q98: =SUM(Araria:WChamparan!Q98) -> 0 | R98: =SUM(Araria:WChamparan!R98) -> 0 | S98: =SUM(Araria:WChamparan!S98) -> 0 | T98: =SUM(Araria:WChamparan!T98) -> 0 | U98: =SUM(Araria:WChamparan!U98) -> 0 | V98: =SUM(Araria:WChamparan!V98) -> 0 | W98: =SUM(Araria:WChamparan!W98) -> 0 | Y98: =SUM(Araria:WChamparan!Y98) -> 0 | Z98: =SUM(Araria:WChamparan!Z98) -> 0 | AA98: =SUM(Araria:WChamparan!AA98) -> 0 | AB98: =SUM(Araria:WChamparan!AB98) -> 0
A99: 3.09 | B99: Specific Skill training @ Rs.1000/- per child per annum | C99: =SUM(Araria:WChamparan!C99) -> 0 | D99: =SUM(Araria:WChamparan!D99) -> 0 | E99: =SUM(Araria:WChamparan!E99) -> 0 | F99: =SUM(Araria:WChamparan!F99) -> 0 | I99: =SUM(Araria:WChamparan!I99) -> 0 | J99: =SUM(Araria:WChamparan!J99) -> 0 | K99: =SUM(Araria:WChamparan!K99) -> 0 | L99: =SUM(Araria:WChamparan!L99) -> 0 | M99: =SUM(Araria:WChamparan!M99) -> 0 | N99: =SUM(Araria:WChamparan!N99) -> 0 | O99: 0.5 | P99: =SUM(Araria:WChamparan!P99) -> 0 | Q99: =SUM(Araria:WChamparan!Q99) -> 0 | R99: =SUM(Araria:WChamparan!R99) -> 0 | S99: =SUM(Araria:WChamparan!S99) -> 0 | T99: =SUM(Araria:WChamparan!T99) -> 0 | U99: =SUM(Araria:WChamparan!U99) -> 0 | V99: =SUM(Araria:WChamparan!V99) -> 0 | W99: =SUM(Araria:WChamparan!W99) -> 0 | Y99: =SUM(Araria:WChamparan!Y99) -> 0 | Z99: =SUM(Araria:WChamparan!Z99) -> 0 | AA99: =SUM(Araria:WChamparan!AA99) -> 0 | AB99: =SUM(Araria:WChamparan!AB99) -> 0
A100: =+A99+0.01 -> 3.1 | B100: Electricity / water charges @ Rs. 1,000/- per child per annum | C100: =SUM(Araria:WChamparan!C100) -> 0 | D100: =SUM(Araria:WChamparan!D100) -> 0 | E100: =SUM(Araria:WChamparan!E100) -> 0 | F100: =SUM(Araria:WChamparan!F100) -> 0 | I100: =SUM(Araria:WChamparan!I100) -> 0 | J100: =SUM(Araria:WChamparan!J100) -> 0 | K100: =SUM(Araria:WChamparan!K100) -> 0 | L100: =SUM(Araria:WChamparan!L100) -> 0 | M100: =SUM(Araria:WChamparan!M100) -> 0 | N100: =SUM(Araria:WChamparan!N100) -> 0 | O100: 0.5 | P100: =SUM(Araria:WChamparan!P100) -> 0 | Q100: =SUM(Araria:WChamparan!Q100) -> 0 | R100: =SUM(Araria:WChamparan!R100) -> 0 | S100: =SUM(Araria:WChamparan!S100) -> 0 | T100: =SUM(Araria:WChamparan!T100) -> 0 | U100: =SUM(Araria:WChamparan!U100) -> 0 | V100: =SUM(Araria:WChamparan!V100) -> 0 | W100: =SUM(Araria:WChamparan!W100) -> 0 | Y100: =SUM(Araria:WChamparan!Y100) -> 0 | Z100: =SUM(Araria:WChamparan!Z100) -> 0 | AA100: =SUM(Araria:WChamparan!AA100) -> 0 | AB100: =SUM(Araria:WChamparan!AB100) -> 0
A101: 3.11 | B101: Medical care/contingencies @ Rs.1,250/- per child per annum | C101: =SUM(Araria:WChamparan!C101) -> 0 | D101: =SUM(Araria:WChamparan!D101) -> 0 | E101: =SUM(Araria:WChamparan!E101) -> 0 | F101: =SUM(Araria:WChamparan!F101) -> 0 | I101: =SUM(Araria:WChamparan!I101) -> 0 | J101: =SUM(Araria:WChamparan!J101) -> 0 | K101: =SUM(Araria:WChamparan!K101) -> 0 | L101: =SUM(Araria:WChamparan!L101) -> 0 | M101: =SUM(Araria:WChamparan!M101) -> 0 | N101: =SUM(Araria:WChamparan!N101) -> 0 | O101: 0.625 | P101: =SUM(Araria:WChamparan!P101) -> 0 | Q101: =SUM(Araria:WChamparan!Q101) -> 0 | R101: =SUM(Araria:WChamparan!R101) -> 0 | S101: =SUM(Araria:WChamparan!S101) -> 0 | T101: =SUM(Araria:WChamparan!T101) -> 0 | U101: =SUM(Araria:WChamparan!U101) -> 0 | V101: =SUM(Araria:WChamparan!V101) -> 0 | W101: =SUM(Araria:WChamparan!W101) -> 0 | Y101: =SUM(Araria:WChamparan!Y101) -> 0 | Z101: =SUM(Araria:WChamparan!Z101) -> 0 | AA101: =SUM(Araria:WChamparan!AA101) -> 0 | AB101: =SUM(Araria:WChamparan!AB101) -> 0
A102: 3.12 | B102: Maintenance @ Rs. 750/- per child per annum | C102: =SUM(Araria:WChamparan!C102) -> 0 | D102: =SUM(Araria:WChamparan!D102) -> 0 | E102: =SUM(Araria:WChamparan!E102) -> 0 | F102: =SUM(Araria:WChamparan!F102) -> 0 | I102: =SUM(Araria:WChamparan!I102) -> 0 | J102: =SUM(Araria:WChamparan!J102) -> 0 | K102: =SUM(Araria:WChamparan!K102) -> 0 | L102: =SUM(Araria:WChamparan!L102) -> 0 | M102: =SUM(Araria:WChamparan!M102) -> 0 | N102: =SUM(Araria:WChamparan!N102) -> 0 | O102: 0.375 | P102: =SUM(Araria:WChamparan!P102) -> 0 | Q102: =SUM(Araria:WChamparan!Q102) -> 0 | R102: =SUM(Araria:WChamparan!R102) -> 0 | S102: =SUM(Araria:WChamparan!S102) -> 0 | T102: =SUM(Araria:WChamparan!T102) -> 0 | U102: =SUM(Araria:WChamparan!U102) -> 0 | V102: =SUM(Araria:WChamparan!V102) -> 0 | W102: =SUM(Araria:WChamparan!W102) -> 0 | Y102: =SUM(Araria:WChamparan!Y102) -> 0 | Z102: =SUM(Araria:WChamparan!Z102) -> 0 | AA102: =SUM(Araria:WChamparan!AA102) -> 0 | AB102: =SUM(Araria:WChamparan!AB102) -> 0
A103: 3.13 | B103: Miscellaneous @ Rs. 750/- per child per annum | C103: =SUM(Araria:WChamparan!C103) -> 0 | D103: =SUM(Araria:WChamparan!D103) -> 0 | E103: =SUM(Araria:WChamparan!E103) -> 0 | F103: =SUM(Araria:WChamparan!F103) -> 0 | I103: =SUM(Araria:WChamparan!I103) -> 0 | J103: =SUM(Araria:WChamparan!J103) -> 0 | K103: =SUM(Araria:WChamparan!K103) -> 0 | L103: =SUM(Araria:WChamparan!L103) -> 0 | M103: =SUM(Araria:WChamparan!M103) -> 0 | N103: =SUM(Araria:WChamparan!N103) -> 0 | O103: 0.375 | P103: =SUM(Araria:WChamparan!P103) -> 0 | Q103: =SUM(Araria:WChamparan!Q103) -> 0 | R103: =SUM(Araria:WChamparan!R103) -> 0 | S103: =SUM(Araria:WChamparan!S103) -> 0 | T103: =SUM(Araria:WChamparan!T103) -> 0 | U103: =SUM(Araria:WChamparan!U103) -> 0 | V103: =SUM(Araria:WChamparan!V103) -> 0 | W103: =SUM(Araria:WChamparan!W103) -> 0 | Y103: =SUM(Araria:WChamparan!Y103) -> 0 | Z103: =SUM(Araria:WChamparan!Z103) -> 0 | AA103: =SUM(Araria:WChamparan!AA103) -> 0 | AB103: =SUM(Araria:WChamparan!AB103) -> 0
A104: 3.14 | B104: Preparatory camps @ Rs. 300/- per child per annum | C104: =SUM(Araria:WChamparan!C104) -> 0 | D104: =SUM(Araria:WChamparan!D104) -> 0 | E104: =SUM(Araria:WChamparan!E104) -> 0 | F104: =SUM(Araria:WChamparan!F104) -> 0 | I104: =SUM(Araria:WChamparan!I104) -> 0 | J104: =SUM(Araria:WChamparan!J104) -> 0 | K104: =SUM(Araria:WChamparan!K104) -> 0 | L104: =SUM(Araria:WChamparan!L104) -> 0 | M104: =SUM(Araria:WChamparan!M104) -> 0 | N104: =SUM(Araria:WChamparan!N104) -> 0 | O104: 0.15 | P104: =SUM(Araria:WChamparan!P104) -> 0 | Q104: =SUM(Araria:WChamparan!Q104) -> 0 | R104: =SUM(Araria:WChamparan!R104) -> 0 | S104: =SUM(Araria:WChamparan!S104) -> 0 | T104: =SUM(Araria:WChamparan!T104) -> 0 | U104: =SUM(Araria:WChamparan!U104) -> 0 | V104: =SUM(Araria:WChamparan!V104) -> 0 | W104: =SUM(Araria:WChamparan!W104) -> 0 | Y104: =SUM(Araria:WChamparan!Y104) -> 0 | Z104: =SUM(Araria:WChamparan!Z104) -> 0 | AA104: =SUM(Araria:WChamparan!AA104) -> 0 | AB104: =SUM(Araria:WChamparan!AB104) -> 0
A105: 3.15 | B105: P.T.A / school functions @ Rs. 300/- per child per annum | C105: =SUM(Araria:WChamparan!C105) -> 0 | D105: =SUM(Araria:WChamparan!D105) -> 0 | E105: =SUM(Araria:WChamparan!E105) -> 0 | F105: =SUM(Araria:WChamparan!F105) -> 0 | I105: =SUM(Araria:WChamparan!I105) -> 0 | J105: =SUM(Araria:WChamparan!J105) -> 0 | K105: =SUM(Araria:WChamparan!K105) -> 0 | L105: =SUM(Araria:WChamparan!L105) -> 0 | M105: =SUM(Araria:WChamparan!M105) -> 0 | N105: =SUM(Araria:WChamparan!N105) -> 0 | O105: 0.15 | P105: =SUM(Araria:WChamparan!P105) -> 0 | Q105: =SUM(Araria:WChamparan!Q105) -> 0 | R105: =SUM(Araria:WChamparan!R105) -> 0 | S105: =SUM(Araria:WChamparan!S105) -> 0 | T105: =SUM(Araria:WChamparan!T105) -> 0 | U105: =SUM(Araria:WChamparan!U105) -> 0 | V105: =SUM(Araria:WChamparan!V105) -> 0 | W105: =SUM(Araria:WChamparan!W105) -> 0 | Y105: =SUM(Araria:WChamparan!Y105) -> 0 | Z105: =SUM(Araria:WChamparan!Z105) -> 0 | AA105: =SUM(Araria:WChamparan!AA105) -> 0 | AB105: =SUM(Araria:WChamparan!AB105) -> 0
A106: 3.16 | B106: Provision of Rent @ Rs. 10,000/- per child per annum | C106: =SUM(Araria:WChamparan!C106) -> 0 | D106: =SUM(Araria:WChamparan!D106) -> 0 | E106: =SUM(Araria:WChamparan!E106) -> 0 | F106: =SUM(Araria:WChamparan!F106) -> 0 | I106: =SUM(Araria:WChamparan!I106) -> 0 | J106: =SUM(Araria:WChamparan!J106) -> 0 | K106: =SUM(Araria:WChamparan!K106) -> 0 | L106: =SUM(Araria:WChamparan!L106) -> 0 | M106: =SUM(Araria:WChamparan!M106) -> 0 | N106: =SUM(Araria:WChamparan!N106) -> 0 | P106: =SUM(Araria:WChamparan!P106) -> 0 | Q106: =SUM(Araria:WChamparan!Q106) -> 0 | R106: =SUM(Araria:WChamparan!R106) -> 0 | S106: =SUM(Araria:WChamparan!S106) -> 0 | T106: =SUM(Araria:WChamparan!T106) -> 0 | U106: =SUM(Araria:WChamparan!U106) -> 0 | V106: =SUM(Araria:WChamparan!V106) -> 0 | W106: =SUM(Araria:WChamparan!W106) -> 0 | Y106: =SUM(Araria:WChamparan!Y106) -> 0 | Z106: =SUM(Araria:WChamparan!Z106) -> 0 | AA106: =SUM(Araria:WChamparan!AA106) -> 0 | AB106: =SUM(Araria:WChamparan!AB106) -> 0
A107: 3.17 | B107: Capacity Building @ Rs. 500/- per child per annum | C107: =SUM(Araria:WChamparan!C107) -> 0 | D107: =SUM(Araria:WChamparan!D107) -> 0 | E107: =SUM(Araria:WChamparan!E107) -> 0 | F107: =SUM(Araria:WChamparan!F107) -> 0 | I107: =SUM(Araria:WChamparan!I107) -> 0 | J107: =SUM(Araria:WChamparan!J107) -> 0 | K107: =SUM(Araria:WChamparan!K107) -> 0 | L107: =SUM(Araria:WChamparan!L107) -> 0 | M107: =SUM(Araria:WChamparan!M107) -> 0 | N107: =SUM(Araria:WChamparan!N107) -> 0 | O107: 0.25 | P107: =SUM(Araria:WChamparan!P107) -> 0 | Q107: =SUM(Araria:WChamparan!Q107) -> 0 | R107: =SUM(Araria:WChamparan!R107) -> 0 | S107: =SUM(Araria:WChamparan!S107) -> 0 | T107: =SUM(Araria:WChamparan!T107) -> 0 | U107: =SUM(Araria:WChamparan!U107) -> 0 | V107: =SUM(Araria:WChamparan!V107) -> 0 | W107: =SUM(Araria:WChamparan!W107) -> 0 | Y107: =SUM(Araria:WChamparan!Y107) -> 0 | Z107: =SUM(Araria:WChamparan!Z107) -> 0 | AA107: =SUM(Araria:WChamparan!AA107) -> 0 | AB107: =SUM(Araria:WChamparan!AB107) -> 0
A108: 3.18 | B108: Physical / Self Defence Training @ Rs.200/- per child per annum | C108: =SUM(Araria:WChamparan!C108) -> 0 | D108: =SUM(Araria:WChamparan!D108) -> 0 | E108: =SUM(Araria:WChamparan!E108) -> 0 | F108: =SUM(Araria:WChamparan!F108) -> 0 | I108: =SUM(Araria:WChamparan!I108) -> 0 | J108: =SUM(Araria:WChamparan!J108) -> 0 | K108: =SUM(Araria:WChamparan!K108) -> 0 | L108: =SUM(Araria:WChamparan!L108) -> 0 | M108: =SUM(Araria:WChamparan!M108) -> 0 | N108: =SUM(Araria:WChamparan!N108) -> 0 | O108: 0.1 | P108: =SUM(Araria:WChamparan!P108) -> 0 | Q108: =SUM(Araria:WChamparan!Q108) -> 0 | R108: =SUM(Araria:WChamparan!R108) -> 0 | S108: =SUM(Araria:WChamparan!S108) -> 0 | T108: =SUM(Araria:WChamparan!T108) -> 0 | U108: =SUM(Araria:WChamparan!U108) -> 0 | V108: =SUM(Araria:WChamparan!V108) -> 0 | W108: =SUM(Araria:WChamparan!W108) -> 0 | Y108: =SUM(Araria:WChamparan!Y108) -> 0 | Z108: =SUM(Araria:WChamparan!Z108) -> 0 | AA108: =SUM(Araria:WChamparan!AA108) -> 0 | AB108: =SUM(Araria:WChamparan!AB108) -> 0
B109: Sub Total (Recurring) | C109: =SUM(Araria:WChamparan!C109) -> 0 | D109: =SUM(Araria:WChamparan!D109) -> 0 | E109: =SUM(Araria:WChamparan!E109) -> 0 | F109: =SUM(Araria:WChamparan!F109) -> 0 | I109: =SUM(Araria:WChamparan!I109) -> 0 | J109: =SUM(Araria:WChamparan!J109) -> 0 | K109: =SUM(Araria:WChamparan!K109) -> 0 | L109: =SUM(Araria:WChamparan!L109) -> 0 | M109: =SUM(Araria:WChamparan!M109) -> 0 | N109: =SUM(Araria:WChamparan!N109) -> 0 | P109: =SUM(Araria:WChamparan!P109) -> 0 | Q109: =SUM(Araria:WChamparan!Q109) -> 0 | R109: =SUM(Araria:WChamparan!R109) -> 0 | S109: =SUM(Araria:WChamparan!S109) -> 0 | T109: =SUM(Araria:WChamparan!T109) -> 0 | U109: =SUM(Araria:WChamparan!U109) -> 0 | V109: =SUM(Araria:WChamparan!V109) -> 0 | W109: =SUM(Araria:WChamparan!W109) -> 0 | Y109: =SUM(Araria:WChamparan!Y109) -> 0 | Z109: =SUM(Araria:WChamparan!Z109) -> 0 | AA109: =SUM(Araria:WChamparan!AA109) -> 0 | AB109: =SUM(Araria:WChamparan!AB109) -> 0
B110: Total (Non Recurring + Recurring) | C110: =SUM(Araria:WChamparan!C110) -> 0 | D110: =SUM(Araria:WChamparan!D110) -> 0 | E110: =SUM(Araria:WChamparan!E110) -> 0 | F110: =SUM(Araria:WChamparan!F110) -> 0 | I110: =SUM(Araria:WChamparan!I110) -> 0 | J110: =SUM(Araria:WChamparan!J110) -> 0 | K110: =SUM(Araria:WChamparan!K110) -> 0 | L110: =SUM(Araria:WChamparan!L110) -> 0 | M110: =SUM(Araria:WChamparan!M110) -> 0 | N110: =SUM(Araria:WChamparan!N110) -> 0 | P110: =SUM(Araria:WChamparan!P110) -> 0 | Q110: =SUM(Araria:WChamparan!Q110) -> 0 | R110: =SUM(Araria:WChamparan!R110) -> 0 | S110: =SUM(Araria:WChamparan!S110) -> 0 | T110: =SUM(Araria:WChamparan!T110) -> 0 | U110: =SUM(Araria:WChamparan!U110) -> 0 | V110: =SUM(Araria:WChamparan!V110) -> 0 | W110: =SUM(Araria:WChamparan!W110) -> 0 | Y110: =SUM(Araria:WChamparan!Y110) -> 0 | Z110: =SUM(Araria:WChamparan!Z110) -> 0 | AA110: =SUM(Araria:WChamparan!AA110) -> 0 | AB110: =SUM(Araria:WChamparan!AB110) -> 0
A111: (B) | B111: 100 Children | C111: =SUM(Araria:WChamparan!C111) -> 0 | D111: =SUM(Araria:WChamparan!D111) -> 0 | E111: =SUM(Araria:WChamparan!E111) -> 0 | F111: =SUM(Araria:WChamparan!F111) -> 0 | I111: =SUM(Araria:WChamparan!I111) -> 0 | J111: =SUM(Araria:WChamparan!J111) -> 0 | K111: =SUM(Araria:WChamparan!K111) -> 0 | L111: =SUM(Araria:WChamparan!L111) -> 0 | M111: =SUM(Araria:WChamparan!M111) -> 0 | N111: =SUM(Araria:WChamparan!N111) -> 0 | P111: =SUM(Araria:WChamparan!P111) -> 0 | Q111: =SUM(Araria:WChamparan!Q111) -> 0 | R111: =SUM(Araria:WChamparan!R111) -> 0 | S111: =SUM(Araria:WChamparan!S111) -> 0 | T111: =SUM(Araria:WChamparan!T111) -> 0 | U111: =SUM(Araria:WChamparan!U111) -> 0 | V111: =SUM(Araria:WChamparan!V111) -> 0 | W111: =SUM(Araria:WChamparan!W111) -> 0 | Y111: =SUM(Araria:WChamparan!Y111) -> 0 | Z111: =SUM(Araria:WChamparan!Z111) -> 0 | AA111: =SUM(Araria:WChamparan!AA111) -> 0 | AB111: =SUM(Araria:WChamparan!AB111) -> 0
B112: Non-recurring (one time grant) | C112: =SUM(Araria:WChamparan!C112) -> 0 | D112: =SUM(Araria:WChamparan!D112) -> 0 | E112: =SUM(Araria:WChamparan!E112) -> 0 | F112: =SUM(Araria:WChamparan!F112) -> 0 | I112: =SUM(Araria:WChamparan!I112) -> 0 | J112: =SUM(Araria:WChamparan!J112) -> 0 | K112: =SUM(Araria:WChamparan!K112) -> 0 | L112: =SUM(Araria:WChamparan!L112) -> 0 | M112: =SUM(Araria:WChamparan!M112) -> 0 | N112: =SUM(Araria:WChamparan!N112) -> 0 | P112: =SUM(Araria:WChamparan!P112) -> 0 | Q112: =SUM(Araria:WChamparan!Q112) -> 0 | R112: =SUM(Araria:WChamparan!R112) -> 0 | S112: =SUM(Araria:WChamparan!S112) -> 0 | T112: =SUM(Araria:WChamparan!T112) -> 0 | U112: =SUM(Araria:WChamparan!U112) -> 0 | V112: =SUM(Araria:WChamparan!V112) -> 0 | W112: =SUM(Araria:WChamparan!W112) -> 0 | Y112: =SUM(Araria:WChamparan!Y112) -> 0 | Z112: =SUM(Araria:WChamparan!Z112) -> 0 | AA112: =SUM(Araria:WChamparan!AA112) -> 0 | AB112: =SUM(Araria:WChamparan!AB112) -> 0
A113: 3.19 | B113: Furniture/ Equipment (including kitchen) | C113: =SUM(Araria:WChamparan!C113) -> 0 | D113: =SUM(Araria:WChamparan!D113) -> 0 | E113: =SUM(Araria:WChamparan!E113) -> 0 | F113: =SUM(Araria:WChamparan!F113) -> 0 | G113: =IFERROR(E113/C113, ) -> 0 | H113: 0 | I113: =SUM(Araria:WChamparan!I113) -> 0 | J113: =SUM(Araria:WChamparan!J113) -> 0 | K113: =SUM(Araria:WChamparan!K113) -> 0 | L113: =SUM(Araria:WChamparan!L113) -> 0 | M113: =SUM(Araria:WChamparan!M113) -> 0 | N113: =SUM(Araria:WChamparan!N113) -> 0 | O113: 3 | P113: =SUM(Araria:WChamparan!P113) -> 1 | Q113: =SUM(Araria:WChamparan!Q113) -> 3 | R113: =SUM(Araria:WChamparan!R113) -> 1 | S113: =SUM(Araria:WChamparan!S113) -> 3 | T113: =SUM(Araria:WChamparan!T113) -> 0 | U113: =SUM(Araria:WChamparan!U113) -> 0 | V113: =SUM(Araria:WChamparan!V113) -> 0 | W113: =SUM(Araria:WChamparan!W113) -> 0 | Y113: =SUM(Araria:WChamparan!Y113) -> 0 | Z113: =SUM(Araria:WChamparan!Z113) -> 0 | AA113: =SUM(Araria:WChamparan!AA113) -> 0 | AB113: =SUM(Araria:WChamparan!AB113) -> 0
A114: =+A113+0.01 -> 3.2 | B114: TLM and equipment including library books | C114: =SUM(Araria:WChamparan!C114) -> 0 | D114: =SUM(Araria:WChamparan!D114) -> 0 | E114: =SUM(Araria:WChamparan!E114) -> 0 | F114: =SUM(Araria:WChamparan!F114) -> 0 | G114: 0 | H114: 0 | I114: =SUM(Araria:WChamparan!I114) -> 0 | J114: =SUM(Araria:WChamparan!J114) -> 0 | K114: =SUM(Araria:WChamparan!K114) -> 0 | L114: =SUM(Araria:WChamparan!L114) -> 0 | M114: =SUM(Araria:WChamparan!M114) -> 0 | N114: =SUM(Araria:WChamparan!N114) -> 0 | O114: 3.5 | P114: =SUM(Araria:WChamparan!P114) -> 1 | Q114: =SUM(Araria:WChamparan!Q114) -> 3.5 | R114: =SUM(Araria:WChamparan!R114) -> 1 | S114: =SUM(Araria:WChamparan!S114) -> 3.5 | T114: =SUM(Araria:WChamparan!T114) -> 0 | U114: =SUM(Araria:WChamparan!U114) -> 0 | V114: =SUM(Araria:WChamparan!V114) -> 0 | W114: =SUM(Araria:WChamparan!W114) -> 0 | Y114: =SUM(Araria:WChamparan!Y114) -> 0 | Z114: =SUM(Araria:WChamparan!Z114) -> 0 | AA114: =SUM(Araria:WChamparan!AA114) -> 0 | AB114: =SUM(Araria:WChamparan!AB114) -> 0
A115: =+A114+0.01 -> 3.21 | B115: Bedding (new) | C115: =SUM(Araria:WChamparan!C115) -> 0 | D115: =SUM(Araria:WChamparan!D115) -> 0 | E115: =SUM(Araria:WChamparan!E115) -> 0 | F115: =SUM(Araria:WChamparan!F115) -> 0 | G115: 0 | H115: 0 | I115: =SUM(Araria:WChamparan!I115) -> 0 | J115: =SUM(Araria:WChamparan!J115) -> 0 | K115: =SUM(Araria:WChamparan!K115) -> 0 | L115: =SUM(Araria:WChamparan!L115) -> 0 | M115: =SUM(Araria:WChamparan!M115) -> 0 | N115: =SUM(Araria:WChamparan!N115) -> 0 | O115: 0.75 | P115: =SUM(Araria:WChamparan!P115) -> 1 | Q115: =SUM(Araria:WChamparan!Q115) -> 0.75 | R115: =SUM(Araria:WChamparan!R115) -> 1 | S115: =SUM(Araria:WChamparan!S115) -> 0.75 | T115: =SUM(Araria:WChamparan!T115) -> 0 | U115: =SUM(Araria:WChamparan!U115) -> 0 | V115: =SUM(Araria:WChamparan!V115) -> 0 | W115: =SUM(Araria:WChamparan!W115) -> 0 | Y115: =SUM(Araria:WChamparan!Y115) -> 0 | Z115: =SUM(Araria:WChamparan!Z115) -> 0 | AA115: =SUM(Araria:WChamparan!AA115) -> 0 | AB115: =SUM(Araria:WChamparan!AB115) -> 0
A116: =+A115+0.01 -> 3.22 | B116: Replacement of bedding (once in 3 years) | C116: =SUM(Araria:WChamparan!C116) -> 0 | D116: =SUM(Araria:WChamparan!D116) -> 0 | E116: =SUM(Araria:WChamparan!E116) -> 0 | F116: =SUM(Araria:WChamparan!F116) -> 0 | I116: =SUM(Araria:WChamparan!I116) -> 0 | J116: =SUM(Araria:WChamparan!J116) -> 0 | K116: =SUM(Araria:WChamparan!K116) -> 0 | L116: =SUM(Araria:WChamparan!L116) -> 0 | M116: =SUM(Araria:WChamparan!M116) -> 0 | N116: =SUM(Araria:WChamparan!N116) -> 0 | P116: =SUM(Araria:WChamparan!P116) -> 0 | Q116: =SUM(Araria:WChamparan!Q116) -> 0 | R116: =SUM(Araria:WChamparan!R116) -> 0 | S116: =SUM(Araria:WChamparan!S116) -> 0 | T116: =SUM(Araria:WChamparan!T116) -> 0 | U116: =SUM(Araria:WChamparan!U116) -> 0 | V116: =SUM(Araria:WChamparan!V116) -> 0 | W116: =SUM(Araria:WChamparan!W116) -> 0 | Y116: =SUM(Araria:WChamparan!Y116) -> 0 | Z116: =SUM(Araria:WChamparan!Z116) -> 0 | AA116: =SUM(Araria:WChamparan!AA116) -> 0 | AB116: =SUM(Araria:WChamparan!AB116) -> 0
B117: Sub Total (Non Recurring) | C117: =SUM(Araria:WChamparan!C117) -> 0 | D117: =SUM(Araria:WChamparan!D117) -> 0 | E117: =SUM(Araria:WChamparan!E117) -> 0 | F117: =SUM(Araria:WChamparan!F117) -> 0 | G117: =IFERROR(E117/C117, ) -> 0 | H117: 0 | I117: =SUM(Araria:WChamparan!I117) -> 0 | J117: =SUM(Araria:WChamparan!J117) -> 0 | K117: =SUM(Araria:WChamparan!K117) -> 0 | L117: =SUM(Araria:WChamparan!L117) -> 0 | M117: =SUM(Araria:WChamparan!M117) -> 0 | N117: =SUM(Araria:WChamparan!N117) -> 0 | P117: =SUM(Araria:WChamparan!P117) -> 3 | Q117: =SUM(Araria:WChamparan!Q117) -> 7.25 | R117: =SUM(Araria:WChamparan!R117) -> 3 | S117: =SUM(Araria:WChamparan!S117) -> 7.25 | T117: =SUM(Araria:WChamparan!T117) -> 0 | U117: =SUM(Araria:WChamparan!U117) -> 0 | V117: =SUM(Araria:WChamparan!V117) -> 0 | W117: =SUM(Araria:WChamparan!W117) -> 0 | Y117: =SUM(Araria:WChamparan!Y117) -> 0 | Z117: =SUM(Araria:WChamparan!Z117) -> 0 | AA117: =SUM(Araria:WChamparan!AA117) -> 0 | AB117: =SUM(Araria:WChamparan!AB117) -> 0
B118: Recurring | C118: =SUM(Araria:WChamparan!C118) -> 0 | D118: =SUM(Araria:WChamparan!D118) -> 0 | E118: =SUM(Araria:WChamparan!E118) -> 0 | F118: =SUM(Araria:WChamparan!F118) -> 0 | G118: 0 | H118: 0 | I118: =SUM(Araria:WChamparan!I118) -> 0 | J118: =SUM(Araria:WChamparan!J118) -> 0 | K118: =SUM(Araria:WChamparan!K118) -> 0 | L118: =SUM(Araria:WChamparan!L118) -> 0 | M118: =SUM(Araria:WChamparan!M118) -> 0 | N118: =SUM(Araria:WChamparan!N118) -> 0 | P118: =SUM(Araria:WChamparan!P118) -> 0 | Q118: =SUM(Araria:WChamparan!Q118) -> 0 | R118: =SUM(Araria:WChamparan!R118) -> 0 | S118: =SUM(Araria:WChamparan!S118) -> 0 | T118: =SUM(Araria:WChamparan!T118) -> 0 | U118: =SUM(Araria:WChamparan!U118) -> 0 | V118: =SUM(Araria:WChamparan!V118) -> 0 | W118: =SUM(Araria:WChamparan!W118) -> 0 | Y118: =SUM(Araria:WChamparan!Y118) -> 0 | Z118: =SUM(Araria:WChamparan!Z118) -> 0 | AA118: =SUM(Araria:WChamparan!AA118) -> 0 | AB118: =SUM(Araria:WChamparan!AB118) -> 0
A119: 3.23 | B119: Maintenance @ Rs.1,500/- per child per month | C119: =SUM(Araria:WChamparan!C119) -> 3 | D119: =SUM(Araria:WChamparan!D119) -> 54 | E119: =SUM(Araria:WChamparan!E119) -> 3 | F119: =SUM(Araria:WChamparan!F119) -> 36.07 | G119: 1 | H119: 0.667962963 | I119: =SUM(Araria:WChamparan!I119) -> 0 | J119: =SUM(Araria:WChamparan!J119) -> 17.93 | K119: =SUM(Araria:WChamparan!K119) -> 0 | L119: =SUM(Araria:WChamparan!L119) -> 0 | M119: =SUM(Araria:WChamparan!M119) -> 0 | N119: =SUM(Araria:WChamparan!N119) -> 0 | O119: 18 | P119: =SUM(Araria:WChamparan!P119) -> 4 | Q119: =SUM(Araria:WChamparan!Q119) -> 72 | R119: =SUM(Araria:WChamparan!R119) -> 4 | S119: =SUM(Araria:WChamparan!S119) -> 72 | T119: =SUM(Araria:WChamparan!T119) -> 0 | U119: =SUM(Araria:WChamparan!U119) -> 0 | V119: =SUM(Araria:WChamparan!V119) -> 0 | W119: =SUM(Araria:WChamparan!W119) -> 0 | X119: 18 | Y119: =SUM(Araria:WChamparan!Y119) -> 3 | Z119: =SUM(Araria:WChamparan!Z119) -> 54 | AA119: =SUM(Araria:WChamparan!AA119) -> 3 | AB119: =SUM(Araria:WChamparan!AB119) -> 54
A120: =+A119+0.01 -> 3.24 | B120: Stipend @ Rs.100/- per child per month | C120: =SUM(Araria:WChamparan!C120) -> 3 | D120: =SUM(Araria:WChamparan!D120) -> 3.6 | E120: =SUM(Araria:WChamparan!E120) -> 1 | F120: =SUM(Araria:WChamparan!F120) -> 1.2 | G120: 0.3333333333 | H120: 0.3333333333 | I120: =SUM(Araria:WChamparan!I120) -> 2 | J120: =SUM(Araria:WChamparan!J120) -> 2.4 | K120: =SUM(Araria:WChamparan!K120) -> 0 | L120: =SUM(Araria:WChamparan!L120) -> 0 | M120: =SUM(Araria:WChamparan!M120) -> 0 | N120: =SUM(Araria:WChamparan!N120) -> 0 | O120: 1.2 | P120: =SUM(Araria:WChamparan!P120) -> 4 | Q120: =SUM(Araria:WChamparan!Q120) -> 4.8 | R120: =SUM(Araria:WChamparan!R120) -> 4 | S120: =SUM(Araria:WChamparan!S120) -> 4.8 | T120: =SUM(Araria:WChamparan!T120) -> 0 | U120: =SUM(Araria:WChamparan!U120) -> 0 | V120: =SUM(Araria:WChamparan!V120) -> 0 | W120: =SUM(Araria:WChamparan!W120) -> 0 | X120: 1.2 | Y120: =SUM(Araria:WChamparan!Y120) -> 3 | Z120: =SUM(Araria:WChamparan!Z120) -> 3.6 | AA120: =SUM(Araria:WChamparan!AA120) -> 3 | AB120: =SUM(Araria:WChamparan!AB120) -> 3.6
A121: =+A120+0.01 -> 3.25 | B121: Supplementary TLM, Stationery and other educational material @Rs.1,000/- per child per annum | C121: =SUM(Araria:WChamparan!C121) -> 0 | D121: =SUM(Araria:WChamparan!D121) -> 0 | E121: =SUM(Araria:WChamparan!E121) -> 0 | F121: =SUM(Araria:WChamparan!F121) -> 0 | G121: 0 | H121: 0 | I121: =SUM(Araria:WChamparan!I121) -> 0 | J121: =SUM(Araria:WChamparan!J121) -> 0 | K121: =SUM(Araria:WChamparan!K121) -> 0 | L121: =SUM(Araria:WChamparan!L121) -> 0 | M121: =SUM(Araria:WChamparan!M121) -> 0 | N121: =SUM(Araria:WChamparan!N121) -> 0 | O121: 1 | P121: =SUM(Araria:WChamparan!P121) -> 4 | Q121: =SUM(Araria:WChamparan!Q121) -> 4 | R121: =SUM(Araria:WChamparan!R121) -> 4 | S121: =SUM(Araria:WChamparan!S121) -> 4 | T121: =SUM(Araria:WChamparan!T121) -> 0 | U121: =SUM(Araria:WChamparan!U121) -> 0 | V121: =SUM(Araria:WChamparan!V121) -> 0 | W121: =SUM(Araria:WChamparan!W121) -> 0 | Y121: =SUM(Araria:WChamparan!Y121) -> 0 | Z121: =SUM(Araria:WChamparan!Z121) -> 0 | AA121: =SUM(Araria:WChamparan!AA121) -> 0 | AB121: =SUM(Araria:WChamparan!AB121) -> 0
A122: 3.26 | B122: Salaries | C122: =SUM(Araria:WChamparan!C122) -> 0 | D122: =SUM(Araria:WChamparan!D122) -> 0 | E122: =SUM(Araria:WChamparan!E122) -> 0 | F122: =SUM(Araria:WChamparan!F122) -> 0 | G122: 0 | H122: 0 | I122: =SUM(Araria:WChamparan!I122) -> 0 | J122: =SUM(Araria:WChamparan!J122) -> 0 | K122: =SUM(Araria:WChamparan!K122) -> 0 | L122: =SUM(Araria:WChamparan!L122) -> 0 | M122: =SUM(Araria:WChamparan!M122) -> 0 | N122: =SUM(Araria:WChamparan!N122) -> 0 | P122: =SUM(Araria:WChamparan!P122) -> 0 | Q122: =SUM(Araria:WChamparan!Q122) -> 0 | R122: =SUM(Araria:WChamparan!R122) -> 0 | S122: =SUM(Araria:WChamparan!S122) -> 0 | T122: =SUM(Araria:WChamparan!T122) -> 0 | U122: =SUM(Araria:WChamparan!U122) -> 0 | V122: =SUM(Araria:WChamparan!V122) -> 0 | W122: =SUM(Araria:WChamparan!W122) -> 0 | Y122: =SUM(Araria:WChamparan!Y122) -> 0 | Z122: =SUM(Araria:WChamparan!Z122) -> 0 | AA122: =SUM(Araria:WChamparan!AA122) -> 0 | AB122: =SUM(Araria:WChamparan!AB122) -> 0
A123: (a) | B123: 1 Warden @ Rs. 25,000/- per month | C123: =SUM(Araria:WChamparan!C123) -> 3 | D123: =SUM(Araria:WChamparan!D123) -> 9 | E123: =SUM(Araria:WChamparan!E123) -> 1 | F123: =SUM(Araria:WChamparan!F123) -> 0 | G123: 0.3333333333 | H123: 0 | I123: =SUM(Araria:WChamparan!I123) -> 2 | J123: =SUM(Araria:WChamparan!J123) -> 9 | K123: =SUM(Araria:WChamparan!K123) -> 0 | L123: =SUM(Araria:WChamparan!L123) -> 0 | M123: =SUM(Araria:WChamparan!M123) -> 0 | N123: =SUM(Araria:WChamparan!N123) -> 0 | O123: 3 | P123: =SUM(Araria:WChamparan!P123) -> 4 | Q123: =SUM(Araria:WChamparan!Q123) -> 12 | R123: =SUM(Araria:WChamparan!R123) -> 4 | S123: =SUM(Araria:WChamparan!S123) -> 12 | T123: =SUM(Araria:WChamparan!T123) -> 0 | U123: =SUM(Araria:WChamparan!U123) -> 0 | V123: =SUM(Araria:WChamparan!V123) -> 0 | W123: =SUM(Araria:WChamparan!W123) -> 0 | X123: 3 | Y123: =SUM(Araria:WChamparan!Y123) -> 3 | Z123: =SUM(Araria:WChamparan!Z123) -> 9 | AA123: =SUM(Araria:WChamparan!AA123) -> 3 | AB123: =SUM(Araria:WChamparan!AB123) -> 9
A124: (b) | B124: 1 head teacher @ Rs. 25,000/- per month in case the enrollment exceeds 100 | C124: =SUM(Araria:WChamparan!C124) -> 0 | D124: =SUM(Araria:WChamparan!D124) -> 0 | E124: =SUM(Araria:WChamparan!E124) -> 0 | F124: =SUM(Araria:WChamparan!F124) -> 0 | G124: 0 | H124: 0 | I124: =SUM(Araria:WChamparan!I124) -> 0 | J124: =SUM(Araria:WChamparan!J124) -> 0 | K124: =SUM(Araria:WChamparan!K124) -> 0 | L124: =SUM(Araria:WChamparan!L124) -> 0 | M124: =SUM(Araria:WChamparan!M124) -> 0 | N124: =SUM(Araria:WChamparan!N124) -> 0 | P124: =SUM(Araria:WChamparan!P124) -> 0 | Q124: =SUM(Araria:WChamparan!Q124) -> 0 | R124: =SUM(Araria:WChamparan!R124) -> 0 | S124: =SUM(Araria:WChamparan!S124) -> 0 | T124: =SUM(Araria:WChamparan!T124) -> 0 | U124: =SUM(Araria:WChamparan!U124) -> 0 | V124: =SUM(Araria:WChamparan!V124) -> 0 | W124: =SUM(Araria:WChamparan!W124) -> 0 | Y124: =SUM(Araria:WChamparan!Y124) -> 0 | Z124: =SUM(Araria:WChamparan!Z124) -> 0 | AA124: =SUM(Araria:WChamparan!AA124) -> 0 | AB124: =SUM(Araria:WChamparan!AB124) -> 0
A125: (c) | B125: 3 part time teachers @ Rs. 5,000/- per month per teacher | C125: =SUM(Araria:WChamparan!C125) -> 3 | D125: =SUM(Araria:WChamparan!D125) -> 5.4 | E125: =SUM(Araria:WChamparan!E125) -> 1 | F125: =SUM(Araria:WChamparan!F125) -> 1.8 | G125: 0.3333333333 | H125: 0.3333333333 | I125: =SUM(Araria:WChamparan!I125) -> 2 | J125: =SUM(Araria:WChamparan!J125) -> 3.6 | K125: =SUM(Araria:WChamparan!K125) -> 0 | L125: =SUM(Araria:WChamparan!L125) -> 0 | M125: =SUM(Araria:WChamparan!M125) -> 0 | N125: =SUM(Araria:WChamparan!N125) -> 0 | O125: 1.8 | P125: =SUM(Araria:WChamparan!P125) -> 4 | Q125: =SUM(Araria:WChamparan!Q125) -> 7.2 | R125: =SUM(Araria:WChamparan!R125) -> 4 | S125: =SUM(Araria:WChamparan!S125) -> 7.2 | T125: =SUM(Araria:WChamparan!T125) -> 0 | U125: =SUM(Araria:WChamparan!U125) -> 0 | V125: =SUM(Araria:WChamparan!V125) -> 0 | W125: =SUM(Araria:WChamparan!W125) -> 0 | X125: 1.8 | Y125: =SUM(Araria:WChamparan!Y125) -> 3 | Z125: =SUM(Araria:WChamparan!Z125) -> 5.4 | AA125: =SUM(Araria:WChamparan!AA125) -> 3 | AB125: =SUM(Araria:WChamparan!AB125) -> 5.4
A126: (d) | B126: 1 Full time Accountant @ Rs. 10,000/- per month | C126: =SUM(Araria:WChamparan!C126) -> 3 | D126: =SUM(Araria:WChamparan!D126) -> 3.6 | E126: =SUM(Araria:WChamparan!E126) -> 0 | F126: =SUM(Araria:WChamparan!F126) -> 0 | G126: 0 | H126: 0 | I126: =SUM(Araria:WChamparan!I126) -> 3 | J126: =SUM(Araria:WChamparan!J126) -> 3.6 | K126: =SUM(Araria:WChamparan!K126) -> 0 | L126: =SUM(Araria:WChamparan!L126) -> 0 | M126: =SUM(Araria:WChamparan!M126) -> 0 | N126: =SUM(Araria:WChamparan!N126) -> 0 | O126: 1.2 | P126: =SUM(Araria:WChamparan!P126) -> 4 | Q126: =SUM(Araria:WChamparan!Q126) -> 4.8 | R126: =SUM(Araria:WChamparan!R126) -> 4 | S126: =SUM(Araria:WChamparan!S126) -> 4.8 | T126: =SUM(Araria:WChamparan!T126) -> 0 | U126: =SUM(Araria:WChamparan!U126) -> 0 | V126: =SUM(Araria:WChamparan!V126) -> 0 | W126: =SUM(Araria:WChamparan!W126) -> 0 | X126: 1.2 | Y126: =SUM(Araria:WChamparan!Y126) -> 3 | Z126: =SUM(Araria:WChamparan!Z126) -> 3.6 | AA126: =SUM(Araria:WChamparan!AA126) -> 3 | AB126: =SUM(Araria:WChamparan!AB126) -> 3.6
A127: (e) | B127: 2 Support Staff – (Accountant/ Assistant, Peon, Chowkidar) @ Rs. 5,000/- per month per staff | C127: =SUM(Araria:WChamparan!C127) -> 3 | D127: =SUM(Araria:WChamparan!D127) -> 3.6 | E127: =SUM(Araria:WChamparan!E127) -> 0 | F127: =SUM(Araria:WChamparan!F127) -> 0.36 | G127: 0 | H127: 0.1 | I127: =SUM(Araria:WChamparan!I127) -> 3 | J127: =SUM(Araria:WChamparan!J127) -> 3.24 | K127: =SUM(Araria:WChamparan!K127) -> 0 | L127: =SUM(Araria:WChamparan!L127) -> 0 | M127: =SUM(Araria:WChamparan!M127) -> 0 | N127: =SUM(Araria:WChamparan!N127) -> 0 | O127: 1.2 | P127: =SUM(Araria:WChamparan!P127) -> 4 | Q127: =SUM(Araria:WChamparan!Q127) -> 4.8 | R127: =SUM(Araria:WChamparan!R127) -> 4 | S127: =SUM(Araria:WChamparan!S127) -> 4.8 | T127: =SUM(Araria:WChamparan!T127) -> 0 | U127: =SUM(Araria:WChamparan!U127) -> 0 | V127: =SUM(Araria:WChamparan!V127) -> 0 | W127: =SUM(Araria:WChamparan!W127) -> 0 | X127: 1.2 | Y127: =SUM(Araria:WChamparan!Y127) -> 3 | Z127: =SUM(Araria:WChamparan!Z127) -> 3.6 | AA127: =SUM(Araria:WChamparan!AA127) -> 3 | AB127: =SUM(Araria:WChamparan!AB127) -> 3.6
A128: (f) | B128: 1 Head cook @ Rs. 6,000/- per month and upto 2 Asstt. Cooks @ Rs. 4,500/- per month per cook | C128: =SUM(Araria:WChamparan!C128) -> 3 | D128: =SUM(Araria:WChamparan!D128) -> 5.4 | E128: =SUM(Araria:WChamparan!E128) -> 0 | F128: =SUM(Araria:WChamparan!F128) -> 1.08 | G128: 0 | H128: 0.2 | I128: =SUM(Araria:WChamparan!I128) -> 3 | J128: =SUM(Araria:WChamparan!J128) -> 4.32 | K128: =SUM(Araria:WChamparan!K128) -> 0 | L128: =SUM(Araria:WChamparan!L128) -> 0 | M128: =SUM(Araria:WChamparan!M128) -> 0 | N128: =SUM(Araria:WChamparan!N128) -> 0 | O128: 1.8 | P128: =SUM(Araria:WChamparan!P128) -> 4 | Q128: =SUM(Araria:WChamparan!Q128) -> 7.2 | R128: =SUM(Araria:WChamparan!R128) -> 4 | S128: =SUM(Araria:WChamparan!S128) -> 7.2 | T128: =SUM(Araria:WChamparan!T128) -> 0 | U128: =SUM(Araria:WChamparan!U128) -> 0 | V128: =SUM(Araria:WChamparan!V128) -> 0 | W128: =SUM(Araria:WChamparan!W128) -> 0 | X128: 1.8 | Y128: =SUM(Araria:WChamparan!Y128) -> 3 | Z128: =SUM(Araria:WChamparan!Z128) -> 5.4 | AA128: =SUM(Araria:WChamparan!AA128) -> 3 | AB128: =SUM(Araria:WChamparan!AB128) -> 5.4
A129: 3.27 | B129: Specific skill training @ Rs.1,000/- per child per annum | C129: =SUM(Araria:WChamparan!C129) -> 0 | D129: =SUM(Araria:WChamparan!D129) -> 0 | E129: =SUM(Araria:WChamparan!E129) -> 0 | F129: =SUM(Araria:WChamparan!F129) -> 0 | G129: 0 | H129: 0 | I129: =SUM(Araria:WChamparan!I129) -> 0 | J129: =SUM(Araria:WChamparan!J129) -> 0 | K129: =SUM(Araria:WChamparan!K129) -> 0 | L129: =SUM(Araria:WChamparan!L129) -> 0 | M129: =SUM(Araria:WChamparan!M129) -> 0 | N129: =SUM(Araria:WChamparan!N129) -> 0 | O129: 1 | P129: =SUM(Araria:WChamparan!P129) -> 4 | Q129: =SUM(Araria:WChamparan!Q129) -> 4 | R129: =SUM(Araria:WChamparan!R129) -> 4 | S129: =SUM(Araria:WChamparan!S129) -> 4 | T129: =SUM(Araria:WChamparan!T129) -> 0 | U129: =SUM(Araria:WChamparan!U129) -> 0 | V129: =SUM(Araria:WChamparan!V129) -> 0 | W129: =SUM(Araria:WChamparan!W129) -> 0 | X129: 1 | Y129: =SUM(Araria:WChamparan!Y129) -> 0 | Z129: =SUM(Araria:WChamparan!Z129) -> 0 | AA129: =SUM(Araria:WChamparan!AA129) -> 0 | AB129: =SUM(Araria:WChamparan!AB129) -> 0
A130: =+A129+0.01 -> 3.28 | B130: Electricity / water charges @ Rs.1,000/- per child per annum | C130: =SUM(Araria:WChamparan!C130) -> 3 | D130: =SUM(Araria:WChamparan!D130) -> 3 | E130: =SUM(Araria:WChamparan!E130) -> 1 | F130: =SUM(Araria:WChamparan!F130) -> 0.5 | G130: 0.3333333333 | H130: 0.1666666667 | I130: =SUM(Araria:WChamparan!I130) -> 2 | J130: =SUM(Araria:WChamparan!J130) -> 2.5 | K130: =SUM(Araria:WChamparan!K130) -> 0 | L130: =SUM(Araria:WChamparan!L130) -> 0 | M130: =SUM(Araria:WChamparan!M130) -> 0 | N130: =SUM(Araria:WChamparan!N130) -> 0 | O130: 1 | P130: =SUM(Araria:WChamparan!P130) -> 4 | Q130: =SUM(Araria:WChamparan!Q130) -> 4 | R130: =SUM(Araria:WChamparan!R130) -> 4 | S130: =SUM(Araria:WChamparan!S130) -> 4 | T130: =SUM(Araria:WChamparan!T130) -> 0 | U130: =SUM(Araria:WChamparan!U130) -> 0 | V130: =SUM(Araria:WChamparan!V130) -> 0 | W130: =SUM(Araria:WChamparan!W130) -> 0 | X130: 1 | Y130: =SUM(Araria:WChamparan!Y130) -> 3 | Z130: =SUM(Araria:WChamparan!Z130) -> 3 | AA130: =SUM(Araria:WChamparan!AA130) -> 3 | AB130: =SUM(Araria:WChamparan!AB130) -> 3
A131: 3.29 | B131: Medical care/contingencies @ Rs.1,250/- per child per annum | C131: =SUM(Araria:WChamparan!C131) -> 3 | D131: =SUM(Araria:WChamparan!D131) -> 3.75 | E131: =SUM(Araria:WChamparan!E131) -> 1 | F131: =SUM(Araria:WChamparan!F131) -> 0.75 | G131: 0.3333333333 | H131: 0.2 | I131: =SUM(Araria:WChamparan!I131) -> 2 | J131: =SUM(Araria:WChamparan!J131) -> 3 | K131: =SUM(Araria:WChamparan!K131) -> 0 | L131: =SUM(Araria:WChamparan!L131) -> 0 | M131: =SUM(Araria:WChamparan!M131) -> 0 | N131: =SUM(Araria:WChamparan!N131) -> 0 | O131: 1.25 | P131: =SUM(Araria:WChamparan!P131) -> 4 | Q131: =SUM(Araria:WChamparan!Q131) -> 5 | R131: =SUM(Araria:WChamparan!R131) -> 4 | S131: =SUM(Araria:WChamparan!S131) -> 5 | T131: =SUM(Araria:WChamparan!T131) -> 0 | U131: =SUM(Araria:WChamparan!U131) -> 0 | V131: =SUM(Araria:WChamparan!V131) -> 0 | W131: =SUM(Araria:WChamparan!W131) -> 0 | X131: 1.25 | Y131: =SUM(Araria:WChamparan!Y131) -> 3 | Z131: =SUM(Araria:WChamparan!Z131) -> 3.75 | AA131: =SUM(Araria:WChamparan!AA131) -> 3 | AB131: =SUM(Araria:WChamparan!AB131) -> 3.75
A132: 3.3 | B132: Maintenance @ Rs.750/- per child per annum | C132: =SUM(Araria:WChamparan!C132) -> 3 | D132: =SUM(Araria:WChamparan!D132) -> 2.25 | E132: =SUM(Araria:WChamparan!E132) -> 0 | F132: =SUM(Araria:WChamparan!F132) -> 0 | G132: 0 | H132: 0 | I132: =SUM(Araria:WChamparan!I132) -> 3 | J132: =SUM(Araria:WChamparan!J132) -> 2.25 | K132: =SUM(Araria:WChamparan!K132) -> 0 | L132: =SUM(Araria:WChamparan!L132) -> 0 | M132: =SUM(Araria:WChamparan!M132) -> 0 | N132: =SUM(Araria:WChamparan!N132) -> 0 | O132: 0.75 | P132: =SUM(Araria:WChamparan!P132) -> 4 | Q132: =SUM(Araria:WChamparan!Q132) -> 3 | R132: =SUM(Araria:WChamparan!R132) -> 4 | S132: =SUM(Araria:WChamparan!S132) -> 3 | T132: =SUM(Araria:WChamparan!T132) -> 0 | U132: =SUM(Araria:WChamparan!U132) -> 0 | V132: =SUM(Araria:WChamparan!V132) -> 0 | W132: =SUM(Araria:WChamparan!W132) -> 0 | X132: 0.75 | Y132: =SUM(Araria:WChamparan!Y132) -> 3 | Z132: =SUM(Araria:WChamparan!Z132) -> 2.25 | AA132: =SUM(Araria:WChamparan!AA132) -> 3 | AB132: =SUM(Araria:WChamparan!AB132) -> 2.25
A133: 3.31 | B133: Miscellaneous @ Rs.750/- per child per annum | C133: =SUM(Araria:WChamparan!C133) -> 3 | D133: =SUM(Araria:WChamparan!D133) -> 2.25 | E133: =SUM(Araria:WChamparan!E133) -> 1 | F133: =SUM(Araria:WChamparan!F133) -> 0.75 | G133: =IFERROR(E133/C133, ) -> 0.3333333333 | H133: 0.3333333333 | I133: =SUM(Araria:WChamparan!I133) -> 2 | J133: =SUM(Araria:WChamparan!J133) -> 1.5 | K133: =SUM(Araria:WChamparan!K133) -> 0 | L133: =SUM(Araria:WChamparan!L133) -> 0 | M133: =SUM(Araria:WChamparan!M133) -> 0 | N133: =SUM(Araria:WChamparan!N133) -> 0 | O133: 0.75 | P133: =SUM(Araria:WChamparan!P133) -> 4 | Q133: =SUM(Araria:WChamparan!Q133) -> 3 | R133: =SUM(Araria:WChamparan!R133) -> 4 | S133: =SUM(Araria:WChamparan!S133) -> 3 | T133: =SUM(Araria:WChamparan!T133) -> 0 | U133: =SUM(Araria:WChamparan!U133) -> 0 | V133: =SUM(Araria:WChamparan!V133) -> 0 | W133: =SUM(Araria:WChamparan!W133) -> 0 | X133: 0.75 | Y133: =SUM(Araria:WChamparan!Y133) -> 3 | Z133: =SUM(Araria:WChamparan!Z133) -> 2.25 | AA133: =SUM(Araria:WChamparan!AA133) -> 3 | AB133: =SUM(Araria:WChamparan!AB133) -> 2.25
A134: 3.32 | B134: Preparatory camps @ Rs.200/- per child per annum | C134: =SUM(Araria:WChamparan!C134) -> 0 | D134: =SUM(Araria:WChamparan!D134) -> 0 | E134: =SUM(Araria:WChamparan!E134) -> 0 | F134: =SUM(Araria:WChamparan!F134) -> 0 | G134: 0 | H134: 0 | I134: =SUM(Araria:WChamparan!I134) -> 0 | J134: =SUM(Araria:WChamparan!J134) -> 0 | K134: =SUM(Araria:WChamparan!K134) -> 0 | L134: =SUM(Araria:WChamparan!L134) -> 0 | M134: =SUM(Araria:WChamparan!M134) -> 0 | N134: =SUM(Araria:WChamparan!N134) -> 0 | O134: 0.3 | P134: =SUM(Araria:WChamparan!P134) -> 4 | Q134: =SUM(Araria:WChamparan!Q134) -> 1.2 | R134: =SUM(Araria:WChamparan!R134) -> 4 | S134: =SUM(Araria:WChamparan!S134) -> 1.2 | T134: =SUM(Araria:WChamparan!T134) -> 0 | U134: =SUM(Araria:WChamparan!U134) -> 0 | V134: =SUM(Araria:WChamparan!V134) -> 0 | W134: =SUM(Araria:WChamparan!W134) -> 0 | X134: 0 | Y134: =SUM(Araria:WChamparan!Y134) -> 0 | Z134: =SUM(Araria:WChamparan!Z134) -> 0 | AA134: =SUM(Araria:WChamparan!AA134) -> 0 | AB134: =SUM(Araria:WChamparan!AB134) -> 0
A135: 3.33 | B135: P.T.A / school functions @ Rs.200/- per child per annum | C135: =SUM(Araria:WChamparan!C135) -> 0 | D135: =SUM(Araria:WChamparan!D135) -> 0 | E135: =SUM(Araria:WChamparan!E135) -> 0 | F135: =SUM(Araria:WChamparan!F135) -> 0 | G135: 0 | H135: 0 | I135: =SUM(Araria:WChamparan!I135) -> 0 | J135: =SUM(Araria:WChamparan!J135) -> 0 | K135: =SUM(Araria:WChamparan!K135) -> 0 | L135: =SUM(Araria:WChamparan!L135) -> 0 | M135: =SUM(Araria:WChamparan!M135) -> 0 | N135: =SUM(Araria:WChamparan!N135) -> 0 | O135: 0.3 | P135: =SUM(Araria:WChamparan!P135) -> 4 | Q135: =SUM(Araria:WChamparan!Q135) -> 1.2 | R135: =SUM(Araria:WChamparan!R135) -> 4 | S135: =SUM(Araria:WChamparan!S135) -> 1.2 | T135: =SUM(Araria:WChamparan!T135) -> 0 | U135: =SUM(Araria:WChamparan!U135) -> 0 | V135: =SUM(Araria:WChamparan!V135) -> 0 | W135: =SUM(Araria:WChamparan!W135) -> 0 | X135: 0 | Y135: =SUM(Araria:WChamparan!Y135) -> 0 | Z135: =SUM(Araria:WChamparan!Z135) -> 0 | AA135: =SUM(Araria:WChamparan!AA135) -> 0 | AB135: =SUM(Araria:WChamparan!AB135) -> 0
A136: 3.34 | B136: Provision of Rent @ Rs. 6,000/- per child per annum | C136: =SUM(Araria:WChamparan!C136) -> 0 | D136: =SUM(Araria:WChamparan!D136) -> 0 | E136: =SUM(Araria:WChamparan!E136) -> 0 | F136: =SUM(Araria:WChamparan!F136) -> 0 | G136: 0 | H136: 0 | I136: =SUM(Araria:WChamparan!I136) -> 0 | J136: =SUM(Araria:WChamparan!J136) -> 0 | K136: =SUM(Araria:WChamparan!K136) -> 0 | L136: =SUM(Araria:WChamparan!L136) -> 0 | M136: =SUM(Araria:WChamparan!M136) -> 0 | N136: =SUM(Araria:WChamparan!N136) -> 0 | O136: 1.8 | P136: =SUM(Araria:WChamparan!P136) -> 0 | Q136: =SUM(Araria:WChamparan!Q136) -> 0 | R136: =SUM(Araria:WChamparan!R136) -> 0 | S136: =SUM(Araria:WChamparan!S136) -> 0 | T136: =SUM(Araria:WChamparan!T136) -> 0 | U136: =SUM(Araria:WChamparan!U136) -> 0 | V136: =SUM(Araria:WChamparan!V136) -> 0 | W136: =SUM(Araria:WChamparan!W136) -> 0 | X136: 0 | Y136: =SUM(Araria:WChamparan!Y136) -> 0 | Z136: =SUM(Araria:WChamparan!Z136) -> 0 | AA136: =SUM(Araria:WChamparan!AA136) -> 0 | AB136: =SUM(Araria:WChamparan!AB136) -> 0
A137: 3.35 | B137: Capacity Building @ Rs.500/- per child per annum | C137: =SUM(Araria:WChamparan!C137) -> 3 | D137: =SUM(Araria:WChamparan!D137) -> 1.5 | E137: =SUM(Araria:WChamparan!E137) -> 0 | F137: =SUM(Araria:WChamparan!F137) -> 0 | G137: 0 | H137: 0 | I137: =SUM(Araria:WChamparan!I137) -> 3 | J137: =SUM(Araria:WChamparan!J137) -> 1.5 | K137: =SUM(Araria:WChamparan!K137) -> 0 | L137: =SUM(Araria:WChamparan!L137) -> 0 | M137: =SUM(Araria:WChamparan!M137) -> 0 | N137: =SUM(Araria:WChamparan!N137) -> 0 | O137: 0.5 | P137: =SUM(Araria:WChamparan!P137) -> 4 | Q137: =SUM(Araria:WChamparan!Q137) -> 2 | R137: =SUM(Araria:WChamparan!R137) -> 4 | S137: =SUM(Araria:WChamparan!S137) -> 2 | T137: =SUM(Araria:WChamparan!T137) -> 0 | U137: =SUM(Araria:WChamparan!U137) -> 0 | V137: =SUM(Araria:WChamparan!V137) -> 0 | W137: =SUM(Araria:WChamparan!W137) -> 0 | X137: 0.5 | Y137: =SUM(Araria:WChamparan!Y137) -> 3 | Z137: =SUM(Araria:WChamparan!Z137) -> 1.5 | AA137: =SUM(Araria:WChamparan!AA137) -> 3 | AB137: =SUM(Araria:WChamparan!AB137) -> 1.5
A138: 3.36 | B138: Physical / Self Defence training @ Rs. 200/- per child per annum. | C138: =SUM(Araria:WChamparan!C138) -> 0 | D138: =SUM(Araria:WChamparan!D138) -> 0 | E138: =SUM(Araria:WChamparan!E138) -> 0 | F138: =SUM(Araria:WChamparan!F138) -> 0 | I138: =SUM(Araria:WChamparan!I138) -> 0 | J138: =SUM(Araria:WChamparan!J138) -> 0 | K138: =SUM(Araria:WChamparan!K138) -> 0 | L138: =SUM(Araria:WChamparan!L138) -> 0 | M138: =SUM(Araria:WChamparan!M138) -> 0 | N138: =SUM(Araria:WChamparan!N138) -> 0 | P138: =SUM(Araria:WChamparan!P138) -> 0 | Q138: =SUM(Araria:WChamparan!Q138) -> 0 | R138: =SUM(Araria:WChamparan!R138) -> 0 | S138: =SUM(Araria:WChamparan!S138) -> 0 | T138: =SUM(Araria:WChamparan!T138) -> 0 | U138: =SUM(Araria:WChamparan!U138) -> 0 | V138: =SUM(Araria:WChamparan!V138) -> 0 | W138: =SUM(Araria:WChamparan!W138) -> 0 | Y138: =SUM(Araria:WChamparan!Y138) -> 0 | Z138: =SUM(Araria:WChamparan!Z138) -> 0 | AA138: =SUM(Araria:WChamparan!AA138) -> 0 | AB138: =SUM(Araria:WChamparan!AB138) -> 0
B139: Sub Total (Recurring) | C139: =SUM(Araria:WChamparan!C139) -> 36 | D139: =SUM(Araria:WChamparan!D139) -> 97.35 | E139: =SUM(Araria:WChamparan!E139) -> 9 | F139: =SUM(Araria:WChamparan!F139) -> 42.51 | G139: =IFERROR(E139/C139, ) -> 0.25 | H139: 0.4366718028 | I139: =SUM(Araria:WChamparan!I139) -> 27 | J139: =SUM(Araria:WChamparan!J139) -> 54.84 | K139: =SUM(Araria:WChamparan!K139) -> 0 | L139: =SUM(Araria:WChamparan!L139) -> 0 | M139: =SUM(Araria:WChamparan!M139) -> 0 | N139: =SUM(Araria:WChamparan!N139) -> 0 | P139: =SUM(Araria:WChamparan!P139) -> 64 | Q139: =SUM(Araria:WChamparan!Q139) -> 140.2 | R139: =SUM(Araria:WChamparan!R139) -> 64 | S139: =SUM(Araria:WChamparan!S139) -> 140.2 | T139: =SUM(Araria:WChamparan!T139) -> 0 | U139: =SUM(Araria:WChamparan!U139) -> 0 | V139: =SUM(Araria:WChamparan!V139) -> 0 | W139: =SUM(Araria:WChamparan!W139) -> 0 | Y139: =SUM(Araria:WChamparan!Y139) -> 36 | Z139: =SUM(Araria:WChamparan!Z139) -> 97.35 | AA139: =SUM(Araria:WChamparan!AA139) -> 36 | AB139: =SUM(Araria:WChamparan!AB139) -> 97.35
B140: Total (Recurring + Non Recurring) | C140: =SUM(Araria:WChamparan!C140) -> 36 | D140: =SUM(Araria:WChamparan!D140) -> 97.35 | E140: =SUM(Araria:WChamparan!E140) -> 9 | F140: =SUM(Araria:WChamparan!F140) -> 42.51 | G140: 0.25 | H140: 0.4366718028 | I140: =SUM(Araria:WChamparan!I140) -> 27 | J140: =SUM(Araria:WChamparan!J140) -> 54.84 | K140: =SUM(Araria:WChamparan!K140) -> 0 | L140: =SUM(Araria:WChamparan!L140) -> 0 | M140: =SUM(Araria:WChamparan!M140) -> 0 | N140: =SUM(Araria:WChamparan!N140) -> 0 | P140: =SUM(Araria:WChamparan!P140) -> 67 | Q140: =SUM(Araria:WChamparan!Q140) -> 147.45 | R140: =SUM(Araria:WChamparan!R140) -> 67 | S140: =SUM(Araria:WChamparan!S140) -> 147.45 | T140: =SUM(Araria:WChamparan!T140) -> 0 | U140: =SUM(Araria:WChamparan!U140) -> 0 | V140: =SUM(Araria:WChamparan!V140) -> 0 | W140: =SUM(Araria:WChamparan!W140) -> 0 | Y140: =SUM(Araria:WChamparan!Y140) -> 36 | Z140: =SUM(Araria:WChamparan!Z140) -> 97.35 | AA140: =SUM(Araria:WChamparan!AA140) -> 36 | AB140: =SUM(Araria:WChamparan!AB140) -> 97.35
B141: Total (A + B) | C141: =SUM(Araria:WChamparan!C141) -> 36 | D141: =SUM(Araria:WChamparan!D141) -> 97.35 | E141: =SUM(Araria:WChamparan!E141) -> 9 | F141: =SUM(Araria:WChamparan!F141) -> 42.51 | G141: 0.25 | H141: 0.4366718028 | I141: =SUM(Araria:WChamparan!I141) -> 27 | J141: =SUM(Araria:WChamparan!J141) -> 54.84 | K141: =SUM(Araria:WChamparan!K141) -> 0 | L141: =SUM(Araria:WChamparan!L141) -> 0 | M141: =SUM(Araria:WChamparan!M141) -> 0 | N141: =SUM(Araria:WChamparan!N141) -> 0 | P141: =SUM(Araria:WChamparan!P141) -> 67 | Q141: =SUM(Araria:WChamparan!Q141) -> 147.45 | R141: =SUM(Araria:WChamparan!R141) -> 67 | S141: =SUM(Araria:WChamparan!S141) -> 147.45 | T141: =SUM(Araria:WChamparan!T141) -> 0 | U141: =SUM(Araria:WChamparan!U141) -> 0 | V141: =SUM(Araria:WChamparan!V141) -> 0 | W141: =SUM(Araria:WChamparan!W141) -> 0 | Y141: =SUM(Araria:WChamparan!Y141) -> 36 | Z141: =SUM(Araria:WChamparan!Z141) -> 97.35 | AA141: =SUM(Araria:WChamparan!AA141) -> 36 | AB141: =SUM(Araria:WChamparan!AB141) -> 97.35
A142: 4 | B142: Transport/Escort Facility | C142: =SUM(Araria:WChamparan!C142) -> 0 | D142: =SUM(Araria:WChamparan!D142) -> 0 | E142: =SUM(Araria:WChamparan!E142) -> 0 | F142: =SUM(Araria:WChamparan!F142) -> 0 | G142: 0 | H142: 0 | I142: =SUM(Araria:WChamparan!I142) -> 0 | J142: =SUM(Araria:WChamparan!J142) -> 0 | K142: =SUM(Araria:WChamparan!K142) -> 0 | L142: =SUM(Araria:WChamparan!L142) -> 0 | M142: =SUM(Araria:WChamparan!M142) -> 0 | N142: =SUM(Araria:WChamparan!N142) -> 0 | P142: =SUM(Araria:WChamparan!P142) -> 0 | Q142: =SUM(Araria:WChamparan!Q142) -> 0 | R142: =SUM(Araria:WChamparan!R142) -> 0 | S142: =SUM(Araria:WChamparan!S142) -> 0 | T142: =SUM(Araria:WChamparan!T142) -> 0 | U142: =SUM(Araria:WChamparan!U142) -> 0 | V142: =SUM(Araria:WChamparan!V142) -> 0 | W142: =SUM(Araria:WChamparan!W142) -> 0 | Y142: =SUM(Araria:WChamparan!Y142) -> 0 | Z142: =SUM(Araria:WChamparan!Z142) -> 0 | AA142: =SUM(Araria:WChamparan!AA142) -> 0 | AB142: =SUM(Araria:WChamparan!AB142) -> 0
A143: 4.01 | B143: Children in remote habitation | C143: =SUM(Araria:WChamparan!C143) -> 0 | D143: =SUM(Araria:WChamparan!D143) -> 0 | E143: =SUM(Araria:WChamparan!E143) -> 0 | F143: =SUM(Araria:WChamparan!F143) -> 0 | G143: 0 | H143: 0 | I143: =SUM(Araria:WChamparan!I143) -> 0 | J143: =SUM(Araria:WChamparan!J143) -> 0 | K143: =SUM(Araria:WChamparan!K143) -> 0 | L143: =SUM(Araria:WChamparan!L143) -> 0 | M143: =SUM(Araria:WChamparan!M143) -> 0 | N143: =SUM(Araria:WChamparan!N143) -> 0 | P143: =SUM(Araria:WChamparan!P143) -> 0 | Q143: =SUM(Araria:WChamparan!Q143) -> 0 | R143: =SUM(Araria:WChamparan!R143) -> 0 | S143: =SUM(Araria:WChamparan!S143) -> 0 | T143: =SUM(Araria:WChamparan!T143) -> 0 | U143: =SUM(Araria:WChamparan!U143) -> 0 | V143: =SUM(Araria:WChamparan!V143) -> 0 | W143: =SUM(Araria:WChamparan!W143) -> 0 | Y143: =SUM(Araria:WChamparan!Y143) -> 0 | Z143: =SUM(Araria:WChamparan!Z143) -> 0 | AA143: =SUM(Araria:WChamparan!AA143) -> 0 | AB143: =SUM(Araria:WChamparan!AB143) -> 0
A144: 4.02 | B144: Urban deprived children/children without adult protection | C144: =SUM(Araria:WChamparan!C144) -> 0 | D144: =SUM(Araria:WChamparan!D144) -> 0 | E144: =SUM(Araria:WChamparan!E144) -> 0 | F144: =SUM(Araria:WChamparan!F144) -> 0 | G144: 0 | H144: 0 | I144: =SUM(Araria:WChamparan!I144) -> 0 | J144: =SUM(Araria:WChamparan!J144) -> 0 | K144: =SUM(Araria:WChamparan!K144) -> 0 | L144: =SUM(Araria:WChamparan!L144) -> 0 | M144: =SUM(Araria:WChamparan!M144) -> 0 | N144: =SUM(Araria:WChamparan!N144) -> 0 | P144: =SUM(Araria:WChamparan!P144) -> 0 | Q144: =SUM(Araria:WChamparan!Q144) -> 0 | R144: =SUM(Araria:WChamparan!R144) -> 0 | S144: =SUM(Araria:WChamparan!S144) -> 0 | T144: =SUM(Araria:WChamparan!T144) -> 0 | U144: =SUM(Araria:WChamparan!U144) -> 0 | V144: =SUM(Araria:WChamparan!V144) -> 0 | W144: =SUM(Araria:WChamparan!W144) -> 0 | Y144: =SUM(Araria:WChamparan!Y144) -> 0 | Z144: =SUM(Araria:WChamparan!Z144) -> 0 | AA144: =SUM(Araria:WChamparan!AA144) -> 0 | AB144: =SUM(Araria:WChamparan!AB144) -> 0
B145: Sub Total | C145: =SUM(Araria:WChamparan!C145) -> 0 | D145: =SUM(Araria:WChamparan!D145) -> 0 | E145: =SUM(Araria:WChamparan!E145) -> 0 | F145: =SUM(Araria:WChamparan!F145) -> 0 | G145: 0 | H145: 0 | I145: =SUM(Araria:WChamparan!I145) -> 0 | J145: =SUM(Araria:WChamparan!J145) -> 0 | K145: =SUM(Araria:WChamparan!K145) -> 0 | L145: =SUM(Araria:WChamparan!L145) -> 0 | M145: =SUM(Araria:WChamparan!M145) -> 0 | N145: =SUM(Araria:WChamparan!N145) -> 0 | P145: =SUM(Araria:WChamparan!P145) -> 0 | Q145: =SUM(Araria:WChamparan!Q145) -> 0 | R145: =SUM(Araria:WChamparan!R145) -> 0 | S145: =SUM(Araria:WChamparan!S145) -> 0 | T145: =SUM(Araria:WChamparan!T145) -> 0 | U145: =SUM(Araria:WChamparan!U145) -> 0 | V145: =SUM(Araria:WChamparan!V145) -> 0 | W145: =SUM(Araria:WChamparan!W145) -> 0 | Y145: =SUM(Araria:WChamparan!Y145) -> 0 | Z145: =SUM(Araria:WChamparan!Z145) -> 0 | AA145: =SUM(Araria:WChamparan!AA145) -> 0 | AB145: =SUM(Araria:WChamparan!AB145) -> 0
A146: 5 | B146: Reimbursement of Fee against 25% admission under Section 12(1)(c) of RTE Act 2009 (Entry Level) subject to upper limit of 20% of AWP&B guidelines issued by MHRD | C146: =SUM(Araria:WChamparan!C146) -> 0 | D146: =SUM(Araria:WChamparan!D146) -> 0 | E146: =SUM(Araria:WChamparan!E146) -> 0 | F146: =SUM(Araria:WChamparan!F146) -> 0 | I146: =SUM(Araria:WChamparan!I146) -> 0 | J146: =SUM(Araria:WChamparan!J146) -> 0 | K146: =SUM(Araria:WChamparan!K146) -> 0 | L146: =SUM(Araria:WChamparan!L146) -> 0 | M146: =SUM(Araria:WChamparan!M146) -> 0 | N146: =SUM(Araria:WChamparan!N146) -> 0 | O146: 0.0435 | P146: =SUM(Araria:WChamparan!P146) -> 97717 | Q146: =SUM(Araria:WChamparan!Q146) -> 4250.6895 | R146: =SUM(Araria:WChamparan!R146) -> 97717 | S146: =SUM(Araria:WChamparan!S146) -> 4250.6895 | T146: =SUM(Araria:WChamparan!T146) -> 0 | U146: =SUM(Araria:WChamparan!U146) -> 0 | V146: =SUM(Araria:WChamparan!V146) -> 0 | W146: =SUM(Araria:WChamparan!W146) -> 0 | Y146: =SUM(Araria:WChamparan!Y146) -> 0 | Z146: =SUM(Araria:WChamparan!Z146) -> 0 | AA146: =SUM(Araria:WChamparan!AA146) -> 0 | AB146: =SUM(Araria:WChamparan!AB146) -> 0
B147: Sub Total | C147: =SUM(Araria:WChamparan!C147) -> 0 | D147: =SUM(Araria:WChamparan!D147) -> 0 | E147: =SUM(Araria:WChamparan!E147) -> 0 | F147: =SUM(Araria:WChamparan!F147) -> 0 | I147: =SUM(Araria:WChamparan!I147) -> 0 | J147: =SUM(Araria:WChamparan!J147) -> 0 | K147: =SUM(Araria:WChamparan!K147) -> 0 | L147: =SUM(Araria:WChamparan!L147) -> 0 | M147: =SUM(Araria:WChamparan!M147) -> 0 | N147: =SUM(Araria:WChamparan!N147) -> 0 | O147: =O146 -> 0.0435 | P147: =SUM(Araria:WChamparan!P147) -> 97717 | Q147: =SUM(Araria:WChamparan!Q147) -> 4250.6895 | R147: =SUM(Araria:WChamparan!R147) -> 97717 | S147: =SUM(Araria:WChamparan!S147) -> 4250.6895 | T147: =SUM(Araria:WChamparan!T147) -> 0 | U147: =SUM(Araria:WChamparan!U147) -> 0 | V147: =SUM(Araria:WChamparan!V147) -> 0 | W147: =SUM(Araria:WChamparan!W147) -> 0 | Y147: =SUM(Araria:WChamparan!Y147) -> 0 | Z147: =SUM(Araria:WChamparan!Z147) -> 0 | AA147: =SUM(Araria:WChamparan!AA147) -> 0 | AB147: =SUM(Araria:WChamparan!AB147) -> 0
A148: 6 | B148: Special Training for mainstreaming of Out-of-School Children | C148: =SUM(Araria:WChamparan!C148) -> 0 | D148: =SUM(Araria:WChamparan!D148) -> 0 | E148: =SUM(Araria:WChamparan!E148) -> 0 | F148: =SUM(Araria:WChamparan!F148) -> 0 | G148: =IFERROR(E148/C148, ) -> 0 | H148: 0 | I148: =SUM(Araria:WChamparan!I148) -> 0 | J148: =SUM(Araria:WChamparan!J148) -> 0 | K148: =SUM(Araria:WChamparan!K148) -> 0 | L148: =SUM(Araria:WChamparan!L148) -> 0 | M148: =SUM(Araria:WChamparan!M148) -> 0 | N148: =SUM(Araria:WChamparan!N148) -> 0 | P148: =SUM(Araria:WChamparan!P148) -> 0 | Q148: =SUM(Araria:WChamparan!Q148) -> 0 | R148: =SUM(Araria:WChamparan!R148) -> 0 | S148: =SUM(Araria:WChamparan!S148) -> 0 | T148: =SUM(Araria:WChamparan!T148) -> 0 | U148: =SUM(Araria:WChamparan!U148) -> 0 | V148: =SUM(Araria:WChamparan!V148) -> 0 | W148: =SUM(Araria:WChamparan!W148) -> 0 | Y148: =SUM(Araria:WChamparan!Y148) -> 0 | Z148: =SUM(Araria:WChamparan!Z148) -> 0 | AA148: =SUM(Araria:WChamparan!AA148) -> 0 | AB148: =SUM(Araria:WChamparan!AB148) -> 0
A149: 6.01 | B149: Residential (Fresh) | C149: =SUM(Araria:WChamparan!C149) -> 0 | D149: =SUM(Araria:WChamparan!D149) -> 0 | E149: =SUM(Araria:WChamparan!E149) -> 0 | F149: =SUM(Araria:WChamparan!F149) -> 0 | G149: 0 | H149: 0 | I149: =SUM(Araria:WChamparan!I149) -> 0 | J149: =SUM(Araria:WChamparan!J149) -> 0 | K149: =SUM(Araria:WChamparan!K149) -> 0 | L149: =SUM(Araria:WChamparan!L149) -> 0 | M149: =SUM(Araria:WChamparan!M149) -> 0 | N149: =SUM(Araria:WChamparan!N149) -> 0 | P149: =SUM(Araria:WChamparan!P149) -> 0 | Q149: =SUM(Araria:WChamparan!Q149) -> 0 | R149: =SUM(Araria:WChamparan!R149) -> 0 | S149: =SUM(Araria:WChamparan!S149) -> 0 | T149: =SUM(Araria:WChamparan!T149) -> 0 | U149: =SUM(Araria:WChamparan!U149) -> 0 | V149: =SUM(Araria:WChamparan!V149) -> 0 | W149: =SUM(Araria:WChamparan!W149) -> 0 | Y149: =SUM(Araria:WChamparan!Y149) -> 0 | Z149: =SUM(Araria:WChamparan!Z149) -> 0 | AA149: =SUM(Araria:WChamparan!AA149) -> 0 | AB149: =SUM(Araria:WChamparan!AB149) -> 0
B150: (a) 12 Months | C150: =SUM(Araria:WChamparan!C150) -> 3963 | D150: =SUM(Araria:WChamparan!D150) -> 792.6 | E150: =SUM(Araria:WChamparan!E150) -> 0 | F150: =SUM(Araria:WChamparan!F150) -> 0 | G150: 0 | H150: 0 | I150: =SUM(Araria:WChamparan!I150) -> 3963 | J150: =SUM(Araria:WChamparan!J150) -> 792.6 | K150: =SUM(Araria:WChamparan!K150) -> 0 | L150: =SUM(Araria:WChamparan!L150) -> 0 | M150: =SUM(Araria:WChamparan!M150) -> 0 | N150: =SUM(Araria:WChamparan!N150) -> 0 | O150: 0.24 | P150: =SUM(Araria:WChamparan!P150) -> 200 | Q150: =SUM(Araria:WChamparan!Q150) -> 48 | R150: =SUM(Araria:WChamparan!R150) -> 200 | S150: =SUM(Araria:WChamparan!S150) -> 48 | T150: =SUM(Araria:WChamparan!T150) -> 0 | U150: =SUM(Araria:WChamparan!U150) -> 0 | V150: =SUM(Araria:WChamparan!V150) -> 0 | W150: =SUM(Araria:WChamparan!W150) -> 0 | X150: 0.2 | Y150: =SUM(Araria:WChamparan!Y150) -> 200 | Z150: =SUM(Araria:WChamparan!Z150) -> 40 | AA150: =SUM(Araria:WChamparan!AA150) -> 200 | AB150: =SUM(Araria:WChamparan!AB150) -> 40
B151: (b) 9 Months | C151: =SUM(Araria:WChamparan!C151) -> 26454 | D151: =SUM(Araria:WChamparan!D151) -> 3968.1 | E151: =SUM(Araria:WChamparan!E151) -> 5601 | F151: =SUM(Araria:WChamparan!F151) -> 711.1461 | G151: 0.211726015 | H151: 0.1792157708 | I151: =SUM(Araria:WChamparan!I151) -> 20853 | J151: =SUM(Araria:WChamparan!J151) -> 3256.9539 | K151: =SUM(Araria:WChamparan!K151) -> 0 | L151: =SUM(Araria:WChamparan!L151) -> 0 | M151: =SUM(Araria:WChamparan!M151) -> 0 | N151: =SUM(Araria:WChamparan!N151) -> 0 | O151: 0.18 | P151: =SUM(Araria:WChamparan!P151) -> 24026 | Q151: =SUM(Araria:WChamparan!Q151) -> 4324.68 | R151: =SUM(Araria:WChamparan!R151) -> 24026 | S151: =SUM(Araria:WChamparan!S151) -> 4324.68 | T151: =SUM(Araria:WChamparan!T151) -> 0 | U151: =SUM(Araria:WChamparan!U151) -> 0 | V151: =SUM(Araria:WChamparan!V151) -> 0 | W151: =SUM(Araria:WChamparan!W151) -> 0 | X151: 0.15 | Y151: =SUM(Araria:WChamparan!Y151) -> 24026 | Z151: =SUM(Araria:WChamparan!Z151) -> 3603.9 | AA151: =SUM(Araria:WChamparan!AA151) -> 24026 | AB151: =SUM(Araria:WChamparan!AB151) -> 3603.9
B152: (c) 6 Months | C152: =SUM(Araria:WChamparan!C152) -> 8810 | D152: =SUM(Araria:WChamparan!D152) -> 881 | E152: =SUM(Araria:WChamparan!E152) -> 1018 | F152: =SUM(Araria:WChamparan!F152) -> 46.49743 | G152: 0.1155505108 | H152: 0.05277801362 | I152: =SUM(Araria:WChamparan!I152) -> 7792 | J152: =SUM(Araria:WChamparan!J152) -> 834.50257 | K152: =SUM(Araria:WChamparan!K152) -> 0 | L152: =SUM(Araria:WChamparan!L152) -> 0 | M152: =SUM(Araria:WChamparan!M152) -> 0 | N152: =SUM(Araria:WChamparan!N152) -> 0 | O152: 0.12 | P152: =SUM(Araria:WChamparan!P152) -> 5005 | Q152: =SUM(Araria:WChamparan!Q152) -> 600.6 | R152: =SUM(Araria:WChamparan!R152) -> 5005 | S152: =SUM(Araria:WChamparan!S152) -> 600.6 | T152: =SUM(Araria:WChamparan!T152) -> 0 | U152: =SUM(Araria:WChamparan!U152) -> 0 | V152: =SUM(Araria:WChamparan!V152) -> 0 | W152: =SUM(Araria:WChamparan!W152) -> 0 | X152: 0.1 | Y152: =SUM(Araria:WChamparan!Y152) -> 5005 | Z152: =SUM(Araria:WChamparan!Z152) -> 500.5 | AA152: =SUM(Araria:WChamparan!AA152) -> 5005 | AB152: =SUM(Araria:WChamparan!AB152) -> 500.5
B153: (d) 3 Months | C153: =SUM(Araria:WChamparan!C153) -> 0 | D153: =SUM(Araria:WChamparan!D153) -> 0 | E153: =SUM(Araria:WChamparan!E153) -> 0 | F153: =SUM(Araria:WChamparan!F153) -> 0 | G153: 0 | H153: 0 | I153: =SUM(Araria:WChamparan!I153) -> 0 | J153: =SUM(Araria:WChamparan!J153) -> 0 | K153: =SUM(Araria:WChamparan!K153) -> 0 | L153: =SUM(Araria:WChamparan!L153) -> 0 | M153: =SUM(Araria:WChamparan!M153) -> 0 | N153: =SUM(Araria:WChamparan!N153) -> 0 | P153: =SUM(Araria:WChamparan!P153) -> 0 | Q153: =SUM(Araria:WChamparan!Q153) -> 0 | R153: =SUM(Araria:WChamparan!R153) -> 0 | S153: =SUM(Araria:WChamparan!S153) -> 0 | T153: =SUM(Araria:WChamparan!T153) -> 0 | U153: =SUM(Araria:WChamparan!U153) -> 0 | V153: =SUM(Araria:WChamparan!V153) -> 0 | W153: =SUM(Araria:WChamparan!W153) -> 0 | X153: 0 | Y153: =SUM(Araria:WChamparan!Y153) -> 0 | Z153: =SUM(Araria:WChamparan!Z153) -> 0 | AA153: =SUM(Araria:WChamparan!AA153) -> 0 | AB153: =SUM(Araria:WChamparan!AB153) -> 0
B154: Sub Total : | C154: =SUM(Araria:WChamparan!C154) -> 39227 | D154: =SUM(Araria:WChamparan!D154) -> 5641.7 | E154: =SUM(Araria:WChamparan!E154) -> 6619 | F154: =SUM(Araria:WChamparan!F154) -> 757.64353 | G154: 0.1687358197 | H154: 0.1342934807 | I154: =SUM(Araria:WChamparan!I154) -> 32608 | J154: =SUM(Araria:WChamparan!J154) -> 4884.05647 | K154: =SUM(Araria:WChamparan!K154) -> 0 | L154: =SUM(Araria:WChamparan!L154) -> 0 | M154: =SUM(Araria:WChamparan!M154) -> 0 | N154: =SUM(Araria:WChamparan!N154) -> 0 | P154: =SUM(Araria:WChamparan!P154) -> 29231 | Q154: =SUM(Araria:WChamparan!Q154) -> 4973.28 | R154: =SUM(Araria:WChamparan!R154) -> 29231 | S154: =SUM(Araria:WChamparan!S154) -> 4973.28 | T154: =SUM(Araria:WChamparan!T154) -> 0 | U154: =SUM(Araria:WChamparan!U154) -> 0 | V154: =SUM(Araria:WChamparan!V154) -> 0 | W154: =SUM(Araria:WChamparan!W154) -> 0 | Y154: =SUM(Araria:WChamparan!Y154) -> 29231 | Z154: =SUM(Araria:WChamparan!Z154) -> 4144.4 | AA154: =SUM(Araria:WChamparan!AA154) -> 29231 | AB154: =SUM(Araria:WChamparan!AB154) -> 4144.4
A155: 6.02 | B155: Residential (Continuing from previous year) | C155: =SUM(Araria:WChamparan!C155) -> 0 | D155: =SUM(Araria:WChamparan!D155) -> 0 | E155: =SUM(Araria:WChamparan!E155) -> 0 | F155: =SUM(Araria:WChamparan!F155) -> 0 | G155: 0 | H155: 0 | I155: =SUM(Araria:WChamparan!I155) -> 0 | J155: =SUM(Araria:WChamparan!J155) -> 0 | K155: =SUM(Araria:WChamparan!K155) -> 0 | L155: =SUM(Araria:WChamparan!L155) -> 0 | M155: =SUM(Araria:WChamparan!M155) -> 0 | N155: =SUM(Araria:WChamparan!N155) -> 0 | P155: =SUM(Araria:WChamparan!P155) -> 0 | Q155: =SUM(Araria:WChamparan!Q155) -> 0 | R155: =SUM(Araria:WChamparan!R155) -> 0 | S155: =SUM(Araria:WChamparan!S155) -> 0 | T155: =SUM(Araria:WChamparan!T155) -> 0 | U155: =SUM(Araria:WChamparan!U155) -> 0 | V155: =SUM(Araria:WChamparan!V155) -> 0 | W155: =SUM(Araria:WChamparan!W155) -> 0 | Y155: =SUM(Araria:WChamparan!Y155) -> 0 | Z155: =SUM(Araria:WChamparan!Z155) -> 0 | AA155: =SUM(Araria:WChamparan!AA155) -> 0 | AB155: =SUM(Araria:WChamparan!AB155) -> 0
B156: (a) 12 Months | C156: =SUM(Araria:WChamparan!C156) -> 0 | D156: =SUM(Araria:WChamparan!D156) -> 0 | E156: =SUM(Araria:WChamparan!E156) -> 0 | F156: =SUM(Araria:WChamparan!F156) -> 0 | G156: 0 | H156: 0 | I156: =SUM(Araria:WChamparan!I156) -> 0 | J156: =SUM(Araria:WChamparan!J156) -> 0 | K156: =SUM(Araria:WChamparan!K156) -> 0 | L156: =SUM(Araria:WChamparan!L156) -> 0 | M156: =SUM(Araria:WChamparan!M156) -> 0 | N156: =SUM(Araria:WChamparan!N156) -> 0 | P156: =SUM(Araria:WChamparan!P156) -> 0 | Q156: =SUM(Araria:WChamparan!Q156) -> 0 | R156: =SUM(Araria:WChamparan!R156) -> 0 | S156: =SUM(Araria:WChamparan!S156) -> 0 | T156: =SUM(Araria:WChamparan!T156) -> 0 | U156: =SUM(Araria:WChamparan!U156) -> 0 | V156: =SUM(Araria:WChamparan!V156) -> 0 | W156: =SUM(Araria:WChamparan!W156) -> 0 | Y156: =SUM(Araria:WChamparan!Y156) -> 0 | Z156: =SUM(Araria:WChamparan!Z156) -> 0 | AA156: =SUM(Araria:WChamparan!AA156) -> 0 | AB156: =SUM(Araria:WChamparan!AB156) -> 0
B157: (b) 9 Months | C157: =SUM(Araria:WChamparan!C157) -> 1030 | D157: =SUM(Araria:WChamparan!D157) -> 154.5 | E157: =SUM(Araria:WChamparan!E157) -> 1030 | F157: =SUM(Araria:WChamparan!F157) -> 94.76823 | G157: 1 | H157: 0.6133866019 | I157: =SUM(Araria:WChamparan!I157) -> 0 | J157: =SUM(Araria:WChamparan!J157) -> 59.73177 | K157: =SUM(Araria:WChamparan!K157) -> 0 | L157: =SUM(Araria:WChamparan!L157) -> 0 | M157: =SUM(Araria:WChamparan!M157) -> 0 | N157: =SUM(Araria:WChamparan!N157) -> 0 | O157: 0.18 | P157: =SUM(Araria:WChamparan!P157) -> 300 | Q157: =SUM(Araria:WChamparan!Q157) -> 54 | R157: =SUM(Araria:WChamparan!R157) -> 300 | S157: =SUM(Araria:WChamparan!S157) -> 54 | T157: =SUM(Araria:WChamparan!T157) -> 0 | U157: =SUM(Araria:WChamparan!U157) -> 0 | V157: =SUM(Araria:WChamparan!V157) -> 0 | W157: =SUM(Araria:WChamparan!W157) -> 0 | X157: 0.15 | Y157: =SUM(Araria:WChamparan!Y157) -> 300 | Z157: =SUM(Araria:WChamparan!Z157) -> 45 | AA157: =SUM(Araria:WChamparan!AA157) -> 300 | AB157: =SUM(Araria:WChamparan!AB157) -> 45
B158: (c) 6 Months | C158: =SUM(Araria:WChamparan!C158) -> 13540 | D158: =SUM(Araria:WChamparan!D158) -> 1354 | E158: =SUM(Araria:WChamparan!E158) -> 10441 | F158: =SUM(Araria:WChamparan!F158) -> 718.16519 | G158: 0.7711225997 | H158: 0.5304026514 | I158: =SUM(Araria:WChamparan!I158) -> 3099 | J158: =SUM(Araria:WChamparan!J158) -> 635.83481 | K158: =SUM(Araria:WChamparan!K158) -> 0 | L158: =SUM(Araria:WChamparan!L158) -> 0 | M158: =SUM(Araria:WChamparan!M158) -> 0 | N158: =SUM(Araria:WChamparan!N158) -> 0 | O158: 0.12 | P158: =SUM(Araria:WChamparan!P158) -> 4782 | Q158: =SUM(Araria:WChamparan!Q158) -> 573.84 | R158: =SUM(Araria:WChamparan!R158) -> 4782 | S158: =SUM(Araria:WChamparan!S158) -> 573.84 | T158: =SUM(Araria:WChamparan!T158) -> 0 | U158: =SUM(Araria:WChamparan!U158) -> 0 | V158: =SUM(Araria:WChamparan!V158) -> 0 | W158: =SUM(Araria:WChamparan!W158) -> 0 | X158: 0.1 | Y158: =SUM(Araria:WChamparan!Y158) -> 4782 | Z158: =SUM(Araria:WChamparan!Z158) -> 478.2 | AA158: =SUM(Araria:WChamparan!AA158) -> 4782 | AB158: =SUM(Araria:WChamparan!AB158) -> 478.2
B159: (d) 3 Months | C159: =SUM(Araria:WChamparan!C159) -> 450 | D159: =SUM(Araria:WChamparan!D159) -> 22.5 | E159: =SUM(Araria:WChamparan!E159) -> 0 | F159: =SUM(Araria:WChamparan!F159) -> 0 | G159: 0 | H159: 0 | I159: =SUM(Araria:WChamparan!I159) -> 450 | J159: =SUM(Araria:WChamparan!J159) -> 22.5 | K159: =SUM(Araria:WChamparan!K159) -> 0 | L159: =SUM(Araria:WChamparan!L159) -> 0 | M159: =SUM(Araria:WChamparan!M159) -> 0 | N159: =SUM(Araria:WChamparan!N159) -> 0 | O159: 0.06 | P159: =SUM(Araria:WChamparan!P159) -> 0 | Q159: =SUM(Araria:WChamparan!Q159) -> 0 | R159: =SUM(Araria:WChamparan!R159) -> 0 | S159: =SUM(Araria:WChamparan!S159) -> 0 | T159: =SUM(Araria:WChamparan!T159) -> 0 | U159: =SUM(Araria:WChamparan!U159) -> 0 | V159: =SUM(Araria:WChamparan!V159) -> 0 | W159: =SUM(Araria:WChamparan!W159) -> 0 | X159: 0.05 | Y159: =SUM(Araria:WChamparan!Y159) -> 0 | Z159: =SUM(Araria:WChamparan!Z159) -> 0 | AA159: =SUM(Araria:WChamparan!AA159) -> 0 | AB159: =SUM(Araria:WChamparan!AB159) -> 0
B160: (e) Seasonal Hostel for Migrant Children (6 months) | C160: =SUM(Araria:WChamparan!C160) -> 0 | D160: =SUM(Araria:WChamparan!D160) -> 0 | E160: =SUM(Araria:WChamparan!E160) -> 0 | F160: =SUM(Araria:WChamparan!F160) -> 0 | G160: 0 | H160: 0 | I160: =SUM(Araria:WChamparan!I160) -> 0 | J160: =SUM(Araria:WChamparan!J160) -> 0 | K160: =SUM(Araria:WChamparan!K160) -> 0 | L160: =SUM(Araria:WChamparan!L160) -> 0 | M160: =SUM(Araria:WChamparan!M160) -> 0 | N160: =SUM(Araria:WChamparan!N160) -> 0 | P160: =SUM(Araria:WChamparan!P160) -> 0 | Q160: =SUM(Araria:WChamparan!Q160) -> 0 | R160: =SUM(Araria:WChamparan!R160) -> 0 | S160: =SUM(Araria:WChamparan!S160) -> 0 | T160: =SUM(Araria:WChamparan!T160) -> 0 | U160: =SUM(Araria:WChamparan!U160) -> 0 | V160: =SUM(Araria:WChamparan!V160) -> 0 | W160: =SUM(Araria:WChamparan!W160) -> 0 | Y160: =SUM(Araria:WChamparan!Y160) -> 0 | Z160: =SUM(Araria:WChamparan!Z160) -> 0 | AA160: =SUM(Araria:WChamparan!AA160) -> 0 | AB160: =SUM(Araria:WChamparan!AB160) -> 0
B161: (f) Worksite School for Migrant Children (6 months) | C161: =SUM(Araria:WChamparan!C161) -> 0 | D161: =SUM(Araria:WChamparan!D161) -> 0 | E161: =SUM(Araria:WChamparan!E161) -> 0 | F161: =SUM(Araria:WChamparan!F161) -> 0 | G161: 0 | H161: 0 | I161: =SUM(Araria:WChamparan!I161) -> 0 | J161: =SUM(Araria:WChamparan!J161) -> 0 | K161: =SUM(Araria:WChamparan!K161) -> 0 | L161: =SUM(Araria:WChamparan!L161) -> 0 | M161: =SUM(Araria:WChamparan!M161) -> 0 | N161: =SUM(Araria:WChamparan!N161) -> 0 | O161: 0.0214 | P161: =SUM(Araria:WChamparan!P161) -> 0 | Q161: =SUM(Araria:WChamparan!Q161) -> 0 | R161: =SUM(Araria:WChamparan!R161) -> 0 | S161: =SUM(Araria:WChamparan!S161) -> 0 | T161: =SUM(Araria:WChamparan!T161) -> 0 | U161: =SUM(Araria:WChamparan!U161) -> 0 | V161: =SUM(Araria:WChamparan!V161) -> 0 | W161: =SUM(Araria:WChamparan!W161) -> 0 | X161: 0 | Y161: =SUM(Araria:WChamparan!Y161) -> 0 | Z161: =SUM(Araria:WChamparan!Z161) -> 0 | AA161: =SUM(Araria:WChamparan!AA161) -> 0 | AB161: =SUM(Araria:WChamparan!AB161) -> 0
B162: Sub Total : | C162: =SUM(Araria:WChamparan!C162) -> 15020 | D162: =SUM(Araria:WChamparan!D162) -> 1531 | E162: =SUM(Araria:WChamparan!E162) -> 11471 | F162: =SUM(Araria:WChamparan!F162) -> 812.93342 | G162: 0.7637150466 | H162: 0.5309819856 | I162: =SUM(Araria:WChamparan!I162) -> 3549 | J162: =SUM(Araria:WChamparan!J162) -> 718.06658 | K162: =SUM(Araria:WChamparan!K162) -> 0 | L162: =SUM(Araria:WChamparan!L162) -> 0 | M162: =SUM(Araria:WChamparan!M162) -> 0 | N162: =SUM(Araria:WChamparan!N162) -> 0 | P162: =SUM(Araria:WChamparan!P162) -> 5082 | Q162: =SUM(Araria:WChamparan!Q162) -> 627.84 | R162: =SUM(Araria:WChamparan!R162) -> 5082 | S162: =SUM(Araria:WChamparan!S162) -> 627.84 | T162: =SUM(Araria:WChamparan!T162) -> 0 | U162: =SUM(Araria:WChamparan!U162) -> 0 | V162: =SUM(Araria:WChamparan!V162) -> 0 | W162: =SUM(Araria:WChamparan!W162) -> 0 | Y162: =SUM(Araria:WChamparan!Y162) -> 5082 | Z162: =SUM(Araria:WChamparan!Z162) -> 523.2 | AA162: =SUM(Araria:WChamparan!AA162) -> 5082 | AB162: =SUM(Araria:WChamparan!AB162) -> 523.2
A163: 6.03 | B163: Non-Residential (Fresh) | C163: =SUM(Araria:WChamparan!C163) -> 0 | D163: =SUM(Araria:WChamparan!D163) -> 0 | E163: =SUM(Araria:WChamparan!E163) -> 0 | F163: =SUM(Araria:WChamparan!F163) -> 0 | G163: 0 | H163: 0 | I163: =SUM(Araria:WChamparan!I163) -> 0 | J163: =SUM(Araria:WChamparan!J163) -> 0 | K163: =SUM(Araria:WChamparan!K163) -> 0 | L163: =SUM(Araria:WChamparan!L163) -> 0 | M163: =SUM(Araria:WChamparan!M163) -> 0 | N163: =SUM(Araria:WChamparan!N163) -> 0 | P163: =SUM(Araria:WChamparan!P163) -> 0 | Q163: =SUM(Araria:WChamparan!Q163) -> 0 | R163: =SUM(Araria:WChamparan!R163) -> 0 | S163: =SUM(Araria:WChamparan!S163) -> 0 | T163: =SUM(Araria:WChamparan!T163) -> 0 | U163: =SUM(Araria:WChamparan!U163) -> 0 | V163: =SUM(Araria:WChamparan!V163) -> 0 | W163: =SUM(Araria:WChamparan!W163) -> 0 | Y163: =SUM(Araria:WChamparan!Y163) -> 0 | Z163: =SUM(Araria:WChamparan!Z163) -> 0 | AA163: =SUM(Araria:WChamparan!AA163) -> 0 | AB163: =SUM(Araria:WChamparan!AB163) -> 0
B164: (a) 12 Months | C164: =SUM(Araria:WChamparan!C164) -> 0 | D164: =SUM(Araria:WChamparan!D164) -> 0 | E164: =SUM(Araria:WChamparan!E164) -> 0 | F164: =SUM(Araria:WChamparan!F164) -> 0 | G164: 0 | H164: 0 | I164: =SUM(Araria:WChamparan!I164) -> 0 | J164: =SUM(Araria:WChamparan!J164) -> 0 | K164: =SUM(Araria:WChamparan!K164) -> 0 | L164: =SUM(Araria:WChamparan!L164) -> 0 | M164: =SUM(Araria:WChamparan!M164) -> 0 | N164: =SUM(Araria:WChamparan!N164) -> 0 | O164: 0.046 | P164: =SUM(Araria:WChamparan!P164) -> 0 | Q164: =SUM(Araria:WChamparan!Q164) -> 0 | R164: =SUM(Araria:WChamparan!R164) -> 0 | S164: =SUM(Araria:WChamparan!S164) -> 0 | T164: =SUM(Araria:WChamparan!T164) -> 0 | U164: =SUM(Araria:WChamparan!U164) -> 0 | V164: =SUM(Araria:WChamparan!V164) -> 0 | W164: =SUM(Araria:WChamparan!W164) -> 0 | X164: 0 | Y164: =SUM(Araria:WChamparan!Y164) -> 0 | Z164: =SUM(Araria:WChamparan!Z164) -> 0 | AA164: =SUM(Araria:WChamparan!AA164) -> 0 | AB164: =SUM(Araria:WChamparan!AB164) -> 0
B165: (b) 9 Months | C165: =SUM(Araria:WChamparan!C165) -> 45331 | D165: =SUM(Araria:WChamparan!D165) -> 1187.6722 | E165: =SUM(Araria:WChamparan!E165) -> 20447 | F165: =SUM(Araria:WChamparan!F165) -> 9.90532 | G165: 0.451059981 | H165: 0.008340112701 | I165: =SUM(Araria:WChamparan!I165) -> 24884 | J165: =SUM(Araria:WChamparan!J165) -> 1177.76688 | K165: =SUM(Araria:WChamparan!K165) -> 0 | L165: =SUM(Araria:WChamparan!L165) -> 0 | M165: =SUM(Araria:WChamparan!M165) -> 0 | N165: =SUM(Araria:WChamparan!N165) -> 0 | O165: 0.0345 | P165: =SUM(Araria:WChamparan!P165) -> 7887 | Q165: =SUM(Araria:WChamparan!Q165) -> 354.915 | R165: =SUM(Araria:WChamparan!R165) -> 7887 | S165: =SUM(Araria:WChamparan!S165) -> 354.915 | T165: =SUM(Araria:WChamparan!T165) -> 0 | U165: =SUM(Araria:WChamparan!U165) -> 0 | V165: =SUM(Araria:WChamparan!V165) -> 0 | W165: =SUM(Araria:WChamparan!W165) -> 0 | X165: 0.0345 | Y165: =SUM(Araria:WChamparan!Y165) -> 7887 | Z165: =SUM(Araria:WChamparan!Z165) -> 354.915 | AA165: =SUM(Araria:WChamparan!AA165) -> 7887 | AB165: =SUM(Araria:WChamparan!AB165) -> 354.915
B166: (c) 6 Months | C166: =SUM(Araria:WChamparan!C166) -> 130075 | D166: =SUM(Araria:WChamparan!D166) -> 2506.54525 | E166: =SUM(Araria:WChamparan!E166) -> 45120 | F166: =SUM(Araria:WChamparan!F166) -> 205.42661 | G166: 0.3468768018 | H166: 0.0819560748 | I166: =SUM(Araria:WChamparan!I166) -> 84955 | J166: =SUM(Araria:WChamparan!J166) -> 2301.11864 | K166: =SUM(Araria:WChamparan!K166) -> 0 | L166: =SUM(Araria:WChamparan!L166) -> 0 | M166: =SUM(Araria:WChamparan!M166) -> 0 | N166: =SUM(Araria:WChamparan!N166) -> 0 | O166: 0.023 | P166: =SUM(Araria:WChamparan!P166) -> 76298 | Q166: =SUM(Araria:WChamparan!Q166) -> 2288.94 | R166: =SUM(Araria:WChamparan!R166) -> 76298 | S166: =SUM(Araria:WChamparan!S166) -> 2288.94 | T166: =SUM(Araria:WChamparan!T166) -> 0 | U166: =SUM(Araria:WChamparan!U166) -> 0 | V166: =SUM(Araria:WChamparan!V166) -> 0 | W166: =SUM(Araria:WChamparan!W166) -> 0 | X166: 0.023 | Y166: =SUM(Araria:WChamparan!Y166) -> 76298 | Z166: =SUM(Araria:WChamparan!Z166) -> 2288.94 | AA166: =SUM(Araria:WChamparan!AA166) -> 76298 | AB166: =SUM(Araria:WChamparan!AB166) -> 2288.94
B167: (d) 3 Months | C167: =SUM(Araria:WChamparan!C167) -> 0 | D167: =SUM(Araria:WChamparan!D167) -> 0 | E167: =SUM(Araria:WChamparan!E167) -> 0 | F167: =SUM(Araria:WChamparan!F167) -> 0 | G167: 0 | H167: 0 | I167: =SUM(Araria:WChamparan!I167) -> 0 | J167: =SUM(Araria:WChamparan!J167) -> 0 | K167: =SUM(Araria:WChamparan!K167) -> 0 | L167: =SUM(Araria:WChamparan!L167) -> 0 | M167: =SUM(Araria:WChamparan!M167) -> 0 | N167: =SUM(Araria:WChamparan!N167) -> 0 | O167: 0.0115 | P167: =SUM(Araria:WChamparan!P167) -> 0 | Q167: =SUM(Araria:WChamparan!Q167) -> 0 | R167: =SUM(Araria:WChamparan!R167) -> 0 | S167: =SUM(Araria:WChamparan!S167) -> 0 | T167: =SUM(Araria:WChamparan!T167) -> 0 | U167: =SUM(Araria:WChamparan!U167) -> 0 | V167: =SUM(Araria:WChamparan!V167) -> 0 | W167: =SUM(Araria:WChamparan!W167) -> 0 | Y167: =SUM(Araria:WChamparan!Y167) -> 0 | Z167: =SUM(Araria:WChamparan!Z167) -> 0 | AA167: =SUM(Araria:WChamparan!AA167) -> 0 | AB167: =SUM(Araria:WChamparan!AB167) -> 0
B168: Sub Total : | C168: =SUM(Araria:WChamparan!C168) -> 175406 | D168: =SUM(Araria:WChamparan!D168) -> 3694.21745 | E168: =SUM(Araria:WChamparan!E168) -> 65567 | F168: =SUM(Araria:WChamparan!F168) -> 215.33193 | G168: 0.3738013523 | H168: 0.05828891583 | I168: =SUM(Araria:WChamparan!I168) -> 109839 | J168: =SUM(Araria:WChamparan!J168) -> 3478.88552 | K168: =SUM(Araria:WChamparan!K168) -> 0 | L168: =SUM(Araria:WChamparan!L168) -> 0 | M168: =SUM(Araria:WChamparan!M168) -> 0 | N168: =SUM(Araria:WChamparan!N168) -> 0 | P168: =SUM(Araria:WChamparan!P168) -> 84185 | Q168: =SUM(Araria:WChamparan!Q168) -> 2643.855 | R168: =SUM(Araria:WChamparan!R168) -> 84185 | S168: =SUM(Araria:WChamparan!S168) -> 2643.855 | T168: =SUM(Araria:WChamparan!T168) -> 0 | U168: =SUM(Araria:WChamparan!U168) -> 0 | V168: =SUM(Araria:WChamparan!V168) -> 0 | W168: =SUM(Araria:WChamparan!W168) -> 0 | Y168: =SUM(Araria:WChamparan!Y168) -> 84185 | Z168: =SUM(Araria:WChamparan!Z168) -> 2643.855 | AA168: =SUM(Araria:WChamparan!AA168) -> 84185 | AB168: =SUM(Araria:WChamparan!AB168) -> 2643.855
A169: 6.04 | B169: Non-Residential (Continuing from previous year) | C169: =SUM(Araria:WChamparan!C169) -> 0 | D169: =SUM(Araria:WChamparan!D169) -> 0 | E169: =SUM(Araria:WChamparan!E169) -> 0 | F169: =SUM(Araria:WChamparan!F169) -> 0 | G169: 0 | H169: 0 | I169: =SUM(Araria:WChamparan!I169) -> 0 | J169: =SUM(Araria:WChamparan!J169) -> 0 | K169: =SUM(Araria:WChamparan!K169) -> 0 | L169: =SUM(Araria:WChamparan!L169) -> 0 | M169: =SUM(Araria:WChamparan!M169) -> 0 | N169: =SUM(Araria:WChamparan!N169) -> 0 | P169: =SUM(Araria:WChamparan!P169) -> 0 | Q169: =SUM(Araria:WChamparan!Q169) -> 0 | R169: =SUM(Araria:WChamparan!R169) -> 0 | S169: =SUM(Araria:WChamparan!S169) -> 0 | T169: =SUM(Araria:WChamparan!T169) -> 0 | U169: =SUM(Araria:WChamparan!U169) -> 0 | V169: =SUM(Araria:WChamparan!V169) -> 0 | W169: =SUM(Araria:WChamparan!W169) -> 0 | Y169: =SUM(Araria:WChamparan!Y169) -> 0 | Z169: =SUM(Araria:WChamparan!Z169) -> 0 | AA169: =SUM(Araria:WChamparan!AA169) -> 0 | AB169: =SUM(Araria:WChamparan!AB169) -> 0
B170: (a) 12 Months | C170: =SUM(Araria:WChamparan!C170) -> 0 | D170: =SUM(Araria:WChamparan!D170) -> 0 | E170: =SUM(Araria:WChamparan!E170) -> 0 | F170: =SUM(Araria:WChamparan!F170) -> 0 | G170: 0 | H170: 0 | I170: =SUM(Araria:WChamparan!I170) -> 0 | J170: =SUM(Araria:WChamparan!J170) -> 0 | K170: =SUM(Araria:WChamparan!K170) -> 0 | L170: =SUM(Araria:WChamparan!L170) -> 0 | M170: =SUM(Araria:WChamparan!M170) -> 0 | N170: =SUM(Araria:WChamparan!N170) -> 0 | P170: =SUM(Araria:WChamparan!P170) -> 0 | Q170: =SUM(Araria:WChamparan!Q170) -> 0 | R170: =SUM(Araria:WChamparan!R170) -> 0 | S170: =SUM(Araria:WChamparan!S170) -> 0 | T170: =SUM(Araria:WChamparan!T170) -> 0 | U170: =SUM(Araria:WChamparan!U170) -> 0 | V170: =SUM(Araria:WChamparan!V170) -> 0 | W170: =SUM(Araria:WChamparan!W170) -> 0 | Y170: =SUM(Araria:WChamparan!Y170) -> 0 | Z170: =SUM(Araria:WChamparan!Z170) -> 0 | AA170: =SUM(Araria:WChamparan!AA170) -> 0 | AB170: =SUM(Araria:WChamparan!AB170) -> 0
B171: (b) 9 Months | C171: =SUM(Araria:WChamparan!C171) -> 0 | D171: =SUM(Araria:WChamparan!D171) -> 0 | E171: =SUM(Araria:WChamparan!E171) -> 0 | F171: =SUM(Araria:WChamparan!F171) -> 0 | G171: 0 | H171: 0 | I171: =SUM(Araria:WChamparan!I171) -> 0 | J171: =SUM(Araria:WChamparan!J171) -> 0 | K171: =SUM(Araria:WChamparan!K171) -> 0 | L171: =SUM(Araria:WChamparan!L171) -> 0 | M171: =SUM(Araria:WChamparan!M171) -> 0 | N171: =SUM(Araria:WChamparan!N171) -> 0 | P171: =SUM(Araria:WChamparan!P171) -> 0 | Q171: =SUM(Araria:WChamparan!Q171) -> 0 | R171: =SUM(Araria:WChamparan!R171) -> 0 | S171: =SUM(Araria:WChamparan!S171) -> 0 | T171: =SUM(Araria:WChamparan!T171) -> 0 | U171: =SUM(Araria:WChamparan!U171) -> 0 | V171: =SUM(Araria:WChamparan!V171) -> 0 | W171: =SUM(Araria:WChamparan!W171) -> 0 | Y171: =SUM(Araria:WChamparan!Y171) -> 0 | Z171: =SUM(Araria:WChamparan!Z171) -> 0 | AA171: =SUM(Araria:WChamparan!AA171) -> 0 | AB171: =SUM(Araria:WChamparan!AB171) -> 0
B172: (c) 6 Months | C172: =SUM(Araria:WChamparan!C172) -> 4316 | D172: =SUM(Araria:WChamparan!D172) -> 54.68372 | E172: =SUM(Araria:WChamparan!E172) -> 0 | F172: =SUM(Araria:WChamparan!F172) -> 0 | G172: 0 | H172: 0 | I172: =SUM(Araria:WChamparan!I172) -> 4316 | J172: =SUM(Araria:WChamparan!J172) -> 54.68372 | K172: =SUM(Araria:WChamparan!K172) -> 0 | L172: =SUM(Araria:WChamparan!L172) -> 0 | M172: =SUM(Araria:WChamparan!M172) -> 0 | N172: =SUM(Araria:WChamparan!N172) -> 0 | O172: 0.023 | P172: =SUM(Araria:WChamparan!P172) -> 0 | Q172: =SUM(Araria:WChamparan!Q172) -> 0 | R172: =SUM(Araria:WChamparan!R172) -> 0 | S172: =SUM(Araria:WChamparan!S172) -> 0 | T172: =SUM(Araria:WChamparan!T172) -> 0 | U172: =SUM(Araria:WChamparan!U172) -> 0 | V172: =SUM(Araria:WChamparan!V172) -> 0 | W172: =SUM(Araria:WChamparan!W172) -> 0 | X172: 0.01267 | Y172: =SUM(Araria:WChamparan!Y172) -> 0 | Z172: =SUM(Araria:WChamparan!Z172) -> 0 | AA172: =SUM(Araria:WChamparan!AA172) -> 0 | AB172: =SUM(Araria:WChamparan!AB172) -> 0
B173: (d) 3 Months | C173: =SUM(Araria:WChamparan!C173) -> 0 | D173: =SUM(Araria:WChamparan!D173) -> 0 | E173: =SUM(Araria:WChamparan!E173) -> 0 | F173: =SUM(Araria:WChamparan!F173) -> 0 | G173: 0 | H173: 0 | I173: =SUM(Araria:WChamparan!I173) -> 0 | J173: =SUM(Araria:WChamparan!J173) -> 0 | K173: =SUM(Araria:WChamparan!K173) -> 0 | L173: =SUM(Araria:WChamparan!L173) -> 0 | M173: =SUM(Araria:WChamparan!M173) -> 0 | N173: =SUM(Araria:WChamparan!N173) -> 0 | P173: =SUM(Araria:WChamparan!P173) -> 0 | Q173: =SUM(Araria:WChamparan!Q173) -> 0 | R173: =SUM(Araria:WChamparan!R173) -> 0 | S173: =SUM(Araria:WChamparan!S173) -> 0 | T173: =SUM(Araria:WChamparan!T173) -> 0 | U173: =SUM(Araria:WChamparan!U173) -> 0 | V173: =SUM(Araria:WChamparan!V173) -> 0 | W173: =SUM(Araria:WChamparan!W173) -> 0 | Y173: =SUM(Araria:WChamparan!Y173) -> 0 | Z173: =SUM(Araria:WChamparan!Z173) -> 0 | AA173: =SUM(Araria:WChamparan!AA173) -> 0 | AB173: =SUM(Araria:WChamparan!AB173) -> 0
B174: Sub Total : | C174: =SUM(Araria:WChamparan!C174) -> 4316 | D174: =SUM(Araria:WChamparan!D174) -> 54.68372 | E174: =SUM(Araria:WChamparan!E174) -> 0 | F174: =SUM(Araria:WChamparan!F174) -> 0 | G174: 0 | H174: 0 | I174: =SUM(Araria:WChamparan!I174) -> 4316 | J174: =SUM(Araria:WChamparan!J174) -> 54.68372 | K174: =SUM(Araria:WChamparan!K174) -> 0 | L174: =SUM(Araria:WChamparan!L174) -> 0 | M174: =SUM(Araria:WChamparan!M174) -> 0 | N174: =SUM(Araria:WChamparan!N174) -> 0 | P174: =SUM(Araria:WChamparan!P174) -> 0 | Q174: =SUM(Araria:WChamparan!Q174) -> 0 | R174: =SUM(Araria:WChamparan!R174) -> 0 | S174: =SUM(Araria:WChamparan!S174) -> 0 | T174: =SUM(Araria:WChamparan!T174) -> 0 | U174: =SUM(Araria:WChamparan!U174) -> 0 | V174: =SUM(Araria:WChamparan!V174) -> 0 | W174: =SUM(Araria:WChamparan!W174) -> 0 | Y174: =SUM(Araria:WChamparan!Y174) -> 0 | Z174: =SUM(Araria:WChamparan!Z174) -> 0 | AA174: =SUM(Araria:WChamparan!AA174) -> 0 | AB174: =SUM(Araria:WChamparan!AB174) -> 0
A175: 6.05 | B175: Madarasa/Maktab | C175: =SUM(Araria:WChamparan!C175) -> 0 | D175: =SUM(Araria:WChamparan!D175) -> 0 | E175: =SUM(Araria:WChamparan!E175) -> 0 | F175: =SUM(Araria:WChamparan!F175) -> 0 | I175: =SUM(Araria:WChamparan!I175) -> 0 | J175: =SUM(Araria:WChamparan!J175) -> 0 | K175: =SUM(Araria:WChamparan!K175) -> 0 | L175: =SUM(Araria:WChamparan!L175) -> 0 | M175: =SUM(Araria:WChamparan!M175) -> 0 | N175: =SUM(Araria:WChamparan!N175) -> 0 | P175: =SUM(Araria:WChamparan!P175) -> 0 | Q175: =SUM(Araria:WChamparan!Q175) -> 0 | R175: =SUM(Araria:WChamparan!R175) -> 0 | S175: =SUM(Araria:WChamparan!S175) -> 0 | T175: =SUM(Araria:WChamparan!T175) -> 0 | U175: =SUM(Araria:WChamparan!U175) -> 0 | V175: =SUM(Araria:WChamparan!V175) -> 0 | W175: =SUM(Araria:WChamparan!W175) -> 0 | Y175: =SUM(Araria:WChamparan!Y175) -> 0 | Z175: =SUM(Araria:WChamparan!Z175) -> 0 | AA175: =SUM(Araria:WChamparan!AA175) -> 0 | AB175: =SUM(Araria:WChamparan!AB175) -> 0
B176: (a) 12 months | C176: =SUM(Araria:WChamparan!C176) -> 0 | D176: =SUM(Araria:WChamparan!D176) -> 0 | E176: =SUM(Araria:WChamparan!E176) -> 0 | F176: =SUM(Araria:WChamparan!F176) -> 0 | G176: =IFERROR(E176/C176, ) -> 0 | H176: 0 | I176: =SUM(Araria:WChamparan!I176) -> 0 | J176: =SUM(Araria:WChamparan!J176) -> 0 | K176: =SUM(Araria:WChamparan!K176) -> 0 | L176: =SUM(Araria:WChamparan!L176) -> 0 | M176: =SUM(Araria:WChamparan!M176) -> 0 | N176: =SUM(Araria:WChamparan!N176) -> 0 | P176: =SUM(Araria:WChamparan!P176) -> 0 | Q176: =SUM(Araria:WChamparan!Q176) -> 0 | R176: =SUM(Araria:WChamparan!R176) -> 0 | S176: =SUM(Araria:WChamparan!S176) -> 0 | T176: =SUM(Araria:WChamparan!T176) -> 0 | U176: =SUM(Araria:WChamparan!U176) -> 0 | V176: =SUM(Araria:WChamparan!V176) -> 0 | W176: =SUM(Araria:WChamparan!W176) -> 0 | Y176: =SUM(Araria:WChamparan!Y176) -> 0 | Z176: =SUM(Araria:WChamparan!Z176) -> 0 | AA176: =SUM(Araria:WChamparan!AA176) -> 0 | AB176: =SUM(Araria:WChamparan!AB176) -> 0
B177: (b) 9 months | C177: =SUM(Araria:WChamparan!C177) -> 0 | D177: =SUM(Araria:WChamparan!D177) -> 0 | E177: =SUM(Araria:WChamparan!E177) -> 0 | F177: =SUM(Araria:WChamparan!F177) -> 0 | G177: 0 | H177: 0 | I177: =SUM(Araria:WChamparan!I177) -> 0 | J177: =SUM(Araria:WChamparan!J177) -> 0 | K177: =SUM(Araria:WChamparan!K177) -> 0 | L177: =SUM(Araria:WChamparan!L177) -> 0 | M177: =SUM(Araria:WChamparan!M177) -> 0 | N177: =SUM(Araria:WChamparan!N177) -> 0 | P177: =SUM(Araria:WChamparan!P177) -> 0 | Q177: =SUM(Araria:WChamparan!Q177) -> 0 | R177: =SUM(Araria:WChamparan!R177) -> 0 | S177: =SUM(Araria:WChamparan!S177) -> 0 | T177: =SUM(Araria:WChamparan!T177) -> 0 | U177: =SUM(Araria:WChamparan!U177) -> 0 | V177: =SUM(Araria:WChamparan!V177) -> 0 | W177: =SUM(Araria:WChamparan!W177) -> 0 | Y177: =SUM(Araria:WChamparan!Y177) -> 0 | Z177: =SUM(Araria:WChamparan!Z177) -> 0 | AA177: =SUM(Araria:WChamparan!AA177) -> 0 | AB177: =SUM(Araria:WChamparan!AB177) -> 0
B178: (c) 6 months | C178: =SUM(Araria:WChamparan!C178) -> 0 | D178: =SUM(Araria:WChamparan!D178) -> 0 | E178: =SUM(Araria:WChamparan!E178) -> 0 | F178: =SUM(Araria:WChamparan!F178) -> 0 | G178: 0 | H178: 0 | I178: =SUM(Araria:WChamparan!I178) -> 0 | J178: =SUM(Araria:WChamparan!J178) -> 0 | K178: =SUM(Araria:WChamparan!K178) -> 0 | L178: =SUM(Araria:WChamparan!L178) -> 0 | M178: =SUM(Araria:WChamparan!M178) -> 0 | N178: =SUM(Araria:WChamparan!N178) -> 0 | P178: =SUM(Araria:WChamparan!P178) -> 0 | Q178: =SUM(Araria:WChamparan!Q178) -> 0 | R178: =SUM(Araria:WChamparan!R178) -> 0 | S178: =SUM(Araria:WChamparan!S178) -> 0 | T178: =SUM(Araria:WChamparan!T178) -> 0 | U178: =SUM(Araria:WChamparan!U178) -> 0 | V178: =SUM(Araria:WChamparan!V178) -> 0 | W178: =SUM(Araria:WChamparan!W178) -> 0 | Y178: =SUM(Araria:WChamparan!Y178) -> 0 | Z178: =SUM(Araria:WChamparan!Z178) -> 0 | AA178: =SUM(Araria:WChamparan!AA178) -> 0 | AB178: =SUM(Araria:WChamparan!AB178) -> 0
B179: (d) 3 months | C179: =SUM(Araria:WChamparan!C179) -> 0 | D179: =SUM(Araria:WChamparan!D179) -> 0 | E179: =SUM(Araria:WChamparan!E179) -> 0 | F179: =SUM(Araria:WChamparan!F179) -> 0 | G179: 0 | H179: 0 | I179: =SUM(Araria:WChamparan!I179) -> 0 | J179: =SUM(Araria:WChamparan!J179) -> 0 | K179: =SUM(Araria:WChamparan!K179) -> 0 | L179: =SUM(Araria:WChamparan!L179) -> 0 | M179: =SUM(Araria:WChamparan!M179) -> 0 | N179: =SUM(Araria:WChamparan!N179) -> 0 | P179: =SUM(Araria:WChamparan!P179) -> 0 | Q179: =SUM(Araria:WChamparan!Q179) -> 0 | R179: =SUM(Araria:WChamparan!R179) -> 0 | S179: =SUM(Araria:WChamparan!S179) -> 0 | T179: =SUM(Araria:WChamparan!T179) -> 0 | U179: =SUM(Araria:WChamparan!U179) -> 0 | V179: =SUM(Araria:WChamparan!V179) -> 0 | W179: =SUM(Araria:WChamparan!W179) -> 0 | Y179: =SUM(Araria:WChamparan!Y179) -> 0 | Z179: =SUM(Araria:WChamparan!Z179) -> 0 | AA179: =SUM(Araria:WChamparan!AA179) -> 0 | AB179: =SUM(Araria:WChamparan!AB179) -> 0
B180: Sub Total : | C180: =SUM(Araria:WChamparan!C180) -> 0 | D180: =SUM(Araria:WChamparan!D180) -> 0 | E180: =SUM(Araria:WChamparan!E180) -> 0 | F180: =SUM(Araria:WChamparan!F180) -> 0 | I180: =SUM(Araria:WChamparan!I180) -> 0 | J180: =SUM(Araria:WChamparan!J180) -> 0 | K180: =SUM(Araria:WChamparan!K180) -> 0 | L180: =SUM(Araria:WChamparan!L180) -> 0 | M180: =SUM(Araria:WChamparan!M180) -> 0 | N180: =SUM(Araria:WChamparan!N180) -> 0 | P180: =SUM(Araria:WChamparan!P180) -> 0 | Q180: =SUM(Araria:WChamparan!Q180) -> 0 | R180: =SUM(Araria:WChamparan!R180) -> 0 | S180: =SUM(Araria:WChamparan!S180) -> 0 | T180: =SUM(Araria:WChamparan!T180) -> 0 | U180: =SUM(Araria:WChamparan!U180) -> 0 | V180: =SUM(Araria:WChamparan!V180) -> 0 | W180: =SUM(Araria:WChamparan!W180) -> 0 | Y180: =SUM(Araria:WChamparan!Y180) -> 0 | Z180: =SUM(Araria:WChamparan!Z180) -> 0 | AA180: =SUM(Araria:WChamparan!AA180) -> 0 | AB180: =SUM(Araria:WChamparan!AB180) -> 0
A181: 6.06 | B181: Seasonal Hostel (Residential) | C181: =SUM(Araria:WChamparan!C181) -> 0 | D181: =SUM(Araria:WChamparan!D181) -> 0 | E181: =SUM(Araria:WChamparan!E181) -> 0 | F181: =SUM(Araria:WChamparan!F181) -> 0 | I181: =SUM(Araria:WChamparan!I181) -> 0 | J181: =SUM(Araria:WChamparan!J181) -> 0 | K181: =SUM(Araria:WChamparan!K181) -> 0 | L181: =SUM(Araria:WChamparan!L181) -> 0 | M181: =SUM(Araria:WChamparan!M181) -> 0 | N181: =SUM(Araria:WChamparan!N181) -> 0 | P181: =SUM(Araria:WChamparan!P181) -> 0 | Q181: =SUM(Araria:WChamparan!Q181) -> 0 | R181: =SUM(Araria:WChamparan!R181) -> 0 | S181: =SUM(Araria:WChamparan!S181) -> 0 | T181: =SUM(Araria:WChamparan!T181) -> 0 | U181: =SUM(Araria:WChamparan!U181) -> 0 | V181: =SUM(Araria:WChamparan!V181) -> 0 | W181: =SUM(Araria:WChamparan!W181) -> 0 | Y181: =SUM(Araria:WChamparan!Y181) -> 0 | Z181: =SUM(Araria:WChamparan!Z181) -> 0 | AA181: =SUM(Araria:WChamparan!AA181) -> 0 | AB181: =SUM(Araria:WChamparan!AB181) -> 0
B182: (a) 12 months | C182: =SUM(Araria:WChamparan!C182) -> 0 | D182: =SUM(Araria:WChamparan!D182) -> 0 | E182: =SUM(Araria:WChamparan!E182) -> 0 | F182: =SUM(Araria:WChamparan!F182) -> 0 | G182: =IFERROR(E182/C182, ) -> 0 | H182: 0 | I182: =SUM(Araria:WChamparan!I182) -> 0 | J182: =SUM(Araria:WChamparan!J182) -> 0 | K182: =SUM(Araria:WChamparan!K182) -> 0 | L182: =SUM(Araria:WChamparan!L182) -> 0 | M182: =SUM(Araria:WChamparan!M182) -> 0 | N182: =SUM(Araria:WChamparan!N182) -> 0 | P182: =SUM(Araria:WChamparan!P182) -> 0 | Q182: =SUM(Araria:WChamparan!Q182) -> 0 | R182: =SUM(Araria:WChamparan!R182) -> 0 | S182: =SUM(Araria:WChamparan!S182) -> 0 | T182: =SUM(Araria:WChamparan!T182) -> 0 | U182: =SUM(Araria:WChamparan!U182) -> 0 | V182: =SUM(Araria:WChamparan!V182) -> 0 | W182: =SUM(Araria:WChamparan!W182) -> 0 | Y182: =SUM(Araria:WChamparan!Y182) -> 0 | Z182: =SUM(Araria:WChamparan!Z182) -> 0 | AA182: =SUM(Araria:WChamparan!AA182) -> 0 | AB182: =SUM(Araria:WChamparan!AB182) -> 0
B183: (b) 9 months | C183: =SUM(Araria:WChamparan!C183) -> 0 | D183: =SUM(Araria:WChamparan!D183) -> 0 | E183: =SUM(Araria:WChamparan!E183) -> 0 | F183: =SUM(Araria:WChamparan!F183) -> 0 | G183: 0 | H183: 0 | I183: =SUM(Araria:WChamparan!I183) -> 0 | J183: =SUM(Araria:WChamparan!J183) -> 0 | K183: =SUM(Araria:WChamparan!K183) -> 0 | L183: =SUM(Araria:WChamparan!L183) -> 0 | M183: =SUM(Araria:WChamparan!M183) -> 0 | N183: =SUM(Araria:WChamparan!N183) -> 0 | P183: =SUM(Araria:WChamparan!P183) -> 0 | Q183: =SUM(Araria:WChamparan!Q183) -> 0 | R183: =SUM(Araria:WChamparan!R183) -> 0 | S183: =SUM(Araria:WChamparan!S183) -> 0 | T183: =SUM(Araria:WChamparan!T183) -> 0 | U183: =SUM(Araria:WChamparan!U183) -> 0 | V183: =SUM(Araria:WChamparan!V183) -> 0 | W183: =SUM(Araria:WChamparan!W183) -> 0 | Y183: =SUM(Araria:WChamparan!Y183) -> 0 | Z183: =SUM(Araria:WChamparan!Z183) -> 0 | AA183: =SUM(Araria:WChamparan!AA183) -> 0 | AB183: =SUM(Araria:WChamparan!AB183) -> 0
B184: (c) 6 months | C184: =SUM(Araria:WChamparan!C184) -> 0 | D184: =SUM(Araria:WChamparan!D184) -> 0 | E184: =SUM(Araria:WChamparan!E184) -> 0 | F184: =SUM(Araria:WChamparan!F184) -> 0 | G184: 0 | H184: 0 | I184: =SUM(Araria:WChamparan!I184) -> 0 | J184: =SUM(Araria:WChamparan!J184) -> 0 | K184: =SUM(Araria:WChamparan!K184) -> 0 | L184: =SUM(Araria:WChamparan!L184) -> 0 | M184: =SUM(Araria:WChamparan!M184) -> 0 | N184: =SUM(Araria:WChamparan!N184) -> 0 | P184: =SUM(Araria:WChamparan!P184) -> 0 | Q184: =SUM(Araria:WChamparan!Q184) -> 0 | R184: =SUM(Araria:WChamparan!R184) -> 0 | S184: =SUM(Araria:WChamparan!S184) -> 0 | T184: =SUM(Araria:WChamparan!T184) -> 0 | U184: =SUM(Araria:WChamparan!U184) -> 0 | V184: =SUM(Araria:WChamparan!V184) -> 0 | W184: =SUM(Araria:WChamparan!W184) -> 0 | Y184: =SUM(Araria:WChamparan!Y184) -> 0 | Z184: =SUM(Araria:WChamparan!Z184) -> 0 | AA184: =SUM(Araria:WChamparan!AA184) -> 0 | AB184: =SUM(Araria:WChamparan!AB184) -> 0
B185: (d) 3 months | C185: =SUM(Araria:WChamparan!C185) -> 0 | D185: =SUM(Araria:WChamparan!D185) -> 0 | E185: =SUM(Araria:WChamparan!E185) -> 0 | F185: =SUM(Araria:WChamparan!F185) -> 0 | G185: 0 | H185: 0 | I185: =SUM(Araria:WChamparan!I185) -> 0 | J185: =SUM(Araria:WChamparan!J185) -> 0 | K185: =SUM(Araria:WChamparan!K185) -> 0 | L185: =SUM(Araria:WChamparan!L185) -> 0 | M185: =SUM(Araria:WChamparan!M185) -> 0 | N185: =SUM(Araria:WChamparan!N185) -> 0 | P185: =SUM(Araria:WChamparan!P185) -> 0 | Q185: =SUM(Araria:WChamparan!Q185) -> 0 | R185: =SUM(Araria:WChamparan!R185) -> 0 | S185: =SUM(Araria:WChamparan!S185) -> 0 | T185: =SUM(Araria:WChamparan!T185) -> 0 | U185: =SUM(Araria:WChamparan!U185) -> 0 | V185: =SUM(Araria:WChamparan!V185) -> 0 | W185: =SUM(Araria:WChamparan!W185) -> 0 | Y185: =SUM(Araria:WChamparan!Y185) -> 0 | Z185: =SUM(Araria:WChamparan!Z185) -> 0 | AA185: =SUM(Araria:WChamparan!AA185) -> 0 | AB185: =SUM(Araria:WChamparan!AB185) -> 0
B186: Sub Total : | C186: =SUM(Araria:WChamparan!C186) -> 0 | D186: =SUM(Araria:WChamparan!D186) -> 0 | E186: =SUM(Araria:WChamparan!E186) -> 0 | F186: =SUM(Araria:WChamparan!F186) -> 0 | I186: =SUM(Araria:WChamparan!I186) -> 0 | J186: =SUM(Araria:WChamparan!J186) -> 0 | K186: =SUM(Araria:WChamparan!K186) -> 0 | L186: =SUM(Araria:WChamparan!L186) -> 0 | M186: =SUM(Araria:WChamparan!M186) -> 0 | N186: =SUM(Araria:WChamparan!N186) -> 0 | P186: =SUM(Araria:WChamparan!P186) -> 0 | Q186: =SUM(Araria:WChamparan!Q186) -> 0 | R186: =SUM(Araria:WChamparan!R186) -> 0 | S186: =SUM(Araria:WChamparan!S186) -> 0 | T186: =SUM(Araria:WChamparan!T186) -> 0 | U186: =SUM(Araria:WChamparan!U186) -> 0 | V186: =SUM(Araria:WChamparan!V186) -> 0 | W186: =SUM(Araria:WChamparan!W186) -> 0 | Y186: =SUM(Araria:WChamparan!Y186) -> 0 | Z186: =SUM(Araria:WChamparan!Z186) -> 0 | AA186: =SUM(Araria:WChamparan!AA186) -> 0 | AB186: =SUM(Araria:WChamparan!AB186) -> 0
A187: 6.07 | B187: Seasonal Hostel (Non Residential) | C187: =SUM(Araria:WChamparan!C187) -> 0 | D187: =SUM(Araria:WChamparan!D187) -> 0 | E187: =SUM(Araria:WChamparan!E187) -> 0 | F187: =SUM(Araria:WChamparan!F187) -> 0 | G187: =IFERROR(E187/C187, ) -> 0 | H187: 0 | I187: =SUM(Araria:WChamparan!I187) -> 0 | J187: =SUM(Araria:WChamparan!J187) -> 0 | K187: =SUM(Araria:WChamparan!K187) -> 0 | L187: =SUM(Araria:WChamparan!L187) -> 0 | M187: =SUM(Araria:WChamparan!M187) -> 0 | N187: =SUM(Araria:WChamparan!N187) -> 0 | P187: =SUM(Araria:WChamparan!P187) -> 0 | Q187: =SUM(Araria:WChamparan!Q187) -> 0 | R187: =SUM(Araria:WChamparan!R187) -> 0 | S187: =SUM(Araria:WChamparan!S187) -> 0 | T187: =SUM(Araria:WChamparan!T187) -> 0 | U187: =SUM(Araria:WChamparan!U187) -> 0 | V187: =SUM(Araria:WChamparan!V187) -> 0 | W187: =SUM(Araria:WChamparan!W187) -> 0 | Y187: =SUM(Araria:WChamparan!Y187) -> 0 | Z187: =SUM(Araria:WChamparan!Z187) -> 0 | AA187: =SUM(Araria:WChamparan!AA187) -> 0 | AB187: =SUM(Araria:WChamparan!AB187) -> 0
B188: (a) 12 months | C188: =SUM(Araria:WChamparan!C188) -> 0 | D188: =SUM(Araria:WChamparan!D188) -> 0 | E188: =SUM(Araria:WChamparan!E188) -> 0 | F188: =SUM(Araria:WChamparan!F188) -> 0 | G188: 0 | H188: 0 | I188: =SUM(Araria:WChamparan!I188) -> 0 | J188: =SUM(Araria:WChamparan!J188) -> 0 | K188: =SUM(Araria:WChamparan!K188) -> 0 | L188: =SUM(Araria:WChamparan!L188) -> 0 | M188: =SUM(Araria:WChamparan!M188) -> 0 | N188: =SUM(Araria:WChamparan!N188) -> 0 | O188: 0 | P188: =SUM(Araria:WChamparan!P188) -> 0 | Q188: =SUM(Araria:WChamparan!Q188) -> 0 | R188: =SUM(Araria:WChamparan!R188) -> 0 | S188: =SUM(Araria:WChamparan!S188) -> 0 | T188: =SUM(Araria:WChamparan!T188) -> 0 | U188: =SUM(Araria:WChamparan!U188) -> 0 | V188: =SUM(Araria:WChamparan!V188) -> 0 | W188: =SUM(Araria:WChamparan!W188) -> 0 | X188: 0 | Y188: =SUM(Araria:WChamparan!Y188) -> 0 | Z188: =SUM(Araria:WChamparan!Z188) -> 0 | AA188: =SUM(Araria:WChamparan!AA188) -> 0 | AB188: =SUM(Araria:WChamparan!AB188) -> 0
B189: (b) 9 months | C189: =SUM(Araria:WChamparan!C189) -> 0 | D189: =SUM(Araria:WChamparan!D189) -> 0 | E189: =SUM(Araria:WChamparan!E189) -> 0 | F189: =SUM(Araria:WChamparan!F189) -> 0 | G189: 0 | H189: 0 | I189: =SUM(Araria:WChamparan!I189) -> 0 | J189: =SUM(Araria:WChamparan!J189) -> 0 | K189: =SUM(Araria:WChamparan!K189) -> 0 | L189: =SUM(Araria:WChamparan!L189) -> 0 | M189: =SUM(Araria:WChamparan!M189) -> 0 | N189: =SUM(Araria:WChamparan!N189) -> 0 | P189: =SUM(Araria:WChamparan!P189) -> 0 | Q189: =SUM(Araria:WChamparan!Q189) -> 0 | R189: =SUM(Araria:WChamparan!R189) -> 0 | S189: =SUM(Araria:WChamparan!S189) -> 0 | T189: =SUM(Araria:WChamparan!T189) -> 0 | U189: =SUM(Araria:WChamparan!U189) -> 0 | V189: =SUM(Araria:WChamparan!V189) -> 0 | W189: =SUM(Araria:WChamparan!W189) -> 0 | Y189: =SUM(Araria:WChamparan!Y189) -> 0 | Z189: =SUM(Araria:WChamparan!Z189) -> 0 | AA189: =SUM(Araria:WChamparan!AA189) -> 0 | AB189: =SUM(Araria:WChamparan!AB189) -> 0
B190: (c) 6 months | C190: =SUM(Araria:WChamparan!C190) -> 3741 | D190: =SUM(Araria:WChamparan!D190) -> 56.115 | E190: =SUM(Araria:WChamparan!E190) -> 357 | F190: =SUM(Araria:WChamparan!F190) -> 0.1 | G190: 0.09542902967 | H190: 0.001782054709 | I190: =SUM(Araria:WChamparan!I190) -> 3384 | J190: =SUM(Araria:WChamparan!J190) -> 56.015 | K190: =SUM(Araria:WChamparan!K190) -> 0 | L190: =SUM(Araria:WChamparan!L190) -> 0 | M190: =SUM(Araria:WChamparan!M190) -> 0 | N190: =SUM(Araria:WChamparan!N190) -> 0 | O190: 0.03 | P190: =SUM(Araria:WChamparan!P190) -> 1521 | Q190: =SUM(Araria:WChamparan!Q190) -> 45.63 | R190: =SUM(Araria:WChamparan!R190) -> 1521 | S190: =SUM(Araria:WChamparan!S190) -> 45.63 | T190: =SUM(Araria:WChamparan!T190) -> 0 | U190: =SUM(Araria:WChamparan!U190) -> 0 | V190: =SUM(Araria:WChamparan!V190) -> 0 | W190: =SUM(Araria:WChamparan!W190) -> 0 | X190: 0.03 | Y190: =SUM(Araria:WChamparan!Y190) -> 1521 | Z190: =SUM(Araria:WChamparan!Z190) -> 45.63 | AA190: =SUM(Araria:WChamparan!AA190) -> 1521 | AB190: =SUM(Araria:WChamparan!AB190) -> 45.63 | AD190: =O190*P190 -> 45.63
B191: (d) 3 months | C191: =SUM(Araria:WChamparan!C191) -> 0 | D191: =SUM(Araria:WChamparan!D191) -> 0 | E191: =SUM(Araria:WChamparan!E191) -> 0 | F191: =SUM(Araria:WChamparan!F191) -> 0 | G191: 0 | H191: 0 | I191: =SUM(Araria:WChamparan!I191) -> 0 | J191: =SUM(Araria:WChamparan!J191) -> 0 | K191: =SUM(Araria:WChamparan!K191) -> 0 | L191: =SUM(Araria:WChamparan!L191) -> 0 | M191: =SUM(Araria:WChamparan!M191) -> 0 | N191: =SUM(Araria:WChamparan!N191) -> 0 | P191: =SUM(Araria:WChamparan!P191) -> 0 | Q191: =SUM(Araria:WChamparan!Q191) -> 0 | R191: =SUM(Araria:WChamparan!R191) -> 0 | S191: =SUM(Araria:WChamparan!S191) -> 0 | T191: =SUM(Araria:WChamparan!T191) -> 0 | U191: =SUM(Araria:WChamparan!U191) -> 0 | V191: =SUM(Araria:WChamparan!V191) -> 0 | W191: =SUM(Araria:WChamparan!W191) -> 0 | Y191: =SUM(Araria:WChamparan!Y191) -> 0 | Z191: =SUM(Araria:WChamparan!Z191) -> 0 | AA191: =SUM(Araria:WChamparan!AA191) -> 0 | AB191: =SUM(Araria:WChamparan!AB191) -> 0
B192: Sub Total : | C192: =SUM(Araria:WChamparan!C192) -> 3741 | D192: =SUM(Araria:WChamparan!D192) -> 56.115 | E192: =SUM(Araria:WChamparan!E192) -> 357 | F192: =SUM(Araria:WChamparan!F192) -> 0.1 | G192: 0.09542902967 | H192: 0.001782054709 | I192: =SUM(Araria:WChamparan!I192) -> 3384 | J192: =SUM(Araria:WChamparan!J192) -> 56.015 | K192: =SUM(Araria:WChamparan!K192) -> 0 | L192: =SUM(Araria:WChamparan!L192) -> 0 | M192: =SUM(Araria:WChamparan!M192) -> 0 | N192: =SUM(Araria:WChamparan!N192) -> 0 | P192: =SUM(Araria:WChamparan!P192) -> 1521 | Q192: =SUM(Araria:WChamparan!Q192) -> 45.63 | R192: =SUM(Araria:WChamparan!R192) -> 1521 | S192: =SUM(Araria:WChamparan!S192) -> 45.63 | T192: =SUM(Araria:WChamparan!T192) -> 0 | U192: =SUM(Araria:WChamparan!U192) -> 0 | V192: =SUM(Araria:WChamparan!V192) -> 0 | W192: =SUM(Araria:WChamparan!W192) -> 0 | Y192: =SUM(Araria:WChamparan!Y192) -> 1521 | Z192: =SUM(Araria:WChamparan!Z192) -> 45.63 | AA192: =SUM(Araria:WChamparan!AA192) -> 1521 | AB192: =SUM(Araria:WChamparan!AB192) -> 45.63
B193: Total | C193: =SUM(Araria:WChamparan!C193) -> 237710 | D193: =SUM(Araria:WChamparan!D193) -> 10977.71617 | E193: =SUM(Araria:WChamparan!E193) -> 84014 | F193: =SUM(Araria:WChamparan!F193) -> 1786.00888 | G193: 0.3534306508 | H193: 0.1626940296 | I193: =SUM(Araria:WChamparan!I193) -> 153696 | J193: =SUM(Araria:WChamparan!J193) -> 9191.70729 | K193: =SUM(Araria:WChamparan!K193) -> 0 | L193: =SUM(Araria:WChamparan!L193) -> 0 | M193: =SUM(Araria:WChamparan!M193) -> 0 | N193: =SUM(Araria:WChamparan!N193) -> 0 | P193: =SUM(Araria:WChamparan!P193) -> 120019 | Q193: =SUM(Araria:WChamparan!Q193) -> 8290.605 | R193: =SUM(Araria:WChamparan!R193) -> 120019 | S193: =SUM(Araria:WChamparan!S193) -> 8290.605 | T193: =SUM(Araria:WChamparan!T193) -> 0 | U193: =SUM(Araria:WChamparan!U193) -> 0 | V193: =SUM(Araria:WChamparan!V193) -> 0 | W193: =SUM(Araria:WChamparan!W193) -> 0 | Y193: =SUM(Araria:WChamparan!Y193) -> 120019 | Z193: =SUM(Araria:WChamparan!Z193) -> 7357.085 | AA193: =SUM(Araria:WChamparan!AA193) -> 120019 | AB193: =SUM(Araria:WChamparan!AB193) -> 7357.085
B194: Total (Access): | C194: =SUM(Araria:WChamparan!C194) -> 237746 | D194: =SUM(Araria:WChamparan!D194) -> 11075.06617 | E194: =SUM(Araria:WChamparan!E194) -> 84023 | F194: =SUM(Araria:WChamparan!F194) -> 1828.51888 | G194: 0.3534149891 | H194: 0.1651022984 | I194: =SUM(Araria:WChamparan!I194) -> 153723 | J194: =SUM(Araria:WChamparan!J194) -> 9246.54729 | K194: =SUM(Araria:WChamparan!K194) -> 0 | L194: =SUM(Araria:WChamparan!L194) -> 0 | M194: =SUM(Araria:WChamparan!M194) -> 0 | N194: =SUM(Araria:WChamparan!N194) -> 0 | P194: =SUM(Araria:WChamparan!P194) -> 217803 | Q194: =SUM(Araria:WChamparan!Q194) -> 12688.7445 | R194: =SUM(Araria:WChamparan!R194) -> 217803 | S194: =SUM(Araria:WChamparan!S194) -> 12688.7445 | T194: =SUM(Araria:WChamparan!T194) -> 0 | U194: =SUM(Araria:WChamparan!U194) -> 0 | V194: =SUM(Araria:WChamparan!V194) -> 0 | W194: =SUM(Araria:WChamparan!W194) -> 0 | Y194: =SUM(Araria:WChamparan!Y194) -> 120055 | Z194: =SUM(Araria:WChamparan!Z194) -> 7454.435 | AA194: =SUM(Araria:WChamparan!AA194) -> 120055 | AB194: =SUM(Araria:WChamparan!AB194) -> 7454.435
A195: II | B195: RETENTION | C195: =SUM(Araria:WChamparan!C195) -> 0 | D195: =SUM(Araria:WChamparan!D195) -> 0 | E195: =SUM(Araria:WChamparan!E195) -> 0 | F195: =SUM(Araria:WChamparan!F195) -> 0 | G195: 0 | H195: 0 | I195: =SUM(Araria:WChamparan!I195) -> 0 | J195: =SUM(Araria:WChamparan!J195) -> 0 | K195: =SUM(Araria:WChamparan!K195) -> 0 | L195: =SUM(Araria:WChamparan!L195) -> 0 | M195: =SUM(Araria:WChamparan!M195) -> 0 | N195: =SUM(Araria:WChamparan!N195) -> 0 | P195: =SUM(Araria:WChamparan!P195) -> 0 | Q195: =SUM(Araria:WChamparan!Q195) -> 0 | R195: =SUM(Araria:WChamparan!R195) -> 0 | S195: =SUM(Araria:WChamparan!S195) -> 0 | T195: =SUM(Araria:WChamparan!T195) -> 0 | U195: =SUM(Araria:WChamparan!U195) -> 0 | V195: =SUM(Araria:WChamparan!V195) -> 0 | W195: =SUM(Araria:WChamparan!W195) -> 0 | Y195: =SUM(Araria:WChamparan!Y195) -> 0 | Z195: =SUM(Araria:WChamparan!Z195) -> 0 | AA195: =SUM(Araria:WChamparan!AA195) -> 0 | AB195: =SUM(Araria:WChamparan!AB195) -> 0
A196: 7 | B196: Free Text Book | C196: =SUM(Araria:WChamparan!C196) -> 0 | D196: =SUM(Araria:WChamparan!D196) -> 0 | E196: =SUM(Araria:WChamparan!E196) -> 0 | F196: =SUM(Araria:WChamparan!F196) -> 0 | G196: 0 | H196: 0 | I196: =SUM(Araria:WChamparan!I196) -> 0 | J196: =SUM(Araria:WChamparan!J196) -> 0 | K196: =SUM(Araria:WChamparan!K196) -> 0 | L196: =SUM(Araria:WChamparan!L196) -> 0 | M196: =SUM(Araria:WChamparan!M196) -> 0 | N196: =SUM(Araria:WChamparan!N196) -> 0 | P196: =SUM(Araria:WChamparan!P196) -> 0 | Q196: =SUM(Araria:WChamparan!Q196) -> 0 | R196: =SUM(Araria:WChamparan!R196) -> 0 | S196: =SUM(Araria:WChamparan!S196) -> 0 | T196: =SUM(Araria:WChamparan!T196) -> 0 | U196: =SUM(Araria:WChamparan!U196) -> 0 | V196: =SUM(Araria:WChamparan!V196) -> 0 | W196: =SUM(Araria:WChamparan!W196) -> 0 | Y196: =SUM(Araria:WChamparan!Y196) -> 0 | Z196: =SUM(Araria:WChamparan!Z196) -> 0 | AA196: =SUM(Araria:WChamparan!AA196) -> 0 | AB196: =SUM(Araria:WChamparan!AB196) -> 0
A197: 7.01 | B197: Free Text Book (P) | C197: =SUM(Araria:WChamparan!C197) -> 0 | D197: =SUM(Araria:WChamparan!D197) -> 0 | E197: =SUM(Araria:WChamparan!E197) -> 0 | F197: =SUM(Araria:WChamparan!F197) -> 0 | G197: 0 | H197: 0 | I197: =SUM(Araria:WChamparan!I197) -> 0 | J197: =SUM(Araria:WChamparan!J197) -> 0 | K197: =SUM(Araria:WChamparan!K197) -> 0 | L197: =SUM(Araria:WChamparan!L197) -> 0 | M197: =SUM(Araria:WChamparan!M197) -> 0 | N197: =SUM(Araria:WChamparan!N197) -> 0 | P197: =SUM(Araria:WChamparan!P197) -> 0 | Q197: =SUM(Araria:WChamparan!Q197) -> 0 | R197: =SUM(Araria:WChamparan!R197) -> 0 | S197: =SUM(Araria:WChamparan!S197) -> 0 | T197: =SUM(Araria:WChamparan!T197) -> 0 | U197: =SUM(Araria:WChamparan!U197) -> 0 | V197: =SUM(Araria:WChamparan!V197) -> 0 | W197: =SUM(Araria:WChamparan!W197) -> 0 | Y197: =SUM(Araria:WChamparan!Y197) -> 0 | Z197: =SUM(Araria:WChamparan!Z197) -> 0 | AA197: =SUM(Araria:WChamparan!AA197) -> 0 | AB197: =SUM(Araria:WChamparan!AB197) -> 0
B198: (a) Class I & II | C198: =SUM(Araria:WChamparan!C198) -> 5511546 | D198: =SUM(Araria:WChamparan!D198) -> 8267.319 | E198: =SUM(Araria:WChamparan!E198) -> 4433172 | F198: =SUM(Araria:WChamparan!F198) -> 6368.42146 | G198: 0.804342738 | H198: 0.7703127773 | I198: =SUM(Araria:WChamparan!I198) -> 1078374 | J198: =SUM(Araria:WChamparan!J198) -> 1898.89754 | K198: =SUM(Araria:WChamparan!K198) -> 0 | L198: =SUM(Araria:WChamparan!L198) -> 0 | M198: =SUM(Araria:WChamparan!M198) -> 0 | N198: =SUM(Araria:WChamparan!N198) -> 0 | O198: 0.0015 | P198: =SUM(Araria:WChamparan!P198) -> 6052159 | Q198: =SUM(Araria:WChamparan!Q198) -> 9078.2385 | R198: =SUM(Araria:WChamparan!R198) -> 6052159 | S198: =SUM(Araria:WChamparan!S198) -> 9078.2385 | T198: =SUM(Araria:WChamparan!T198) -> 0 | U198: =SUM(Araria:WChamparan!U198) -> 0 | V198: =SUM(Araria:WChamparan!V198) -> 0 | W198: =SUM(Araria:WChamparan!W198) -> 0 | X198: 0.0015 | Y198: =SUM(Araria:WChamparan!Y198) -> 6052159 | Z198: =SUM(Araria:WChamparan!Z198) -> 9078.2385 | AA198: =SUM(Araria:WChamparan!AA198) -> 6052159 | AB198: =SUM(Araria:WChamparan!AB198) -> 9078.2385 | AC198: Recommended as proposed
B199: (b) Braille Books Class I & II | C199: =SUM(Araria:WChamparan!C199) -> 12235 | D199: =SUM(Araria:WChamparan!D199) -> 18.3525 | E199: =SUM(Araria:WChamparan!E199) -> 1269 | F199: =SUM(Araria:WChamparan!F199) -> 2.103 | G199: 0.1037188394 | H199: 0.114589293 | I199: =SUM(Araria:WChamparan!I199) -> 10966 | J199: =SUM(Araria:WChamparan!J199) -> 16.2495 | K199: =SUM(Araria:WChamparan!K199) -> 0 | L199: =SUM(Araria:WChamparan!L199) -> 0 | M199: =SUM(Araria:WChamparan!M199) -> 0 | N199: =SUM(Araria:WChamparan!N199) -> 0 | O199: 0.0015 | P199: =SUM(Araria:WChamparan!P199) -> 1912 | Q199: =SUM(Araria:WChamparan!Q199) -> 2.868 | R199: =SUM(Araria:WChamparan!R199) -> 1912 | S199: =SUM(Araria:WChamparan!S199) -> 2.868 | T199: =SUM(Araria:WChamparan!T199) -> 0 | U199: =SUM(Araria:WChamparan!U199) -> 0 | V199: =SUM(Araria:WChamparan!V199) -> 0 | W199: =SUM(Araria:WChamparan!W199) -> 0 | X199: 0.0015 | Y199: =SUM(Araria:WChamparan!Y199) -> 1912 | Z199: =SUM(Araria:WChamparan!Z199) -> 2.868 | AA199: =SUM(Araria:WChamparan!AA199) -> 1912 | AB199: =SUM(Araria:WChamparan!AB199) -> 2.868
B200: (c) Large Print Books Class I & II | C200: =SUM(Araria:WChamparan!C200) -> 5314 | D200: =SUM(Araria:WChamparan!D200) -> 7.971 | E200: =SUM(Araria:WChamparan!E200) -> 531 | F200: =SUM(Araria:WChamparan!F200) -> 0.983 | G200: 0.09992472714 | H200: 0.1233220424 | I200: =SUM(Araria:WChamparan!I200) -> 4783 | J200: =SUM(Araria:WChamparan!J200) -> 6.988 | K200: =SUM(Araria:WChamparan!K200) -> 0 | L200: =SUM(Araria:WChamparan!L200) -> 0 | M200: =SUM(Araria:WChamparan!M200) -> 0 | N200: =SUM(Araria:WChamparan!N200) -> 0 | O200: 0.0015 | P200: =SUM(Araria:WChamparan!P200) -> 6073 | Q200: =SUM(Araria:WChamparan!Q200) -> 9.1095 | R200: =SUM(Araria:WChamparan!R200) -> 6073 | S200: =SUM(Araria:WChamparan!S200) -> 9.1095 | T200: =SUM(Araria:WChamparan!T200) -> 0 | U200: =SUM(Araria:WChamparan!U200) -> 0 | V200: =SUM(Araria:WChamparan!V200) -> 0 | W200: =SUM(Araria:WChamparan!W200) -> 0 | X200: 0.0015 | Y200: =SUM(Araria:WChamparan!Y200) -> 6073 | Z200: =SUM(Araria:WChamparan!Z200) -> 9.1095 | AA200: =SUM(Araria:WChamparan!AA200) -> 6073 | AB200: =SUM(Araria:WChamparan!AB200) -> 9.1095
... 295 more rows

Sheet Araria
A1: S.No. | B1: Activity | C1: Approved Outlay & Achievements 2015-16 | K1: Outlay Proposed for 2016-17 | T1: Outlay Recommended for 2016-17
C2: Outlay approved by PAB (including spillover) after re-appropriation | E2: Achievement during the year (Anticipated upto March, 2016) | I2: Savings | K2: Spill Over | M2: Deferred laibility of 2015-16 | O2: Fresh | R2: Total | T2: Spill Over | V2: Deferred laibility of 2015-16 | X2: Fresh | AA2: Total
C3: Phy. | D3: Fin | E3: Phy. | F3: Fin. | G3: Phy. (%) | H3: Fin. (%) | I3: Phy. | J3: Fin. | K3: Phy. | L3: Fin. | M3: Phy. | N3: Fin. | O3: Unit Cost | P3: Phy. | Q3: Fin. | R3: Phy. | S3: Fin. | T3: Phy. | U3: Fin. | V3: Phy. | W3: Fin. | X3: Unit Cost | Y3: Phy. | Z3: Fin. | AA3: Phy. | AB3: Fin.
A4: I | B4: ACCESS
B5: SSA
A6: 1 | B6: Opening of New Schools | AA6: =Y6 -> 0
A7: 1.01 | B7: New Primary School | C7: 0 | G7: =IFERROR(E7/C7, ) -> 0 | H7: =IF(D7>0, F7/D7, " ") ->  | I7: =C7-E7 -> 0 | R7: =P7 -> 0 | AA7: =Y7 -> 0
A8: 1.02 | B8: Upgradation of PS to UPS | C8: 0 | G8: 0 | I8: 0 | R8: 0 | AA8: 0
A9: 1.03 | B9: Composite Schools | C9: 0 | G9: 0 | I9: 0 | R9: 0 | AA9: 0
A10: 1.04 | B10: Residential schools for specific category of children | C10: 0 | G10: 0 | I10: 0 | R10: 0 | AA10: 0
A11: 1.05 | B11: Residential Hostel | C11: 0 | G11: 0 | I11: 0 | R11: 0 | AA11: 0
A12: 1.06 | B12: Integration of Class V with primary schools | C12: 0 | G12: 0 | I12: 0 | R12: 0 | AA12: 0
A13: 1.07 | B13: Integration of Class VIII with upper primary schools | C13: 0 | G13: 0 | I13: 0 | R13: 0 | AA13: 0
A14: 2 | B14: Residential Schools for specific category of children | G14: 0 | H14: =IFERROR(F14/D14, ) -> 0
A15: A. | B15: 50 Children
B16: Non-recurring (one time grant) | G16: =IFERROR(E16/C16, ) -> 0 | H16: 0
A17: 2.01 | B17: Furniture / Equipment (including kitchen) | C17: 0 | D17: 0 | G17: 0 | H17: 0 | I17: =C17-E17 -> 0 | J17: 0 | Q17: =O17*P17 -> 0 | R17: =P17 -> 0 | S17: =L17+N17+Q17 -> 0 | Z17: =X17*Y17 -> 0 | AA17: =Y17 -> 0 | AB17: =U17+W17+Z17 -> 0
A18: 2.02 | B18: TLM and equipment including library books | C18: 0 | D18: 0 | G18: 0 | H18: 0 | I18: 0 | J18: 0 | Q18: =O18*P18 -> 0 | R18: =P18 -> 0 | S18: =L18+N18+Q18 -> 0 | Z18: =X18*Y18 -> 0 | AA18: =Y18 -> 0 | AB18: =U18+W18+Z18 -> 0
A19: 2.03 | B19: Bedding (new) | C19: 0 | D19: 0 | G19: 0 | H19: 0 | I19: 0 | J19: 0 | Q19: 0 | R19: =P19 -> 0 | S19: =L19+N19+Q19 -> 0 | Z19: 0 | AA19: 0 | AB19: 0
A20: 2.04 | B20: Replacement of bedding (once in 3 years) | C20: 0 | D20: 0 | Q20: 0 | R20: =P20 -> 0 | S20: =L20+N20+Q20 -> 0 | Z20: 0 | AA20: 0 | AB20: 0
B21: Sub Total Non-recurring | C21: =SUM(C17:C20) -> 0 | D21: =SUM(D17:D20) -> 0 | E21: =SUM(E17:E20) -> 0 | F21: =SUM(F17:F20) -> 0 | G21: =IFERROR(E21/C21, ) -> 0 | H21: 0 | I21: =SUM(I17:I20) -> 0 | J21: 0 | K21: 0 | L21: 0 | M21: 0 | N21: 0 | P21: =SUM(P17:P20) -> 0 | Q21: =SUM(Q17:Q20) -> 0 | R21: =SUM(R17:R20) -> 0 | S21: =SUM(S17:S20) -> 0 | T21: =SUM(T17:T20) -> 0 | U21: 0 | V21: 0 | W21: 0 | Y21: =SUM(Y17:Y20) -> 0 | Z21: 0 | AA21: 0 | AB21: 0
B22: Recurring (50 children) | G22: 0 | H22: 0 | I22: =C22-E22 -> 0 | J22: 0 | Q22: 0
A23: 2.05 | B23: Maintenance @ Rs.1,500/- per child Per month | C23: 0 | D23: 0 | G23: 0 | H23: 0 | I23: 0 | J23: 0 | Q23: 0 | R23: =P23 -> 0 | S23: =L23+N23+Q23 -> 0 | Z23: =X23*Y23 -> 0 | AA23: =Y23 -> 0 | AB23: =U23+W23+Z23 -> 0
A24: 2.06 | B24: Stipend @ Rs.100/- per child per month | C24: 0 | D24: 0 | G24: 0 | H24: 0 | I24: 0 | J24: 0 | Q24: 0 | R24: 0 | S24: 0 | Z24: 0 | AA24: 0 | AB24: 0
A25: 2.07 | B25: Supplementary TLM, Stationery and other educational material @Rs.1,000/- per child per annum | C25: 0 | D25: 0 | G25: 0 | H25: 0 | I25: 0 | J25: 0 | Q25: 0 | R25: 0 | S25: 0 | Z25: 0 | AA25: 0 | AB25: 0
A26: 2.08 | B26: Salaries | C26: 0 | D26: 0 | G26: 0 | H26: 0 | I26: 0 | J26: 0 | Q26: 0 | R26: 0 | S26: 0
A27: (a) | B27: 1 Warden @ Rs.25,000/- per month | C27: 0 | D27: 0 | G27: 0 | H27: 0 | I27: 0 | J27: 0 | Q27: 0 | R27: 0 | S27: 0 | Z27: =X27*Y27 -> 0 | AA27: =Y27 -> 0 | AB27: =U27+W27+Z27 -> 0
A28: (b) | B28: 4 Fulltime teachers as per RTE Norms @ Rs. 20,000/- per month per teacher | C28: 0 | D28: 0 | O28: 9.6 | Q28: 0 | R28: 0 | S28: 0 | X28: 9.6 | Z28: 0 | AA28: 0 | AB28: 0
A29: (c) | B29: 2 Urdu Teachers (only for Blocks with muslim population above 20% and select urban areas) if required @ Rs.12,000/- per month per teacher. | C29: 0 | D29: 0 | O29: 2.88 | Q29: 0 | R29: 0 | S29: 0 | X29: 2.88 | Z29: 0 | AA29: 0 | AB29: 0
A30: (d) | B30: 3 Part time teachers @ Rs.5,000/- per month per teacher | C30: 0 | D30: 0 | O30: 1.5 | Q30: 0 | R30: 0 | S30: 0 | X30: 1.5 | Z30: 0 | AA30: 0 | AB30: 0
A31: (e) | B31: 1 Full time Accountant @ Rs. 10,000/- per month | C31: 0 | D31: 0 | O31: 1.2 | Q31: 0 | R31: 0 | S31: 0 | X31: 1.2 | Z31: 0 | AA31: 0 | AB31: 0
A32: (f) | B32: 2 Support staff - (Accountant/Assistant, Peon, Chowkidar) @ Rs. 5,000/- per month per staff | C32: 0 | D32: 0 | G32: =IFERROR(E32/C32, ) -> 0 | H32: 0 | I32: =C32-E32 -> 0 | J32: 0 | O32: 1.2 | Q32: 0 | R32: 0 | S32: 0 | X32: 1.2 | Z32: 0 | AA32: 0 | AB32: 0
A33: (g) | B33: 1 Head Cook @ Rs. 6,000/- per month and upto 2 Asstt. Cooks @ Rs. 4,500/- per month per cook | C33: 0 | D33: 0 | G33: 0 | H33: 0 | I33: 0 | J33: 0 | O33: 1.8 | Q33: 0 | R33: 0 | S33: 0 | X33: 1.8 | Z33: 0 | AA33: 0 | AB33: 0
A34: 2.09 | B34: Specific Skill training @ Rs.1,000/- per child per annum | C34: 0 | D34: 0 | G34: 0 | H34: 0 | I34: 0 | J34: 0 | O34: 0.5 | Q34: 0 | R34: 0 | S34: 0 | X34: 0.5 | Z34: 0 | AA34: 0 | AB34: 0
A35: 2.1 | B35: Electricity / water charges @ Rs. 1,000/- per child per annum | C35: 0 | D35: 0 | G35: 0 | H35: 0 | I35: 0 | J35: 0 | O35: 0.5 | Q35: 0 | R35: 0 | S35: 0 | X35: 0.5 | Z35: 0 | AA35: 0 | AB35: 0
A36: =+A35+0.01 -> 2.11 | B36: Medical care/contingencies @ Rs.1,250/- per child per annum | C36: 0 | D36: 0 | G36: 0 | H36: 0 | I36: 0 | J36: 0 | O36: 0.625 | Q36: 0 | R36: 0 | S36: 0 | X36: 0.625 | Z36: 0 | AA36: 0 | AB36: 0
A37: =+A36+0.01 -> 2.12 | B37: Maintenance @ Rs. 750/- per child per annum | C37: 0 | D37: 0 | G37: 0 | H37: 0 | I37: 0 | J37: 0 | O37: 0.375 | Q37: 0 | R37: 0 | S37: 0 | X37: 0.375 | Z37: 0 | AA37: 0 | AB37: 0
A38: 2.13 | B38: Miscellaneous @ Rs. 750/- per child per annum | C38: 0 | D38: 0 | G38: 0 | H38: 0 | I38: 0 | J38: 0 | O38: 0.375 | Q38: 0 | R38: 0 | S38: 0 | X38: 0.375 | Z38: 0 | AA38: 0 | AB38: 0
A39: 2.14 | B39: Preparatory camps @ Rs. 300/- per child per annum | C39: 0 | D39: 0 | G39: 0 | H39: 0 | I39: 0 | J39: 0 | O39: 0.15 | Q39: 0 | R39: 0 | S39: 0 | X39: 0.15 | Z39: 0 | AA39: 0 | AB39: 0
A40: 2.15 | B40: P.T.A / school functions @ Rs. 300/- per child per annum | C40: 0 | D40: 0 | G40: 0 | H40: 0 | I40: 0 | J40: 0 | O40: 0.15 | Q40: 0 | R40: 0 | S40: 0 | X40: 0.15 | Z40: 0 | AA40: 0 | AB40: 0
A41: 2.16 | B41: Provision of Rent @ Rs. 10,000/- per child per annum | C41: 0 | D41: 0 | Q41: 0 | R41: 0 | S41: 0 | Z41: 0 | AA41: 0 | AB41: 0
A42: 2.17 | B42: Capacity Building @ Rs. 500/- per child per annum | C42: 0 | D42: 0 | O42: 0.25 | Q42: 0 | R42: 0 | S42: 0 | X42: 0.25 | Z42: 0 | AA42: 0 | AB42: 0
A43: 2.18 | B43: Physical / Self Defence Training @ Rs.200/- per child per annum | C43: 0 | D43: 0 | O43: 0.1 | Q43: 0 | R43: 0 | S43: 0 | X43: 0.1 | Z43: 0 | AA43: 0 | AB43: 0
B44: Sub Total (Recurring) | C44: =SUM(C23:C43) -> 0 | D44: =SUM(D23:D43) -> 0 | E44: =SUM(E23:E43) -> 0 | F44: =SUM(F23:F43) -> 0 | G44: =IFERROR(E44/C44, ) -> 0 | H44: =IFERROR(F44/D44, ) -> 0 | I44: =SUM(I23:I43) -> 0 | J44: 0 | K44: 0 | L44: 0 | M44: 0 | N44: 0 | P44: =SUM(P23:P43) -> 0 | Q44: 0 | R44: 0 | S44: 0 | T44: 0 | U44: 0 | V44: 0 | W44: 0 | Y44: =SUM(Y23:Y43) -> 0 | Z44: 0 | AA44: 0 | AB44: 0
B45: Total (Non Recurring + Recurring) | C45: =C21+C44 -> 0 | D45: =D21+D44 -> 0 | E45: =E21+E44 -> 0 | F45: =F21+F44 -> 0 | I45: =I21+I44 -> 0 | J45: 0 | K45: 0 | L45: 0 | M45: 0 | N45: 0 | P45: =P21+P44 -> 0 | Q45: 0 | R45: 0 | S45: 0 | T45: 0 | U45: 0 | V45: 0 | W45: 0 | Y45: =Y21+Y44 -> 0 | Z45: 0 | AA45: 0 | AB45: 0
A46: B. | B46: 100 children
B47: Non-recurring (one time grant)
A48: 2.19 | B48: Furniture / Equipment (including kitchen equipment) | C48: 0 | D48: 0 | O48: 3 | Q48: =O48*P48 -> 0 | R48: =P48 -> 0 | S48: =L48+N48+Q48 -> 0 | X48: 3 | Z48: =X48*Y48 -> 0 | AA48: =Y48 -> 0 | AB48: =U48+W48+Z48 -> 0
A49: =+A48+0.01 -> 2.2 | B49: TLM and equipment including library books (New) | C49: 0 | D49: 0 | O49: 3.5 | Q49: =O49*P49 -> 0 | R49: =P49 -> 0 | S49: =L49+N49+Q49 -> 0 | X49: 3.5 | Z49: 0 | AA49: 0 | AB49: 0
A50: =+A49+0.01 -> 2.21 | B50: Bedding (New) | C50: 0 | D50: 0 | O50: 0.75 | Q50: =O50*P50 -> 0 | R50: =P50 -> 0 | S50: =L50+N50+Q50 -> 0 | X50: 0.75 | Z50: 0 | AA50: 0 | AB50: 0
A51: =+A50+0.01 -> 2.22 | B51: Replacement of bedding (once in 3 years) | C51: 0 | D51: 0 | Q51: =O51*P51 -> 0 | R51: =P51 -> 0 | S51: =L51+N51+Q51 -> 0 | Z51: 0 | AA51: 0 | AB51: 0
B52: Sub Total Non-recurring | C52: =SUM(C48:C51) -> 0 | D52: =SUM(D48:D51) -> 0 | E52: =SUM(E48:E51) -> 0 | F52: =SUM(F48:F51) -> 0 | I52: =SUM(I48:I51) -> 0 | J52: 0 | K52: 0 | L52: 0 | M52: 0 | N52: 0 | P52: =SUM(P48:P51) -> 0 | Q52: 0 | R52: 0 | S52: 0 | T52: 0 | U52: 0 | V52: 0 | W52: 0 | Y52: =SUM(Y48:Y51) -> 0 | Z52: 0 | AA52: 0 | AB52: 0
B53: Recurring
A54: 2.23 | B54: Maintenance @ Rs. 1,500/- per child per month | C54: 0 | D54: 0 | Q54: =O54*P54 -> 0 | R54: =P54 -> 0 | S54: =L54+N54+Q54 -> 0 | Z54: =X54*Y54 -> 0 | AA54: =Y54 -> 0 | AB54: =U54+W54+Z54 -> 0
A55: =+A54+0.01 -> 2.24 | B55: Stipend @ Rs.100/- per child per month | C55: 0 | D55: 0 | Q55: 0 | R55: 0 | S55: 0 | Z55: 0 | AA55: 0 | AB55: 0
A56: 2.25 | B56: Supplementary TLM, Stationery and other educational material @1,000/- per child per annum | C56: 0 | D56: 0 | Q56: 0 | R56: 0 | S56: 0 | Z56: 0 | AA56: 0 | AB56: 0
A57: 2.26 | B57: Salaries | C57: 0 | D57: 0 | Q57: 0 | R57: 0 | S57: 0
A58: (a) | B58: 1 Warden @ Rs. 25,000/- per month | C58: 0 | D58: 0 | O58: 3 | Q58: 0 | R58: 0 | S58: 0 | X58: 3 | Z58: =X58*Y58 -> 0 | AA58: =Y58 -> 0 | AB58: =U58+W58+Z58 -> 0
A59: (b) | B59: 1 head teacher @ Rs. 25,000/- per month in case the enrollment exceeds 100 | C59: 0 | D59: 0 | O59: 3 | Q59: 0 | R59: 0 | S59: 0 | X59: 3 | Z59: 0 | AA59: 0 | AB59: 0
A60: (c) | B60: 4 - 5 Full time teachers as per RTE norms @ Rs. 20,000/- per month per teacher | C60: 0 | D60: 0 | O60: 9.6 | Q60: 0 | R60: 0 | S60: 0 | X60: 9.6 | Z60: 0 | AA60: 0 | AB60: 0
A61: (d) | B61: 2 Urdu Teachers (only for blocks with muslim population above 20% and select urban areas), if required @ Rs. 12,000/- per month per teacher | C61: 0 | D61: 0 | O61: 2.88 | Q61: 0 | R61: 0 | S61: 0 | X61: 2.88 | Z61: 0 | AA61: 0 | AB61: 0
A62: (e) | B62: 3 part time teachers @ Rs. 5,000/- per month per teacher | C62: 0 | D62: 0 | O62: 1.5 | Q62: 0 | R62: 0 | S62: 0 | X62: 1.5 | Z62: 0 | AA62: 0 | AB62: 0
A63: (f) | B63: 1 Full time Accountant @ Rs. 10,000/- per month | C63: 0 | D63: 0 | O63: 1.2 | Q63: 0 | R63: 0 | S63: 0 | X63: 1.2 | Z63: 0 | AA63: 0 | AB63: 0
A64: (g) | B64: 2 Support Staff – (Accountant/ Assistant, Peon, Chowkidar) @ Rs. 5,000/- per month per staff | C64: 0 | D64: 0 | O64: 1.2 | Q64: 0 | R64: 0 | S64: 0 | X64: 1.2 | Z64: 0 | AA64: 0 | AB64: 0
A65: (h) | B65: 1 Head cook @ Rs. 6,000/- per month and upto 2 Asstt. Cooks @ Rs. 4,500/- per month per cook | C65: 0 | D65: 0 | O65: 1.8 | Q65: 0 | R65: 0 | S65: 0 | X65: 1.8 | Z65: 0 | AA65: 0 | AB65: 0
A66: 2.27 | B66: Specific skill training @ Rs. 1,000/- per child per annum | C66: 0 | D66: 0 | O66: 1 | Q66: 0 | R66: 0 | S66: 0 | X66: 1 | Z66: 0 | AA66: 0 | AB66: 0
A67: 2.28 | B67: Electricity / water charges @Rs. 1,000/- per child per annum | C67: 0 | D67: 0 | O67: 1 | Q67: 0 | R67: 0 | S67: 0 | X67: 1 | Z67: 0 | AA67: 0 | AB67: 0
A68: 2.29 | B68: Medical care/contingencies @ Rs. 1,250/- per child per annum | C68: 0 | D68: 0 | O68: 1.25 | Q68: 0 | R68: 0 | S68: 0 | X68: 1.25 | Z68: 0 | AA68: 0 | AB68: 0
A69: 2.3 | B69: Maintenance @ Rs. 750/- per child per annum | C69: 0 | D69: 0 | O69: 0.75 | Q69: 0 | R69: 0 | S69: 0 | X69: 0.75 | Z69: 0 | AA69: 0 | AB69: 0
A70: 2.31 | B70: Miscellaneous @ Rs. 750/- per child per annum | C70: 0 | D70: 0 | O70: 0.75 | Q70: 0 | R70: 0 | S70: 0 | X70: 0.75 | Z70: 0 | AA70: 0 | AB70: 0
A71: 2.32 | B71: Preparatory camps @ Rs.200/- per child per annum | C71: 0 | D71: 0 | O71: 0.2 | Q71: 0 | R71: 0 | S71: 0 | X71: 0.2 | Z71: 0 | AA71: 0 | AB71: 0
A72: 2.33 | B72: P.T.A / school functions @ Rs.200/- per child per annum | C72: 0 | D72: 0 | O72: 0.2 | Q72: 0 | R72: 0 | S72: 0 | X72: 0.2 | Z72: 0 | AA72: 0 | AB72: 0
A73: 2.34 | B73: Provision of Rent @ Rs. 6,000/- per child per annum | C73: 0 | D73: 0 | Q73: 0 | R73: 0 | S73: 0 | Z73: 0 | AA73: 0 | AB73: 0
A74: 2.35 | B74: Capacity Building @ Rs. 500/- per child per annum | C74: 0 | D74: 0 | O74: 0.5 | Q74: 0 | R74: 0 | S74: 0 | X74: 0.5 | Z74: 0 | AA74: 0 | AB74: 0
A75: 2.36 | B75: Physical / Self Defence training @ Rs. 200/- per child per annum. | C75: 0 | D75: 0 | O75: 0.2 | P75: =P74 -> 0 | Q75: =O75*P75 -> 0 | R75: =P75 -> 0 | S75: =L75+N75+Q75 -> 0 | X75: 0.2 | Z75: 0 | AA75: 0 | AB75: 0
B76: Sub Total (Recurring) | C76: =SUM(C54:C75) -> 0 | D76: =SUM(D54:D75) -> 0 | E76: =SUM(E54:E75) -> 0 | F76: =SUM(F54:F75) -> 0 | I76: =SUM(I54:I75) -> 0 | J76: 0 | K76: 0 | L76: 0 | M76: 0 | N76: 0 | P76: =SUM(P54:P75) -> 0 | Q76: 0 | R76: 0 | S76: 0 | T76: 0 | U76: 0 | V76: 0 | W76: 0 | Y76: =SUM(Y54:Y75) -> 0 | Z76: 0 | AA76: 0 | AB76: 0
B77: Total (Recurring + Non Recurring) | C77: =C52+C76 -> 0 | D77: =D52+D76 -> 0 | E77: =E52+E76 -> 0 | F77: =F52+F76 -> 0 | I77: =I52+I76 -> 0 | J77: 0 | K77: 0 | L77: 0 | M77: 0 | N77: 0 | P77: =P52+P76 -> 0 | Q77: 0 | R77: 0 | S77: 0 | T77: 0 | U77: 0 | V77: 0 | W77: 0 | Y77: =Y52+Y76 -> 0 | Z77: 0 | AA77: 0 | AB77: 0
B78: Total - (50 + 100 children) | C78: =C45+C77 -> 0 | D78: =D45+D77 -> 0 | E78: =E45+E77 -> 0 | F78: =F45+F77 -> 0 | G78: =IFERROR(E78/C78, ) -> 0 | H78: =IFERROR(F78/D78, ) -> 0 | I78: =I45+I77 -> 0 | J78: 0 | K78: 0 | L78: 0 | M78: 0 | N78: 0 | P78: =P45+P77 -> 0 | Q78: 0 | R78: 0 | S78: 0 | T78: 0 | U78: 0 | V78: 0 | W78: 0 | Y78: =Y45+Y77 -> 0 | Z78: 0 | AA78: 0 | AB78: 0
A79: 3 | B79: Residential Hostel for specific category of children | G79: =IFERROR(E79/C79, ) -> 0 | H79: =IFERROR(F79/D79, ) -> 0 | I79: =C79-E79 -> 0 | J79: =D79-F79 -> 0
A80: (A) | B80: 50 children
B81: Non-recurring (one time grant) | G81: =IFERROR(E81/C81, ) -> 0 | H81: =IFERROR(F81/D81, ) -> 0
A82: 3.01 | B82: Furniture/ Equipment (including kitchen) | C82: 0 | D82: 0 | I82: =C82-E82 -> 0 | J82: =D82-F82 -> 0 | O82: 2 | Q82: =O82*P82 -> 0 | R82: =P82 -> 0 | S82: =L82+N82+Q82 -> 0 | X82: 2 | Z82: =X82*Y82 -> 0 | AA82: =Y82 -> 0 | AB82: =U82+W82+Z82 -> 0
A83: =+A82+0.01 -> 3.02 | B83: TLM and equipment including library books | C83: 0 | D83: 0 | I83: =C83-E83 -> 0 | J83: 0 | O83: 3 | Q83: =O83*P83 -> 0 | R83: =P83 -> 0 | S83: =L83+N83+Q83 -> 0 | X83: 3 | Z83: 0 | AA83: 0 | AB83: 0
A84: =+A83+0.01 -> 3.03 | B84: Bedding (new) | C84: 0 | D84: 0 | I84: 0 | J84: 0 | O84: 0.375 | Q84: =O84*P84 -> 0 | R84: =P84 -> 0 | S84: =L84+N84+Q84 -> 0 | X84: 0.375 | Z84: 0 | AA84: 0 | AB84: 0
A85: =+A84+0.01 -> 3.04 | B85: Replacement of bedding (once in 3 years) | C85: 0 | D85: 0 | I85: 0 | J85: 0 | Q85: =O85*P85 -> 0 | R85: =P85 -> 0 | S85: =L85+N85+Q85 -> 0
B86: Sub Total (Non Recurring) | C86: =SUM(C82:C85) -> 0 | D86: =SUM(D82:D85) -> 0 | E86: =SUM(E82:E85) -> 0 | F86: =SUM(F82:F85) -> 0 | I86: =SUM(I82:I85) -> 0 | J86: 0 | K86: 0 | L86: 0 | M86: 0 | N86: 0 | P86: =SUM(P82:P85) -> 0 | Q86: 0 | R86: 0 | S86: 0 | T86: 0 | U86: 0 | V86: 0 | W86: 0 | Y86: =SUM(Y82:Y85) -> 0 | Z86: 0 | AA86: 0 | AB86: 0
B87: Recurring (50 children) | I87: =C87-E87 -> 0 | J87: 0
A88: 3.05 | B88: Maintenance @ Rs.1,500/- per child per month | C88: 0 | D88: 0 | I88: 0 | J88: 0 | O88: 9 | Q88: =O88*P88 -> 0 | R88: =P88 -> 0 | S88: =L88+N88+Q88 -> 0 | X88: 9 | Z88: =X88*Y88 -> 0 | AA88: =Y88 -> 0 | AB88: =U88+W88+Z88 -> 0
A89: =+A88+0.01 -> 3.06 | B89: Stipend @ Rs.100/- per child per month | C89: 0 | D89: 0 | I89: 0 | J89: 0 | O89: 0.6 | Q89: =O89*P89 -> 0 | R89: 0 | S89: 0 | X89: 0.6 | Z89: 0 | AA89: 0 | AB89: 0
A90: =+A89+0.01 -> 3.07 | B90: Supplementary TLM, Stationery and other educational material @Rs.1,000/- per child per annum | C90: 0 | D90: 0 | I90: 0 | J90: 0 | O90: 0.5 | Q90: =O90*P90 -> 0 | R90: 0 | S90: 0 | X90: 0.5 | Z90: 0 | AA90: 0 | AB90: 0
A91: 3.08 | B91: Salaries | C91: 0 | D91: 0 | I91: 0 | J91: 0 | R91: 0 | S91: 0
A92: (a) | B92: 1 Warden @ Rs. 25,000/- per month | C92: 0 | D92: 0 | I92: 0 | J92: 0 | O92: 3 | Q92: =O92*P92 -> 0 | R92: 0 | S92: 0 | X92: 3 | Z92: =X92*Y92 -> 0 | AA92: =Y92 -> 0 | AB92: =U92+W92+Z92 -> 0
A93: (b) | B93: 4 Fulltime teachers as per RTE Norms @ Rs. 20,000/- per month per teacher | C93: 0 | D93: 0 | I93: 0 | J93: 0 | O93: 9.6 | Q93: 0 | R93: 0 | S93: 0 | X93: 9.6 | Z93: 0 | AA93: 0 | AB93: 0
A94: (c) | B94: 2 Urdu Teachers (only for Blocks with muslim population above 20% and select urban areas) if required @ Rs.12,000/- per month per teacher. | C94: 0 | D94: 0 | I94: 0 | J94: 0 | O94: 2.88 | Q94: 0 | R94: 0 | S94: 0 | X94: 2.88 | Z94: 0 | AA94: 0 | AB94: 0
A95: (d) | B95: 3 Part time teachers @ Rs.5,000/- per month per teacher | C95: 0 | D95: 0 | I95: 0 | J95: 0 | O95: 1.5 | Q95: 0 | R95: 0 | S95: 0 | X95: 1.5 | Z95: 0 | AA95: 0 | AB95: 0
A96: (e) | B96: 1 Full time Accountant @ Rs. 10,000/- per month | C96: 0 | D96: 0 | I96: 0 | J96: 0 | O96: 1.2 | Q96: 0 | R96: 0 | S96: 0 | X96: 1.2 | Z96: 0 | AA96: 0 | AB96: 0
A97: (f) | B97: 2 Support staff - (Accountant/Assistant, Peon, Chowkidar) @ Rs. 5,000/- per month per staff | C97: 0 | D97: 0 | I97: 0 | J97: 0 | O97: 1.2 | Q97: 0 | R97: 0 | S97: 0 | X97: 1.2 | Z97: 0 | AA97: 0 | AB97: 0
A98: (g) | B98: 1 Head Cook @ Rs. 6,000/- per month and upto 2 Asstt. Cooks @ Rs. 4,500/- per month per cook | C98: 0 | D98: 0 | I98: 0 | J98: 0 | O98: 1.8 | Q98: 0 | R98: 0 | S98: 0 | X98: 1.8 | Z98: 0 | AA98: 0 | AB98: 0
A99: 3.09 | B99: Specific Skill training @ Rs.1000/- per child per annum | C99: 0 | D99: 0 | I99: 0 | J99: 0 | O99: 0.5 | Q99: 0 | R99: 0 | S99: 0 | X99: 0.5 | Z99: 0 | AA99: 0 | AB99: 0
A100: =+A99+0.01 -> 3.1 | B100: Electricity / water charges @ Rs. 1,000/- per child per annum | C100: 0 | D100: 0 | I100: 0 | J100: 0 | O100: 0.5 | Q100: 0 | R100: 0 | S100: 0 | X100: 0.5 | Z100: 0 | AA100: 0 | AB100: 0
A101: 3.11 | B101: Medical care/contingencies @ Rs.1,250/- per child per annum | C101: 0 | D101: 0 | I101: 0 | J101: 0 | O101: 0.625 | Q101: 0 | R101: 0 | S101: 0 | X101: 0.625 | Z101: 0 | AA101: 0 | AB101: 0
A102: 3.12 | B102: Maintenance @ Rs. 750/- per child per annum | C102: 0 | D102: 0 | I102: 0 | J102: 0 | O102: 0.375 | Q102: 0 | R102: 0 | S102: 0 | X102: 0.375 | Z102: 0 | AA102: 0 | AB102: 0
A103: 3.13 | B103: Miscellaneous @ Rs. 750/- per child per annum | C103: 0 | D103: 0 | I103: 0 | J103: 0 | O103: 0.375 | Q103: 0 | R103: 0 | S103: 0 | X103: 0.375 | Z103: 0 | AA103: 0 | AB103: 0
A104: 3.14 | B104: Preparatory camps @ Rs. 300/- per child per annum | C104: 0 | D104: 0 | I104: 0 | J104: 0 | O104: 0.15 | Q104: 0 | R104: 0 | S104: 0 | X104: 0.15 | Z104: 0 | AA104: 0 | AB104: 0
A105: 3.15 | B105: P.T.A / school functions @ Rs. 300/- per child per annum | C105: 0 | D105: 0 | I105: 0 | J105: 0 | O105: 0.15 | Q105: 0 | R105: 0 | S105: 0 | X105: 0.15 | Z105: 0 | AA105: 0 | AB105: 0
A106: 3.16 | B106: Provision of Rent @ Rs. 10,000/- per child per annum | C106: 0 | D106: 0 | I106: 0 | J106: 0 | Q106: 0 | R106: 0 | S106: 0 | Z106: 0 | AA106: 0 | AB106: 0
A107: 3.17 | B107: Capacity Building @ Rs. 500/- per child per annum | C107: 0 | D107: 0 | I107: 0 | J107: 0 | O107: 0.25 | Q107: 0 | R107: 0 | S107: 0 | X107: 0.25 | Z107: 0 | AA107: 0 | AB107: 0
A108: 3.18 | B108: Physical / Self Defence Training @ Rs.200/- per child per annum | C108: 0 | D108: 0 | I108: 0 | J108: 0 | O108: 0.1 | Q108: 0 | R108: 0 | S108: 0 | X108: 0.1 | Z108: 0 | AA108: 0 | AB108: 0
B109: Sub Total (Recurring) | C109: =SUM(C88:C108) -> 0 | D109: =SUM(D88:D108) -> 0 | E109: =SUM(E88:E108) -> 0 | F109: =SUM(F88:F108) -> 0 | I109: =SUM(I88:I108) -> 0 | J109: 0 | K109: 0 | L109: 0 | M109: 0 | N109: 0 | P109: =SUM(P88:P108) -> 0 | Q109: 0 | R109: 0 | S109: 0 | T109: 0 | U109: 0 | V109: 0 | W109: 0 | Y109: =SUM(Y88:Y108) -> 0 | Z109: 0 | AA109: 0 | AB109: 0
B110: Total (Non Recurring + Recurring) | C110: =C86+C109 -> 0 | D110: =D86+D109 -> 0 | E110: =E86+E109 -> 0 | F110: =F86+F109 -> 0 | I110: =I86+I109 -> 0 | J110: 0 | K110: 0 | L110: 0 | M110: 0 | N110: 0 | P110: =P86+P109 -> 0 | Q110: 0 | R110: 0 | S110: 0 | T110: 0 | U110: 0 | V110: 0 | W110: 0 | Y110: =Y86+Y109 -> 0 | Z110: 0 | AA110: 0 | AB110: 0
A111: (B) | B111: 100 Children
B112: Non-recurring (one time grant)
A113: 3.19 | B113: Furniture/ Equipment (including kitchen) | C113: 0 | D113: 0 | G113: =IFERROR(E113/C113, ) -> 0 | H113: 0 | I113: =C113-E113 -> 0 | J113: 0 | O113: 3 | Q113: =O113*P113 -> 0 | R113: =P113 -> 0 | S113: =L113+N113+Q113 -> 0 | X113: 3 | Z113: =X113*Y113 -> 0 | AA113: =Y113 -> 0 | AB113: =U113+W113+Z113 -> 0
A114: =+A113+0.01 -> 3.2 | B114: TLM and equipment including library books | C114: 0 | D114: 0 | G114: 0 | H114: 0 | I114: 0 | J114: 0 | O114: 3.5 | Q114: =O114*P114 -> 0 | R114: =P114 -> 0 | S114: =L114+N114+Q114 -> 0 | X114: 3.5 | Z114: 0 | AA114: 0 | AB114: 0
A115: =+A114+0.01 -> 3.21 | B115: Bedding (new) | C115: 0 | D115: 0 | G115: 0 | H115: 0 | I115: 0 | J115: 0 | O115: 0.75 | Q115: =O115*P115 -> 0 | R115: =P115 -> 0 | S115: =L115+N115+Q115 -> 0 | X115: 0.75 | Z115: 0 | AA115: 0 | AB115: 0
A116: =+A115+0.01 -> 3.22 | B116: Replacement of bedding (once in 3 years) | C116: 0 | D116: 0 | I116: 0 | J116: 0 | Q116: =O116*P116 -> 0 | R116: =P116 -> 0 | S116: =L116+N116+Q116 -> 0 | Z116: 0 | AA116: 0 | AB116: 0
B117: Sub Total (Non Recurring) | C117: =SUM(C113:C116) -> 0 | D117: =SUM(D113:D116) -> 0 | E117: =SUM(E113:E116) -> 0 | F117: =SUM(F113:F116) -> 0 | G117: =IFERROR(E117/C117, ) -> 0 | H117: 0 | I117: =SUM(I113:I116) -> 0 | J117: 0 | K117: 0 | L117: 0 | M117: 0 | N117: 0 | P117: =SUM(P113:P116) -> 0 | Q117: 0 | R117: 0 | S117: 0 | T117: 0 | U117: 0 | V117: 0 | W117: 0 | Y117: =SUM(Y113:Y116) -> 0 | Z117: 0 | AA117: 0 | AB117: 0
B118: Recurring | G118: 0 | H118: 0 | I118: =C118-E118 -> 0 | J118: =D118-F118 -> 0
A119: 3.23 | B119: Maintenance @ Rs.1,500/- per child per month | C119: 0 | D119: 0 | G119: 0 | H119: 0 | I119: =C119-E119 -> 0 | J119: 0 | O119: 18 | Q119: =O119*P119 -> 0 | R119: =P119 -> 0 | S119: =L119+N119+Q119 -> 0 | X119: 18 | Y119: 0 | Z119: =X119*Y119 -> 0 | AA119: =Y119 -> 0 | AB119: =U119+W119+Z119 -> 0
A120: =+A119+0.01 -> 3.24 | B120: Stipend @ Rs.100/- per child per month | C120: 0 | D120: 0 | G120: 0 | H120: 0 | I120: 0 | J120: 0 | O120: 1.2 | Q120: 0 | R120: =P120 -> 0 | S120: =L120+N120+Q120 -> 0 | X120: 1.2 | Y120: 0 | Z120: 0 | AA120: 0 | AB120: 0
A121: =+A120+0.01 -> 3.25 | B121: Supplementary TLM, Stationery and other educational material @Rs.1,000/- per child per annum | C121: 0 | D121: 0 | G121: 0 | H121: 0 | I121: 0 | J121: 0 | O121: 1 | Q121: 0 | R121: =P121 -> 0 | S121: =L121+N121+Q121 -> 0 | X121: 1 | Y121: 0 | Z121: 0 | AA121: 0 | AB121: 0
A122: 3.26 | B122: Salaries | C122: 0 | D122: 0 | G122: 0 | H122: 0 | I122: 0 | J122: 0 | R122: 0 | S122: 0 | Y122: 0
A123: (a) | B123: 1 Warden @ Rs. 25,000/- per month | C123: 0 | D123: 0 | I123: 0 | J123: 0 | O123: 3 | Q123: 0 | R123: 0 | S123: 0 | X123: 3 | Y123: 0
A124: (b) | B124: 1 head teacher @ Rs. 25,000/- per month in case the enrollment exceeds 100 | C124: 0 | D124: 0 | I124: 0 | J124: 0 | Q124: 0 | R124: 0 | S124: 0 | Y124: 0 | Z124: =X124*Y124 -> 0 | AA124: =Y124 -> 0 | AB124: =U124+W124+Z124 -> 0
A125: (c) | B125: 3 part time teachers @ Rs. 5,000/- per month per teacher | C125: 0 | D125: 0 | I125: 0 | J125: 0 | O125: 1.8 | Q125: 0 | R125: 0 | S125: 0 | X125: 1.8 | Y125: 0 | Z125: 0 | AA125: 0 | AB125: 0
A126: (d) | B126: 1 Full time Accountant @ Rs. 10,000/- per month | C126: 0 | D126: 0 | I126: 0 | J126: 0 | O126: 1.2 | Q126: 0 | R126: 0 | S126: 0 | X126: 1.2 | Y126: 0 | Z126: 0 | AA126: 0 | AB126: 0
A127: (e) | B127: 2 Support Staff – (Accountant/ Assistant, Peon, Chowkidar) @ Rs. 5,000/- per month per staff | C127: 0 | D127: 0 | I127: 0 | J127: 0 | O127: 1.2 | Q127: 0 | R127: 0 | S127: 0 | X127: 1.2 | Y127: 0 | Z127: 0 | AA127: 0 | AB127: 0
A128: (f) | B128: 1 Head cook @ Rs. 6,000/- per month and upto 2 Asstt. Cooks @ Rs. 4,500/- per month per cook | C128: 0 | D128: 0 | I128: 0 | J128: 0 | O128: 1.8 | Q128: 0 | R128: 0 | S128: 0 | X128: 1.8 | Y128: 0 | Z128: 0 | AA128: 0 | AB128: 0
A129: 3.27 | B129: Specific skill training @ Rs.1,000/- per child per annum | C129: 0 | D129: 0 | G129: =IFERROR(E129/C129, ) -> 0 | H129: 0 | I129: 0 | J129: 0 | O129: 1 | Q129: 0 | R129: 0 | S129: 0 | X129: 1 | Y129: 0 | Z129: 0 | AA129: 0 | AB129: 0
A130: =+A129+0.01 -> 3.28 | B130: Electricity / water charges @ Rs.1,000/- per child per annum | C130: 0 | D130: 0 | G130: 0 | H130: 0 | I130: 0 | J130: 0 | O130: 1 | Q130: 0 | R130: 0 | S130: 0 | X130: 1 | Y130: 0 | Z130: 0 | AA130: 0 | AB130: 0
A131: 3.29 | B131: Medical care/contingencies @ Rs.1,250/- per child per annum | C131: 0 | D131: 0 | G131: 0 | H131: 0 | I131: 0 | J131: 0 | O131: 1.25 | Q131: 0 | R131: 0 | S131: 0 | X131: 1.25 | Y131: 0 | Z131: 0 | AA131: 0 | AB131: 0
A132: 3.3 | B132: Maintenance @ Rs.750/- per child per annum | C132: 0 | D132: 0 | G132: 0 | H132: 0 | I132: 0 | J132: 0 | O132: 0.75 | Q132: 0 | R132: 0 | S132: 0 | X132: 0.75 | Y132: 0 | Z132: 0 | AA132: 0 | AB132: 0
A133: 3.31 | B133: Miscellaneous @ Rs.750/- per child per annum | C133: 0 | D133: 0 | G133: 0 | H133: 0 | I133: 0 | J133: 0 | O133: 0.75 | Q133: 0 | R133: 0 | S133: 0 | X133: 0.75 | Y133: 0 | Z133: 0 | AA133: 0 | AB133: 0
A134: 3.32 | B134: Preparatory camps @ Rs.200/- per child per annum | C134: 0 | D134: 0 | G134: 0 | H134: 0 | I134: 0 | J134: 0 | O134: 0.3 | Q134: 0 | R134: 0 | S134: 0 | X134: 0.3 | Y134: 0 | Z134: 0 | AA134: 0 | AB134: 0
A135: 3.33 | B135: P.T.A / school functions @ Rs.200/- per child per annum | C135: 0 | D135: 0 | G135: 0 | H135: 0 | I135: 0 | J135: 0 | O135: 0.3 | Q135: 0 | R135: 0 | S135: 0 | X135: 0.3 | Y135: 0 | Z135: 0 | AA135: 0 | AB135: 0
A136: 3.34 | B136: Provision of Rent @ Rs. 6,000/- per child per annum | C136: 0 | D136: 0 | G136: 0 | H136: 0 | I136: 0 | J136: 0 | O136: 1.8 | Q136: 0 | R136: 0 | S136: 0 | X136: 1.8 | Y136: 0 | Z136: 0 | AA136: 0 | AB136: 0
A137: 3.35 | B137: Capacity Building @ Rs.500/- per child per annum | C137: 0 | D137: 0 | G137: 0 | H137: 0 | I137: 0 | J137: 0 | O137: 0.5 | Q137: 0 | R137: 0 | S137: 0 | X137: 0.5 | Y137: 0 | Z137: 0 | AA137: 0 | AB137: 0
A138: 3.36 | B138: Physical / Self Defence training @ Rs. 200/- per child per annum. | C138: 0 | D138: 0 | I138: 0 | J138: 0 | Q138: 0 | R138: 0 | S138: 0 | Y138: 0 | Z138: 0 | AA138: 0 | AB138: 0
B139: Sub Total (Recurring) | C139: =SUM(C119:C138) -> 0 | D139: =SUM(D119:D138) -> 0 | E139: =SUM(E119:E138) -> 0 | F139: =SUM(F119:F138) -> 0 | G139: =IFERROR(E139/C139, ) -> 0 | H139: =IFERROR(F139/D139, ) -> 0 | I139: =SUM(I119:I138) -> 0 | J139: 0 | K139: 0 | L139: 0 | M139: 0 | N139: 0 | P139: =SUM(P119:P138) -> 0 | Q139: 0 | R139: 0 | S139: 0 | T139: 0 | U139: 0 | V139: 0 | W139: 0 | Y139: =SUM(Y119:Y138) -> 0 | Z139: =SUM(Z119:Z138) -> 0 | AA139: =SUM(AA119:AA138) -> 0 | AB139: =SUM(AB119:AB138) -> 0
B140: Total (Recurring + Non Recurring) | C140: =C117+C139 -> 0 | D140: =D117+D139 -> 0 | E140: =E117+E139 -> 0 | F140: =F117+F139 -> 0 | G140: =IFERROR(E140/C140, ) -> 0 | H140: =IFERROR(F140/D140, ) -> 0 | I140: =I117+I139 -> 0 | J140: 0 | K140: 0 | L140: 0 | M140: 0 | N140: 0 | P140: =P117+P139 -> 0 | Q140: 0 | R140: 0 | S140: 0 | T140: 0 | U140: 0 | V140: 0 | W140: 0 | Y140: =Y117+Y139 -> 0 | Z140: =Z117+Z139 -> 0 | AA140: =AA117+AA139 -> 0 | AB140: =AB117+AB139 -> 0
B141: Total (A + B) | C141: =C110+C140 -> 0 | D141: =D110+D140 -> 0 | E141: =E110+E140 -> 0 | F141: =F110+F140 -> 0 | I141: =I110+I140 -> 0 | J141: 0 | K141: 0 | L141: 0 | M141: 0 | N141: 0 | P141: =P110+P140 -> 0 | Q141: 0 | R141: 0 | S141: 0 | T141: 0 | U141: 0 | V141: 0 | W141: 0 | Y141: =Y110+Y140 -> 0 | Z141: =Z110+Z140 -> 0 | AA141: =AA110+AA140 -> 0 | AB141: =AB110+AB140 -> 0
A142: 4 | B142: Transport/Escort Facility | G142: =IFERROR(E142/C142, ) -> 0 | H142: 0 | I142: =C142-E142 -> 0 | J142: 0
A143: 4.01 | B143: Children in remote habitation | C143: 0 | D143: 0 | G143: 0 | H143: 0 | I143: 0 | J143: 0 | Q143: =O143*P143 -> 0 | R143: =P143 -> 0 | S143: =L143+N143+Q143 -> 0 | Z143: =X143*Y143 -> 0 | AA143: =Y143 -> 0 | AB143: =U143+W143+Z143 -> 0
A144: 4.02 | B144: Urban deprived children/children without adult protection | C144: 0 | D144: 0 | G144: 0 | H144: 0 | I144: 0 | J144: 0 | Q144: =O144*P144 -> 0 | R144: =P144 -> 0 | S144: =L144+N144+Q144 -> 0 | Z144: 0 | AA144: 0 | AB144: 0
B145: Sub Total | C145: =C143+C144 -> 0 | D145: =D143+D144 -> 0 | E145: =E143+E144 -> 0 | F145: =F143+F144 -> 0 | G145: 0 | H145: 0 | I145: =I143+I144 -> 0 | J145: 0 | K145: 0 | L145: 0 | M145: 0 | N145: 0 | P145: =P143+P144 -> 0 | Q145: 0 | R145: 0 | S145: 0 | T145: 0 | U145: 0 | V145: 0 | W145: 0 | Y145: =Y143+Y144 -> 0 | Z145: 0 | AA145: 0 | AB145: 0
A146: 5 | B146: Reimbursement of Fee against 25% admission under Section 12(1)(c) of RTE Act 2009 (Entry Level) subject to upper limit of 20% of AWP&B guidelines issued by MHRD | C146: 0 | D146: 0 | O146: 0.0435 | P146: 4239 | Q146: =O146*P146 -> 184.3965 | R146: =P146 -> 4239 | S146: =L146+N146+Q146 -> 184.3965 | X146: 0.0435 | Z146: =X146*Y146 -> 0 | AA146: =Y146 -> 0 | AB146: =U146+W146+Z146 -> 0
B147: Sub Total | C147: =C146 -> 0 | D147: =D146 -> 0 | E147: =E146 -> 0 | F147: =F146 -> 0 | I147: =I146 -> 0 | J147: =J146 -> 0 | K147: =K146 -> 0 | L147: 0 | M147: 0 | N147: 0 | P147: =P146 -> 4239 | Q147: =Q146 -> 184.3965 | R147: =R146 -> 4239 | S147: 184.3965 | T147: 0 | U147: 0 | V147: 0 | W147: 0 | Y147: =Y146 -> 0 | Z147: 0 | AA147: 0 | AB147: 0
A148: 6 | B148: Special Training for mainstreaming of Out-of-School Children | G148: =IFERROR(E148/C148, ) -> 0 | H148: 0 | I148: =C148-E148 -> 0 | J148: 0
A149: 6.01 | B149: Residential (Fresh) | C149: 0 | D149: 0 | G149: 0 | H149: 0 | I149: 0 | J149: 0 | R149: =P149 -> 0 | S149: =L149+N149+Q149 -> 0
B150: (a) 12 Months | C150: 0 | D150: 0 | G150: 0 | H150: 0 | I150: 0 | J150: 0 | O150: 0.24 | Q150: =O150*P150 -> 0 | R150: =P150 -> 0 | S150: =L150+N150+Q150 -> 0 | X150: 0.2 | Z150: =X150*Y150 -> 0 | AA150: =Y150 -> 0 | AB150: =U150+W150+Z150 -> 0
B151: (b) 9 Months | C151: 854 | D151: 128.1 | E151: 550 | F151: 52.84 | G151: 0.644028103 | H151: 0.412490242 | I151: 304 | J151: 75.26 | O151: 0.18 | Q151: =O151*P151 -> 0 | R151: =P151 -> 0 | S151: =L151+N151+Q151 -> 0 | X151: 0.15 | Z151: 0 | AA151: 0 | AB151: 0
B152: (c) 6 Months | C152: 0 | D152: 0 | G152: 0 | H152: 0 | I152: 0 | J152: 0 | O152: 0.12 | P152: 2577 | Q152: =O152*P152 -> 309.24 | R152: =P152 -> 2577 | S152: =L152+N152+Q152 -> 309.24 | X152: 0.1 | Y152: 2577 | Z152: 257.7 | AA152: 2577 | AB152: 257.7
B153: (d) 3 Months | C153: 0 | D153: 0 | G153: 0 | H153: 0 | I153: 0 | J153: 0 | O153: 0.06 | Q153: =O153*P153 -> 0 | R153: =P153 -> 0 | S153: =L153+N153+Q153 -> 0 | X153: 0.05 | Z153: 0 | AA153: 0 | AB153: 0
B154: Sub Total : | C154: =SUM(C150:C153) -> 854 | D154: =SUM(D150:D153) -> 128.1 | E154: =SUM(E150:E153) -> 550 | F154: =SUM(F150:F153) -> 52.84 | G154: 0.644028103 | H154: 0.412490242 | I154: =SUM(I150:I153) -> 304 | J154: 75.26 | K154: 0 | L154: 0 | M154: 0 | N154: 0 | P154: =SUM(P150:P153) -> 2577 | Q154: 309.24 | R154: 2577 | S154: 309.24 | T154: 0 | U154: 0 | V154: 0 | W154: 0 | Y154: =SUM(Y150:Y153) -> 2577 | Z154: =SUM(Z150:Z153) -> 257.7 | AA154: =SUM(AA150:AA153) -> 2577 | AB154: =SUM(AB150:AB153) -> 257.7
A155: 6.02 | B155: Residential (Continuing from previous year) | G155: 0 | H155: 0 | I155: 0 | J155: 0
B156: (a) 12 Months | C156: 0 | D156: 0 | G156: 0 | H156: 0 | I156: 0 | J156: 0 | O156: 0.24 | Q156: =O156*P156 -> 0 | R156: =P156 -> 0 | S156: =L156+N156+Q156 -> 0 | X156: 0.2 | Z156: =X156*Y156 -> 0 | AA156: =Y156 -> 0 | AB156: =U156+W156+Z156 -> 0
B157: (b) 9 Months | C157: 0 | D157: 0 | G157: 0 | H157: 0 | I157: 0 | J157: 0 | O157: 0.18 | Q157: 0 | R157: 0 | S157: 0 | X157: 0.15 | Z157: 0 | AA157: 0 | AB157: 0
B158: (c) 6 Months | C158: 500 | D158: 50 | E158: 500 | F158: 21.24 | G158: 1 | H158: 0.4248 | I158: 0 | J158: =D158-F158 -> 28.76 | O158: 0.12 | P158: 550 | Q158: 66 | R158: 550 | S158: 66 | X158: 0.1 | Y158: 550 | Z158: 55 | AA158: 550 | AB158: 55
B159: (d) 3 Months | C159: 0 | D159: 0 | G159: 0 | H159: 0 | I159: 0 | J159: 0 | O159: 0.06 | Q159: 0 | R159: 0 | S159: 0 | X159: 0.05 | Z159: 0 | AA159: 0 | AB159: 0
B160: (e) Seasonal Hostel for Migrant Children | C160: 0 | D160: 0 | G160: 0 | H160: 0 | I160: 0 | J160: 0 | Q160: 0 | R160: 0 | S160: 0 | X160: 0.1 | Z160: 0 | AA160: 0 | AB160: 0
B161: (f) Worksite School for Migrant Children | C161: 0 | D161: 0 | G161: 0 | H161: 0 | I161: 0 | J161: 0 | Q161: 0 | R161: 0 | S161: 0 | X161: 0.0214 | Z161: 0 | AA161: 0 | AB161: 0
B162: Sub Total : | C162: =SUM(C156:C161) -> 500 | D162: =SUM(D156:D161) -> 50 | E162: =SUM(E156:E161) -> 500 | F162: =SUM(F156:F161) -> 21.24 | G162: 1 | H162: 0.4248 | I162: =SUM(I156:I161) -> 0 | J162: 28.76 | K162: 0 | L162: 0 | M162: 0 | N162: 0 | P162: =SUM(P156:P161) -> 550 | Q162: 66 | R162: 550 | S162: 66 | T162: 0 | U162: 0 | V162: 0 | W162: 0 | Y162: =SUM(Y156:Y161) -> 550 | Z162: =SUM(Z156:Z161) -> 55 | AA162: =SUM(AA156:AA161) -> 550 | AB162: =SUM(AB156:AB161) -> 55
A163: 6.03 | B163: Non-Residential (Fresh) | G163: 0 | H163: 0 | I163: 0 | J163: 0
B164: (a) 12 Months | C164: 0 | D164: 0 | G164: 0 | H164: 0 | I164: 0 | J164: 0 | O164: 0.06 | Q164: =O164*P164 -> 0 | R164: =P164 -> 0 | S164: =L164+N164+Q164 -> 0 | X164: 0 | Z164: =X164*Y164 -> 0 | AA164: =Y164 -> 0 | AB164: =U164+W164+Z164 -> 0
B165: (b) 9 Months | C165: 1733 | D165: 45.4046 | E165: 478 | F165: 0 | G165: 0.2758222735 | H165: 0 | I165: 1255 | J165: 45.4046 | O165: 0.045 | Q165: =O165*P165 -> 0 | R165: =P165 -> 0 | S165: =L165+N165+Q165 -> 0 | X165: 0.045 | Z165: 0 | AA165: 0 | AB165: 0
B166: (c) 6 Months | C166: 10552 | D166: 203.33704 | E166: 9803 | F166: 2.42 | G166: 0.9290181956 | H166: 0.01190142239 | I166: 749 | J166: 200.91704 | O166: 0.03 | P166: 5075 | Q166: =O166*P166 -> 152.25 | R166: =P166 -> 5075 | S166: =L166+N166+Q166 -> 152.25 | X166: 0.03 | Y166: 5075 | Z166: 152.25 | AA166: 5075 | AB166: 152.25
B167: (d) 3 Months | C167: 0 | D167: 0 | G167: 0 | H167: 0 | I167: 0 | J167: 0 | O167: 0.015 | Q167: =O167*P167 -> 0 | R167: =P167 -> 0 | S167: =L167+N167+Q167 -> 0 | Z167: 0 | AA167: 0 | AB167: 0
B168: Sub Total : | C168: =SUM(C164:C167) -> 12285 | D168: =SUM(D164:D167) -> 248.74164 | E168: =SUM(E164:E167) -> 10281 | F168: =SUM(F164:F167) -> 2.42 | G168: 0.8368742369 | H168: 0.009728970188 | I168: =SUM(I164:I167) -> 2004 | J168: 246.32164 | K168: 0 | L168: 0 | M168: 0 | N168: 0 | P168: =SUM(P164:P167) -> 5075 | Q168: =SUM(Q164:Q167) -> 152.25 | R168: =SUM(R164:R167) -> 5075 | S168: =SUM(S164:S167) -> 152.25 | T168: =SUM(T164:T167) -> 0 | U168: 0 | V168: 0 | W168: 0 | Y168: =SUM(Y164:Y167) -> 5075 | Z168: =SUM(Z164:Z167) -> 152.25 | AA168: =SUM(AA164:AA167) -> 5075 | AB168: =SUM(AB164:AB167) -> 152.25
A169: 6.04 | B169: Non-Residential (Continuing from previous year) | G169: 0 | H169: 0 | I169: 0 | J169: 0
B170: (a) 12 Months | C170: 0 | D170: 0 | G170: 0 | H170: 0 | I170: 0 | J170: 0 | O170: 0.06 | Q170: =O170*P170 -> 0 | R170: =P170 -> 0 | S170: =L170+N170+Q170 -> 0 | X170: 0 | Z170: =X170*Y170 -> 0 | AA170: =Y170 -> 0 | AB170: =U170+W170+Z170 -> 0
B171: (b) 9 Months | C171: 0 | D171: 0 | G171: 0 | H171: 0 | I171: 0 | J171: 0 | O171: 0.045 | Q171: =O171*P171 -> 0 | R171: =P171 -> 0 | S171: =L171+N171+Q171 -> 0 | X171: 0 | Z171: 0 | AA171: 0 | AB171: 0
B172: (c) 6 Months | C172: 0 | D172: 0 | G172: 0 | H172: 0 | I172: 0 | J172: 0 | O172: 0.03 | Q172: =O172*P172 -> 0 | R172: =P172 -> 0 | S172: =L172+N172+Q172 -> 0 | X172: 0.01267 | Z172: 0 | AA172: 0 | AB172: 0
B173: (d) 3 Months | C173: 0 | D173: 0 | G173: 0 | H173: 0 | I173: 0 | J173: 0 | O173: 0.015 | Q173: =O173*P173 -> 0 | R173: =P173 -> 0 | S173: =L173+N173+Q173 -> 0 | Z173: 0 | AA173: 0 | AB173: 0
B174: Sub Total : | C174: =SUM(C170:C173) -> 0 | D174: =SUM(D170:D173) -> 0 | E174: =SUM(E170:E173) -> 0 | F174: =SUM(F170:F173) -> 0 | G174: 0 | H174: 0 | I174: =SUM(I170:I173) -> 0 | J174: 0 | K174: 0 | L174: 0 | M174: 0 | N174: 0 | P174: =SUM(P170:P173) -> 0 | Q174: 0 | R174: 0 | S174: 0 | T174: 0 | U174: 0 | V174: 0 | W174: 0 | Y174: =SUM(Y170:Y173) -> 0 | Z174: 0 | AA174: 0 | AB174: 0
A175: 6.05 | B175: Madarasa/Maktab
B176: (a) 12 months | C176: 0 | D176: 0 | O176: 0.06 | Q176: =O176*P176 -> 0 | R176: =P176 -> 0 | S176: =L176+N176+Q176 -> 0 | Z176: =X176*Y176 -> 0 | AA176: =Y176 -> 0 | AB176: =U176+W176+Z176 -> 0
B177: (b) 9 months | C177: 0 | D177: 0 | O177: 0.045 | Q177: =O177*P177 -> 0 | R177: =P177 -> 0 | S177: =L177+N177+Q177 -> 0 | Z177: 0 | AA177: 0 | AB177: 0
B178: (c) 6 months | C178: 0 | D178: 0 | O178: 0.03 | Q178: =O178*P178 -> 0 | R178: =P178 -> 0 | S178: =L178+N178+Q178 -> 0 | Z178: 0 | AA178: 0 | AB178: 0
B179: (d) 3 months | C179: 0 | D179: 0 | O179: 0.015 | Q179: =O179*P179 -> 0 | R179: =P179 -> 0 | S179: =L179+N179+Q179 -> 0 | Z179: 0 | AA179: 0 | AB179: 0
B180: Sub Total : | C180: =SUM(C176:C179) -> 0 | D180: =SUM(D176:D179) -> 0 | E180: =SUM(E176:E179) -> 0 | F180: =SUM(F176:F179) -> 0 | I180: =SUM(I176:I179) -> 0 | J180: 0 | K180: 0 | L180: 0 | M180: 0 | N180: 0 | P180: =SUM(P176:P179) -> 0 | Q180: =SUM(Q176:Q179) -> 0 | R180: =SUM(R176:R179) -> 0 | S180: =SUM(S176:S179) -> 0 | T180: =SUM(T176:T179) -> 0 | U180: 0 | V180: 0 | W180: 0 | Y180: =SUM(Y176:Y179) -> 0 | Z180: 0 | AA180: 0 | AB180: 0
A181: 6.06 | B181: Seasonal Hostel (Residential)
B182: (a) 12 months | C182: 0 | D182: 0 | O182: 0.2 | Q182: =O182*P182 -> 0 | R182: =P182 -> 0 | S182: =L182+N182+Q182 -> 0 | Z182: =X182*Y182 -> 0 | AA182: =Y182 -> 0 | AB182: =U182+W182+Z182 -> 0
B183: (b) 9 months | C183: 0 | D183: 0 | O183: 0.15 | Q183: =O183*P183 -> 0 | R183: =P183 -> 0 | S183: =L183+N183+Q183 -> 0 | Z183: 0 | AA183: 0 | AB183: 0
B184: (c) 6 months | C184: 0 | D184: 0 | O184: 0.1 | Q184: =O184*P184 -> 0 | R184: =P184 -> 0 | S184: =L184+N184+Q184 -> 0 | Z184: 0 | AA184: 0 | AB184: 0
B185: (d) 3 months | C185: 0 | D185: 0 | O185: 0.05 | Q185: =O185*P185 -> 0 | R185: =P185 -> 0 | S185: =L185+N185+Q185 -> 0 | Z185: 0 | AA185: 0 | AB185: 0
B186: Sub Total : | C186: =SUM(C182:C185) -> 0 | D186: =SUM(D182:D185) -> 0 | E186: =SUM(E182:E185) -> 0 | F186: =SUM(F182:F185) -> 0 | I186: =SUM(I182:I185) -> 0 | J186: 0 | K186: 0 | L186: 0 | M186: 0 | N186: 0 | P186: =SUM(P182:P185) -> 0 | Q186: 0 | R186: 0 | S186: 0 | T186: 0 | U186: 0 | V186: 0 | W186: 0 | Y186: =SUM(Y182:Y185) -> 0 | Z186: =SUM(Z182:Z185) -> 0 | AA186: =SUM(AA182:AA185) -> 0 | AB186: =SUM(AB182:AB185) -> 0
A187: 6.07 | B187: Seasonal Hostel (Non Residential) | G187: =IFERROR(E187/C187, ) -> 0 | H187: 0 | I187: 0 | J187: 0
B188: (a) 12 months | C188: 0 | D188: 0 | G188: 0 | H188: 0 | I188: 0 | J188: 0 | O188: 0.06 | Q188: =O188*P188 -> 0 | R188: =P188 -> 0 | S188: =L188+N188+Q188 -> 0 | X188: 0 | Z188: =X188*Y188 -> 0 | AA188: =Y188 -> 0 | AB188: =U188+W188+Z188 -> 0
B189: (b) 9 months | C189: 0 | D189: 0 | G189: 0 | H189: 0 | I189: 0 | J189: 0 | O189: 0.045 | Q189: =O189*P189 -> 0 | R189: =P189 -> 0 | S189: =L189+N189+Q189 -> 0 | Z189: 0 | AA189: 0 | AB189: 0
B190: (c) 6 months | C190: 0 | D190: 0 | G190: 0 | H190: 0 | I190: 0 | J190: 0 | O190: 0.03 | Q190: =O190*P190 -> 0 | R190: =P190 -> 0 | S190: =L190+N190+Q190 -> 0 | X190: 0.03 | Z190: 0 | AA190: 0 | AB190: 0
B191: (d) 3 months | C191: 0 | D191: 0 | G191: 0 | H191: 0 | I191: 0 | J191: 0 | O191: 0.015 | Q191: =O191*P191 -> 0 | R191: =P191 -> 0 | S191: =L191+N191+Q191 -> 0 | Z191: 0 | AA191: 0 | AB191: 0
B192: Sub Total : | C192: =SUM(C188:C191) -> 0 | D192: =SUM(D188:D191) -> 0 | E192: =SUM(E188:E191) -> 0 | F192: =SUM(F188:F191) -> 0 | G192: =SUM(G188:G191) -> 0 | H192: 0 | I192: =SUM(I188:I191) -> 0 | J192: 0 | K192: 0 | L192: 0 | M192: 0 | N192: 0 | P192: =SUM(P188:P191) -> 0 | Q192: 0 | R192: 0 | S192: 0 | T192: 0 | U192: 0 | V192: 0 | W192: 0 | Y192: =SUM(Y188:Y191) -> 0 | Z192: =SUM(Z188:Z191) -> 0 | AA192: =SUM(AA188:AA191) -> 0 | AB192: =SUM(AB188:AB191) -> 0
B193: Total | C193: =C154+C162+C168+C174+C180+C186+C192 -> 13639 | D193: 426.84164 | E193: =E154+E162+E168+E174+E180+E186+E192 -> 11331 | F193: 76.5 | G193: 0.8307793827 | H193: 0.1792233766 | I193: =I154+I162+I168+I174+I180+I186+I192 -> 2308 | J193: 350.34164 | K193: 0 | L193: 0 | M193: 0 | N193: 0 | P193: =P154+P162+P168+P174+P180+P186+P192 -> 8202 | Q193: 527.49 | R193: 8202 | S193: 527.49 | T193: 0 | U193: 0 | V193: 0 | W193: 0 | Y193: =Y154+Y162+Y168+Y174+Y180+Y186+Y192 -> 8202 | Z193: 464.95 | AA193: 8202 | AB193: 464.95
B194: Total (Access): | C194: =C141+C145+C147+C193 -> 13639 | D194: 426.84164 | E194: =E141+E145+E147+E193 -> 11331 | F194: 76.5 | I194: =I141+I145+I147+I193 -> 2308 | J194: 350.34164 | K194: 0 | L194: 0 | M194: 0 | N194: 0 | P194: =P141+P145+P147+P193 -> 12441 | Q194: 711.8865 | R194: 12441 | S194: 711.8865 | T194: 0 | U194: 0 | V194: 0 | W194: 0 | Y194: =Y141+Y145+Y147+Y193 -> 8202 | Z194: 464.95 | AA194: 8202 | AB194: 464.95
A195: II | B195: RETENTION | G195: =IFERROR(E195/C195, ) -> 0 | H195: 0 | I195: 0 | J195: 0
A196: 7 | B196: Free Text Book | G196: 0 | H196: 0 | I196: 0 | J196: 0
A197: 7.01 | B197: Free Text Book (P) | C197: 0 | D197: 0 | G197: 0 | H197: 0 | I197: 0 | J197: 0 | Q197: =O197*P197 -> 0 | R197: =P197 -> 0 | S197: =L197+N197+Q197 -> 0
B198: (a) Class I & II | C198: 168140 | D198: 252.21 | E198: 96526 | F198: 144.789 | G198: 0.5740811229 | H198: 0.5740811229 | I198: 71614 | J198: 107.421 | O198: 0.0015 | P198: 206980 | Q198: 310.47 | R198: 206980 | S198: 310.47 | X198: 0.0015 | Y198: 206980 | Z198: =X198*Y198 -> 310.47 | AA198: =Y198 -> 206980 | AB198: =U198+W198+Z198 -> 310.47
B199: (b) Braille Books Class I & II | C199: 472 | D199: 0.708 | F199: 0 | G199: 0 | H199: 0 | I199: 472 | J199: 0.708 | O199: 0.0015 | P199: 12 | Q199: 0.018 | R199: 12 | S199: 0.018 | X199: 0.0015 | Y199: 12 | Z199: 0.018 | AA199: 12 | AB199: 0.018
B200: (c) Large Print Books Class I & II | C200: 149 | D200: 0.2235 | F200: 0 | G200: 0 | H200: 0 | I200: 149 | J200: 0.2235 | O200: 0.0015 | P200: 59 | Q200: 0.0885 | R200: 59 | S200: 0.0885 | X200: 0.0015 | Y200: 59 | Z200: 0.0885 | AA200: 59 | AB200: 0.0885
... 293 more rows

Sheet Arwal
A1: S.No. | B1: Activity | C1: Approved Outlay & Achievements 2015-16 | K1: Outlay Proposed for 2016-17 | T1: Outlay Recommended for 2016-17
C2: Outlay approved by PAB (including spillover) after re-appropriation | E2: Achievement during the year (Anticipated upto March, 2016) | I2: Savings | K2: Spill Over | M2: Deferred laibility of 2015-16 | O2: Fresh | R2: Total | T2: Spill Over | V2: Deferred laibility of 2015-16 | X2: Fresh | AA2: Total
C3: Phy. | D3: Fin | E3: Phy. | F3: Fin. | G3: Phy. (%) | H3: Fin. (%) | I3: Phy. | J3: Fin. | K3: Phy. | L3: Fin. | M3: Phy. | N3: Fin. | O3: Unit Cost | P3: Phy. | Q3: Fin. | R3: Phy. | S3: Fin. | T3: Phy. | U3: Fin. | V3: Phy. | W3: Fin. | X3: Unit Cost | Y3: Phy. | Z3: Fin. | AA3: Phy. | AB3: Fin.
A4: I | B4: ACCESS
B5: SSA
A6: 1 | B6: Opening of New Schools | AA6: =Y6 -> 0
A7: 1.01 | B7: New Primary School | C7: 0 | G7: =IFERROR(E7/C7, ) -> 0 | H7: =IF(D7>0, F7/D7, " ") ->  | I7: =C7-E7 -> 0 | R7: =P7 -> 0 | AA7: =Y7 -> 0
A8: 1.02 | B8: Upgradation of PS to UPS | C8: 0 | G8: 0 | I8: 0 | R8: 0 | AA8: 0
A9: 1.03 | B9: Composite Schools | C9: 0 | G9: 0 | I9: 0 | R9: 0 | AA9: 0
A10: 1.04 | B10: Residential schools for specific category of children | C10: 0 | G10: 0 | I10: 0 | R10: 0 | AA10: 0
A11: 1.05 | B11: Residential Hostel | C11: 0 | G11: 0 | I11: 0 | R11: 0 | AA11: 0
A12: 1.06 | B12: Integration of Class V with primary schools | C12: 0 | G12: 0 | I12: 0 | R12: 0 | AA12: 0
A13: 1.07 | B13: Integration of Class VIII with upper primary schools | C13: 0 | G13: 0 | I13: 0 | R13: 0 | AA13: 0
A14: 2 | B14: Residential Schools for specific category of children | G14: 0 | H14: =IFERROR(F14/D14, ) -> 0
A15: A. | B15: 50 Children
B16: Non-recurring (one time grant) | G16: =IFERROR(E16/C16, ) -> 0 | H16: 0
A17: 2.01 | B17: Furniture / Equipment (including kitchen) | C17: 0 | D17: 0 | G17: 0 | H17: 0 | I17: =C17-E17 -> 0 | J17: 0 | Q17: =O17*P17 -> 0 | R17: =P17 -> 0 | S17: =L17+N17+Q17 -> 0 | Z17: =X17*Y17 -> 0 | AA17: =Y17 -> 0 | AB17: =U17+W17+Z17 -> 0
A18: 2.02 | B18: TLM and equipment including library books | C18: 0 | D18: 0 | G18: 0 | H18: 0 | I18: 0 | J18: 0 | Q18: =O18*P18 -> 0 | R18: =P18 -> 0 | S18: =L18+N18+Q18 -> 0 | Z18: =X18*Y18 -> 0 | AA18: =Y18 -> 0 | AB18: =U18+W18+Z18 -> 0
A19: 2.03 | B19: Bedding (new) | C19: 0 | D19: 0 | G19: 0 | H19: 0 | I19: 0 | J19: 0 | Q19: 0 | R19: =P19 -> 0 | S19: =L19+N19+Q19 -> 0 | Z19: 0 | AA19: 0 | AB19: 0
A20: 2.04 | B20: Replacement of bedding (once in 3 years) | C20: 0 | D20: 0 | Q20: 0 | R20: =P20 -> 0 | S20: =L20+N20+Q20 -> 0 | Z20: 0 | AA20: 0 | AB20: 0
B21: Sub Total Non-recurring | C21: =SUM(C17:C20) -> 0 | D21: =SUM(D17:D20) -> 0 | E21: =SUM(E17:E20) -> 0 | F21: =SUM(F17:F20) -> 0 | G21: =IFERROR(E21/C21, ) -> 0 | H21: 0 | I21: =SUM(I17:I20) -> 0 | J21: 0 | K21: 0 | L21: 0 | M21: 0 | N21: 0 | P21: =SUM(P17:P20) -> 0 | Q21: =SUM(Q17:Q20) -> 0 | R21: =SUM(R17:R20) -> 0 | S21: =SUM(S17:S20) -> 0 | T21: =SUM(T17:T20) -> 0 | U21: 0 | V21: 0 | W21: 0 | Y21: =SUM(Y17:Y20) -> 0 | Z21: 0 | AA21: 0 | AB21: 0
B22: Recurring (50 children) | G22: 0 | H22: 0 | I22: =C22-E22 -> 0 | J22: 0 | Q22: 0
A23: 2.05 | B23: Maintenance @ Rs.1,500/- per child Per month | C23: 0 | D23: 0 | G23: 0 | H23: 0 | I23: 0 | J23: 0 | Q23: 0 | R23: =P23 -> 0 | S23: =L23+N23+Q23 -> 0 | Z23: =X23*Y23 -> 0 | AA23: =Y23 -> 0 | AB23: =U23+W23+Z23 -> 0
A24: 2.06 | B24: Stipend @ Rs.100/- per child per month | C24: 0 | D24: 0 | G24: 0 | H24: 0 | I24: 0 | J24: 0 | Q24: 0 | R24: 0 | S24: 0 | Z24: 0 | AA24: 0 | AB24: 0
A25: 2.07 | B25: Supplementary TLM, Stationery and other educational material @Rs.1,000/- per child per annum | C25: 0 | D25: 0 | G25: 0 | H25: 0 | I25: 0 | J25: 0 | Q25: 0 | R25: 0 | S25: 0 | Z25: 0 | AA25: 0 | AB25: 0
A26: 2.08 | B26: Salaries | C26: 0 | D26: 0 | G26: 0 | H26: 0 | I26: 0 | J26: 0 | Q26: 0 | R26: 0 | S26: 0
A27: (a) | B27: 1 Warden @ Rs.25,000/- per month | C27: 0 | D27: 0 | G27: 0 | H27: 0 | I27: 0 | J27: 0 | Q27: 0 | R27: 0 | S27: 0 | Z27: =X27*Y27 -> 0 | AA27: =Y27 -> 0 | AB27: =U27+W27+Z27 -> 0
A28: (b) | B28: 4 Fulltime teachers as per RTE Norms @ Rs. 20,000/- per month per teacher | C28: 0 | D28: 0 | O28: 9.6 | Q28: 0 | R28: 0 | S28: 0 | X28: 9.6 | Z28: 0 | AA28: 0 | AB28: 0
A29: (c) | B29: 2 Urdu Teachers (only for Blocks with muslim population above 20% and select urban areas) if required @ Rs.12,000/- per month per teacher. | C29: 0 | D29: 0 | O29: 2.88 | Q29: 0 | R29: 0 | S29: 0 | X29: 2.88 | Z29: 0 | AA29: 0 | AB29: 0
A30: (d) | B30: 3 Part time teachers @ Rs.5,000/- per month per teacher | C30: 0 | D30: 0 | O30: 1.5 | Q30: 0 | R30: 0 | S30: 0 | X30: 1.5 | Z30: 0 | AA30: 0 | AB30: 0
A31: (e) | B31: 1 Full time Accountant @ Rs. 10,000/- per month | C31: 0 | D31: 0 | O31: 1.2 | Q31: 0 | R31: 0 | S31: 0 | X31: 1.2 | Z31: 0 | AA31: 0 | AB31: 0
A32: (f) | B32: 2 Support staff - (Accountant/Assistant, Peon, Chowkidar) @ Rs. 5,000/- per month per staff | C32: 0 | D32: 0 | G32: =IFERROR(E32/C32, ) -> 0 | H32: 0 | I32: =C32-E32 -> 0 | J32: 0 | O32: 1.2 | Q32: 0 | R32: 0 | S32: 0 | X32: 1.2 | Z32: 0 | AA32: 0 | AB32: 0
A33: (g) | B33: 1 Head Cook @ Rs. 6,000/- per month and upto 2 Asstt. Cooks @ Rs. 4,500/- per month per cook | C33: 0 | D33: 0 | G33: 0 | H33: 0 | I33: 0 | J33: 0 | O33: 1.8 | Q33: 0 | R33: 0 | S33: 0 | X33: 1.8 | Z33: 0 | AA33: 0 | AB33: 0
A34: 2.09 | B34: Specific Skill training @ Rs.1,000/- per child per annum | C34: 0 | D34: 0 | G34: 0 | H34: 0 | I34: 0 | J34: 0 | O34: 0.5 | Q34: 0 | R34: 0 | S34: 0 | X34: 0.5 | Z34: 0 | AA34: 0 | AB34: 0
A35: 2.1 | B35: Electricity / water charges @ Rs. 1,000/- per child per annum | C35: 0 | D35: 0 | G35: 0 | H35: 0 | I35: 0 | J35: 0 | O35: 0.5 | Q35: 0 | R35: 0 | S35: 0 | X35: 0.5 | Z35: 0 | AA35: 0 | AB35: 0
A36: =+A35+0.01 -> 2.11 | B36: Medical care/contingencies @ Rs.1,250/- per child per annum | C36: 0 | D36: 0 | G36: 0 | H36: 0 | I36: 0 | J36: 0 | O36: 0.625 | Q36: 0 | R36: 0 | S36: 0 | X36: 0.625 | Z36: 0 | AA36: 0 | AB36: 0
A37: =+A36+0.01 -> 2.12 | B37: Maintenance @ Rs. 750/- per child per annum | C37: 0 | D37: 0 | G37: 0 | H37: 0 | I37: 0 | J37: 0 | O37: 0.375 | Q37: 0 | R37: 0 | S37: 0 | X37: 0.375 | Z37: 0 | AA37: 0 | AB37: 0
A38: 2.13 | B38: Miscellaneous @ Rs. 750/- per child per annum | C38: 0 | D38: 0 | G38: 0 | H38: 0 | I38: 0 | J38: 0 | O38: 0.375 | Q38: 0 | R38: 0 | S38: 0 | X38: 0.375 | Z38: 0 | AA38: 0 | AB38: 0
A39: 2.14 | B39: Preparatory camps @ Rs. 300/- per child per annum | C39: 0 | D39: 0 | G39: 0 | H39: 0 | I39: 0 | J39: 0 | O39: 0.15 | Q39: 0 | R39: 0 | S39: 0 | X39: 0.15 | Z39: 0 | AA39: 0 | AB39: 0
A40: 2.15 | B40: P.T.A / school functions @ Rs. 300/- per child per annum | C40: 0 | D40: 0 | G40: 0 | H40: 0 | I40: 0 | J40: 0 | O40: 0.15 | Q40: 0 | R40: 0 | S40: 0 | X40: 0.15 | Z40: 0 | AA40: 0 | AB40: 0
A41: 2.16 | B41: Provision of Rent @ Rs. 10,000/- per child per annum | C41: 0 | D41: 0 | Q41: 0 | R41: 0 | S41: 0 | Z41: 0 | AA41: 0 | AB41: 0
A42: 2.17 | B42: Capacity Building @ Rs. 500/- per child per annum | C42: 0 | D42: 0 | O42: 0.25 | Q42: 0 | R42: 0 | S42: 0 | X42: 0.25 | Z42: 0 | AA42: 0 | AB42: 0
A43: 2.18 | B43: Physical / Self Defence Training @ Rs.200/- per child per annum | C43: 0 | D43: 0 | O43: 0.1 | Q43: 0 | R43: 0 | S43: 0 | X43: 0.1 | Z43: 0 | AA43: 0 | AB43: 0
B44: Sub Total (Recurring) | C44: =SUM(C23:C43) -> 0 | D44: =SUM(D23:D43) -> 0 | E44: =SUM(E23:E43) -> 0 | F44: =SUM(F23:F43) -> 0 | G44: =IFERROR(E44/C44, ) -> 0 | H44: =IFERROR(F44/D44, ) -> 0 | I44: =SUM(I23:I43) -> 0 | J44: 0 | K44: 0 | L44: 0 | M44: 0 | N44: 0 | P44: =SUM(P23:P43) -> 0 | Q44: 0 | R44: 0 | S44: 0 | T44: 0 | U44: 0 | V44: 0 | W44: 0 | Y44: =SUM(Y23:Y43) -> 0 | Z44: 0 | AA44: 0 | AB44: 0
B45: Total (Non Recurring + Recurring) | C45: =C21+C44 -> 0 | D45: =D21+D44 -> 0 | E45: =E21+E44 -> 0 | F45: =F21+F44 -> 0 | I45: =I21+I44 -> 0 | J45: 0 | K45: 0 | L45: 0 | M45: 0 | N45: 0 | P45: =P21+P44 -> 0 | Q45: 0 | R45: 0 | S45: 0 | T45: 0 | U45: 0 | V45: 0 | W45: 0 | Y45: =Y21+Y44 -> 0 | Z45: 0 | AA45: 0 | AB45: 0
A46: B. | B46: 100 children
B47: Non-recurring (one time grant)
A48: 2.19 | B48: Furniture / Equipment (including kitchen equipment) | C48: 0 | D48: 0 | O48: 3 | Q48: =O48*P48 -> 0 | R48: =P48 -> 0 | S48: =L48+N48+Q48 -> 0 | X48: 3 | Z48: =X48*Y48 -> 0 | AA48: =Y48 -> 0 | AB48: =U48+W48+Z48 -> 0
A49: =+A48+0.01 -> 2.2 | B49: TLM and equipment including library books (New) | C49: 0 | D49: 0 | O49: 3.5 | Q49: =O49*P49 -> 0 | R49: =P49 -> 0 | S49: =L49+N49+Q49 -> 0 | X49: 3.5 | Z49: 0 | AA49: 0 | AB49: 0
A50: =+A49+0.01 -> 2.21 | B50: Bedding (New) | C50: 0 | D50: 0 | O50: 0.75 | Q50: =O50*P50 -> 0 | R50: =P50 -> 0 | S50: =L50+N50+Q50 -> 0 | X50: 0.75 | Z50: 0 | AA50: 0 | AB50: 0
A51: =+A50+0.01 -> 2.22 | B51: Replacement of bedding (once in 3 years) | C51: 0 | D51: 0 | Q51: =O51*P51 -> 0 | R51: =P51 -> 0 | S51: =L51+N51+Q51 -> 0 | Z51: 0 | AA51: 0 | AB51: 0
B52: Sub Total Non-recurring | C52: =SUM(C48:C51) -> 0 | D52: =SUM(D48:D51) -> 0 | E52: =SUM(E48:E51) -> 0 | F52: =SUM(F48:F51) -> 0 | I52: =SUM(I48:I51) -> 0 | J52: 0 | K52: 0 | L52: 0 | M52: 0 | N52: 0 | P52: =SUM(P48:P51) -> 0 | Q52: 0 | R52: 0 | S52: 0 | T52: 0 | U52: 0 | V52: 0 | W52: 0 | Y52: =SUM(Y48:Y51) -> 0 | Z52: 0 | AA52: 0 | AB52: 0
B53: Recurring
A54: 2.23 | B54: Maintenance @ Rs. 1,500/- per child per month | C54: 0 | D54: 0 | Q54: =O54*P54 -> 0 | R54: =P54 -> 0 | S54: =L54+N54+Q54 -> 0 | Z54: =X54*Y54 -> 0 | AA54: =Y54 -> 0 | AB54: =U54+W54+Z54 -> 0
A55: =+A54+0.01 -> 2.24 | B55: Stipend @ Rs.100/- per child per month | C55: 0 | D55: 0 | Q55: 0 | R55: 0 | S55: 0 | Z55: 0 | AA55: 0 | AB55: 0
A56: 2.25 | B56: Supplementary TLM, Stationery and other educational material @1,000/- per child per annum | C56: 0 | D56: 0 | Q56: 0 | R56: 0 | S56: 0 | Z56: 0 | AA56: 0 | AB56: 0
A57: 2.26 | B57: Salaries | C57: 0 | D57: 0 | Q57: 0 | R57: 0 | S57: 0
A58: (a) | B58: 1 Warden @ Rs. 25,000/- per month | C58: 0 | D58: 0 | O58: 3 | Q58: 0 | R58: 0 | S58: 0 | X58: 3 | Z58: =X58*Y58 -> 0 | AA58: =Y58 -> 0 | AB58: =U58+W58+Z58 -> 0
A59: (b) | B59: 1 head teacher @ Rs. 25,000/- per month in case the enrollment exceeds 100 | C59: 0 | D59: 0 | O59: 3 | Q59: 0 | R59: 0 | S59: 0 | X59: 3 | Z59: 0 | AA59: 0 | AB59: 0
A60: (c) | B60: 4 - 5 Full time teachers as per RTE norms @ Rs. 20,000/- per month per teacher | C60: 0 | D60: 0 | O60: 9.6 | Q60: 0 | R60: 0 | S60: 0 | X60: 9.6 | Z60: 0 | AA60: 0 | AB60: 0
A61: (d) | B61: 2 Urdu Teachers (only for blocks with muslim population above 20% and select urban areas), if required @ Rs. 12,000/- per month per teacher | C61: 0 | D61: 0 | O61: 2.88 | Q61: 0 | R61: 0 | S61: 0 | X61: 2.88 | Z61: 0 | AA61: 0 | AB61: 0
A62: (e) | B62: 3 part time teachers @ Rs. 5,000/- per month per teacher | C62: 0 | D62: 0 | O62: 1.5 | Q62: 0 | R62: 0 | S62: 0 | X62: 1.5 | Z62: 0 | AA62: 0 | AB62: 0
A63: (f) | B63: 1 Full time Accountant @ Rs. 10,000/- per month | C63: 0 | D63: 0 | O63: 1.2 | Q63: 0 | R63: 0 | S63: 0 | X63: 1.2 | Z63: 0 | AA63: 0 | AB63: 0
A64: (g) | B64: 2 Support Staff – (Accountant/ Assistant, Peon, Chowkidar) @ Rs. 5,000/- per month per staff | C64: 0 | D64: 0 | O64: 1.2 | Q64: 0 | R64: 0 | S64: 0 | X64: 1.2 | Z64: 0 | AA64: 0 | AB64: 0
A65: (h) | B65: 1 Head cook @ Rs. 6,000/- per month and upto 2 Asstt. Cooks @ Rs. 4,500/- per month per cook | C65: 0 | D65: 0 | O65: 1.8 | Q65: 0 | R65: 0 | S65: 0 | X65: 1.8 | Z65: 0 | AA65: 0 | AB65: 0
A66: 2.27 | B66: Specific skill training @ Rs. 1,000/- per child per annum | C66: 0 | D66: 0 | O66: 1 | Q66: 0 | R66: 0 | S66: 0 | X66: 1 | Z66: 0 | AA66: 0 | AB66: 0
A67: 2.28 | B67: Electricity / water charges @Rs. 1,000/- per child per annum | C67: 0 | D67: 0 | O67: 1 | Q67: 0 | R67: 0 | S67: 0 | X67: 1 | Z67: 0 | AA67: 0 | AB67: 0
A68: 2.29 | B68: Medical care/contingencies @ Rs. 1,250/- per child per annum | C68: 0 | D68: 0 | O68: 1.25 | Q68: 0 | R68: 0 | S68: 0 | X68: 1.25 | Z68: 0 | AA68: 0 | AB68: 0
A69: 2.3 | B69: Maintenance @ Rs. 750/- per child per annum | C69: 0 | D69: 0 | O69: 0.75 | Q69: 0 | R69: 0 | S69: 0 | X69: 0.75 | Z69: 0 | AA69: 0 | AB69: 0
A70: 2.31 | B70: Miscellaneous @ Rs. 750/- per child per annum | C70: 0 | D70: 0 | O70: 0.75 | Q70: 0 | R70: 0 | S70: 0 | X70: 0.75 | Z70: 0 | AA70: 0 | AB70: 0
A71: 2.32 | B71: Preparatory camps @ Rs.200/- per child per annum | C71: 0 | D71: 0 | O71: 0.2 | Q71: 0 | R71: 0 | S71: 0 | X71: 0.2 | Z71: 0 | AA71: 0 | AB71: 0
A72: 2.33 | B72: P.T.A / school functions @ Rs.200/- per child per annum | C72: 0 | D72: 0 | O72: 0.2 | Q72: 0 | R72: 0 | S72: 0 | X72: 0.2 | Z72: 0 | AA72: 0 | AB72: 0
A73: 2.34 | B73: Provision of Rent @ Rs. 6,000/- per child per annum | C73: 0 | D73: 0 | Q73: 0 | R73: 0 | S73: 0 | Z73: 0 | AA73: 0 | AB73: 0
A74: 2.35 | B74: Capacity Building @ Rs. 500/- per child per annum | C74: 0 | D74: 0 | O74: 0.5 | Q74: 0 | R74: 0 | S74: 0 | X74: 0.5 | Z74: 0 | AA74: 0 | AB74: 0
A75: 2.36 | B75: Physical / Self Defence training @ Rs. 200/- per child per annum. | C75: 0 | D75: 0 | O75: 0.2 | P75: =P74 -> 0 | Q75: =O75*P75 -> 0 | R75: =P75 -> 0 | S75: =L75+N75+Q75 -> 0 | X75: 0.2 | Z75: 0 | AA75: 0 | AB75: 0
B76: Sub Total (Recurring) | C76: =SUM(C54:C75) -> 0 | D76: =SUM(D54:D75) -> 0 | E76: =SUM(E54:E75) -> 0 | F76: =SUM(F54:F75) -> 0 | I76: =SUM(I54:I75) -> 0 | J76: 0 | K76: 0 | L76: 0 | M76: 0 | N76: 0 | P76: =SUM(P54:P75) -> 0 | Q76: 0 | R76: 0 | S76: 0 | T76: 0 | U76: 0 | V76: 0 | W76: 0 | Y76: =SUM(Y54:Y75) -> 0 | Z76: 0 | AA76: 0 | AB76: 0
B77: Total (Recurring + Non Recurring) | C77: =C52+C76 -> 0 | D77: =D52+D76 -> 0 | E77: =E52+E76 -> 0 | F77: =F52+F76 -> 0 | I77: =I52+I76 -> 0 | J77: 0 | K77: 0 | L77: 0 | M77: 0 | N77: 0 | P77: =P52+P76 -> 0 | Q77: 0 | R77: 0 | S77: 0 | T77: 0 | U77: 0 | V77: 0 | W77: 0 | Y77: =Y52+Y76 -> 0 | Z77: 0 | AA77: 0 | AB77: 0
B78: Total - (50 + 100 children) | C78: =C45+C77 -> 0 | D78: =D45+D77 -> 0 | E78: =E45+E77 -> 0 | F78: =F45+F77 -> 0 | G78: =IFERROR(E78/C78, ) -> 0 | H78: =IFERROR(F78/D78, ) -> 0 | I78: =I45+I77 -> 0 | J78: 0 | K78: 0 | L78: 0 | M78: 0 | N78: 0 | P78: =P45+P77 -> 0 | Q78: 0 | R78: 0 | S78: 0 | T78: 0 | U78: 0 | V78: 0 | W78: 0 | Y78: =Y45+Y77 -> 0 | Z78: 0 | AA78: 0 | AB78: 0
A79: 3 | B79: Residential Hostel for specific category of children | G79: =IFERROR(E79/C79, ) -> 0 | H79: =IFERROR(F79/D79, ) -> 0 | I79: =C79-E79 -> 0 | J79: =D79-F79 -> 0
A80: (A) | B80: 50 children
B81: Non-recurring (one time grant) | G81: =IFERROR(E81/C81, ) -> 0 | H81: =IFERROR(F81/D81, ) -> 0
